Workbook

Sheet PI vs gap
A1: Measurement | B1: Hall
A2: Type | B2: Off-axis
A4: PS type | B4: HXR
A5: PS serial no | B5: 16304
A7: Measurement date | B7: ='DF raw data'!AF2 -> 3. jul 2017
C11: Nominal gap [mm] | D11: Encoder [counts] | E11: Encoder [mm] | F11: PI [T^2mm^3] | G11: x [mm] | H11: Encoder offset
C12: 10 | D12: =' 10 x=-2'!B3 -> 262041706 | E12: =(D12-$H$12)*-0.00025+10 -> 10.001 | F12: =' 10 x=-2'!Q3 -> 708.5509511 | G12: -2 | H12: 262041710
C13: 10 | D13: ='10 x=-1'!B3 -> 262041733 | E13: =(D13-$H$12)*-0.00025+10 -> 9.99425 | F13: ='10 x=-1'!Q3 -> 708.8244906 | G13: -1
C14: 10 | D14: ='10 x=0'!B3 -> 262041702 | E14: 10.002 | F14: ='10 x=0'!Q3 -> 708.982865 | G14: 0
C15: 10 | D15: ='10 x=1'!B3 -> 262041716 | E15: 9.9985 | F15: ='10 x=1'!Q3 -> 708.8300432 | G15: 1
C16: 10 | D16: ='10 x=2'!B3 -> 262041713 | E16: 9.99925 | F16: ='10 x=2'!Q3 -> 708.5144557 | G16: 2
C17: 30 | D17: ='30 x=-2'!B3 -> 262041706 | E17: 10.001 | F17: ='30 x=-2'!Q3 -> 708.7485909 | G17: -2
C18: 30 | D18: ='30 x=-1'!B3 -> 262041733 | E18: 9.99425 | F18: ='30 x=-1'!Q3 -> 709.0222068 | G18: -1
C19: 30 | D19: ='30 x=0'!B3 -> 262041702 | E19: 10.002 | F19: ='30 x=0'!Q3 -> 709.1806254 | G19: 0
C20: 30 | D20: ='30 x=1'!B3 -> 262041716 | E20: 9.9985 | F20: ='30 x=1'!Q3 -> 709.0277608 | G20: 1
C21: 30 | D21: ='30 x=2'!B3 -> 262041713 | E21: 9.99925 | F21: ='30 x=2'!Q3 -> 708.7120847 | G21: 2
A41: Measuring series at 10 mm gap:
A42: Reference magnet
A43: Tref | B43: 21.03 | C43: degC
A44: Hall ref field | B44: 0.50525 | C44: T
A45: NMR ref field | B45: 0.50645 | C45: T
A47: Measuring series at larger gaps:
A48: Reference magnet
A49: Tref | B49: 21.035 | C49: degC
A50: Hall ref field | B50: 0.50522 | C50: T
A51: NMR ref field | B51: 0.50644 | C51: T
A53: Offset from Faro | B53: 0.059

Sheet 10 x=-2
A1: dz | B1: ='DF raw data'!AF7 -> 0.50018 | C1: mm | F1: T_coeff | G1: -0.0008 | H1: /degC | L1: Hallref | M1: ='PI vs gap'!B44 -> 0.50525 | N1: T | P1: IBy total | Q1: =L1203*1000 -> -1.708772132 | R1: muTm | X1: DF ref | Y1: 18
A2: Tref | B2: ='DF raw data'!AF8 -> 21.96 | C2: degC | F2: Tcorr | G2: 20 | H2: degC | L2: NMRref | M2: ='PI vs gap'!B45 -> 0.50645 | N2: T | P2: JBy total | Q2: =M1203 -> -0.6602263221 | R2: muTm^2
A3: Encoder | B3: ='DF raw data'!AF9 -> 262041706 | P3: PI total | Q3: =N1203 -> 708.5509511 | R3: T^2mm^3
A5: z [mm] | B5: Bx | C5: By | D5: Bz | F5: Bx_corr | G5: By_corr | H5: Bz_corr | J5: Ix | K5: Jx | L5: Iy | M5: Jy | N5: PI
A6: ='[1]PI vs x'!B53 -> -0.068 | B6: ='DF raw data'!AE11 -> 5.7769471e-06 | C6: ='DF raw data'!AF11 -> 8.3862169e-06 | D6: ='DF raw data'!AG11 -> 5.1428883e-06 | F6: =(1-$G$1*($B$2-$G$2))*B6 -> 5.786005353e-06 | G6: =(1-$G$1*($B$2-$G$2))*C6*$M$2/$M$1 -> 8.419315503e-06 | H6: =(1-$G$1*($B$2-$G$2))*D6 -> 5.150952349e-06 | J6: =F6*$B$1 -> 2.894044157e-06 | K6: =J6*$B$1 -> 1.447543007e-06 | L6: =G6*$B$1 -> 4.211173228e-06 | M6: =L6*$B$1 -> 2.106344625e-06 | N6: =(J6^2+L6)^2*$B$1 -> 8.870217379e-12
A7: =A6+$B$1 -> 0.43218 | B7: ='DF raw data'!AE12 -> 6.1423311e-06 | C7: ='DF raw data'!AF12 -> -2.3932314e-06 | D7: ='DF raw data'!AG12 -> -6.131333e-08 | F7: =(1-$G$1*($B$2-$G$2))*B7 -> 6.151962275e-06 | G7: =(1-$G$1*($B$2-$G$2))*C7*$M$2/$M$1 -> -2.402676972e-06 | H7: =(1-$G$1*($B$2-$G$2))*D7 -> -6.14094693e-08 | J7: =F7*$B$1+J6 -> 5.971132648e-06 | K7: =J7*$B$1+K6 -> 4.434184135e-06 | L7: =G7*$B$1+L6 -> 3.00940226e-06 | M7: =L7*$B$1+M6 -> 3.611587448e-06 | N7: =(J7^2+L7^2)*$B$1+N6 -> 3.123372888e-11
A8: =A7+$B$1 -> 0.93236 | B8: ='DF raw data'!AE13 -> 6.3226294e-06 | C8: ='DF raw data'!AF13 -> -6.7373539e-06 | D8: ='DF raw data'!AG13 -> 2.6269493e-06 | F8: 6.332543283e-06 | G8: -6.763944794e-06 | H8: 2.631068357e-06 | J8: =F8*$B$1+J7 -> 9.138544148e-06 | K8: =J8*$B$1+K7 -> 9.005101146e-06 | L8: =G8*$B$1+L7 -> -3.737876465e-07 | M8: =L8*$B$1+M7 -> 3.424626343e-06 | N8: =(J8^2+L8^2)*$B$1+N7 -> 7.307513954e-11
A9: 1.43254 | B9: ='DF raw data'!AE14 -> 6.2320437e-06 | C9: ='DF raw data'!AF14 -> -4.7455533e-06 | D9: ='DF raw data'!AG14 -> -9.0168646e-07 | F9: 6.241815545e-06 | G9: -4.764282983e-06 | H9: -9.031003044e-07 | J9: 1.226057545e-05 | K9: 1.513759577e-05 | L9: -2.756786709e-06 | M9: 2.045736767e-06 | N9: 1.52064357e-10
A10: 1.93272 | B10: ='DF raw data'!AE15 -> 6.378436e-06 | C10: ='DF raw data'!AF15 -> -8.223732e-06 | D10: ='DF raw data'!AG15 -> 1.8205112e-06 | F10: 6.388437388e-06 | G10: -8.25618931e-06 | H10: 1.823365762e-06 | J10: 1.545594406e-05 | K10: 2.286834987e-05 | L10: -6.886367478e-06 | M10: -1.398686518e-06 | N10: 2.952700244e-10
A11: 2.4329 | B11: ='DF raw data'!AE16 -> 5.9649142e-06 | C11: ='DF raw data'!AF16 -> 2.807493e-06 | D11: ='DF raw data'!AG16 -> 4.6060566e-07 | F11: =(1-$G$1*($B$2-$G$2))*B11 -> 5.974267185e-06 | G11: 2.818573574e-06 | H11: =(1-$G$1*($B$2-$G$2))*D11 -> 4.613278897e-07 | J11: 1.844415302e-05 | K11: 3.209374633e-05 | L11: -5.476573348e-06 | M11: -4.137958975e-06 | N11: 4.804264749e-10
A12: 2.93308 | B12: ='DF raw data'!AE17 -> 6.1810538e-06 | C12: ='DF raw data'!AF17 -> -2.2077672e-06 | D12: ='DF raw data'!AG17 -> 5.9876561e-06 | F12: 6.190745692e-06 | G12: -2.216480785e-06 | H12: 5.997044745e-06 | J12: 2.15406402e-05 | K12: 4.286794375e-05 | L12: -6.585212707e-06 | M12: -7.431750667e-06 | N12: 7.341999038e-10
A13: 3.43326 | B13: ='DF raw data'!AE18 -> 6.307539e-06 | C13: ='DF raw data'!AF18 -> -4.162609e-06 | D13: ='DF raw data'!AG18 -> 1.4748971e-05 | F13: 6.317429221e-06 | G13: -4.179037927e-06 | H13: 1.477209739e-05 | J13: 2.470049195e-05 | K13: 5.522263581e-05 | L13: -8.675483897e-06 | M13: -1.17710542e-05 | N13: 1.077012434e-09
A14: 3.93344 | B14: ='DF raw data'!AE19 -> 6.184328e-06 | C14: ='DF raw data'!AF19 -> -2.6173882e-06 | D14: ='DF raw data'!AG19 -> 3.4788329e-06 | F14: 6.194025026e-06 | G14: -2.627718471e-06 | H14: 3.48428771e-06 | J14: 2.779861939e-05 | K14: 6.912694925e-05 | L14: -9.989816122e-06 | M14: -1.676776043e-05 | N14: 1.513449327e-09
A15: 4.43362 | B15: ='DF raw data'!AE20 -> 5.8518458e-06 | C15: ='DF raw data'!AF20 -> 5.098037e-06 | D15: ='DF raw data'!AG20 -> -4.6040282e-06 | F15: 5.861021494e-06 | G15: 5.118157861e-06 | H15: -4.611247316e-06 | J15: 3.073018512e-05 | K15: 8.449757324e-05 | L15: -7.429815923e-06 | M15: -2.048400576e-05 | N15: 2.013402467e-09
A16: 4.9338 | B16: ='DF raw data'!AE21 -> 5.8300179e-06 | C16: ='DF raw data'!AF21 -> 7.1149225e-06 | D16: ='DF raw data'!AG21 -> 4.227762e-06 | F16: 5.839159368e-06 | G16: 7.143003576e-06 | H16: 4.234391131e-06 | J16: 3.365081585e-05 | K16: 0.0001013290383 | L16: -3.857028394e-06 | M16: -2.241321422e-05 | N16: 2.58723601e-09
A17: 5.43398 | B17: ='DF raw data'!AE22 -> 6.0612333e-06 | C17: ='DF raw data'!AF22 -> 1.9777092e-06 | D17: ='DF raw data'!AG22 -> 1.1357109e-05 | F17: 6.070737314e-06 | G17: 1.985514795e-06 | H17: 1.137491695e-05 | J17: 3.668727724e-05 | K17: 0.0001196792806 | L17: -2.863913604e-06 | M17: -2.384568653e-05 | N17: 3.264558915e-09
A18: 5.93416 | B18: ='DF raw data'!AE23 -> 5.8557166e-06 | C18: ='DF raw data'!AF23 -> 6.8339245e-06 | D18: ='DF raw data'!AG23 -> 6.9356552e-06 | F18: 5.864898364e-06 | G18: 6.860896537e-06 | H18: 6.946530307e-06 | J18: 3.96207821e-05 | K18: 0.0001394968034 | L18: 5.67769626e-07 | M18: -2.356169952e-05 | N18: 4.049905906e-09
A19: 6.43434 | B19: ='DF raw data'!AE24 -> 5.8058472e-06 | C19: ='DF raw data'!AF24 -> 7.4438203e-06 | D19: ='DF raw data'!AG24 -> 2.7094004e-06 | F19: 5.814950768e-06 | G19: 7.473199465e-06 | H19: 2.71364874e-06 | J19: 4.252930418e-05 | K19: 0.0001607691108 | L19: 4.305714535e-06 | M19: -2.140806722e-05 | N19: 4.963875263e-09
A20: 6.93452 | B20: ='DF raw data'!AE25 -> 6.0406132e-06 | C20: ='DF raw data'!AF25 -> 1.5507422e-06 | D20: ='DF raw data'!AG25 -> 6.0877587e-06 | F20: 6.050084881e-06 | G20: 1.556862648e-06 | H20: 6.097304306e-06 | J20: 4.555543563e-05 | K20: 0.0001835550286 | L20: 5.084426094e-06 | M20: -1.886493898e-05 | N20: 6.014828022e-09
A21: 7.4347 | B21: ='DF raw data'!AE26 -> 5.9585113e-06 | C21: ='DF raw data'!AF26 -> 3.7490884e-06 | D21: ='DF raw data'!AG26 -> 5.8871024e-06 | F21: 5.967854246e-06 | G21: 3.763885249e-06 | H21: 5.896333377e-06 | J21: 4.854043697e-05 | K21: 0.0002078339844 | L21: 6.967046218e-06 | M21: -1.53801618e-05 | N21: 7.217617747e-09
A22: 7.93488 | B22: ='DF raw data'!AE27 -> 4.3367586e-06 | C22: ='DF raw data'!AF27 -> -8.2143915e-06 | D22: ='DF raw data'!AG27 -> -6.6944253e-06 | F22: 4.343558637e-06 | G22: -8.246811945e-06 | H22: -6.704922159e-06 | J22: 5.071299813e-05 | K22: 0.0002331996118 | L22: 2.842155819e-06 | M22: -1.39585723e-05 | N22: 8.508025141e-09
A23: 8.43506 | B23: ='DF raw data'!AE28 -> -1.9314064e-06 | C23: ='DF raw data'!AF28 -> -4.0863583e-07 | D23: ='DF raw data'!AG28 -> -5.5746409e-06 | F23: -1.934434845e-06 | G23: -4.102486282e-07 | H23: -5.583381937e-06 | J23: 4.974543251e-05 | K23: 0.0002580812822 | L23: 2.63695766e-06 | M23: -1.263961882e-05 | N23: 9.749252623e-09
A24: 8.93524 | B24: ='DF raw data'!AE29 -> -7.1425343e-06 | C24: ='DF raw data'!AF29 -> -2.5345296e-06 | D24: ='DF raw data'!AG29 -> 3.6375652e-06 | F24: -7.153733794e-06 | G24: -2.544532846e-06 | H24: 3.643268902e-06 | J24: 4.616727794e-05 | K24: 0.0002811732313 | L24: 1.364233221e-06 | M24: -1.195725665e-05 | N24: 1.081627596e-08
A25: 9.43542 | B25: ='DF raw data'!AE30 -> -5.5527084e-06 | C25: ='DF raw data'!AF30 -> -1.2923972e-05 | D25: ='DF raw data'!AG30 -> 8.8317111e-06 | F25: -5.561415047e-06 | G25: -1.297498015e-05 | H25: 8.845559223e-06 | J25: 4.338556936e-05 | K25: 0.0003028738254 | L25: -5.125592351e-06 | M25: -1.452097543e-05 | N25: 1.177090916e-08
A26: 9.9356 | B26: ='DF raw data'!AE31 -> 1.5872793e-08 | C26: ='DF raw data'!AF31 -> -9.1363736e-06 | D26: ='DF raw data'!AG31 -> 5.4325296e-06 | F26: 1.589768154e-08 | G26: -9.172432911e-06 | H26: 5.441047806e-06 | J26: 4.339352106e-05 | K26: 0.0003245783967 | L26: -9.713459844e-06 | M26: -1.937945377e-05 | N26: 1.275993957e-08
A27: 10.43578 | B27: ='DF raw data'!AE32 -> 1.2096247e-06 | C27: ='DF raw data'!AF32 -> -9.6736849e-06 | D27: ='DF raw data'!AG32 -> 5.2409828e-06 | F27: 1.211521392e-06 | G27: -9.711864864e-06 | H27: 5.249200661e-06 | J27: 4.399949983e-05 | K27: 0.0003465860666 | L27: -1.457114041e-05 | M27: -2.666764678e-05 | N27: 1.383446332e-08
A28: 10.93596 | B28: ='DF raw data'!AE33 -> 7.4243536e-07 | C28: ='DF raw data'!AF33 -> 3.4861034e-06 | D28: ='DF raw data'!AG33 -> -2.1572985e-06 | F28: 7.435994986e-07 | G28: 3.499862304e-06 | H28: -2.160681144e-06 | J28: 4.437143343e-05 | K28: 0.0003687797701 | L28: -1.282057928e-05 | M28: -3.308024413e-05 | N28: 1.490144297e-08
A29: 11.43614 | B29: ='DF raw data'!AE34 -> 2.7415192e-06 | C29: ='DF raw data'!AF34 -> 1.9371475e-06 | D29: ='DF raw data'!AG34 -> -3.7611491e-07 | F29: 2.745817902e-06 | G29: 1.944793007e-06 | H29: -3.767046582e-07 | J29: 4.574483663e-05 | K29: 0.0003916604225 | L29: -1.184783272e-05 | M29: -3.90062931e-05 | N29: 1.601832552e-08
A30: 11.93632 | B30: ='DF raw data'!AE35 -> -4.3469917e-08 | C30: ='DF raw data'!AF35 -> -3.9647357e-06 | D30: ='DF raw data'!AG35 -> -2.0037612e-06 | F30: -4.353807783e-08 | G30: -3.980383663e-06 | H30: -2.006903098e-06 | J30: 4.572305975e-05 | K30: 0.0004145301825 | L30: -1.383874102e-05 | M30: -4.592815458e-05 | N30: 1.715979077e-08
A31: 12.4365 | B31: ='DF raw data'!AE36 -> -7.3094157e-06 | C31: ='DF raw data'!AF36 -> -5.6443178e-06 | D31: ='DF raw data'!AG36 -> -5.9148329e-07 | F31: -7.320876864e-06 | G31: -5.666594714e-06 | H31: -5.924107358e-07 | J31: 4.206130356e-05 | K31: 0.0004355684054 | L31: -1.667305836e-05 | M31: -5.426768491e-05 | N31: 1.818373132e-08
A32: 12.93668 | B32: ='DF raw data'!AE37 -> -8.2315564e-06 | C32: ='DF raw data'!AF37 -> -9.5764162e-06 | D32: ='DF raw data'!AG37 -> -2.0476789e-06 | F32: -8.24446348e-06 | G32: -9.614212265e-06 | H32: -2.050889661e-06 | J32: 3.793758782e-05 | K32: 0.000454544028 | L32: -2.148189505e-05 | M32: -6.501249918e-05 | N32: 1.913443965e-08
A33: 13.43686 | B33: ='DF raw data'!AE38 -> -5.297657e-06 | C33: ='DF raw data'!AF38 -> -1.2055626e-05 | D33: ='DF raw data'!AG38 -> -7.6862698e-06 | F33: -5.305963726e-06 | G33: -1.210320698e-05 | H33: -7.698321871e-06 | J33: 3.528365088e-05 | K33: 0.0004721922045 | L33: -2.753567712e-05 | M33: -7.878529416e-05 | N33: 2.013637498e-08
A34: 13.93704 | B34: ='DF raw data'!AE39 -> -4.899764e-06 | C34: ='DF raw data'!AF39 -> -9.1074207e-06 | D34: ='DF raw data'!AG39 -> -9.7814691e-06 | F34: -4.90744683e-06 | G34: -9.14336574e-06 | H34: -9.796806444e-06 | J34: 3.282904413e-05 | K34: 0.0004886126358 | L34: -3.210900579e-05 | M34: -9.484557668e-05 | N34: 2.119112175e-08
A35: 14.43722 | B35: ='DF raw data'!AE40 -> -3.08824e-06 | C35: ='DF raw data'!AF40 -> -2.4638136e-06 | D35: ='DF raw data'!AG40 -> 7.5151415e-06 | F35: -3.09308236e-06 | G35: -2.473537745e-06 | H35: 7.526925242e-06 | J35: 3.128194619e-05 | K35: 0.0005042592397 | L35: -3.33462199e-05 | M35: -0.000111524689 | N35: 2.223676331e-08
A36: 14.9374 | B36: ='DF raw data'!AE41 -> 1.8185787e-06 | C36: ='DF raw data'!AF41 -> 1.8173297e-06 | D36: ='DF raw data'!AG41 -> 7.6495135e-06 | F36: 1.821430231e-06 | G36: 1.824502311e-06 | H36: 7.661507937e-06 | J36: 3.219298917e-05 | K36: 0.000520361529 | L36: -3.243364034e-05 | M36: -0.0001277473472 | N36: 2.3281304e-08
A37: 15.43758 | B37: ='DF raw data'!AE42 -> 3.126592e-06 | C37: ='DF raw data'!AF42 -> -6.9314892e-06 | D37: ='DF raw data'!AG42 -> 1.2460744e-06 | F37: 3.131494496e-06 | G37: -6.958846304e-06 | H37: 1.248028245e-06 | J37: 3.375930008e-05 | K37: 0.0005372472557 | L37: -3.591431608e-05 | M37: -0.0001457109698 | N37: 2.449650554e-08
A38: 15.93776 | B38: ='DF raw data'!AE43 -> -4.9398691e-06 | C38: ='DF raw data'!AF43 -> 3.5813712e-06 | D38: ='DF raw data'!AG43 -> -7.7989453e-06 | F38: -4.947614815e-06 | G38: 3.595506106e-06 | H38: -7.811174046e-06 | J38: 3.128460211e-05 | K38: 0.000552895188 | L38: -3.411591584e-05 | M38: -0.0001627750686 | N38: 2.556820223e-08
A39: 16.43794 | B39: ='DF raw data'!AE44 -> -7.9441415e-06 | C39: ='DF raw data'!AF44 -> 5.2582832e-06 | D39: ='DF raw data'!AG44 -> -3.5064793e-06 | F39: -7.956597914e-06 | G39: 5.279036518e-06 | H39: -3.51197746e-06 | J39: 2.730487096e-05 | K39: 0.0005665525383 | L39: -3.147544735e-05 | M39: -0.0001785184578 | N39: 2.643664464e-08
A40: 16.93812 | B40: ='DF raw data'!AE45 -> -5.6267922e-06 | C40: ='DF raw data'!AF45 -> -3.7188299e-06 | D40: ='DF raw data'!AG45 -> -1.9149654e-06 | F40: -5.63561501e-06 | G40: -3.733507326e-06 | H40: -1.917968066e-06 | J40: 2.448604905e-05 | K40: 0.0005787999704 | L40: -3.334287305e-05 | M40: -0.0001951958961 | N40: 2.729260957e-08
A41: 17.4383 | B41: ='DF raw data'!AE46 -> -2.5501829e-06 | C41: ='DF raw data'!AF46 -> 6.6551324e-06 | D41: ='DF raw data'!AG46 -> -4.6379632e-06 | F41: -2.554181587e-06 | G41: 6.681398783e-06 | H41: -4.645235526e-06 | J41: 2.32084985e-05 | K41: 0.0005904083971 | L41: -3.0000971e-05 | M41: -0.0002102017818 | N41: 2.801221486e-08
A42: 17.93848 | B42: ='DF raw data'!AE47 -> 1.6107773e-06 | C42: ='DF raw data'!AF47 -> 5.5100604e-06 | D42: ='DF raw data'!AG47 -> -7.3533652e-06 | F42: 1.613302999e-06 | G42: 5.531807429e-06 | H42: -7.364895277e-06 | J42: 2.401544039e-05 | K42: 0.0006024204401 | L42: -2.723407156e-05 | M42: -0.0002238237197 | N42: 2.86716702e-08
A43: 18.43866 | B43: ='DF raw data'!AE48 -> 1.3343782e-06 | C43: ='DF raw data'!AF48 -> -1.2859925e-05 | D43: ='DF raw data'!AG48 -> -4.907974e-06 | F43: 1.336470505e-06 | G43: -1.291068037e-05 | H43: -4.915669703e-06 | J43: 2.468391621e-05 | K43: 0.0006147668413 | L43: -3.369173567e-05 | M43: -0.000240675652 | N43: 2.954419858e-08
A44: 18.93884 | B44: ='DF raw data'!AE49 -> -1.7453746e-06 | C44: ='DF raw data'!AF49 -> -5.0929966e-06 | D44: ='DF raw data'!AG49 -> 6.1881406e-07 | F44: -1.748111347e-06 | G44: -5.113097567e-06 | H44: 6.197843604e-07 | J44: 2.380954588e-05 | K44: 0.0006266759 | L44: -3.624920481e-05 | M44: -0.0002588067793 | N44: 3.04849868e-08
A45: 19.43902 | B45: ='DF raw data'!AE50 -> -4.8081318e-07 | C45: ='DF raw data'!AF50 -> -3.0339477e-06 | D45: ='DF raw data'!AG50 -> -3.7908674e-06 | F45: -4.815670951e-07 | G45: -3.045922042e-06 | H45: -3.79681148e-06 | J45: 2.356867565e-05 | K45: 0.0006384644802 | L45: -3.77727141e-05 | M45: -0.0002776999354 | N45: 3.147647381e-08
A46: 19.9392 | B46: ='DF raw data'!AE51 -> 1.8885297e-06 | C46: ='DF raw data'!AF51 -> -1.7357023e-06 | D46: ='DF raw data'!AG51 -> -1.2412409e-06 | F46: 1.891490915e-06 | G46: -1.742552745e-06 | H46: -1.243187166e-06 | J46: 2.451476157e-05 | K46: 0.0006507262736 | L46: -3.864430413e-05 | M46: -0.0002970290435 | N46: 3.252402868e-08
A47: 20.43938 | B47: ='DF raw data'!AE52 -> -1.0823602e-06 | C47: ='DF raw data'!AF52 -> 1.5500756e-06 | D47: ='DF raw data'!AG52 -> 2.7145227e-06 | F47: -1.084057341e-06 | G47: 1.556193417e-06 | H47: 2.718779072e-06 | J47: 2.397253777e-05 | K47: 0.0006627168576 | L47: -3.786592731e-05 | M47: -0.000315968823 | N47: 3.352864572e-08
A48: 20.93956 | B48: ='DF raw data'!AE53 -> -3.9810143e-06 | C48: ='DF raw data'!AF53 -> 2.183054e-06 | D48: ='DF raw data'!AG53 -> 4.8959714e-06 | F48: -3.98725653e-06 | G48: 2.191670047e-06 | H48: 4.903648283e-06 | J48: 2.19781918e-05 | K48: 0.0006737099095 | L48: -3.676969778e-05 | M48: -0.0003343602904 | N48: 3.444650183e-08
A49: 21.43974 | B49: ='DF raw data'!AE54 -> -1.8831521e-06 | C49: ='DF raw data'!AF54 -> -2.829004e-06 | D49: ='DF raw data'!AG54 -> 1.5605413e-06 | F49: -1.886104882e-06 | G49: -2.840169473e-06 | H49: 1.562988229e-06 | J49: 2.103479986e-05 | K49: 0.0006842310957 | L49: -3.819029375e-05 | M49: -0.0003534623115 | N49: 3.539732467e-08
A50: 21.93992 | B50: ='DF raw data'!AE55 -> 2.957586e-06 | C50: ='DF raw data'!AF55 -> -1.4531101e-05 | D50: ='DF raw data'!AG55 -> -7.0318551e-06 | F50: 2.962223495e-06 | G50: -1.458845215e-05 | H50: -7.042881049e-06 | J50: 2.251644481e-05 | K50: 0.0006954933711 | L50: -4.548714575e-05 | M50: -0.0003762140721 | N50: 3.668582372e-08
A51: 22.4401 | B51: ='DF raw data'!AE56 -> 8.9160421e-06 | C51: ='DF raw data'!AF56 -> -5.3481099e-06 | D51: ='DF raw data'!AG56 -> -6.9595758e-06 | F51: 8.930022454e-06 | G51: -5.369217745e-06 | H51: -6.970488415e-06 | J51: 2.698306344e-05 | K51: 0.0007089897598 | L51: -4.817272108e-05 | M51: -0.0004003091037 | N51: 3.821072087e-08
A52: 22.94028 | B52: ='DF raw data'!AE57 -> 1.5981404e-05 | C52: ='DF raw data'!AF57 -> -8.6663104e-06 | D52: ='DF raw data'!AG57 -> 8.2785232e-07 | F52: 1.600646284e-05 | G52: -8.700514472e-06 | H52: 8.291503924e-07 | J52: 3.498917602e-05 | K52: 0.0007264906458 | L52: -5.252454441e-05 | M52: -0.0004265808304 | N52: 4.020297293e-08
A53: 23.44046 | B53: ='DF raw data'!AE58 -> 1.4775778e-05 | C53: ='DF raw data'!AF58 -> -1.0344557e-05 | D53: ='DF raw data'!AG58 -> -4.4011599e-06 | F53: 1.479894642e-05 | G53: -1.038538475e-05 | H53: -4.408060919e-06 | J53: 4.239131304e-05 | K53: 0.0007476939328 | L53: -5.771910615e-05 | M53: -0.0004554507729 | N53: 4.276815538e-08
A54: 23.94064 | B54: ='DF raw data'!AE59 -> 7.9340207e-06 | C54: ='DF raw data'!AF59 -> 1.4238532e-06 | D54: ='DF raw data'!AG59 -> -3.6335321e-06 | F54: 7.946461244e-06 | G54: 1.429472844e-06 | H54: -3.639229478e-06 | J54: 4.636597403e-05 | K54: 0.0007708852657 | L54: -5.700411242e-05 | M54: -0.0004839630898 | N54: 4.546876344e-08
A55: 24.44082 | B55: ='DF raw data'!AE60 -> 8.2390725e-06 | C55: ='DF raw data'!AF60 -> 4.4010139e-06 | D55: ='DF raw data'!AG60 -> -1.203153e-05 | F55: 8.251991366e-06 | G55: 4.41838376e-06 | H55: -1.205039544e-05 | J55: 5.049345507e-05 | K55: 0.000796141082 | L55: -5.479412524e-05 | M55: -0.0005113700154 | N55: 4.824575538e-08
A56: 24.941 | B56: ='DF raw data'!AE61 -> 8.6344917e-06 | C56: ='DF raw data'!AF61 -> 3.0413914e-06 | D56: ='DF raw data'!AG61 -> -1.3195814e-05 | F56: 8.648030583e-06 | G56: 3.053395121e-06 | H56: -1.321650504e-05 | J56: 5.481902701e-05 | K56: 0.000823560463 | L56: -5.326687806e-05 | M56: -0.0005380130425 | N56: 5.116805004e-08
A57: 25.44118 | B57: ='DF raw data'!AE62 -> 6.4876335e-06 | C57: ='DF raw data'!AF62 -> -9.3567252e-07 | D57: ='DF raw data'!AG62 -> -2.6913974e-06 | F57: 6.497806109e-06 | G57: -9.393654192e-07 | H57: -2.695617511e-06 | J57: 5.806909967e-05 | K57: 0.0008526054652 | L57: -5.373672986e-05 | M57: -0.00056489108 | N57: 5.429900501e-08
A58: 25.94136 | B58: ='DF raw data'!AE63 -> 2.7715544e-06 | C58: ='DF raw data'!AF63 -> 1.6828354e-06 | D58: ='DF raw data'!AG63 -> -3.5694454e-06 | F58: 2.775900197e-06 | G58: 1.689477191e-06 | H58: -3.57504229e-06 | J58: 5.945754943e-05 | K58: 0.0008823449423 | L58: -5.289168716e-05 | M58: -0.0005913464441 | N58: 5.746651028e-08
A59: 26.44154 | B59: ='DF raw data'!AE64 -> -3.3823487e-06 | C59: ='DF raw data'!AF64 -> 4.2090123e-06 | D59: ='DF raw data'!AG64 -> 9.16273e-08 | F59: -3.387652223e-06 | G59: 4.225624371e-06 | H59: 9.177097161e-08 | J59: 5.776311354e-05 | K59: 0.0009112368964 | L59: -5.077811436e-05 | M59: -0.0006167446413 | N59: 6.042507207e-08
A60: 26.94172 | B60: ='DF raw data'!AE65 -> -3.9047186e-06 | C60: ='DF raw data'!AF65 -> -6.7039955e-06 | D60: ='DF raw data'!AG65 -> 8.176482e-06 | F60: -3.910841199e-06 | G60: -6.730454735e-06 | H60: 8.189302724e-06 | J60: 5.580698899e-05 | K60: 0.0009391504362 | L60: -5.414455321e-05 | M60: -0.0006438266639 | N60: 6.344918669e-08
A61: 27.4419 | B61: ='DF raw data'!AE66 -> 1.5938377e-07 | C61: ='DF raw data'!AF66 -> 6.2400404e-06 | D61: ='DF raw data'!AG66 -> 1.0878322e-05 | F61: 1.596336838e-07 | G61: 6.264668504e-06 | H61: 1.089537921e-05 | J61: 5.588683456e-05 | K61: 0.0009671039131 | L61: -5.101109132e-05 | M61: -0.0006693413916 | N61: 6.631295213e-08
A62: 27.94208 | B62: ='DF raw data'!AE67 -> 2.2419665e-06 | C62: ='DF raw data'!AF67 -> 8.9957121e-06 | D62: ='DF raw data'!AG67 -> 4.1733233e-06 | F62: 2.245481903e-06 | G62: 9.03121625e-06 | H62: 4.179867071e-06 | J62: 5.70099797e-05 | K62: 0.0009956191647 | L62: -4.649385757e-05 | M62: -0.0006925966893 | N62: 6.901983455e-08
A63: 28.44226 | B63: ='DF raw data'!AE68 -> 3.1191269e-06 | C63: ='DF raw data'!AF68 -> -4.9203418e-06 | D63: ='DF raw data'!AG68 -> 5.3414783e-06 | F63: 3.124017691e-06 | G63: -4.939761336e-06 | H63: 5.349853738e-06 | J63: 5.857255087e-05 | K63: 0.001024915983 | L63: -4.89646274e-05 | M63: -0.0007170878166 | N63: 7.193502286e-08
A64: 28.94244 | B64: ='DF raw data'!AE69 -> 2.9184705e-06 | C64: ='DF raw data'!AF69 -> -9.2983546e-06 | D64: ='DF raw data'!AG69 -> 5.3108029e-06 | F64: 2.923046662e-06 | G64: -9.335053215e-06 | H64: 5.319130239e-06 | J64: 6.003460035e-05 | K64: 0.00105494409 | L64: -5.363383432e-05 | M64: -0.0007439143879 | N64: 7.517656011e-08
A65: 29.44262 | B65: ='DF raw data'!AE70 -> -2.2080819e-06 | C65: ='DF raw data'!AF70 -> -4.7670337e-06 | D65: ='DF raw data'!AG70 -> 5.8362434e-06 | F65: -2.211544172e-06 | G65: -4.785848162e-06 | H65: 5.84539463e-06 | J65: 5.892843019e-05 | K65: 0.001084418912 | L65: -5.602761985e-05 | M65: -0.0007719382828 | N65: 7.848357724e-08
A66: 29.9428 | B66: ='DF raw data'!AE71 -> -7.45639e-06 | C66: ='DF raw data'!AF71 -> -3.0759772e-06 | D66: ='DF raw data'!AG71 -> -8.1622047e-06 | F66: -7.46808162e-06 | G66: -3.088117424e-06 | H66: -8.175003037e-06 | J66: 5.519304512e-05 | K66: 0.001112025369 | L66: -5.757223442e-05 | M66: -0.000800734763 | N66: 8.16651394e-08
A67: 30.44298 | B67: ='DF raw data'!AE72 -> -3.9867623e-06 | C67: ='DF raw data'!AF72 -> 4.9754181e-06 | D67: ='DF raw data'!AG72 -> -1.6287993e-05 | F67: -3.993013543e-06 | G67: 4.99505501e-06 | H67: -1.631353257e-05 | J67: 5.319581961e-05 | K67: 0.001138632854 | L67: -5.507380781e-05 | M67: -0.0008282815802 | N67: 8.459765449e-08
A68: 30.94316 | B68: ='DF raw data'!AE73 -> 2.6531454e-06 | C68: ='DF raw data'!AF73 -> 2.3769237e-06 | D68: ='DF raw data'!AG73 -> 4.2620493e-07 | F68: 2.657305532e-06 | G68: 2.386304909e-06 | H68: 4.268732193e-07 | J68: 5.452495069e-05 | K68: 0.001165905144 | L68: -5.388022582e-05 | M68: -0.0008552313915 | N68: 8.753673667e-08
A69: 31.44334 | B69: ='DF raw data'!AE74 -> 2.7695608e-06 | C69: ='DF raw data'!AF74 -> 4.471196e-06 | D69: ='DF raw data'!AG74 -> 5.814823e-06 | F69: 2.773903471e-06 | G69: 4.488842854e-06 | H69: 5.823940642e-06 | J69: 5.591240173e-05 | K69: 0.001193871409 | L69: -5.16349964e-05 | M69: -0.000881058184 | N69: 9.043396405e-08
A70: 31.94352 | B70: ='DF raw data'!AE75 -> -1.1808767e-06 | C70: ='DF raw data'!AF75 -> 1.0657351e-06 | D70: ='DF raw data'!AG75 -> -3.3885506e-06 | F70: -1.182728315e-06 | G70: 1.069941328e-06 | H70: -3.393863847e-06 | J70: 5.532082468e-05 | K70: 0.001221541779 | L70: -5.109983315e-05 | M70: -0.0009066172986 | N70: 9.327077823e-08
A71: 32.4437 | B71: ='DF raw data'!AE76 -> -1.290016e-06 | C71: ='DF raw data'!AF76 -> -4.3123136e-06 | D71: ='DF raw data'!AG76 -> -5.5939631e-07 | F71: -1.292038745e-06 | G71: =(1-$G$1*($B$2-$G$2))*C71*$M$2/$M$1 -> -4.329333379e-06 | H71: -5.602734434e-07 | J71: 5.467457274e-05 | K71: 0.001248888907 | L71: -5.326527912e-05 | M71: -0.0009332595259 | N71: 9.618507643e-08
A72: =A71+$B$1 -> 32.94388 | B72: ='DF raw data'!AE77 -> 1.5145309e-06 | C72: ='DF raw data'!AF77 -> -2.5760262e-06 | D72: ='DF raw data'!AG77 -> -5.1772572e-06 | F72: 1.516905684e-06 | G72: -2.586193224e-06 | H72: -5.185375139e-06 | J72: =F72*$B$1+J71 -> 5.543329862e-05 | K72: =J72*$B$1+K71 -> 0.001276615534 | L72: =G72*$B$1+L71 -> -5.455884124e-05 | M72: =L72*$B$1+M71 -> -0.0009605487671 | N72: =(J72^2+L72^2)*$B$1+N71 -> 9.921092422e-08
A73: 33.44406 | B73: ='DF raw data'!AE78 -> 1.4263609e-06 | C73: ='DF raw data'!AF78 -> 5.0017024e-06 | D73: ='DF raw data'!AG78 -> -1.0208146e-05 | F73: 1.428597434e-06 | G73: 5.021443049e-06 | H73: -1.022415237e-05 | J73: 5.614785449e-05 | K73: 0.001304699568 | L73: -5.204721586e-05 | M73: -0.0009865817435 | N73: 1.021427264e-07
A74: 33.94424 | B74: ='DF raw data'!AE79 -> 1.4898945e-06 | C74: ='DF raw data'!AF79 -> 6.0220204e-06 | D74: ='DF raw data'!AG79 -> -1.4863679e-06 | F74: 1.492230655e-06 | G74: 6.045788025e-06 | H74: -1.488698525e-06 | J74: 5.689423842e-05 | K74: 0.001333156928 | L74: -4.90232336e-05 | M74: -0.001011102184 | N74: 1.049638576e-07
A75: 34.44442 | B75: ='DF raw data'!AE80 -> 1.9211695e-06 | C75: ='DF raw data'!AF80 -> 2.0827167e-06 | D75: ='DF raw data'!AG80 -> 1.319416e-06 | F75: =(1-$G$1*($B$2-$G$2))*B75 -> 1.924181894e-06 | G75: 2.090936737e-06 | H75: =(1-$G$1*($B$2-$G$2))*D75 -> 1.321484844e-06 | J75: 5.785667572e-05 | K75: 0.00136209568 | L75: -4.797738887e-05 | M75: -0.001035099515 | N75: 1.077894868e-07
A76: 34.9446 | B76: ='DF raw data'!AE81 -> -4.4135554e-06 | C76: ='DF raw data'!AF81 -> 9.0264002e-06 | D76: ='DF raw data'!AG81 -> -9.2798177e-07 | F76: -4.420475855e-06 | G76: 9.062025469e-06 | H76: -9.294368454e-07 | J76: 5.56456421e-05 | K76: 0.001389928518 | L76: -4.344474497e-05 | M76: -0.001056829707 | N76: 1.102823256e-07
A77: 35.44478 | B77: ='DF raw data'!AE82 -> -9.5275645e-06 | C77: ='DF raw data'!AF82 -> 2.6489818e-06 | D77: ='DF raw data'!AG82 -> -1.9315368e-07 | F77: -9.542503721e-06 | G77: 2.659436764e-06 | H77: -1.93456545e-07 | J77: 5.087267259e-05 | K77: 0.001415374011 | L77: -4.211454789e-05 | M77: -0.001077894562 | N77: 1.124639427e-07
A78: 35.94496 | B78: ='DF raw data'!AE83 -> -5.9111512e-06 | C78: ='DF raw data'!AF83 -> -4.7831791e-06 | D78: ='DF raw data'!AG83 -> 6.1040569e-06 | F78: -5.920419885e-06 | G78: -4.802057284e-06 | H78: 6.113628061e-06 | J78: 4.791139697e-05 | K78: 0.001439338334 | L78: -4.45164409e-05 | M78: -0.001100160795 | N78: 1.146033203e-07
A79: 36.44514 | B79: ='DF raw data'!AE84 -> -2.6016385e-06 | C79: ='DF raw data'!AF84 -> 3.6739696e-06 | D79: ='DF raw data'!AG84 -> 6.9263419e-06 | F79: -2.605717869e-06 | G79: 3.688469972e-06 | H79: 6.937202404e-06 | J79: 4.660806901e-05 | K79: 0.001462650758 | L79: -4.267154199e-05 | M79: -0.001121504247 | N79: 1.166006254e-07
A80: 36.94532 | B80: ='DF raw data'!AE85 -> -5.3925646e-06 | C80: ='DF raw data'!AF85 -> -3.2751839e-06 | D80: ='DF raw data'!AG85 -> 1.5453054e-06 | F80: -5.401020141e-06 | G80: -3.28811035e-06 | H80: 1.547728439e-06 | J80: 4.390658676e-05 | K80: 0.001484611954 | L80: -4.431618902e-05 | M80: -0.001143670319 | N80: 1.185471823e-07
A81: 37.4455 | B81: ='DF raw data'!AE86 -> -8.3274099e-06 | C81: ='DF raw data'!AF86 -> -1.958392e-06 | D81: ='DF raw data'!AG86 -> -3.8641767e-07 | F81: -8.340467279e-06 | G81: -1.966121354e-06 | H81: -3.870235729e-07 | J81: 3.973485183e-05 | K81: 0.001504486532 | L81: -4.52996036e-05 | M81: -0.001166328274 | N81: 1.203632922e-07
A82: 37.94568 | B82: ='DF raw data'!AE87 -> -3.9610636e-06 | C82: ='DF raw data'!AF87 -> 5.9220218e-07 | D82: ='DF raw data'!AG87 -> -6.0671914e-07 | F82: -3.967274548e-06 | G82: 5.945394752e-07 | H82: -6.076704756e-07 | J82: 3.775050045e-05 | K82: 0.001523368578 | L82: -4.500222685e-05 | M82: -0.001188837488 | N82: 1.220890636e-07
A83: 38.44586 | B83: ='DF raw data'!AE88 -> 4.7772451e-06 | C83: ='DF raw data'!AF88 -> 8.0523814e-06 | D83: ='DF raw data'!AG88 -> -4.2802335e-06 | F83: 4.78473582e-06 | G83: 8.084162426e-06 | H83: -4.286944906e-06 | J83: 4.014372961e-05 | K83: 0.001543447668 | L83: -4.095869048e-05 | M83: -0.001209324206 | N83: 1.237342223e-07
A84: 38.94604 | B84: ='DF raw data'!AE89 -> 9.2059308e-06 | C84: ='DF raw data'!AF89 -> 1.1610019e-06 | D84: ='DF raw data'!AG89 -> -8.2424731e-06 | F84: 9.220365699e-06 | G84: 1.165584126e-06 | H84: -8.255397298e-06 | J84: 4.475557213e-05 | K84: 0.00156583351 | L84: -4.037568862e-05 | M84: -0.001229519318 | N84: 1.25551505e-07
A85: 39.44622 | B85: ='DF raw data'!AE90 -> 8.8454944e-06 | C85: ='DF raw data'!AF90 -> 2.1987983e-06 | D85: ='DF raw data'!AG90 -> 3.1787433e-06 | F85: 8.859364135e-06 | G85: 2.207476486e-06 | H85: 3.183727569e-06 | J85: 4.918684888e-05 | K85: 0.001590435788 | L85: -3.927155303e-05 | M85: -0.001249162163 | N85: 1.275330186e-07
A86: 39.9464 | B86: ='DF raw data'!AE91 -> 8.9079076e-06 | C86: ='DF raw data'!AF91 -> 4.1789908e-06 | D86: ='DF raw data'!AG91 -> 4.420051e-06 | F86: 8.921875199e-06 | G86: 4.195484382e-06 | H86: 4.42698164e-06 | J86: 5.364939242e-05 | K86: 0.001617270142 | L86: -3.717305565e-05 | M86: -0.001267755382 | N86: 1.296638321e-07
A87: 40.44658 | B87: ='DF raw data'!AE92 -> 9.1855727e-06 | C87: ='DF raw data'!AF92 -> -5.4733982e-06 | D87: ='DF raw data'!AG92 -> 1.4088084e-06 | F87: 9.199975678e-06 | G87: -5.495000531e-06 | H87: 1.411017412e-06 | J87: 5.825103625e-05 | K87: 0.001646406145 | L87: -3.992154502e-05 | M87: -0.001287723341 | N87: 1.321581862e-07
A88: 40.94676 | B88: ='DF raw data'!AE93 -> 8.209634e-06 | C88: ='DF raw data'!AF93 -> -4.0729456e-06 | D88: ='DF raw data'!AG93 -> 1.3142949e-05 | F88: 8.222506706e-06 | G88: -4.089020644e-06 | H88: 1.316355714e-05 | J88: 6.236376966e-05 | K88: 0.001677599255 | L88: -4.196679136e-05 | M88: -0.00130871429 | N88: 1.34984429e-07
A89: 41.44694 | B89: ='DF raw data'!AE94 -> 3.72827e-06 | C89: ='DF raw data'!AF94 -> -2.7662943e-06 | D89: ='DF raw data'!AG94 -> 1.1676436e-05 | F89: 3.734115927e-06 | G89: -2.777212271e-06 | H89: 1.169474465e-05 | J89: 6.423149976e-05 | K89: 0.001709726567 | L89: -4.33558974e-05 | M89: -0.001330400043 | N89: 1.379882197e-07
A90: 41.94712 | B90: ='DF raw data'!AE95 -> -3.431345e-06 | C90: ='DF raw data'!AF95 -> 7.9285619e-06 | D90: ='DF raw data'!AG95 -> 1.253219e-05 | F90: -3.436725349e-06 | G90: 7.959854237e-06 | H90: 1.255184047e-05 | J90: 6.251251848e-05 | K90: 0.001740994078 | L90: -3.93745375e-05 | M90: -0.001350094399 | N90: 1.407182867e-07
A91: 42.4473 | B91: ='DF raw data'!AE96 -> -4.8960242e-06 | C91: ='DF raw data'!AF96 -> 3.2766231e-06 | D91: ='DF raw data'!AG96 -> 1.2968908e-05 | F91: -4.903701166e-06 | G91: 3.28955523e-06 | H91: 1.298924325e-05 | J91: 6.005978523e-05 | K91: 0.001771034782 | L91: -3.772916777e-05 | M91: -0.001368965774 | N91: 1.432345262e-07
A92: 42.94748 | B92: ='DF raw data'!AE97 -> -3.1638081e-06 | C92: ='DF raw data'!AF97 -> -3.2227479e-06 | D92: ='DF raw data'!AG97 -> 6.906304e-06 | F92: -3.168768951e-06 | G92: -3.235467396e-06 | H92: 6.917133085e-06 | J92: 5.847483037e-05 | K92: 0.001800282722 | L92: -3.934748385e-05 | M92: -0.001388646599 | N92: 1.457191855e-07
A93: 43.44766 | B93: ='DF raw data'!AE98 -> -4.5709489e-06 | C93: ='DF raw data'!AF98 -> -7.9802276e-06 | D93: ='DF raw data'!AG98 -> -1.743235e-07 | F93: -4.578116148e-06 | G93: -8.01172385e-06 | H93: -1.745968392e-07 | J93: 5.618494824e-05 | K93: 0.00182838531 | L93: -4.335478789e-05 | M93: -0.001410331797 | N93: 1.482382851e-07
A94: 43.94784 | B94: ='DF raw data'!AE99 -> -1.0011299e-05 | C94: ='DF raw data'!AF99 -> -7.1105487e-06 | D94: ='DF raw data'!AG99 -> -2.1748626e-06 | F94: -1.002699672e-05 | G94: -7.138612514e-06 | H94: -2.178272785e-06 | J94: 5.116964502e-05 | K94: 0.001853979343 | L94: -4.692537909e-05 | M94: -0.001433802933 | N94: 1.506493146e-07
A95: 44.44802 | B95: ='DF raw data'!AE100 -> -1.0337175e-05 | C95: ='DF raw data'!AF100 -> 5.9278209e-06 | D95: ='DF raw data'!AG100 -> 1.1050518e-06 | F95: -1.035338369e-05 | G95: 5.95121674e-06 | H95: 1.106784521e-06 | J95: 4.599108957e-05 | K95: 0.001876983166 | L95: -4.39486995e-05 | M95: -0.001455785193 | N95: 1.526733773e-07
A96: 44.9482 | B96: ='DF raw data'!AE101 -> -3.7812458e-06 | C96: ='DF raw data'!AF101 -> 5.4522861e-06 | D96: ='DF raw data'!AG101 -> 2.5506099e-06 | F96: -3.787174793e-06 | G96: 5.473805106e-06 | H96: 2.554609256e-06 | J96: 4.409682048e-05 | K96: 0.001899039514 | L96: -4.121081167e-05 | M96: -0.001476398017 | N96: 1.544954633e-07
A97: 45.44838 | B97: ='DF raw data'!AE102 -> -1.6678129e-06 | C97: ='DF raw data'!AF102 -> 4.6253044e-06 | D97: ='DF raw data'!AG102 -> 7.3514179e-06 | F97: -1.670428031e-06 | G97: 4.643559486e-06 | H97: 7.362944923e-06 | J97: 4.326130579e-05 | K97: 0.001920677953 | L97: -3.888819608e-05 | M97: -0.001495849115 | N97: 1.561879885e-07
A98: 45.94856 | B98: ='DF raw data'!AE103 -> -3.6107556e-06 | C98: ='DF raw data'!AF103 -> -3.6246988e-07 | D98: ='DF raw data'!AG103 -> 5.9947865e-06 | F98: -3.616417265e-06 | G98: -3.63900471e-07 | H98: 6.004186325e-06 | J98: 4.14524462e-05 | K98: 0.001941411638 | L98: -3.907021182e-05 | M98: -0.001515391254 | N98: 1.57810966e-07
A99: 46.44874 | B99: ='DF raw data'!AE104 -> -4.9822588e-06 | C99: ='DF raw data'!AF104 -> -2.60925e-06 | D99: ='DF raw data'!AG104 -> -1.3251763e-06 | F99: -4.990070982e-06 | G99: -2.619548151e-06 | H99: -1.327254176e-06 | J99: 3.895651249e-05 | K99: 0.001960896906 | L99: -4.038045741e-05 | M99: -0.001535588751 | N99: 1.593856283e-07
A100: 46.94892 | B100: ='DF raw data'!AE105 -> -5.5081796e-06 | C100: ='DF raw data'!AF105 -> 6.313292e-06 | D100: ='DF raw data'!AG105 -> -4.7656854e-06 | F100: -5.516816426e-06 | G100: 6.338209212e-06 | H100: -4.773157995e-06 | J100: 3.619711126e-05 | K100: 0.001979001978 | L100: -3.721021193e-05 | M100: -0.001554200555 | N100: 1.607335287e-07
A101: 47.4491 | B101: ='DF raw data'!AE106 -> -3.5699084e-06 | C101: ='DF raw data'!AF106 -> 4.612496e-06 | D101: ='DF raw data'!AG106 -> -9.2941546e-06 | F101: -3.575506016e-06 | G101: 4.630700534e-06 | H101: -9.308727834e-06 | J101: 3.440871466e-05 | K101: 0.001996212528 | L101: -3.489402814e-05 | M101: -0.00157165385 | N101: 1.619347374e-07
A102: 47.94928 | B102: ='DF raw data'!AE107 -> -1.1563858e-06 | C102: ='DF raw data'!AF107 -> 7.9785968e-06 | D102: ='DF raw data'!AG107 -> -6.5022091e-06 | F102: -1.158199013e-06 | G102: 8.010086614e-06 | H102: -6.512404564e-06 | J102: 3.382940667e-05 | K102: 0.002013133321 | L102: -3.088754301e-05 | M102: -0.001587103181 | N102: 1.629843497e-07
A103: 48.44946 | B103: ='DF raw data'!AE108 -> 3.7952515e-07 | C103: ='DF raw data'!AF108 -> 4.034222e-06 | D103: ='DF raw data'!AG108 -> 3.3088989e-07 | F103: 3.801202454e-07 | G103: 4.050144211e-06 | H103: 3.314087253e-07 | J103: 3.401953522e-05 | K103: 0.002030149212 | L103: -2.886174188e-05 | M103: -0.001601539247 | N103: 1.639798724e-07
A104: 48.94964 | B104: ='DF raw data'!AE109 -> 2.1225088e-07 | C104: ='DF raw data'!AF109 -> 4.8060983e-06 | D104: ='DF raw data'!AG109 -> 4.3546838e-06 | F104: 2.125836894e-07 | G104: 4.825066941e-06 | H104: 4.361511944e-06 | J104: 3.412586533e-05 | K104: 0.002047218288 | L104: -2.64483399e-05 | M104: -0.001614768178 | N104: 1.649122526e-07
A105: 49.44982 | B105: ='DF raw data'!AE110 -> 9.57309e-07 | C105: ='DF raw data'!AF110 -> -7.6096994e-06 | D105: ='DF raw data'!AG110 -> 9.3449135e-06 | F105: 9.588100605e-07 | G105: -7.639733255e-06 | H105: 9.359566324e-06 | J105: 3.460544294e-05 | K105: 0.002064527238 | L105: -3.026958168e-05 | M105: -0.001629908417 | N105: 1.659695252e-07
A106: 49.95 | B106: ='DF raw data'!AE111 -> 5.1283537e-06 | C106: ='DF raw data'!AF111 -> -7.3564561e-06 | D106: ='DF raw data'!AG111 -> 1.3825928e-05 | F106: 5.136394959e-06 | G106: -7.385490458e-06 | H106: 1.384760706e-05 | J106: 3.717456497e-05 | K106: 0.002083121212 | L106: -3.39636563e-05 | M106: -0.001646896359 | N106: 1.672377207e-07
A107: 50.45018 | B107: ='DF raw data'!AE112 -> 9.6729163e-06 | C107: ='DF raw data'!AF112 -> 7.4590952e-07 | D107: ='DF raw data'!AG112 -> 8.7205635e-06 | F107: 9.688083433e-06 | G107: 7.488534652e-07 | H107: 8.734237344e-06 | J107: 4.202035055e-05 | K107: 0.002104138951 | L107: -3.358909477e-05 | M107: -0.001663696952 | N107: 1.686852102e-07
A108: 50.95036 | B108: ='DF raw data'!AE113 -> 7.0537321e-06 | C108: ='DF raw data'!AF113 -> -1.9038206e-06 | D108: ='DF raw data'!AG113 -> -5.0057483e-06 | F108: 7.064792352e-06 | G108: -1.911334572e-06 | H108: -5.013597313e-06 | J108: 4.555401838e-05 | K108: 0.00212692416 | L108: -3.45451061e-05 | M108: -0.001680975723 | N108: 1.70320065e-07
A109: 51.45054 | B109: ='DF raw data'!AE114 -> 1.8708346e-06 | C109: ='DF raw data'!AF114 -> -2.5082452e-06 | D109: ='DF raw data'!AG114 -> -9.1475295e-06 | F109: 1.873768069e-06 | G109: -2.518144707e-06 | H109: -9.161872826e-06 | J109: 4.64912397e-05 | K109: 0.002150178148 | L109: -3.580463172e-05 | M109: -0.001698884484 | N109: 1.720423883e-07
A110: 51.95072 | B110: ='DF raw data'!AE115 -> -8.3858657e-07 | C110: ='DF raw data'!AF115 -> 5.0944345e-06 | D110: ='DF raw data'!AG115 -> -7.9433003e-06 | F110: -8.399014737e-07 | G110: 5.114541142e-06 | H110: -7.955755395e-06 | J110: 4.607113778e-05 | K110: 0.00217322201 | L110: -3.324644053e-05 | M110: -0.001715513688 | N110: 1.736569071e-07
A111: 52.4509 | B111: ='DF raw data'!AE116 -> -1.5315778e-06 | C111: ='DF raw data'!AF116 -> 5.5252708e-06 | D111: ='DF raw data'!AG116 -> 3.2845649e-06 | F111: -1.533979314e-06 | G111: 5.547077861e-06 | H111: 3.289715098e-06 | J111: 4.5303872e-05 | K111: 0.0021958821 | L111: -3.047190312e-05 | M111: -0.001730755125 | N111: 1.751479325e-07
A112: 52.95108 | B112: ='DF raw data'!AE117 -> -1.7729504e-06 | C112: ='DF raw data'!AF117 -> 9.4831212e-06 | D112: ='DF raw data'!AG117 -> 8.2311972e-06 | F112: -1.775730386e-06 | G112: 9.520549049e-06 | H112: 8.244103717e-06 | J112: 4.441568718e-05 | K112: 0.002218097939 | L112: -2.57099149e-05 | M112: -0.00174361471 | N112: 1.764652831e-07
A113: 53.45126 | B113: ='DF raw data'!AE118 -> 3.8313402e-07 | C113: ='DF raw data'!AF118 -> -1.6492412e-06 | D113: ='DF raw data'!AG118 -> 1.0018507e-05 | F113: 3.837347741e-07 | G113: -1.655750402e-06 | H113: 1.003421602e-05 | J113: 4.460762364e-05 | K113: 0.00224040978 | L113: -2.653808814e-05 | M113: -0.001756888531 | N113: 1.778128231e-07
A114: 53.95144 | B114: ='DF raw data'!AE119 -> 2.9212063e-06 | C114: ='DF raw data'!AF119 -> -2.122774e-06 | D114: ='DF raw data'!AG119 -> 3.025468e-06 | F114: 2.925786751e-06 | G114: -2.131152135e-06 | H114: 3.030211934e-06 | J114: 4.607104366e-05 | K114: 0.002263453595 | L114: -2.760404781e-05 | M114: -0.001770695524 | N114: 1.792556046e-07
A115: 54.45162 | B115: ='DF raw data'!AE120 -> 5.1622596e-06 | C115: ='DF raw data'!AF120 -> 4.8930933e-06 | D115: ='DF raw data'!AG120 -> -8.8578122e-07 | F115: 5.170354023e-06 | G115: 4.912405292e-06 | H115: -8.87170125e-07 | J115: 4.865715133e-05 | K115: 0.002287790929 | L115: -2.514696093e-05 | M115: -0.001783273531 | N115: 1.807560886e-07
A116: 54.9518 | B116: ='DF raw data'!AE121 -> 4.7089529e-06 | C116: ='DF raw data'!AF121 -> -3.3164801e-07 | D116: ='DF raw data'!AG121 -> -4.8368297e-06 | F116: 4.716336538e-06 | G116: -3.329569537e-07 | H116: -4.844413849e-06 | J116: 5.101616854e-05 | K116: 0.002313308196 | L116: -2.531349934e-05 | M116: -0.001795934837 | N116: 1.823783838e-07
A117: 55.45198 | B117: ='DF raw data'!AE122 -> -1.2433626e-06 | C117: ='DF raw data'!AF122 -> 3.565626e-06 | D117: ='DF raw data'!AG122 -> -6.1684464e-06 | F117: -1.245312193e-06 | G117: 3.579698763e-06 | H117: -6.178118524e-06 | J117: 5.039328829e-05 | K117: 0.002338513911 | L117: -2.352300561e-05 | M117: -0.001807700574 | N117: 1.839253481e-07
A118: 55.95216 | B118: ='DF raw data'!AE123 -> -5.9457848e-06 | C118: ='DF raw data'!AF123 -> 3.1466654e-06 | D118: ='DF raw data'!AG123 -> 3.1939792e-06 | F118: -5.955107791e-06 | G118: 3.159084615e-06 | H118: 3.198987359e-06 | J118: 4.741466247e-05 | K118: 0.002362229777 | L118: -2.194289467e-05 | M118: -0.001818675971 | N118: 1.852906599e-07
A119: 56.45234 | B119: ='DF raw data'!AE124 -> -4.6345699e-06 | C119: ='DF raw data'!AF124 -> -3.7080233e-06 | D119: ='DF raw data'!AG124 -> 4.1904946e-06 | F119: -4.641836906e-06 | G119: -3.722658074e-06 | H119: 4.197065296e-06 | J119: 4.509290849e-05 | K119: 0.002384784348 | L119: -2.380489379e-05 | M119: -0.001830582703 | N119: 1.865911496e-07
A120: 56.95252 | B120: ='DF raw data'!AE125 -> 1.6128582e-06 | C120: ='DF raw data'!AF125 -> 1.2437268e-06 | D120: ='DF raw data'!AG125 -> 6.5477508e-08 | F120: 1.615387162e-06 | G120: 1.248635523e-06 | H120: 6.558017673e-08 | J120: 4.590089284e-05 | K120: 0.002407743056 | L120: -2.318035127e-05 | M120: -0.001842177051 | N120: 1.879137359e-07
A121: 57.4527 | B121: ='DF raw data'!AE126 -> 3.1963539e-06 | C121: ='DF raw data'!AF126 -> 1.3614827e-05 | D121: ='DF raw data'!AG126 -> 6.206767e-07 | F121: 3.201365783e-06 | G121: 1.366856181e-05 | H121: 6.216499211e-07 | J121: 4.750215198e-05 | K121: 0.002431502682 | L121: -1.634361003e-05 | M121: -0.001850351797 | N121: 1.891759741e-07
A122: 57.95288 | B122: ='DF raw data'!AE127 -> -1.9569741e-06 | C122: ='DF raw data'!AF127 -> 9.1139282e-06 | D122: ='DF raw data'!AG127 -> -6.3834073e-06 | F122: -1.960042635e-06 | G122: 9.149898924e-06 | H122: -6.393416483e-06 | J122: 4.652177785e-05 | K122: 0.002454771945 | L122: -1.176701358e-05 | M122: -0.001856237422 | N122: 1.903277578e-07
A123: 58.45306 | B123: ='DF raw data'!AE128 -> -5.4814768e-06 | C123: ='DF raw data'!AF128 -> 5.3264644e-06 | D123: ='DF raw data'!AG128 -> -8.8649458e-06 | F123: -5.490071756e-06 | G123: 5.347486815e-06 | H123: -8.878846035e-06 | J123: 4.377575376e-05 | K123: 0.002476667702 | L123: -9.092307626e-06 | M123: -0.001860785213 | N123: 1.91327611e-07
A124: 58.95324 | B124: ='DF raw data'!AE129 -> -2.4467188e-06 | C124: ='DF raw data'!AF129 -> 3.1528027e-06 | D124: ='DF raw data'!AG129 -> -4.8583229e-06 | F124: -2.450555255e-06 | G124: 3.165246137e-06 | H124: -4.86594075e-06 | J124: 4.255003503e-05 | K124: 0.002497950378 | L124: -7.509114813e-06 | M124: -0.001864541122 | N124: 1.922613932e-07
A125: 59.45342 | B125: ='DF raw data'!AE130 -> 1.6678499e-06 | C125: ='DF raw data'!AF130 -> 4.7465901e-06 | D125: ='DF raw data'!AG130 -> -5.4216684e-07 | F125: 1.670465089e-06 | G125: 4.765323875e-06 | H125: -5.430169576e-07 | J125: 4.338556826e-05 | K125: 0.002519650972 | L125: -5.125595117e-06 | M125: -0.001867104842 | N125: 1.932160263e-07
A126: 59.9536 | B126: ='DF raw data'!AE131 -> 2.2341521e-06 | C126: ='DF raw data'!AF131 -> 9.0873764e-06 | D126: ='DF raw data'!AG131 -> 3.5201604e-06 | F126: 2.23765525e-06 | G126: 9.123242329e-06 | H126: 3.525680012e-06 | J126: 4.450479867e-05 | K126: 0.002541911382 | L126: -5.623317691e-07 | M126: -0.001867386109 | N126: 1.942068796e-07
A127: 60.45378 | B127: ='DF raw data'!AE132 -> -6.3813394e-07 | C127: ='DF raw data'!AF132 -> -5.7528615e-07 | D127: ='DF raw data'!AG132 -> 3.6266513e-06 | F127: -6.39134534e-07 | G127: -5.775566813e-07 | H127: 3.632337889e-06 | J127: 4.418511635e-05 | K127: 0.002564011894 | L127: -8.512140699e-07 | M127: -0.001867811869 | N127: 1.951837557e-07
A128: 60.95396 | B128: ='DF raw data'!AE133 -> -7.8249905e-06 | C128: ='DF raw data'!AF133 -> 5.3336061e-07 | D128: ='DF raw data'!AG133 -> 4.541836e-06 | F128: -7.837260085e-06 | G128: 5.354656702e-07 | H128: 4.548957599e-06 | J128: 4.026507561e-05 | K128: 0.002584151679 | L128: -5.83384851e-07 | M128: -0.001868103667 | N128: 1.959948559e-07
A129: 61.45414 | B129: ='DF raw data'!AE134 -> -1.1284083e-05 | C129: ='DF raw data'!AF134 -> 1.3871605e-06 | D129: ='DF raw data'!AG134 -> 7.9431015e-07 | F129: -1.130177644e-05 | G129: 1.392635326e-06 | H129: 7.955556283e-07 | J129: 3.461215306e-05 | K129: 0.002601463986 | L129: 1.131834861e-07 | M129: -0.001868047055 | N129: 1.965940785e-07
A130: 61.95432 | B130: ='DF raw data'!AE135 -> -6.3593648e-06 | C130: ='DF raw data'!AF135 -> 1.1314009e-05 | D130: ='DF raw data'!AG135 -> -5.4018078e-06 | F130: -6.369336284e-06 | G130: 1.135866297e-05 | H130: -5.410277835e-06 | J130: 3.142633844e-05 | K130: 0.002617182812 | L130: 5.794559531e-06 | M130: -0.001865148732 | N130: 1.971048581e-07
A131: 62.4545 | B131: ='DF raw data'!AE136 -> 1.9252441e-06 | C131: ='DF raw data'!AF136 -> 1.0857421e-05 | D131: ='DF raw data'!AG136 -> -3.9982465e-06 | F131: 1.928262883e-06 | G131: 1.090027292e-05 | H131: -4.004515751e-06 | J131: 3.239081697e-05 | K131: 0.002633384051 | L131: 1.124665804e-05 | M131: -0.001859523378 | N131: 1.976928959e-07
A132: 62.95468 | B132: ='DF raw data'!AE137 -> 3.9320698e-06 | C132: ='DF raw data'!AF137 -> 8.2949527e-06 | D132: ='DF raw data'!AG137 -> -5.6802733e-06 | F132: 3.938235285e-06 | G132: 8.327691103e-06 | H132: -5.689179969e-06 | J132: 3.43606435e-05 | K132: 0.002650570557 | L132: 1.541200257e-05 | M132: -0.001851814603 | N132: 1.98402243e-07
A133: 63.45486 | B133: ='DF raw data'!AE138 -> -1.7261515e-06 | C133: ='DF raw data'!AF138 -> 8.6482678e-06 | D133: ='DF raw data'!AG138 -> -1.025493e-05 | F133: -1.728858106e-06 | G133: 8.682400662e-06 | H133: -1.027100973e-05 | J133: 3.349590325e-05 | K133: 0.002667324538 | L133: 1.975476574e-05 | M133: -0.001841933664 | N133: 1.991586284e-07
A134: 63.95504 | B134: ='DF raw data'!AE139 -> -5.722442e-06 | C134: ='DF raw data'!AF139 -> 3.1716156e-06 | D134: ='DF raw data'!AG139 -> -7.6376955e-06 | F134: -5.731414789e-06 | G134: 3.184133288e-06 | H134: -7.649671407e-06 | J134: 3.06291642e-05 | K134: 0.002682644634 | L134: 2.134740553e-05 | M134: -0.001831256119 | N134: 1.99855808e-07
A135: 64.45522 | B135: ='DF raw data'!AE140 -> -3.3761351e-06 | C135: ='DF raw data'!AF140 -> 4.9285845e-06 | D135: ='DF raw data'!AG140 -> 1.6314236e-06 | F135: -3.38142888e-06 | G135: =(1-$G$1*($B$2-$G$2))*C135*$M$2/$M$1 -> 4.948036568e-06 | H135: 1.633981672e-06 | J135: 2.89378411e-05 | K135: 0.002697118763 | L135: 2.382231446e-05 | M135: -0.001819340674 | N135: 2.005585115e-07
A136: =A135+$B$1 -> 64.9554 | B136: ='DF raw data'!AE141 -> 1.0661719e-06 | C136: ='DF raw data'!AF141 -> 2.5530474e-06 | D136: ='DF raw data'!AG141 -> -5.1128213e-06 | F136: 1.067843658e-06 | G136: 2.563123732e-06 | H136: -5.120838204e-06 | J136: =F136*$B$1+J135 -> 2.947195514e-05 | K136: =J136*$B$1+K135 -> 0.002711860045 | L136: =G136*$B$1+L135 -> 2.510433768e-05 | M136: =L136*$B$1+M135 -> -0.001806783986 | N136: =(J136^2+L136^2)*$B$1+N135 -> 2.013081933e-07
A137: 65.45558 | B137: ='DF raw data'!AE142 -> 4.7363978e-06 | C137: ='DF raw data'!AF142 -> 3.9482957e-06 | D137: ='DF raw data'!AG142 -> -5.477274e-06 | F137: 4.743824472e-06 | G137: 3.963878778e-06 | H137: -5.485862366e-06 | J137: 3.184472127e-05 | K137: 0.002727788138 | L137: 2.708699057e-05 | M137: -0.001793235615 | N137: 2.021824035e-07
A138: 65.95576 | B138: ='DF raw data'!AE143 -> 5.494931e-06 | C138: ='DF raw data'!AF143 -> 7.7572413e-06 | D138: ='DF raw data'!AG143 -> 2.2004617e-06 | F138: 5.503547052e-06 | G138: 7.787857471e-06 | H138: 2.203912024e-06 | J138: 3.459748543e-05 | K138: 0.002745093108 | L138: 3.098232112e-05 | M138: -0.001777738878 | N138: 2.032612369e-07
A139: 66.45594 | B139: ='DF raw data'!AE144 -> 5.2282089e-06 | C139: ='DF raw data'!AF144 -> -9.1613247e-06 | D139: ='DF raw data'!AG144 -> -5.1753045e-07 | F139: =(1-$G$1*($B$2-$G$2))*B139 -> 5.236406732e-06 | G139: -9.197482488e-06 | H139: =(1-$G$1*($B$2-$G$2))*D139 -> -5.183419377e-07 | J139: 3.721663135e-05 | K139: 0.002763708123 | L139: 2.638192433e-05 | M139: -0.001764543167 | N139: 2.043021533e-07
A140: 66.95612 | B140: ='DF raw data'!AE145 -> 6.6236648e-06 | C140: ='DF raw data'!AF145 -> -1.2221611e-05 | D140: ='DF raw data'!AG145 -> -2.9819701e-06 | F140: 6.634050706e-06 | G140: -1.226984708e-05 | H140: -2.986645829e-06 | J140: 4.053485083e-05 | K140: 0.002783982845 | L140: 2.024479222e-05 | M140: -0.001754417127 | N140: 2.053289857e-07
A141: 67.4563 | B141: ='DF raw data'!AE146 -> 7.1810323e-06 | C141: ='DF raw data'!AF146 -> 5.2396035e-06 | D141: ='DF raw data'!AG146 -> -1.4518216e-06 | F141: 7.192292159e-06 | G141: 5.260283093e-06 | H141: -1.454098056e-06 | J141: 4.413229152e-05 | K141: 0.002806056934 | L141: 2.287588061e-05 | M141: -0.001742975069 | N141: 2.06564913e-07
A142: 67.95648 | B142: ='DF raw data'!AE147 -> 5.8962291e-06 | C142: ='DF raw data'!AF147 -> 1.1469921e-06 | D142: ='DF raw data'!AG147 -> 5.0852482e-06 | F142: 5.905474387e-06 | G142: 1.151519032e-06 | H142: 5.093221869e-06 | J142: 4.70860917e-05 | K142: 0.002829608456 | L142: 2.34518474e-05 | M142: -0.001731244924 | N142: 2.079489556e-07
A143: 68.45666 | B143: ='DF raw data'!AE148 -> 2.9777405e-06 | C143: ='DF raw data'!AF148 -> -5.8339183e-06 | D143: ='DF raw data'!AG148 -> 3.3282206e-06 | F143: 2.982409597e-06 | G143: -5.856943527e-06 | H143: 3.33343925e-06 | J143: 4.857783334e-05 | K143: 0.002853906116 | L143: 2.052232139e-05 | M143: -0.001720980069 | N143: 2.09339942e-07
A144: 68.95684 | B144: ='DF raw data'!AE149 -> -2.3580103e-06 | C144: ='DF raw data'!AF149 -> -1.1528927e-06 | D144: ='DF raw data'!AG149 -> 2.4686826e-06 | F144: -2.36170766e-06 | G144: -1.157442921e-06 | H144: 2.472553494e-06 | J144: 4.73965544e-05 | K144: 0.002877612925 | L144: 1.994339159e-05 | M144: -0.001711004783 | N144: 2.106625041e-07
A145: 69.45702 | B145: ='DF raw data'!AE150 -> -3.4771253e-06 | C145: ='DF raw data'!AF150 -> 2.5920083e-06 | D145: ='DF raw data'!AG150 -> 5.5386131e-06 | F145: -3.482577432e-06 | G145: 2.602238402e-06 | H145: 5.547297645e-06 | J145: 4.565463882e-05 | K145: 0.002900448462 | L145: 2.124497919e-05 | M145: -0.00170037847 | N145: 2.119308081e-07
A146: 69.9572 | B146: ='DF raw data'!AE151 -> -1.6216978e-06 | C146: ='DF raw data'!AF151 -> -9.2166266e-07 | D146: ='DF raw data'!AG151 -> 1.1565251e-07 | F146: -1.624240622e-06 | G146: -9.253002652e-07 | H146: 1.158338531e-07 | J146: 4.484222614e-05 | K146: 0.002922877647 | L146: 2.078216251e-05 | M146: -0.001689983648 | N146: 2.131526095e-07
A147: 70.45738 | B147: ='DF raw data'!AE152 -> -3.3107824e-06 | C147: ='DF raw data'!AF152 -> -1.3831216e-07 | D147: ='DF raw data'!AG152 -> -3.734566e-06 | F147: -3.315973707e-06 | G147: -1.388580485e-07 | H147: -3.740421799e-06 | J147: 4.318364242e-05 | K147: 0.002944477241 | L147: 2.071270849e-05 | M147: -0.001679623565 | N147: 2.142999441e-07
A148: 70.95756 | B148: ='DF raw data'!AE153 -> -4.4508083e-06 | C148: ='DF raw data'!AF153 -> 5.4720335e-06 | D148: ='DF raw data'!AG153 -> 3.6456852e-06 | F148: -4.457787167e-06 | G148: 5.493630445e-06 | H148: 3.651401634e-06 | J148: 4.095394643e-05 | K148: 0.002964961586 | L148: 2.346051257e-05 | M148: -0.001667889086 | N148: 2.154141557e-07
A149: 71.45774 | B149: ='DF raw data'!AE154 -> -1.2893466e-06 | C149: ='DF raw data'!AF154 -> 1.2014299e-06 | D149: ='DF raw data'!AG154 -> 7.042539e-06 | F149: -1.291368295e-06 | G149: 1.206171687e-06 | H149: 7.053581701e-06 | J149: 4.030802984e-05 | K149: 0.002985122856 | L149: 2.406381552e-05 | M149: -0.001655852847 | N149: 2.165164547e-07
A150: 71.95792 | B150: ='DF raw data'!AE155 -> -1.8171312e-07 | C150: ='DF raw data'!AF155 -> 4.9943646e-06 | D150: ='DF raw data'!AG155 -> 1.7267387e-06 | F150: -1.819980462e-07 | G150: 5.014076288e-06 | H150: 1.729446226e-06 | J150: 4.021699805e-05 | K150: 0.003005238594 | L150: 2.65717562e-05 | M150: -0.001642562186 | N150: 2.176786055e-07
A151: 72.4581 | B151: ='DF raw data'!AE156 -> -3.237237e-06 | C151: ='DF raw data'!AF156 -> 1.0147722e-05 | D151: ='DF raw data'!AG156 -> -1.0837164e-06 | F151: -3.242312988e-06 | G151: 1.018777289e-05 | H151: -1.085415667e-06 | J151: 3.859525794e-05 | K151: 0.003024543171 | L151: 3.166747644e-05 | M151: -0.001626722747 | N151: 2.189252656e-07
A152: 72.95828 | B152: ='DF raw data'!AE157 -> -6.3473594e-06 | C152: ='DF raw data'!AF157 -> 3.7594957e-06 | D152: ='DF raw data'!AG157 -> 1.8656949e-06 | F152: -6.35731206e-06 | G152: 3.774333625e-06 | H152: 1.86862031e-06 | J152: 3.54154576e-05 | K152: 0.003042257274 | L152: 3.355532263e-05 | M152: -0.001609939046 | N152: 2.201158012e-07
A153: 73.45846 | B153: ='DF raw data'!AE158 -> -6.9844132e-06 | C153: ='DF raw data'!AF158 -> 2.8642e-06 | D153: ='DF raw data'!AG158 -> -4.397973e-06 | F153: -6.99536476e-06 | G153: 2.875504384e-06 | H153: -4.404869022e-06 | J153: 3.191651605e-05 | K153: 0.003058221277 | L153: 3.499359241e-05 | M153: -0.001592435951 | N153: 2.212378127e-07
A154: 73.95864 | B154: ='DF raw data'!AE159 -> -4.7888202e-06 | C154: ='DF raw data'!AF159 -> 4.7962249e-06 | D154: ='DF raw data'!AG159 -> -5.8228966e-06 | F154: -4.79632907e-06 | G154: 4.815154573e-06 | H154: -5.832026902e-06 | J154: 2.951748818e-05 | K154: 0.003072985334 | L154: 3.740203643e-05 | M154: -0.0015737282 | N154: 2.223733186e-07
A155: 74.45882 | B155: ='DF raw data'!AE160 -> -1.6512673e-06 | C155: ='DF raw data'!AF160 -> 5.6917879e-06 | D155: ='DF raw data'!AG160 -> 5.993727e-07 | F155: -1.653856487e-06 | G155: 5.714252169e-06 | H155: 6.003125164e-07 | J155: 2.869026224e-05 | K155: 0.00308733563 | L155: 4.026019108e-05 | M155: -0.001553590858 | N155: 2.235957656e-07
A156: 74.959 | B156: ='DF raw data'!AE161 -> 2.8346795e-07 | C156: ='DF raw data'!AF161 -> 5.2912396e-06 | D156: ='DF raw data'!AG161 -> -8.598206e-07 | F156: 2.839124277e-07 | G156: 5.31212299e-06 | H156: -8.611687987e-07 | J156: 2.883226956e-05 | K156: 0.003101756954 | L156: 4.291720876e-05 | M156: -0.001532124529 | N156: 2.2493284e-07
A157: 75.45918 | B157: ='DF raw data'!AE162 -> 2.6475429e-06 | C157: ='DF raw data'!AF162 -> 6.522443e-07 | D157: ='DF raw data'!AG162 -> -1.5501926e-06 | F157: 2.651694247e-06 | G157: 6.548185686e-07 | H157: -1.552623302e-06 | J157: 3.015859399e-05 | K157: 0.00311684168 | L157: 4.324473591e-05 | M157: -0.001510494377 | N157: 2.263231644e-07
A158: 75.95936 | B158: ='DF raw data'!AE163 -> 1.5978989e-06 | C158: ='DF raw data'!AF163 -> 2.274852e-06 | D158: ='DF raw data'!AG163 -> -7.4251207e-06 | F158: 1.600404405e-06 | G158: 2.283830354e-06 | H158: -7.436763289e-06 | J158: 3.095908426e-05 | K158: 0.003132326795 | L158: 4.438706217e-05 | M158: -0.001488292856 | N158: 2.277880296e-07
A159: 76.45954 | B159: ='DF raw data'!AE164 -> -1.890559e-06 | C159: ='DF raw data'!AF164 -> -6.8697127e-06 | D159: ='DF raw data'!AG164 -> -7.2552707e-06 | F159: -1.893523397e-06 | G159: -6.896825986e-06 | H159: -7.266646964e-06 | J159: 3.001198173e-05 | K159: 0.003147338188 | L159: 4.093740775e-05 | M159: -0.001467816783 | N159: 2.290767886e-07
A160: 76.95972 | B160: ='DF raw data'!AE165 -> -1.1992412e-06 | C160: ='DF raw data'!AF165 -> -1.0450231e-05 | D160: ='DF raw data'!AG165 -> -1.0206193e-06 | F160: -1.20112161e-06 | G160: -1.049147582e-05 | H160: -1.022219631e-06 | J160: 2.941120472e-05 | K160: 0.003162049084 | L160: 3.568978137e-05 | M160: -0.001449965468 | N160: 2.301465633e-07
A161: 77.4599 | B161: ='DF raw data'!AE166 -> -7.9653154e-07 | C161: ='DF raw data'!AF166 -> -4.0968289e-06 | D161: ='DF raw data'!AG166 -> -2.7480335e-06 | F161: -7.977805015e-07 | G161: -4.112998207e-06 | H161: -2.752342417e-06 | J161: 2.901217087e-05 | K161: 0.003176560392 | L161: 3.363254193e-05 | M161: -0.001433143144 | N161: 2.311333454e-07
A162: 77.96008 | B162: ='DF raw data'!AE167 -> -4.8509714e-06 | C162: ='DF raw data'!AF167 -> -1.1116567e-05 | D162: ='DF raw data'!AG167 -> -1.8755006e-06 | F162: -4.858577723e-06 | G162: -1.116044171e-05 | H162: -1.878441385e-06 | J162: 2.658200747e-05 | K162: 0.00318985618 | L162: 2.80503122e-05 | M162: -0.001419112938 | N162: 2.318803258e-07
A163: 78.46026 | B163: ='DF raw data'!AE168 -> -5.9983172e-06 | C163: ='DF raw data'!AF168 -> -1.1796646e-05 | D163: ='DF raw data'!AG168 -> -5.2157179e-06 | F163: -6.007722561e-06 | G163: -1.184320484e-05 | H163: -5.223896146e-06 | J163: 2.357706479e-05 | K163: 0.003201648956 | L163: 2.2126578e-05 | M163: -0.001408045667 | N163: 2.324032457e-07
A164: 78.96044 | B164: ='DF raw data'!AE169 -> -2.7450185e-06 | C164: ='DF raw data'!AF169 -> -2.605381e-06 | D164: ='DF raw data'!AG169 -> -8.673268e-06 | F164: -2.749322689e-06 | G164: -2.615663881e-06 | H164: -8.686867684e-06 | J164: 2.220190857e-05 | K164: 0.003212753907 | L164: 2.081827524e-05 | M164: -0.001397632782 | N164: 2.328665751e-07
A165: 79.46062 | B165: ='DF raw data'!AE170 -> -3.9369656e-06 | C165: ='DF raw data'!AF170 -> 1.0740272e-05 | D165: ='DF raw data'!AG170 -> -5.061715e-06 | F165: -3.943138762e-06 | G165: 1.078266155e-05 | H165: -5.069651769e-06 | J165: 2.022962943e-05 | K165: 0.003222872363 | L165: 2.62115469e-05 | M165: -0.00138452229 | N165: 2.33414914e-07
A166: 79.9608 | B166: ='DF raw data'!AE171 -> -2.3917125e-06 | C166: ='DF raw data'!AF171 -> 8.4405219e-06 | D166: ='DF raw data'!AG171 -> -3.0836006e-06 | F166: -2.395462705e-06 | G166: 8.473834833e-06 | H166: -3.088435686e-06 | J166: 1.903146689e-05 | K166: 0.003232391522 | L166: 3.04499896e-05 | M166: -0.001369291814 | N166: 2.340598453e-07
A167: 80.46098 | B167: ='DF raw data'!AE172 -> 5.0598578e-06 | C167: ='DF raw data'!AF172 -> 8.7530079e-06 | D167: ='DF raw data'!AG172 -> -1.1425498e-06 | F167: 5.067791657e-06 | G167: 8.787554149e-06 | H167: -1.144341318e-06 | J167: 2.156627492e-05 | K167: 0.003243178542 | L167: 3.484534844e-05 | M167: -0.001351862868 | N167: 2.348997989e-07
A168: 80.96116 | B168: ='DF raw data'!AE173 -> 2.762474e-06 | C168: ='DF raw data'!AF173 -> 3.7636321e-06 | D168: ='DF raw data'!AG173 -> -4.0259388e-06 | F168: 2.766805559e-06 | G168: 3.77848635e-06 | H168: -4.032251472e-06 | J168: 2.295017573e-05 | K168: 0.003254657761 | L168: 3.673527174e-05 | M168: -0.00133348862 | N168: 2.35838232e-07
A169: 81.46134 | B169: ='DF raw data'!AE174 -> -8.2161459e-06 | C169: ='DF raw data'!AF174 -> 8.6898972e-06 | D169: ='DF raw data'!AG174 -> -6.8837021e-06 | F169: -8.229028817e-06 | G169: 8.724194364e-06 | H169: -6.894495745e-06 | J169: 1.883418009e-05 | K169: 0.003264078241 | L169: 4.109893928e-05 | M169: -0.001312931752 | N169: 2.368605244e-07
A170: 81.96152 | B170: ='DF raw data'!AE175 -> -1.2302615e-05 | C170: ='DF raw data'!AF175 -> 1.8679189e-05 | D170: ='DF raw data'!AG175 -> 6.0004209e-07 | F170: -1.23219055e-05 | G170: 1.875291176e-05 | H170: 6.00982956e-07 | J170: 1.26710094e-05 | K170: 0.003270416026 | L170: 5.047877068e-05 | M170: -0.001287683281 | N170: 2.382153424e-07
A171: 82.4617 | B171: ='DF raw data'!AE176 -> -1.0248597e-05 | C171: ='DF raw data'!AF176 -> 2.3375293e-05 | D171: ='DF raw data'!AG176 -> 5.6262738e-06 | F171: -1.02646668e-05 | G171: 2.346755028e-05 | H171: 5.635095797e-06 | J171: 7.536828359e-06 | K171: 0.003274185797 | L171: 6.221676998e-05 | M171: -0.001256563697 | N171: 2.401799145e-07
A172: 82.96188 | B172: ='DF raw data'!AE177 -> -7.2454018e-06 | C172: ='DF raw data'!AF177 -> 2.0550972e-06 | D172: ='DF raw data'!AG177 -> 1.6728238e-06 | F172: -7.25676259e-06 | G172: 2.063208229e-06 | H172: 1.675446788e-06 | J172: 3.907140847e-06 | K172: 0.003276140071 | L172: 6.324874547e-05 | M172: -0.001224927939 | N172: 2.421884721e-07
A173: 83.46206 | B173: ='DF raw data'!AE178 -> -4.1033668e-06 | C173: ='DF raw data'!AF178 -> -1.6229627e-05 | D173: ='DF raw data'!AG178 -> -3.0051949e-06 | F173: -4.109800879e-06 | G173: -1.629368186e-05 | H173: -3.009907046e-06 | J173: 1.851500643e-06 | K173: 0.003277066154 | L173: 5.509897168e-05 | M173: -0.001197368536 | N173: 2.437086815e-07
A174: 83.96224 | B174: ='DF raw data'!AE179 -> -1.5046131e-06 | C174: ='DF raw data'!AF179 -> 1.4195547e-08 | D174: ='DF raw data'!AG179 -> 1.2335015e-06 | F174: -1.506972333e-06 | G174: 1.425157379e-08 | H174: 1.23543563e-06 | J174: 1.097743222e-06 | K174: 0.003277615223 | L174: 5.510610003e-05 | M174: -0.001169805566 | N174: 2.45228172e-07
A175: 84.46242 | B175: ='DF raw data'!AE180 -> 6.6647436e-07 | C175: ='DF raw data'!AF180 -> -6.7687079e-06 | D175: ='DF raw data'!AG180 -> 2.1544049e-06 | F175: 6.675193918e-07 | G175: -6.795422541e-06 | H175: 2.157783007e-06 | J175: 1.431623071e-06 | K175: 0.003278331293 | L175: 5.170716558e-05 | M175: -0.001143942676 | N175: 2.465664939e-07
A176: 84.9626 | B176: ='DF raw data'!AE181 -> 3.4074429e-07 | C176: ='DF raw data'!AF181 -> -6.6029925e-06 | D176: ='DF raw data'!AG181 -> -9.247894e-06 | F176: 3.41278577e-07 | G176: -6.629053098e-06 | H176: -9.262394698e-06 | J176: 1.60232379e-06 | K176: 0.003279132743 | L176: 4.839144581e-05 | M176: -0.001119738243 | N176: 2.477390656e-07
A177: 85.46278 | B177: ='DF raw data'!AE182 -> -1.6083392e-06 | C177: ='DF raw data'!AF182 -> 6.0807923e-07 | D177: ='DF raw data'!AG182 -> -1.68155e-05 | F177: -1.610861076e-06 | G177: 6.104791886e-07 | H177: -1.68418667e-05 | J177: 7.966032967e-07 | K177: 0.003279531188 | L177: 4.869679529e-05 | M177: -0.00109538108 | N177: 2.489254988e-07
A178: 85.96296 | B178: ='DF raw data'!AE183 -> -5.7887987e-06 | C178: ='DF raw data'!AF183 -> -2.3086384e-06 | D178: ='DF raw data'!AG183 -> -3.373242e-06 | F178: -5.797875536e-06 | G178: -2.317750102e-06 | H178: -3.378531243e-06 | J178: -2.103378089e-06 | K178: 0.00327847912 | L178: 4.753750304e-05 | M178: -0.001071603772 | N178: 2.500580255e-07
A179: 86.46314 | B179: ='DF raw data'!AE184 -> -8.2891675e-06 | C179: ='DF raw data'!AF184 -> 6.9943044e-06 | D179: ='DF raw data'!AG184 -> 7.1174813e-06 | F179: -8.302164915e-06 | G179: 7.021909422e-06 | H179: 7.128641511e-06 | J179: -6.255954936e-06 | K179: 0.003275350017 | L179: 5.104972169e-05 | M179: -0.001046069722 | N179: 2.513811072e-07
A180: 86.96332 | B180: ='DF raw data'!AE185 -> -3.2618589e-06 | C180: ='DF raw data'!AF185 -> -1.7461097e-06 | D180: ='DF raw data'!AG185 -> -5.6859922e-06 | F180: -3.266973495e-06 | G180: -1.753001221e-06 | H180: -5.694907836e-06 | J180: -7.890029739e-06 | K180: 0.003271403582 | L180: 5.017290554e-05 | M180: -0.001020974238 | N180: 2.52671358e-07
A181: 87.4635 | B181: ='DF raw data'!AE186 -> -2.0312616e-06 | C181: ='DF raw data'!AF186 -> -1.847381e-06 | D181: ='DF raw data'!AG186 -> -5.1202137e-06 | F181: -2.034446618e-06 | G181: -1.854672217e-06 | H181: -5.128242195e-06 | J181: -8.907619248e-06 | K181: 0.003266948169 | L181: 4.924523559e-05 | M181: -0.0009963427561 | N181: 2.539240283e-07
A182: 87.96368 | B182: ='DF raw data'!AE187 -> -6.2354115e-06 | C182: ='DF raw data'!AF187 -> -6.0826269e-06 | D182: ='DF raw data'!AG187 -> 7.216187e-06 | F182: -6.245188625e-06 | G182: -6.106633726e-06 | H182: 7.227501981e-06 | J182: -1.203133769e-05 | K182: 0.003260930334 | L182: 4.619081954e-05 | M182: -0.000973239032 | N182: 2.550636109e-07
A183: 88.46386 | B183: ='DF raw data'!AE188 -> -7.4332379e-06 | C183: ='DF raw data'!AF188 -> -8.2199958e-06 | D183: ='DF raw data'!AG188 -> 3.6260546e-06 | F183: -7.444893217e-06 | G183: -8.252438364e-06 | H183: 3.631740254e-06 | J183: -1.575512438e-05 | K183: 0.003253049936 | L183: 4.206311492e-05 | M183: -0.0009521999031 | N183: 2.560727388e-07
A184: 88.96404 | B184: ='DF raw data'!AE189 -> -5.0644917e-06 | C184: ='DF raw data'!AF189 -> -1.4974746e-05 | D184: ='DF raw data'!AG189 -> -5.0795529e-07 | F184: -5.072432823e-06 | G184: -1.503384812e-05 | H184: -5.087517639e-07 | J184: -1.829225383e-05 | K184: 0.003243900517 | L184: 3.454348477e-05 | M184: -0.0009349219429 | N184: 2.568369433e-07
A185: 89.46422 | B185: ='DF raw data'!AE190 -> -1.9292818e-06 | C185: ='DF raw data'!AF190 -> -1.7145339e-05 | D185: ='DF raw data'!AG190 -> 1.0080196e-06 | F185: -1.932306914e-06 | G185: -1.721300798e-05 | H185: 1.009600175e-06 | J185: -1.925875511e-05 | K185: 0.003234267673 | L185: 2.593388243e-05 | M185: -0.0009219503336 | N185: 2.57358864e-07
A186: 89.9644 | B186: ='DF raw data'!AE191 -> -5.5149184e-07 | C186: ='DF raw data'!AF191 -> -7.8697494e-06 | D186: ='DF raw data'!AG191 -> -1.9091156e-06 | F186: -5.523565792e-07 | G186: -7.900809616e-06 | H186: -1.912109093e-06 | J186: -1.953503282e-05 | K186: 0.00322449664 | L186: 2.198205548e-05 | M186: -0.0009109553491 | N186: 2.577914338e-07
A187: 90.46458 | B187: ='DF raw data'!AE192 -> -3.1547432e-07 | C187: ='DF raw data'!AF192 -> 1.5559464e-06 | D187: ='DF raw data'!AG192 -> -8.2253018e-06 | F187: -3.159689837e-07 | G187: 1.562087387e-06 | H187: -8.238199073e-06 | J187: -1.969307419e-05 | K187: 0.003214646558 | L187: 2.276338035e-05 | M187: -0.0008995695615 | N187: 2.582445912e-07
A188: 90.96476 | B188: ='DF raw data'!AE193 -> -1.0242253e-06 | C188: ='DF raw data'!AF193 -> -8.6275421e-08 | D188: ='DF raw data'!AG193 -> -5.7035563e-06 | F188: -1.025831285e-06 | G188: -8.661593162e-08 | H188: -5.712499476e-06 | J188: -2.020617448e-05 | K188: 0.003204539834 | L188: 2.272005679e-05 | M188: -0.0008882054435 | N188: 2.587070029e-07
A189: 91.46494 | B189: ='DF raw data'!AE194 -> -1.1923581e-06 | C189: ='DF raw data'!AF194 -> 1.0048719e-05 | D189: ='DF raw data'!AG194 -> 8.0072432e-06 | F189: -1.194227718e-06 | G189: 1.008837914e-05 | H189: 8.019798557e-06 | J189: -2.08035033e-05 | K189: 0.003194134337 | L189: 2.776606227e-05 | M189: -0.0008743174145 | N189: 2.593090895e-07
A190: 91.96512 | B190: ='DF raw data'!AE195 -> 2.1850976e-06 | C190: ='DF raw data'!AF195 -> 9.4733814e-06 | D190: ='DF raw data'!AG195 -> 1.1058009e-05 | F190: 2.188523833e-06 | G190: 9.510770809e-06 | H190: 1.107534796e-05 | J190: -1.970884745e-05 | K190: 0.003184276366 | L190: 3.252315961e-05 | M190: -0.0008580499805 | N190: 2.600324471e-07
A191: 92.4653 | B191: ='DF raw data'!AE196 -> 2.4667791e-06 | C191: ='DF raw data'!AF196 -> 9.2830504e-07 | D191: ='DF raw data'!AG196 -> 3.7027287e-06 | F191: 2.47064701e-06 | G191: 9.319688613e-07 | H191: 3.708534579e-06 | J191: -1.847307923e-05 | K191: 0.003175036501 | L191: 3.29893118e-05 | M191: -0.0008415493865 | N191: 2.607474791e-07
A192: 92.96548 | B192: ='DF raw data'!AE197 -> -3.945042e-06 | C192: ='DF raw data'!AF197 -> 5.2495415e-07 | D192: ='DF raw data'!AG197 -> 2.7716972e-06 | F192: -3.951227826e-06 | G192: 5.270260317e-07 | H192: 2.776043221e-06 | J192: -2.044940436e-05 | K192: 0.003164808118 | L192: 3.325291968e-05 | M192: -0.0008249169412 | N192: 2.615097209e-07
A193: 93.46566 | B193: ='DF raw data'!AE198 -> -9.0669964e-06 | C193: ='DF raw data'!AF198 -> 1.3721471e-07 | D193: ='DF raw data'!AG198 -> 6.2458216e-06 | F193: -9.08121345e-06 | G193: 1.377562671e-07 | H193: 6.255615048e-06 | J193: -2.49916457e-05 | K193: 0.003152307797 | L193: 3.332182261e-05 | M193: -0.0008082500319 | N193: 2.623774962e-07
A194: 93.96584 | B194: ='DF raw data'!AE199 -> -6.3677176e-06 | C194: ='DF raw data'!AF199 -> -5.2038749e-06 | D194: ='DF raw data'!AG199 -> 1.9226075e-06 | F194: -6.377702181e-06 | G194: -5.22441348e-06 | H194: 1.925622149e-06 | J194: -2.818164478e-05 | K194: 0.003138211902 | L194: 3.070867547e-05 | M194: -0.0007928901666 | N194: 2.632464229e-07
A195: 94.46602 | B195: ='DF raw data'!AE200 -> -2.1267959e-07 | C195: ='DF raw data'!AF200 -> -7.9148476e-06 | D195: ='DF raw data'!AG200 -> -9.6098147e-06 | F195: -2.130130716e-07 | G195: -7.946085809e-06 | H195: -9.624882889e-06 | J195: -2.828818966e-05 | K195: 0.003124062715 | L195: 2.673420227e-05 | M195: -0.0007795182534 | N195: 2.640041652e-07
A196: 94.9662 | B196: ='DF raw data'!AE201 -> 3.2818599e-07 | C196: ='DF raw data'!AF201 -> 1.0286886e-05 | D196: ='DF raw data'!AG201 -> -1.2984578e-05 | F196: 3.287005856e-07 | G196: 1.032748614e-05 | H196: -1.300493782e-05 | J196: -2.81237802e-05 | K196: 0.003109995763 | L196: 3.189980429e-05 | M196: -0.0007635626092 | N196: 2.64908763e-07
A197: 95.46638 | B197: ='DF raw data'!AE202 -> -4.3135122e-07 | C197: ='DF raw data'!AF202 -> 1.0945483e-05 | D197: ='DF raw data'!AG202 -> -4.0685904e-06 | F197: -4.320275787e-07 | G197: 1.098868248e-05 | H197: -4.07496995e-06 | J197: -2.833987175e-05 | K197: 0.003095820726 | L197: 3.739612349e-05 | M197: -0.0007448578162 | N197: 2.660099685e-07
A198: 95.96656 | B198: ='DF raw data'!AE203 -> -1.6575392e-06 | C198: ='DF raw data'!AF203 -> 7.0081131e-07 | D198: ='DF raw data'!AG203 -> 1.6657079e-06 | F198: -1.660138221e-06 | G198: 7.035772622e-07 | H198: 1.66831973e-06 | J198: -2.917023969e-05 | K198: 0.003081230355 | L198: 3.774803877e-05 | M198: -0.0007259770022 | N198: 2.671482868e-07
A199: 96.46674 | B199: ='DF raw data'!AE204 -> -7.1327991e-06 | C199: ='DF raw data'!AF204 -> 8.1033513e-06 | D199: ='DF raw data'!AG204 -> -5.666807e-09 | F199: -7.143983329e-06 | G199: =(1-$G$1*($B$2-$G$2))*C199*$M$2/$M$1 -> 8.135333493e-06 | H199: -5.675692553e-09 | J199: -3.274351727e-05 | K199: 0.003064852703 | L199: 4.181716987e-05 | M199: -0.0007050608901 | N199: 2.685592013e-07
A200: =A199+$B$1 -> 96.96692 | B200: ='DF raw data'!AE205 -> -8.6747059e-06 | C200: ='DF raw data'!AF205 -> 6.6599355e-06 | D200: ='DF raw data'!AG205 -> 2.7195867e-06 | F200: -8.688307839e-06 | G200: 6.68622084e-06 | H200: 2.723851012e-06 | J200: =F200*$B$1+J199 -> -3.708923509e-05 | K200: =J200*$B$1+K199 -> 0.003046301409 | L200: =G200*$B$1+L199 -> 4.516148381e-05 | M200: =L200*$B$1+M199 -> -0.0006824720192 | N200: =(J200^2+L200^2)*$B$1+N199 -> 2.702674016e-07
A201: 97.4671 | B201: ='DF raw data'!AE206 -> -9.8864587e-07 | C201: ='DF raw data'!AF206 -> -3.2143423e-06 | D201: ='DF raw data'!AG206 -> 2.3894765e-06 | F201: -9.901960667e-07 | G201: -3.227028621e-06 | H201: 2.393223199e-06 | J201: -3.758451135e-05 | K201: 0.003027502388 | L201: 4.354738864e-05 | M201: -0.0006606904863 | N201: 2.719224824e-07
... 1002 more rows

Sheet 10 x=-1
A1: dz | B1: ='DF raw data'!AI7 -> 0.50016 | C1: mm | F1: T_coeff | G1: -0.0008 | H1: /degC | L1: Hallref | M1: ='PI vs gap'!B44 -> 0.50525 | N1: T | P1: IBy total | Q1: =L1203*1000 -> -2.548557545 | R1: muTm | X1: DF ref | Y1: 19
A2: Tref | B2: ='DF raw data'!AI8 -> 21.98 | C2: degC | F2: Tcorr | G2: 20 | H2: degC | L2: NMRref | M2: ='PI vs gap'!B45 -> 0.50645 | N2: T | P2: JBy total | Q2: =M1203 -> -0.8386926238 | R2: muTm^2
A3: Encoder | B3: ='DF raw data'!AI9 -> 262041733 | P3: PI total | Q3: =N1203 -> 708.8244906 | R3: T^2mm^3
A5: z [mm] | B5: Bx | C5: By | D5: Bz | F5: Bx_corr | G5: By_corr | H5: Bz_corr | J5: Ix | K5: Jx | L5: Iy | M5: Jy | N5: PI
A6: ='[1]PI vs x'!B53 -> -0.068 | B6: ='DF raw data'!AH11 -> -4.2415804e-06 | C6: ='DF raw data'!AI11 -> -4.1782073e-06 | D6: ='DF raw data'!AJ11 -> 1.0968523e-05 | F6: =(1-$G$1*($B$2-$G$2))*B6 -> -4.248299063e-06 | G6: =(1-$G$1*($B$2-$G$2))*C6*$M$2/$M$1 -> -4.1947648e-06 | H6: =(1-$G$1*($B$2-$G$2))*D6 -> 1.098589714e-05 | J6: =F6*$B$1 -> -2.12482926e-06 | K6: =J6*$B$1 -> -1.062754602e-06 | L6: =G6*$B$1 -> -2.098053562e-06 | M6: =L6*$B$1 -> -1.04936247e-06 | N6: =(J6^2+L6)^2*$B$1 -> 2.201609192e-12
A7: =A6+$B$1 -> 0.43216 | B7: ='DF raw data'!AH12 -> -3.881275e-06 | C7: ='DF raw data'!AI12 -> -1.4574052e-05 | D7: ='DF raw data'!AJ12 -> 7.2213329e-06 | F7: =(1-$G$1*($B$2-$G$2))*B7 -> -3.88742294e-06 | G7: =(1-$G$1*($B$2-$G$2))*C7*$M$2/$M$1 -> -1.46318064e-05 | H7: 7.232771491e-06 | J7: =F7*$B$1+J6 -> -4.069162717e-06 | K7: =J7*$B$1+K6 -> -3.097987027e-06 | L7: =G7*$B$1+L6 -> -9.416297853e-06 | M7: =L7*$B$1+M6 -> -5.759018004e-06 | N7: =(J7^2+L7^2)*$B$1+N6 -> 5.483082038e-11
A8: =A7+$B$1 -> 0.93232 | B8: ='DF raw data'!AH13 -> -4.2259662e-06 | C8: ='DF raw data'!AI13 -> -5.0101257e-06 | D8: ='DF raw data'!AJ13 -> 7.7360628e-06 | F8: -4.23266013e-06 | G8: -5.029979946e-06 | H8: 7.748316723e-06 | J8: =F8*$B$1+J7 -> -6.186170008e-06 | K8: =J8*$B$1+K7 -> -6.192061818e-06 | L8: =G8*$B$1+L7 -> -1.193209262e-05 | M8: =L8*$B$1+M7 -> -1.172697345e-05 | N8: =(J8^2+L8^2)*$B$1+N7 -> 1.451814902e-10
A9: 1.43248 | B9: ='DF raw data'!AH14 -> -4.2704951e-06 | C9: ='DF raw data'!AI14 -> -5.5255546e-06 | D9: ='DF raw data'!AJ14 -> -2.7156609e-06 | F9: -4.277259564e-06 | G9: -5.5474514e-06 | H9: -2.719962507e-06 | J9: -8.325484151e-06 | K9: -1.035613597e-05 | L9: -1.470670591e-05 | M9: -1.908267948e-05 | N9: 2.88027629e-10
A10: 1.93264 | B10: ='DF raw data'!AH15 -> -4.0286568e-06 | C10: ='DF raw data'!AI15 -> -1.3345722e-05 | D10: ='DF raw data'!AJ15 -> -1.0237866e-05 | F10: -4.035038192e-06 | G10: -1.339860875e-05 | H10: -1.025408278e-05 | J10: -1.034364885e-05 | K10: -1.552961538e-05 | L10: -2.140815407e-05 | M10: -2.979018182e-05 | N10: 5.70768143e-10
A11: 2.4328 | B11: ='DF raw data'!AH16 -> -4.5156658e-06 | C11: ='DF raw data'!AI16 -> 9.2471458e-07 | D11: ='DF raw data'!AJ16 -> -4.4882586e-06 | F11: -4.522818615e-06 | G11: 9.283790611e-07 | H11: -4.495368002e-06 | J11: -1.260578181e-05 | K11: -2.183452321e-05 | L11: -2.094381599e-05 | M11: -4.026544082e-05 | N11: 8.696383326e-10
A12: 2.93296 | B12: ='DF raw data'!AH17 -> -4.3293576e-06 | C12: ='DF raw data'!AI17 -> -3.3368156e-06 | D12: ='DF raw data'!AJ17 -> 5.1607219e-07 | F12: -4.336215302e-06 | G12: -3.350038813e-06 | H12: 5.168896483e-07 | J12: -1.477458326e-05 | K12: -2.922417878e-05 | L12: -2.261937141e-05 | M12: -5.157874563e-05 | N12: 1.234717257e-09
A13: 3.43312 | B13: ='DF raw data'!AH18 -> -4.4391663e-06 | C13: ='DF raw data'!AI18 -> -1.2508159e-06 | D13: ='DF raw data'!AJ18 -> -4.97064e-06 | F13: -4.446197939e-06 | G13: -1.255772663e-06 | H13: -4.978513494e-06 | J13: -1.699839362e-05 | K13: -3.772609533e-05 | L13: -2.324745866e-05 | M13: -6.320619455e-05 | N13: 1.649544819e-09
A14: 3.93328 | B14: ='DF raw data'!AH19 -> -4.5027145e-06 | C14: ='DF raw data'!AI19 -> 8.6907534e-07 | D14: ='DF raw data'!AJ19 -> -2.7773465e-06 | F14: -4.5098468e-06 | G14: 8.725193326e-07 | H14: -2.781745817e-06 | J14: -1.925403859e-05 | K14: -4.735619527e-05 | L14: -2.281105939e-05 | M14: -7.461537402e-05 | N14: 2.095218606e-09
A15: 4.43344 | B15: ='DF raw data'!AH20 -> -4.7102394e-06 | C15: ='DF raw data'!AI20 -> 6.4919632e-06 | D15: ='DF raw data'!AJ20 -> -2.6662717e-06 | F15: -4.717700419e-06 | G15: 6.517689707e-06 | H15: -2.670495074e-06 | J15: -2.161364364e-05 | K15: -5.816647527e-05 | L15: -1.955117171e-05 | M15: -8.439408806e-05 | N15: 2.520053463e-09
A16: 4.9336 | B16: ='DF raw data'!AH21 -> -4.794073e-06 | C16: ='DF raw data'!AI21 -> 9.1582378e-06 | D16: ='DF raw data'!AJ21 -> 1.8735896e-07 | F16: -4.801666812e-06 | G16: 9.194530284e-06 | H16: 1.876557366e-07 | J16: -2.401524531e-05 | K16: -7.017794037e-05 | L16: -1.495243544e-05 | M16: -9.187269817e-05 | N16: 2.920335178e-09
A17: 5.43376 | B17: ='DF raw data'!AH22 -> -4.2724305e-06 | C17: ='DF raw data'!AI22 -> -4.165398e-06 | D17: ='DF raw data'!AJ22 -> 5.7178145e-06 | F17: -4.27919803e-06 | G17: -4.181904739e-06 | H17: 5.726871518e-06 | J17: -2.6155529e-05 | K17: -8.325988975e-05 | L17: -1.704405692e-05 | M17: -0.0001003974537 | N17: 3.407796903e-09
A18: 5.93392 | B18: ='DF raw data'!AH23 -> -4.4514481e-06 | C18: ='DF raw data'!AI23 -> 1.5540903e-06 | D18: ='DF raw data'!AJ23 -> 1.0291597e-05 | F18: -4.458499194e-06 | G18: 1.560248886e-06 | H18: 1.030789889e-05 | J18: -2.838549195e-05 | K18: -9.74571774e-05 | L18: -1.626368283e-05 | M18: -0.0001085318973 | N18: 3.943089908e-09
A19: 6.43408 | B19: ='DF raw data'!AH24 -> -4.3386999e-06 | C19: ='DF raw data'!AI24 -> -2.3786756e-06 | D19: ='DF raw data'!AJ24 -> 4.8014949e-06 | F19: -4.345572401e-06 | G19: -2.388101873e-06 | H19: 4.809100468e-06 | J19: -3.055897344e-05 | K19: -0.0001127415536 | L19: -1.745811587e-05 | M19: -0.0001172637485 | N19: 4.562606424e-09
A20: 6.93424 | B20: ='DF raw data'!AH25 -> -4.6545638e-06 | C20: ='DF raw data'!AI25 -> 5.5410278e-06 | D20: ='DF raw data'!AJ25 -> 7.8002938e-07 | F20: -4.661936629e-06 | G20: 5.562985918e-06 | H20: 7.812649465e-07 | J20: -3.289068767e-05 | K20: -0.0001291921599 | L20: -1.467573283e-05 | M20: -0.000124603963 | N20: 5.211401206e-09
A21: 7.4344 | B21: ='DF raw data'!AH26 -> -4.6418891e-06 | C21: ='DF raw data'!AI26 -> 4.5764823e-06 | D21: ='DF raw data'!AJ26 -> -2.4667504e-06 | F21: -4.649241852e-06 | G21: 4.594618094e-06 | H21: -2.470657733e-06 | J21: -3.521605247e-05 | K21: -0.0001468058207 | L21: -1.237768864e-05 | M21: -0.0001307947878 | N21: 5.908312911e-09
A22: 7.93456 | B22: ='DF raw data'!AH27 -> -3.7413731e-06 | C22: ='DF raw data'!AI27 -> -1.0481396e-06 | D22: ='DF raw data'!AJ27 -> 1.3762213e-06 | F22: -3.747299435e-06 | G22: -1.052293193e-06 | H22: 1.378401235e-06 | J22: -3.709030176e-05 | K22: -0.000165356906 | L22: -1.290400361e-05 | M22: -0.0001372488542 | N22: 6.67966156e-09
A23: 8.43472 | B23: ='DF raw data'!AH28 -> -1.6862207e-06 | C23: ='DF raw data'!AI28 -> -3.5836561e-06 | D23: ='DF raw data'!AJ28 -> 3.0101248e-06 | F23: =(1-$G$1*($B$2-$G$2))*B23 -> -1.688891674e-06 | G23: -3.597857498e-06 | H23: 3.014892838e-06 | J23: -3.793501782e-05 | K23: -0.0001843304845 | L23: -1.470350801e-05 | M23: -0.0001446029608 | N23: 7.507555764e-09
A24: 8.93488 | B24: ='DF raw data'!AH29 -> 7.6736325e-07 | C24: ='DF raw data'!AI29 -> -3.4764759e-07 | D24: ='DF raw data'!AJ29 -> -2.2006541e-06 | F24: 7.685787534e-07 | G24: -3.490252562e-07 | H24: -2.204139936e-06 | J24: -3.755060547e-05 | K24: -0.0002031117954 | L24: -1.487807649e-05 | M24: -0.0001520443795 | N24: 8.323519354e-09
A25: 9.43504 | B25: ='DF raw data'!AH30 -> 5.7672996e-06 | C25: ='DF raw data'!AI30 -> 4.946743e-06 | D25: ='DF raw data'!AJ30 -> -5.1679785e-06 | F25: 5.776435003e-06 | G25: 4.966346072e-06 | H25: -5.176164578e-06 | J25: -3.466146374e-05 | K25: -0.0002204480731 | L25: -1.239410883e-05 | M25: -0.000158243417 | N25: 9.00125166e-09
A26: 9.9352 | B26: ='DF raw data'!AH31 -> 1.0145127e-05 | C26: ='DF raw data'!AI31 -> 4.4621352e-06 | D26: ='DF raw data'!AJ31 -> -4.2185825e-06 | F26: 1.016119688e-05 | G26: 4.479817856e-06 | H26: -4.225264735e-06 | J26: -2.957923951e-05 | K26: -0.0002352424255 | L26: -1.015348313e-05 | M26: -0.0001633217831 | N26: 9.490420459e-09
A27: 10.43536 | B27: ='DF raw data'!AH32 -> 4.8049669e-06 | C27: ='DF raw data'!AI32 -> 7.2292819e-06 | D27: ='DF raw data'!AJ32 -> -1.381905e-06 | F27: 4.812577968e-06 | G27: 7.257930271e-06 | H27: -1.384093938e-06 | J27: -2.717218051e-05 | K27: -0.0002488328633 | L27: -6.52335673e-06 | M27: -0.0001665845052 | N27: 9.880986188e-09
A28: 10.93552 | B28: ='DF raw data'!AH33 -> -2.3431669e-06 | C28: ='DF raw data'!AI33 -> 5.2570945e-06 | D28: ='DF raw data'!AJ33 -> 3.6879094e-06 | F28: -2.346878476e-06 | G28: 5.27792744e-06 | H28: 3.693751048e-06 | J28: -2.834599525e-05 | K28: -0.0002630103963 | L28: -3.883548542e-06 | M28: -0.0001685269009 | N28: 1.029040586e-08
A29: 11.43568 | B29: ='DF raw data'!AH34 -> -3.7543098e-06 | C29: ='DF raw data'!AI34 -> 4.3744735e-06 | D29: ='DF raw data'!AJ34 -> 6.9626435e-06 | F29: -3.760256627e-06 | G29: 4.391808768e-06 | H29: 6.973672327e-06 | J29: -3.02267252e-05 | K29: -0.0002781285952 | L29: -1.686941468e-06 | M29: -0.0001693706415 | N29: 1.074880284e-08
A30: 11.93584 | B30: ='DF raw data'!AH35 -> -3.3813878e-06 | C30: ='DF raw data'!AI35 -> 1.0599118e-05 | D30: ='DF raw data'!AJ35 -> 1.7362794e-06 | F30: -3.386743918e-06 | G30: 1.064112044e-05 | H30: 1.739029667e-06 | J30: -3.192063904e-05 | K30: -0.000294094022 | L30: 3.63532133e-06 | M30: -0.0001675523992 | N30: 1.126503936e-08
A31: 12.436 | B31: ='DF raw data'!AH36 -> -2.6637019e-06 | C31: ='DF raw data'!AI36 -> 4.7558092e-06 | D31: ='DF raw data'!AJ36 -> 3.1566159e-08 | F31: -2.667921204e-06 | G31: 4.774655635e-06 | H31: 3.16161598e-08 | J31: -3.325502651e-05 | K31: -0.0003107268561 | L31: 6.023413092e-06 | M31: -0.0001645397289 | N31: 1.183631126e-08
A32: 12.93616 | B32: ='DF raw data'!AH37 -> -9.903481e-07 | C32: ='DF raw data'!AI37 -> -7.3236201e-06 | D32: ='DF raw data'!AJ37 -> -6.0337156e-06 | F32: -9.919168114e-07 | G32: -7.352642317e-06 | H32: -6.043273006e-06 | J32: -3.375114362e-05 | K32: -0.0003276078281 | L32: 2.345915511e-06 | M32: -0.0001633663958 | N32: 1.240881591e-08
A33: 13.43632 | B33: ='DF raw data'!AH38 -> -9.0217799e-07 | C33: ='DF raw data'!AI38 -> -1.9597142e-06 | D33: ='DF raw data'!AJ38 -> -6.0977295e-06 | F33: -9.036070399e-07 | G33: -1.967480202e-06 | H33: -6.107388304e-06 | J33: -3.420309172e-05 | K33: -0.0003447148464 | L33: 1.361860613e-06 | M33: -0.0001626852476 | N33: 1.299485646e-08
A34: 13.93648 | B34: ='DF raw data'!AH39 -> -2.4773938e-06 | C34: ='DF raw data'!AI39 -> -1.3674753e-05 | D34: ='DF raw data'!AJ39 -> -3.4432276e-06 | F34: -2.481317992e-06 | G34: -1.372894364e-05 | H34: -3.448681673e-06 | J34: -3.544414773e-05 | K34: -0.0003624425913 | L34: -5.504807837e-06 | M34: -0.0001654385323 | N34: 1.363835757e-08
A35: 14.43664 | B35: ='DF raw data'!AH40 -> -5.4960719e-06 | C35: ='DF raw data'!AI40 -> -1.3875295e-05 | D35: ='DF raw data'!AJ40 -> -3.0990748e-06 | F35: -5.504777678e-06 | G35: -1.393028035e-05 | H35: -3.103983734e-06 | J35: -3.819741733e-05 | K35: -0.0003815474116 | L35: -1.247217686e-05 | M35: -0.0001716766163 | N35: 1.444591485e-08
A36: 14.9368 | B36: ='DF raw data'!AH41 -> -1.0404229e-05 | C36: ='DF raw data'!AI41 -> -5.1586298e-06 | D36: ='DF raw data'!AJ41 -> 3.0507829e-06 | F36: -1.04207093e-05 | G36: -5.179072542e-06 | H36: 3.05561534e-06 | J36: -4.340943929e-05 | K36: -0.0004032590767 | L36: -1.506254178e-05 | M36: -0.0001792102972 | N36: 1.550188244e-08
A37: 15.43696 | B37: ='DF raw data'!AH42 -> -1.2498032e-05 | C37: ='DF raw data'!AI42 -> -9.4907446e-06 | D37: ='DF raw data'!AJ42 -> 2.4015492e-06 | F37: -1.251782888e-05 | G37: -9.52835475e-06 | H37: 2.405353254e-06 | J37: -4.967035659e-05 | K37: -0.0004281022023 | L37: -1.982824369e-05 | M37: -0.0001891275915 | N37: 1.693249188e-08
A38: 15.93712 | B38: ='DF raw data'!AH43 -> -1.208045e-05 | C38: ='DF raw data'!AI43 -> 2.1090141e-06 | D38: ='DF raw data'!AJ43 -> 6.2976355e-06 | F38: -1.209958543e-05 | G38: 2.117371752e-06 | H38: 6.307610955e-06 | J38: -5.572208524e-05 | K38: -0.0004559721604 | L38: -1.876921904e-05 | M38: -0.0001985152041 | N38: 1.866166222e-08
A39: 16.43728 | B39: ='DF raw data'!AH44 -> -6.0393531e-06 | C39: ='DF raw data'!AI44 -> -6.945887e-06 | D39: ='DF raw data'!AJ44 -> 7.7921604e-06 | F39: -6.048919435e-06 | G39: -6.973412327e-06 | H39: 7.804503182e-06 | J39: -5.874751278e-05 | K39: -0.0004853553164 | L39: -2.225704095e-05 | M39: -0.0002096472857 | N39: 2.063561675e-08
A40: 16.93744 | B40: ='DF raw data'!AH45 -> 2.5785704e-07 | C40: ='DF raw data'!AI45 -> 3.1823024e-06 | D40: ='DF raw data'!AJ45 -> 7.8422772e-06 | F40: 2.582654856e-07 | G40: 3.194913304e-06 | H40: 7.854699367e-06 | J40: -5.861833872e-05 | K40: -0.0005146738647 | L40: -2.065907311e-05 | M40: -0.0002199801277 | N40: 2.256768828e-08
A41: 17.4376 | B41: ='DF raw data'!AH46 -> 5.5723359e-07 | C41: ='DF raw data'!AI46 -> 5.9769341e-06 | D41: ='DF raw data'!AJ46 -> 5.7379689e-06 | F41: 5.58116248e-07 | G41: 6.000619638e-06 | H41: 5.747057843e-06 | J41: -5.833919129e-05 | K41: -0.0005438527947 | L41: -1.765780319e-05 | M41: -0.0002288118546 | N41: 2.442591235e-08
A42: 17.93776 | B42: ='DF raw data'!AH47 -> -1.7650484e-06 | C42: ='DF raw data'!AI47 -> -6.275282e-06 | D42: ='DF raw data'!AJ47 -> 5.0671838e-06 | F42: -1.767844237e-06 | G42: -6.300149838e-06 | H42: 5.075210219e-06 | J42: -5.922339627e-05 | K42: -0.0005734739685 | L42: -2.080888613e-05 | M42: -0.0002392196271 | N42: 2.639675302e-08
A43: 18.43792 | B43: ='DF raw data'!AH48 -> -1.8765888e-06 | C43: ='DF raw data'!AI48 -> -1.9280564e-05 | D43: ='DF raw data'!AJ48 -> -1.6285018e-06 | F43: -1.879561317e-06 | G43: -1.935696948e-05 | H43: -1.631081347e-06 | J43: -6.016347766e-05 | K43: -0.0006035653335 | L43: -3.049046799e-05 | M43: -0.0002544697395 | N43: 2.867213725e-08
A44: 18.93808 | B44: ='DF raw data'!AH49 -> -1.73187e-06 | C44: ='DF raw data'!AI49 -> 1.2302629e-06 | D44: ='DF raw data'!AJ49 -> -2.8366455e-06 | F44: -1.734613282e-06 | G44: 1.235138215e-06 | H44: -2.841138746e-06 | J44: -6.103106183e-05 | K44: -0.0006340906294 | L44: -2.987270126e-05 | M44: -0.0002694108698 | N44: 3.098146039e-08
A45: 19.43824 | B45: ='DF raw data'!AH50 -> -2.3330242e-06 | C45: ='DF raw data'!AI50 -> -5.6528456e-06 | D45: ='DF raw data'!AJ50 -> -5.217704e-07 | F45: -2.33671971e-06 | G45: -5.675246832e-06 | H45: -5.225968843e-07 | J45: -6.219979556e-05 | K45: -0.0006652004791 | L45: -3.271123271e-05 | M45: -0.00028577172 | N45: 3.345167026e-08
A46: 19.9384 | B46: ='DF raw data'!AH51 -> -3.5416741e-07 | C46: ='DF raw data'!AI51 -> -8.8951256e-06 | D46: ='DF raw data'!AJ51 -> 2.7327217e-06 | F46: -3.547284112e-07 | G46: -8.930375417e-06 | H46: 2.737050331e-06 | J46: -6.237721653e-05 | K46: -0.0006963990678 | L46: -3.717784928e-05 | M46: -0.0003043665931 | N46: 3.608906877e-08
A47: 20.43856 | B47: ='DF raw data'!AH52 -> 2.9451301e-06 | C47: ='DF raw data'!AI52 -> -2.9353337e-06 | D47: ='DF raw data'!AJ52 -> 6.7389515e-06 | F47: 2.949795186e-06 | G47: -2.946965911e-06 | H47: 6.749625999e-06 | J47: -6.090184697e-05 | K47: -0.0007268597355 | L47: -3.865180375e-05 | M47: -0.0003236986792 | N47: 3.86913997e-08
A48: 20.93872 | B48: ='DF raw data'!AH53 -> 3.1699602e-07 | C48: ='DF raw data'!AI53 -> 7.2435582e-06 | D48: ='DF raw data'!AJ53 -> 2.9526884e-06 | F48: 3.174981417e-07 | G48: 7.272263146e-06 | H48: 2.957365458e-06 | J48: -6.07430471e-05 | K48: -0.000757240978 | L48: -3.501450862e-05 | M48: -0.0003412115359 | N48: 4.115005301e-08
A49: 21.43888 | B49: ='DF raw data'!AH54 -> -2.2158667e-06 | C49: ='DF raw data'!AI54 -> -3.8460672e-07 | D49: ='DF raw data'!AJ54 -> 3.7378225e-06 | F49: -2.219376633e-06 | G49: -3.861308487e-07 | H49: 3.743743211e-06 | J49: -6.185309051e-05 | K49: -0.0007881774197 | L49: -3.520763582e-05 | M49: -0.000358820987 | N49: 4.368355468e-08
A50: 21.93904 | B50: ='DF raw data'!AH55 -> -1.0544347e-06 | C50: ='DF raw data'!AI55 -> 8.5960204e-07 | D50: ='DF raw data'!AJ55 -> 2.2458146e-06 | F50: -1.056104925e-06 | G50: 8.630084916e-07 | H50: 2.24937197e-06 | J50: -6.238131195e-05 | K50: -0.0008193780567 | L50: -3.47759935e-05 | M50: -0.0003762145479 | N50: 4.623476971e-08
A51: 22.4392 | B51: ='DF raw data'!AH56 -> 3.5914679e-06 | C51: ='DF raw data'!AI56 -> 8.8280058e-06 | D51: ='DF raw data'!AJ56 -> 1.6295265e-06 | F51: 3.597156785e-06 | G51: 8.862989633e-06 | H51: 1.63210767e-06 | J51: -6.058215801e-05 | K51: -0.0008496788289 | L51: -3.03430806e-05 | M51: -0.0003913909431 | N51: 4.853095446e-08
A52: 22.93936 | B52: ='DF raw data'!AH57 -> 1.0681059e-05 | C52: ='DF raw data'!AI57 -> -4.0977516e-06 | D52: ='DF raw data'!AJ57 -> -1.4679667e-07 | F52: 1.06979778e-05 | G52: -4.113990268e-06 | H52: -1.470291959e-07 | J52: -5.523145744e-05 | K52: -0.0008773033946 | L52: -3.240073397e-05 | M52: -0.0004075964942 | N52: 5.058177124e-08
A53: 23.43952 | B53: ='DF raw data'!AH58 -> 1.0347646e-05 | C53: ='DF raw data'!AI58 -> 3.4818463e-06 | D53: ='DF raw data'!AJ58 -> -2.3762957e-06 | F53: 1.036403667e-05 | G53: 3.495644244e-06 | H53: -2.380059752e-06 | J53: -5.004778086e-05 | K53: -0.0009023352927 | L53: -3.065235255e-05 | M53: -0.0004229275748 | N53: 5.230449588e-08
A54: 23.93968 | B54: ='DF raw data'!AH59 -> 8.5293841e-06 | C54: ='DF raw data'!AI59 -> 2.2962126e-06 | D54: ='DF raw data'!AJ59 -> -3.055681e-06 | F54: 8.542894644e-06 | G54: 2.305312086e-06 | H54: -3.060521199e-06 | J54: -4.577496667e-05 | K54: -0.0009252301 | L54: -2.949932766e-05 | M54: -0.0004376819586 | N54: 5.378774932e-08
A55: 24.43984 | B55: ='DF raw data'!AH60 -> 7.7812556e-06 | C55: ='DF raw data'!AI60 -> -4.5825851e-07 | D55: ='DF raw data'!AJ60 -> 3.3300487e-06 | F55: 7.793581109e-06 | G55: -4.600745078e-07 | H55: 3.335323497e-06 | J55: -4.187692914e-05 | K55: -0.0009461752649 | L55: -2.972943852e-05 | M55: -0.0004525514345 | N55: 5.510692968e-08
A56: 24.94 | B56: ='DF raw data'!AH61 -> 3.7858379e-06 | C56: ='DF raw data'!AI61 -> 1.8224122e-06 | D56: ='DF raw data'!AJ61 -> -5.3860697e-07 | F56: 3.791834667e-06 | G56: 1.829634099e-06 | H56: -5.394601234e-07 | J56: -3.998040512e-05 | K56: -0.0009661718643 | L56: -2.881432873e-05 | M56: -0.0004669632092 | N56: 5.632166743e-08
A57: 25.44016 | B57: ='DF raw data'!AH62 -> -9.8969326e-07 | C57: ='DF raw data'!AI62 -> 3.3288056e-06 | D57: ='DF raw data'!AJ62 -> -6.0173302e-06 | F57: -9.912609341e-07 | G57: 3.341997071e-06 | H57: -6.026861651e-06 | J57: -4.047619419e-05 | K57: -0.0009864164376 | L57: -2.714279548e-05 | M57: -0.0004805389498 | N57: 5.750957426e-08
A58: 25.94032 | B58: ='DF raw data'!AH63 -> -1.6319566e-06 | C58: ='DF raw data'!AI63 -> -3.2344774e-06 | D58: ='DF raw data'!AJ63 -> -4.5513557e-06 | F58: -1.634541619e-06 | G58: -3.247295065e-06 | H58: -4.558565047e-06 | J58: -4.129372652e-05 | K58: -0.001007069908 | L58: -2.876696258e-05 | M58: -0.0004949270338 | N58: 5.877633449e-08
A59: 26.44048 | B59: ='DF raw data'!AH64 -> -4.4321058e-07 | C59: ='DF raw data'!AI64 -> -2.3796981e-07 | D59: ='DF raw data'!AJ64 -> -4.0004363e-07 | F59: -4.439126256e-07 | G59: -2.389128425e-07 | H59: -4.006772991e-07 | J59: -4.151575386e-05 | K59: -0.001027834427 | L59: -2.888645722e-05 | M59: -0.0005093748842 | N59: 6.005573638e-08
A60: 26.94064 | B60: ='DF raw data'!AH65 -> 2.056011e-07 | C60: ='DF raw data'!AI65 -> -1.8736533e-06 | D60: ='DF raw data'!AJ65 -> 1.2660779e-06 | F60: 2.059267721e-07 | G60: -1.881078258e-06 | H60: 1.268083367e-06 | J60: -4.141275753e-05 | K60: -0.001048547432 | L60: -2.982729732e-05 | M60: -0.0005242933052 | N60: 6.135849521e-08
A61: 27.4408 | B61: ='DF raw data'!AH66 -> 8.1234322e-07 | C61: ='DF raw data'!AI66 -> -1.3687655e-06 | D61: ='DF raw data'!AJ66 -> 1.7974411e-06 | F61: 8.136299717e-07 | G61: -1.374189677e-06 | H61: 1.800288247e-06 | J61: -4.100581236e-05 | K61: -0.001069056899 | L61: -3.051461203e-05 | M61: -0.0005395554936 | N61: 6.266522232e-08
A62: 27.94096 | B62: ='DF raw data'!AH67 -> 3.0939816e-06 | C62: ='DF raw data'!AI67 -> 7.2638395e-06 | D62: ='DF raw data'!AJ67 -> 5.4066654e-06 | F62: 3.098882467e-06 | G62: 7.292624817e-06 | H62: 5.415229558e-06 | J62: -3.945587531e-05 | K62: -0.00108879115 | L62: -2.68671328e-05 | M62: -0.0005529933587 | N62: 6.380489136e-08
A63: 28.44112 | B63: ='DF raw data'!AH68 -> 1.7112004e-06 | C63: ='DF raw data'!AI68 -> -1.990536e-06 | D63: ='DF raw data'!AJ68 -> 6.2078502e-06 | F63: 1.713910941e-06 | G63: -1.998424144e-06 | H63: 6.217683435e-06 | J63: -3.859864561e-05 | K63: -0.001108096648 | L63: -2.786666462e-05 | M63: -0.0005669311497 | N63: 6.493845721e-08
A64: 28.94128 | B64: ='DF raw data'!AH69 -> -4.3637438e-06 | C64: ='DF raw data'!AI69 -> -8.5947391e-07 | D64: ='DF raw data'!AJ69 -> 6.4675437e-06 | F64: -4.37065597e-06 | G64: -8.628798538e-07 | H64: 6.477788289e-06 | J64: -4.07846729e-05 | K64: -0.00112849551 | L64: -2.829824261e-05 | M64: -0.0005810847987 | N64: 6.617094152e-08
A65: 29.44144 | B65: ='DF raw data'!AH70 -> -4.2974598e-06 | C65: ='DF raw data'!AI70 -> 6.4744841e-06 | D65: ='DF raw data'!AJ70 -> 1.7485903e-06 | F65: -4.304266976e-06 | G65: 6.500141341e-06 | H65: 1.751360067e-06 | J65: -4.293749507e-05 | K65: -0.001149971128 | L65: -2.504713192e-05 | M65: -0.0005936123722 | N65: 6.740683052e-08
A66: 29.9416 | B66: ='DF raw data'!AH71 -> 2.0872976e-07 | C66: ='DF raw data'!AI71 -> 6.6471389e-06 | D66: ='DF raw data'!AJ71 -> 1.0590187e-06 | F66: 2.090603879e-07 | G66: 6.673480341e-06 | H66: 1.060696186e-06 | J66: -4.283293143e-05 | K66: -0.001171394447 | L66: -2.170932399e-05 | M66: -0.0006044705077 | N66: 6.856017686e-08
A67: 30.44176 | B67: ='DF raw data'!AH72 -> 1.5000085e-06 | C67: ='DF raw data'!AI72 -> 4.8223887e-06 | D67: ='DF raw data'!AJ72 -> 3.8107712e-06 | F67: 1.502384513e-06 | G67: 4.841498977e-06 | H67: 3.816807462e-06 | J67: -4.208149879e-05 | K67: -0.001192441929 | L67: -1.928779986e-05 | M67: -0.0006141174937 | N67: 6.96319556e-08
A68: 30.94192 | B68: ='DF raw data'!AH73 -> 3.112739e-06 | C68: ='DF raw data'!AI73 -> 6.0411126e-06 | D68: ='DF raw data'!AJ73 -> 1.3169223e-06 | F68: 3.117669579e-06 | G68: 6.065052466e-06 | H68: 1.319008305e-06 | J68: -4.052216517e-05 | K68: -0.001212709496 | L68: -1.625430322e-05 | M68: -0.000622247246 | N68: 7.058538472e-08
A69: 31.44208 | B69: ='DF raw data'!AH74 -> 4.5246243e-06 | C69: ='DF raw data'!AI74 -> -3.0690276e-06 | D69: ='DF raw data'!AJ74 -> 2.8479292e-06 | F69: 4.531791305e-06 | G69: -3.081189616e-06 | H69: 2.85244032e-06 | J69: -3.825554443e-05 | K69: -0.001231843389 | L69: -1.779539102e-05 | M69: -0.0006311477888 | N69: 7.147575086e-08
A70: 31.94224 | B70: ='DF raw data'!AH75 -> 4.2611618e-06 | C70: ='DF raw data'!AI75 -> -3.5537682e-06 | D70: ='DF raw data'!AJ75 -> 9.389335e-06 | F70: 4.26791148e-06 | G70: -3.567851158e-06 | H70: 9.404207707e-06 | J70: -3.612090583e-05 | K70: -0.001249909621 | L70: -1.957988745e-05 | M70: -0.0006409408653 | N70: 7.232006687e-08
A71: 32.4424 | B71: ='DF raw data'!AH76 -> 3.0995259e-06 | C71: ='DF raw data'!AI76 -> -8.7727731e-06 | D71: ='DF raw data'!AJ76 -> 8.4559169e-06 | F71: 3.104435549e-06 | G71: =(1-$G$1*($B$2-$G$2))*C71*$M$2/$M$1 -> -8.807538055e-06 | H71: 8.469311072e-06 | J71: -3.456819134e-05 | K71: -0.001267199247 | L71: -2.398506569e-05 | M71: -0.0006529372358 | N71: 7.320547172e-08
A72: =A71+$B$1 -> 32.94256 | B72: ='DF raw data'!AH77 -> -3.8540338e-06 | C72: ='DF raw data'!AI77 -> -8.4933305e-07 | D72: ='DF raw data'!AJ77 -> 3.7397579e-06 | F72: -3.86013859e-06 | G72: -8.526988074e-07 | H72: 3.745681677e-06 | J72: =F72*$B$1+J71 -> -3.649887826e-05 | K72: =J72*$B$1+K71 -> -0.001285454526 | L72: =G72*$B$1+L71 -> -2.441155152e-05 | M72: =L72*$B$1+M71 -> -0.0006651469174 | N72: =(J72^2+L72^2)*$B$1+N71 -> 7.41698262e-08
A73: 33.44272 | B73: ='DF raw data'!AH78 -> -1.2589941e-05 | C73: ='DF raw data'!AI78 -> 1.3814446e-05 | D73: ='DF raw data'!AJ78 -> -2.3593282e-06 | F73: -1.260988347e-05 | G73: 1.386919022e-05 | H73: -2.363065376e-06 | J73: -4.280583757e-05 | K73: -0.001306864294 | L73: -1.747473734e-05 | M73: -0.000673887082 | N73: 7.523902132e-08
A74: 33.94288 | B74: ='DF raw data'!AH79 -> -1.1768529e-05 | C74: ='DF raw data'!AI79 -> 1.806134e-06 | D74: ='DF raw data'!AJ79 -> 1.9047906e-06 | F74: -1.178717035e-05 | G74: 1.813291391e-06 | H74: 1.907807788e-06 | J74: -4.87013087e-05 | K74: -0.001331222741 | L74: -1.656780152e-05 | M74: -0.0006821736336 | N74: 7.656259949e-08
A75: 34.44304 | B75: ='DF raw data'!AH80 -> -6.3297075e-06 | C75: ='DF raw data'!AI80 -> 7.5605813e-06 | D75: ='DF raw data'!AJ80 -> -8.8297966e-08 | F75: -6.339733757e-06 | G75: 7.590542553e-06 | H75: -8.843782998e-08 | J75: -5.187218993e-05 | K75: -0.001357167135 | L75: -1.277131576e-05 | M75: -0.0006885613349 | N75: 7.79899714e-08
A76: 34.9432 | B76: ='DF raw data'!AH81 -> -3.1855482e-06 | C76: ='DF raw data'!AI81 -> 8.1050024e-07 | D76: ='DF raw data'!AJ81 -> -4.1455755e-06 | F76: -3.190594108e-06 | G76: 8.137121098e-07 | H76: -4.152142092e-06 | J76: -5.346799748e-05 | K76: -0.001383909689 | L76: -1.236432951e-05 | M76: -0.0006947454779 | N76: 7.949630497e-08
A77: 35.44336 | B77: ='DF raw data'!AH82 -> -1.03348e-06 | C77: ='DF raw data'!AI82 -> -5.6049444e-06 | D77: ='DF raw data'!AJ82 -> -4.0318232e-06 | F77: -1.035117032e-06 | G77: -5.627155808e-06 | H77: -4.038209608e-06 | J77: -5.398572162e-05 | K77: -0.001410911187 | L77: -1.517880776e-05 | M77: -0.0007023373104 | N77: 8.106923532e-08
A78: 35.94352 | B78: ='DF raw data'!AH83 -> -1.5289581e-06 | C78: ='DF raw data'!AI83 -> -2.1450446e-06 | D78: ='DF raw data'!AJ83 -> -5.8592091e-06 | F78: -1.53137997e-06 | G78: -2.153545034e-06 | H78: -5.868490087e-06 | J78: -5.475165662e-05 | K78: -0.001438295776 | L78: -1.625592484e-05 | M78: -0.0007104678738 | N78: 8.270075673e-08
A79: 36.44368 | B79: ='DF raw data'!AH84 -> -3.4422003e-06 | C79: ='DF raw data'!AI84 -> 9.2684486e-06 | D79: ='DF raw data'!AJ84 -> -1.912075e-06 | F79: -3.447652745e-06 | G79: 9.30517783e-06 | H79: -1.915103727e-06 | J79: -5.647603462e-05 | K79: -0.001466542829 | L79: -1.16018471e-05 | M79: -0.0007162706536 | N79: 8.436336127e-08
A80: 36.94384 | B80: ='DF raw data'!AH85 -> -1.9978645e-06 | C80: ='DF raw data'!AI85 -> 4.5695447e-06 | D80: ='DF raw data'!AJ85 -> 1.3748971e-06 | F80: -2.001029117e-06 | G80: 4.587653001e-06 | H80: 1.377074937e-06 | J80: -5.747686934e-05 | K80: -0.00149529046 | L80: -9.307286575e-06 | M80: -0.0007209257861 | N80: 8.605901175e-08
A81: 37.444 | B81: ='DF raw data'!AH86 -> 7.8117301e-07 | C81: ='DF raw data'!AI86 -> 7.8958838e-06 | D81: ='DF raw data'!AJ86 -> -3.0360809e-07 | F81: 7.82410388e-07 | G81: 7.927173797e-06 | H81: -3.040890052e-07 | J81: -5.708553896e-05 | K81: -0.001523842364 | L81: -5.342431329e-06 | M81: -0.0007235978566 | N81: 8.770318788e-08
A82: 37.94416 | B82: ='DF raw data'!AH87 -> 5.2626683e-06 | C82: ='DF raw data'!AI87 -> 8.2865581e-06 | D82: ='DF raw data'!AJ87 -> -5.3698282e-06 | F82: 5.271004367e-06 | G82: 8.319396271e-06 | H82: -5.378334008e-06 | J82: -5.444919342e-05 | K82: -0.001551075672 | L82: -1.18140209e-06 | M82: -0.0007241887466 | N82: 8.918671765e-08
A83: 38.44432 | B83: ='DF raw data'!AH88 -> 8.3480236e-06 | C83: ='DF raw data'!AI88 -> -9.1511316e-07 | D83: ='DF raw data'!AJ88 -> -5.9658892e-06 | F83: 8.361246869e-06 | G83: -9.187395923e-07 | H83: -5.975339168e-06 | J83: -5.026723218e-05 | K83: -0.001576217331 | L83: -1.640918885e-06 | M83: -0.0007250094686 | N83: 9.045186599e-08
A84: 38.94448 | B84: ='DF raw data'!AH89 -> 6.0659922e-06 | C84: ='DF raw data'!AI89 -> -7.3380302e-06 | D84: ='DF raw data'!AJ89 -> -8.3400782e-06 | F84: 6.075600732e-06 | G84: -7.367109522e-06 | H84: -8.353288884e-06 | J84: -4.722845972e-05 | K84: -0.001599839117 | L84: -5.325652383e-06 | M84: -0.0007276731469 | N84: 9.15816724e-08
A85: 39.44464 | B85: ='DF raw data'!AH90 -> 3.9607812e-06 | C85: ='DF raw data'!AI90 -> 2.219625e-06 | D85: ='DF raw data'!AJ90 -> -9.9017025e-06 | F85: 3.967055077e-06 | G85: 2.228420983e-06 | H85: -9.917386797e-06 | J85: -4.524429746e-05 | K85: -0.001622468505 | L85: -4.211085344e-06 | M85: -0.0007297793634 | N85: 9.261439261e-08
A86: 39.9448 | B86: ='DF raw data'!AH91 -> 4.8603079e-06 | C86: ='DF raw data'!AI91 -> -5.0497542e-06 | D86: ='DF raw data'!AJ91 -> -4.7860926e-06 | F86: 4.868006628e-06 | G86: -5.069765487e-06 | H86: -4.793673771e-06 | J86: -4.280951526e-05 | K86: -0.001643880112 | L86: -6.74677925e-06 | M86: -0.0007331538325 | N86: 9.355377993e-08
A87: 40.44496 | B87: ='DF raw data'!AH92 -> 3.6292447e-06 | C87: ='DF raw data'!AI92 -> 4.8351981e-06 | D87: ='DF raw data'!AJ92 -> -1.5920929e-06 | F87: =(1-$G$1*($B$2-$G$2))*B87 -> 3.634993424e-06 | G87: 4.854359139e-06 | H87: -1.594614775e-06 | J87: -4.099143695e-05 | K87: -0.001664382389 | L87: -4.318822983e-06 | M87: -0.000735313935 | N87: 9.440352683e-08
A88: 40.94512 | B88: ='DF raw data'!AH93 -> 1.7811515e-06 | C88: ='DF raw data'!AI93 -> 6.9002504e-06 | D88: ='DF raw data'!AJ93 -> -8.0097643e-06 | F88: 1.783972844e-06 | G88: 6.927594878e-06 | H88: -8.022451767e-06 | J88: -4.009916509e-05 | K88: -0.001684438388 | L88: -8.539171291e-07 | M88: -0.0007357410302 | N88: 9.520812033e-08
A89: 41.44528 | B89: ='DF raw data'!AH94 -> -3.4335534e-07 | C89: ='DF raw data'!AI94 -> 2.4463628e-07 | D89: ='DF raw data'!AJ94 -> -7.7450068e-06 | F89: -3.438992149e-07 | G89: 2.456057305e-07 | H89: -7.757274891e-06 | J89: -4.027116972e-05 | K89: -0.001704580416 | L89: -7.310749669e-07 | M89: -0.0007361066846 | N89: 9.601953069e-08
A90: 41.94544 | B90: ='DF raw data'!AH95 -> -1.7528394e-06 | C90: ='DF raw data'!AI95 -> -3.4710442e-06 | D90: ='DF raw data'!AJ95 -> 2.5743968e-06 | F90: -1.755615898e-06 | G90: -3.484799337e-06 | H90: 2.578474645e-06 | J90: -4.114925857e-05 | K90: -0.001725161629 | L90: -2.474032203e-06 | M90: -0.0007373440966 | N90: 9.686949375e-08
A91: 42.4456 | B91: ='DF raw data'!AH96 -> -1.8142484e-06 | C91: ='DF raw data'!AI96 -> 3.1615258e-07 | D91: ='DF raw data'!AJ96 -> 2.6777591e-06 | F91: -1.817122169e-06 | G91: 3.17405437e-07 | H91: 2.68200067e-06 | J91: -4.205811039e-05 | K91: -0.001746197414 | L91: -2.3152787e-06 | M91: -0.0007385021064 | N91: 9.775690021e-08
A92: 42.94576 | B92: ='DF raw data'!AH97 -> -3.0788826e-06 | C92: ='DF raw data'!AI97 -> 3.0406022e-06 | D92: ='DF raw data'!AJ97 -> -2.3924047e-06 | F92: -3.08375955e-06 | G92: 3.052651571e-06 | H92: -2.396194269e-06 | J92: -4.360048357e-05 | K92: -0.001768004632 | L92: -7.884644901e-07 | M92: -0.0007388964648 | N92: 9.870801639e-08
A93: 43.44592 | B93: ='DF raw data'!AH98 -> -2.6954688e-06 | C93: ='DF raw data'!AI98 -> 2.4102924e-06 | D93: ='DF raw data'!AJ98 -> -7.0010105e-06 | F93: -2.699738423e-06 | G93: 2.419843964e-06 | H93: -7.012100101e-06 | J93: -4.495078474e-05 | K93: -0.001790487216 | L93: 4.218446671e-07 | M93: -0.0007386854749 | N93: 9.971871521e-08
A94: 43.94608 | B94: ='DF raw data'!AH99 -> -1.706637e-06 | C94: ='DF raw data'!AI99 -> 2.4795413e-06 | D94: ='DF raw data'!AJ99 -> -9.9488216e-06 | F94: -1.709340313e-06 | G94: 2.489367286e-06 | H94: -9.964580533e-06 | J94: -4.580572839e-05 | K94: -0.001813397409 | L94: 1.666926609e-06 | M94: -0.0007378517449 | N94: 1.007695231e-07
A95: 44.44624 | B95: ='DF raw data'!AH100 -> 3.6485727e-07 | C95: ='DF raw data'!AI100 -> -2.4735414e-06 | D95: ='DF raw data'!AJ100 -> -3.8810217e-06 | F95: 3.654352039e-07 | G95: -2.483343609e-06 | H95: -3.887169238e-06 | J95: -4.562295232e-05 | K95: -0.001836216185 | L95: 4.248574692e-07 | M95: -0.0007376392482 | N95: 1.018106733e-07
A96: 44.9464 | B96: ='DF raw data'!AH101 -> 3.7311663e-06 | C96: ='DF raw data'!AI101 -> -6.2836893e-06 | D96: ='DF raw data'!AJ101 -> 4.7737444e-06 | F96: 3.737076467e-06 | G96: -6.308590454e-06 | H96: 4.781306011e-06 | J96: -4.375381615e-05 | K96: -0.001858100094 | L96: -2.730447133e-06 | M96: -0.0007390049086 | N96: 1.027719066e-07
A97: 45.44656 | B97: ='DF raw data'!AH102 -> 2.9955961e-06 | C97: ='DF raw data'!AI102 -> -2.2146937e-06 | D97: ='DF raw data'!AJ102 -> 2.8702955e-06 | F97: 3.000341124e-06 | G97: -2.223470141e-06 | H97: 2.874842048e-06 | J97: -4.225316554e-05 | K97: -0.001879233437 | L97: -3.842537958e-06 | M97: -0.0007409267924 | N97: 1.036722422e-07
A98: 45.94672 | B98: ='DF raw data'!AH103 -> -7.6787836e-07 | C98: ='DF raw data'!AI103 -> -2.5965614e-06 | D98: ='DF raw data'!AJ103 -> -1.2438073e-06 | F98: -7.690946793e-07 | G98: -2.606851116e-06 | H98: -1.245777491e-06 | J98: -4.263783593e-05 | K98: -0.001900559177 | L98: -5.146380612e-06 | M98: -0.0007435008061 | N98: 1.045947725e-07
A99: 46.44688 | B99: ='DF raw data'!AH104 -> -3.9374163e-06 | C99: ='DF raw data'!AI104 -> -1.1961107e-06 | D99: ='DF raw data'!AJ104 -> 5.4602456e-06 | F99: -3.943653167e-06 | G99: -1.200850676e-06 | H99: 5.468894629e-06 | J99: -4.46102935e-05 | K99: -0.001922871461 | L99: -5.746998087e-06 | M99: -0.0007463752247 | N99: 1.056066493e-07
A100: 46.94704 | B100: ='DF raw data'!AH105 -> -4.4886283e-06 | C100: ='DF raw data'!AI105 -> 1.3273551e-08 | D100: ='DF raw data'!AJ105 -> 1.0414532e-05 | F100: -4.495738287e-06 | G100: 1.332615175e-08 | H100: 1.043102862e-05 | J100: -4.685888196e-05 | K100: -0.0019463084 | L100: -5.740332879e-06 | M100: -0.0007492463096 | N100: 1.06721359e-07
A101: 47.4472 | B101: ='DF raw data'!AH106 -> -1.8211897e-06 | C101: ='DF raw data'!AI106 -> -1.4570938e-06 | D101: ='DF raw data'!AJ106 -> 7.3849255e-06 | F101: -1.824074464e-06 | G101: -1.462868006e-06 | H101: 7.396623222e-06 | J101: -4.777121105e-05 | K101: -0.001970201649 | L101: -6.47200094e-06 | M101: -0.0007524833456 | N101: 1.078837185e-07
A102: 47.94736 | B102: ='DF raw data'!AH107 -> -2.2306951e-06 | C102: ='DF raw data'!AI107 -> -8.2869647e-06 | D102: ='DF raw data'!AJ107 -> 3.4634897e-06 | F102: -2.234228521e-06 | G102: -8.319804482e-06 | H102: 3.468975868e-06 | J102: -4.888868278e-05 | K102: -0.001994653812 | L102: -1.063323435e-05 | M102: -0.0007578016641 | N102: 1.091357035e-07
A103: 48.44752 | B103: ='DF raw data'!AH108 -> -7.0580163e-06 | C103: ='DF raw data'!AI108 -> -9.392943e-06 | D103: ='DF raw data'!AJ108 -> -2.4056919e-07 | F103: -7.069196198e-06 | G103: -9.430165579e-06 | H103: -2.409502516e-07 | J103: -5.242441195e-05 | K103: -0.002020874406 | L103: -1.534982597e-05 | M103: -0.000765479033 | N103: 1.10628149e-07
A104: 48.94768 | B104: ='DF raw data'!AH109 -> -8.1791977e-06 | C104: ='DF raw data'!AI109 -> -5.4909974e-06 | D104: ='DF raw data'!AJ109 -> -4.6798652e-07 | F104: -8.192153549e-06 | G104: -5.512757256e-06 | H104: -4.687278106e-07 | J104: -5.652179947e-05 | K104: -0.002049144349 | L104: -1.810708664e-05 | M104: -0.0007745354735 | N104: 1.123900029e-07
A105: 49.44784 | B105: ='DF raw data'!AH110 -> -5.0054687e-06 | C105: ='DF raw data'!AI110 -> 2.0443017e-06 | D105: ='DF raw data'!AJ110 -> 2.6296359e-06 | F105: -5.013397362e-06 | G105: 2.052402908e-06 | H105: 2.633801243e-06 | J105: -5.90293003e-05 | K105: -0.002078668444 | L105: -1.70805568e-05 | M105: -0.0007830784848 | N105: 1.142787089e-07
A106: 49.948 | B106: ='DF raw data'!AH111 -> -2.5800575e-06 | C106: ='DF raw data'!AI111 -> 1.4177102e-05 | D106: ='DF raw data'!AJ111 -> -2.4612789e-06 | F106: -2.584144311e-06 | G106: 1.423328336e-05 | H106: -2.465177566e-06 | J106: -6.032178592e-05 | K106: -0.002108838989 | L106: -9.961637792e-06 | M106: -0.0007880608975 | N106: 1.16148283e-07
A107: 50.44816 | B107: ='DF raw data'!AH112 -> -2.7693634e-06 | C107: ='DF raw data'!AI112 -> 9.859531e-06 | D107: ='DF raw data'!AJ112 -> -3.5976961e-06 | F107: -2.773750072e-06 | G107: 9.898602586e-06 | H107: -3.603394851e-06 | J107: -6.170910475e-05 | K107: -0.002139703415 | L107: -5.010752723e-06 | M107: -0.0007905670756 | N107: 1.180654569e-07
A108: 50.94832 | B108: ='DF raw data'!AH113 -> -2.0232285e-06 | C108: ='DF raw data'!AI113 -> -7.1434929e-06 | D108: ='DF raw data'!AJ113 -> 1.1392289e-06 | F108: -2.026433294e-06 | G108: -7.171801305e-06 | H108: 1.141033439e-06 | J108: -6.272264563e-05 | K108: -0.002171074773 | L108: -8.597800864e-06 | M108: -0.0007948673517 | N108: 1.200701245e-07
A109: 51.44848 | B109: ='DF raw data'!AH114 -> -5.9953892e-10 | C109: ='DF raw data'!AI114 -> -4.7708904e-06 | D109: ='DF raw data'!AJ114 -> 3.058379e-06 | F109: -6.004885896e-10 | G109: -4.789796599e-06 | H109: 3.063223472e-06 | J109: -6.272294597e-05 | K109: -0.002202446282 | L109: -1.099346553e-05 | M109: -0.0008003658434 | N109: 1.220982854e-07
A110: 51.94864 | B110: ='DF raw data'!AH115 -> 2.0188425e-06 | C110: ='DF raw data'!AI115 -> -2.710643e-06 | D110: ='DF raw data'!AJ115 -> -2.2384017e-06 | F110: 2.022040347e-06 | G110: -2.721384801e-06 | H110: -2.241947328e-06 | J110: -6.171160227e-05 | K110: -0.002233311957 | L110: -1.235459335e-05 | M110: -0.0008065451168 | N110: 1.24079398e-07
A111: 52.4488 | B111: ='DF raw data'!AH116 -> 1.4024088e-06 | C111: ='DF raw data'!AI116 -> 4.2274373e-06 | D111: ='DF raw data'!AJ116 -> -7.0620995e-06 | F111: 1.404630216e-06 | G111: 4.24418989e-06 | H111: -7.073285866e-06 | J111: -6.100906242e-05 | K111: -0.002263826249 | L111: -1.023181934e-05 | M111: -0.0008116626636 | N111: 1.259934082e-07
A112: 52.94896 | B112: ='DF raw data'!AH117 -> 1.1456984e-06 | C112: ='DF raw data'!AI117 -> 5.3144681e-06 | D112: ='DF raw data'!AJ117 -> -5.0424537e-06 | F112: 1.147513186e-06 | G112: 5.335528401e-06 | H112: -5.050440947e-06 | J112: -6.043512223e-05 | K112: -0.00229405348 | L112: -7.563201452e-06 | M112: -0.0008154454744 | N112: 1.278488048e-07
A113: 53.44912 | B113: ='DF raw data'!AH118 -> 2.7538888e-06 | C113: ='DF raw data'!AI118 -> -2.3103219e-07 | D113: ='DF raw data'!AJ118 -> -5.585722e-07 | F113: 2.75825096e-06 | G113: -2.319477299e-07 | H113: -5.594569784e-07 | J113: -5.905555543e-05 | K113: -0.002323590707 | L113: -7.679212429e-06 | M113: -0.0008192863093 | N113: 1.296226367e-07
A114: 53.94928 | B114: ='DF raw data'!AH119 -> 6.3089656e-06 | C114: ='DF raw data'!AI119 -> -4.6865657e-06 | D114: ='DF raw data'!AJ119 -> -4.596001e-06 | F114: 6.318959002e-06 | G114: -4.705137735e-06 | H114: -4.603281066e-06 | J114: -5.589506489e-05 | K114: -0.002351547182 | L114: -1.003253412e-05 | M114: -0.0008243041816 | N114: 1.312356077e-07
A115: 54.44944 | B115: ='DF raw data'!AH120 -> 8.2541783e-06 | C115: ='DF raw data'!AI120 -> 5.5182118e-06 | D115: ='DF raw data'!AJ120 -> -6.5469035e-06 | F115: 8.267252918e-06 | G115: 5.540079502e-06 | H115: -6.557273795e-06 | J115: -5.176011567e-05 | K115: -0.002377435522 | L115: -7.261607954e-06 | M115: -0.0008279361474 | N115: 1.326019651e-07
A116: 54.9496 | B116: ='DF raw data'!AH121 -> 5.6225226e-06 | C116: ='DF raw data'!AI121 -> 9.0085332e-06 | D116: ='DF raw data'!AJ121 -> -3.5461242e-06 | F116: 5.631428676e-06 | G116: 9.044232431e-06 | H116: -3.551741261e-06 | J116: -4.89435003e-05 | K116: -0.002401915103 | L116: -2.738044662e-06 | M116: -0.0008293056078 | N116: 1.338038311e-07
A117: 55.44976 | B117: ='DF raw data'!AH122 -> 1.0501797e-06 | C117: ='DF raw data'!AI122 -> -8.1677678e-07 | D117: ='DF raw data'!AJ122 -> -2.2722786e-06 | F117: 1.051843185e-06 | G117: -8.200135226e-07 | H117: -2.275877889e-06 | J117: -4.841741042e-05 | K117: -0.002426131555 | L117: -3.148182625e-06 | M117: -0.0008308802029 | N117: 1.349812861e-07
A118: 55.94992 | B118: ='DF raw data'!AH123 -> -1.4170103e-06 | C118: ='DF raw data'!AI123 -> -1.3097903e-06 | D118: ='DF raw data'!AJ123 -> -5.9865238e-06 | F118: -1.419254844e-06 | G118: -1.314980768e-06 | H118: -5.996006454e-06 | J118: -4.912726492e-05 | K118: -0.002450703048 | L118: -3.805883406e-06 | M118: -0.0008327837535 | N118: 1.36195661e-07
A119: 56.45008 | B119: ='DF raw data'!AH124 -> -1.5482394e-06 | C119: ='DF raw data'!AI124 -> -1.0631813e-05 | D119: ='DF raw data'!AJ124 -> -4.1307326e-06 | F119: -1.550691811e-06 | G119: -1.0673945e-05 | H119: -4.13727568e-06 | J119: -4.990285894e-05 | K119: -0.002475662462 | L119: -9.144563739e-06 | M119: -0.0008373574985 | N119: 1.37483032e-07
A120: 56.95024 | B120: ='DF raw data'!AH125 -> -1.9472093e-06 | C120: ='DF raw data'!AI125 -> -6.7489486e-06 | D120: ='DF raw data'!AJ125 -> 4.4108924e-06 | F120: -1.95029368e-06 | G120: -6.775693495e-06 | H120: 4.417879254e-06 | J120: -5.087831782e-05 | K120: -0.002501109761 | L120: -1.25334946e-05 | M120: -0.0008436262512 | N120: 1.388563172e-07
A121: 57.4504 | B121: ='DF raw data'!AH126 -> 2.1503481e-06 | C121: ='DF raw data'!AI126 -> 7.214338e-06 | D121: ='DF raw data'!AJ126 -> 5.7352477e-06 | F121: 2.153754251e-06 | G121: 7.242927151e-06 | H121: 5.744332332e-06 | J121: -4.98010961e-05 | K121: -0.002526018277 | L121: -8.910872154e-06 | M121: -0.000848083113 | N121: 1.401365031e-07
A122: 57.95056 | B122: ='DF raw data'!AH127 -> 8.0439904e-06 | C122: ='DF raw data'!AI127 -> -2.1199598e-06 | D122: ='DF raw data'!AJ127 -> -1.7898243e-06 | F122: 8.056732081e-06 | G122: -2.128360827e-06 | H122: -1.792659382e-06 | J122: -4.577144098e-05 | K122: -0.002548911321 | L122: -9.975393105e-06 | M122: -0.0008530724056 | N122: 1.412341209e-07
A123: 58.45072 | B123: ='DF raw data'!AH128 -> 9.66893e-06 | C123: ='DF raw data'!AI128 -> -3.9863403e-06 | D123: ='DF raw data'!AJ128 -> -4.7370963e-06 | F123: 9.684245585e-06 | G123: -4.002137465e-06 | H123: -4.744599861e-06 | J123: -4.092776871e-05 | K123: -0.002569381754 | L123: -1.197710218e-05 | M123: -0.000859062873 | N123: 1.421436785e-07
A124: 58.95088 | B124: ='DF raw data'!AH129 -> 7.7346021e-06 | C124: ='DF raw data'!AI129 -> 1.705843e-07 | D124: ='DF raw data'!AJ129 -> 3.1416305e-06 | F124: 7.74685371e-06 | G124: 1.712602955e-07 | H124: 3.146606843e-06 | J124: -3.705310236e-05 | K124: -0.002587914234 | L124: -1.189144463e-05 | M124: -0.000865010498 | N124: 1.429010902e-07
A125: 59.45104 | B125: ='DF raw data'!AH130 -> 4.7741896e-06 | C125: ='DF raw data'!AI130 -> -1.0010405e-06 | D125: ='DF raw data'!AJ130 -> 5.9957997e-06 | F125: 4.781751916e-06 | G125: -1.005007447e-06 | H125: 6.005297047e-06 | J125: -3.466146132e-05 | K125: -0.00260525051 | L125: -1.239410915e-05 | M125: -0.0008712095356 | N125: 1.435788224e-07
A126: 59.9512 | B126: ='DF raw data'!AH131 -> 9.4598801e-07 | C126: ='DF raw data'!AI131 -> 1.311342e-05 | D126: ='DF raw data'!AJ131 -> 4.4132207e-06 | F126: 9.47486455e-07 | G126: 1.316538617e-05 | H126: 4.420211242e-06 | J126: -3.418756649e-05 | K126: -0.002622349763 | L126: -5.809309606e-06 | M126: -0.0008741151199 | N126: 1.441802837e-07
A127: 60.45136 | B127: ='DF raw data'!AH132 -> -1.7237355e-06 | C127: ='DF raw data'!AI132 -> 1.1638516e-05 | D127: ='DF raw data'!AJ132 -> 1.0801613e-05 | F127: -1.726465897e-06 | G127: 1.168463739e-05 | H127: 1.081872275e-05 | J127: -3.505107568e-05 | K127: -0.002639880909 | L127: 3.487863136e-08 | M127: -0.000874097675 | N127: 1.447947699e-07
A128: 60.95152 | B128: ='DF raw data'!AH133 -> -1.7607119e-06 | C128: ='DF raw data'!AI133 -> 4.2893973e-08 | D128: ='DF raw data'!AJ133 -> 7.8987823e-06 | F128: -1.763500868e-06 | G128: 4.306395426e-08 | H128: 7.911293971e-06 | J128: -3.593310827e-05 | K128: -0.002657853213 | L128: 5.641749872e-08 | M128: -0.0008740694572 | N128: 1.454405722e-07
A129: 61.45168 | B129: ='DF raw data'!AH134 -> 3.1373609e-06 | C129: ='DF raw data'!AI134 -> -1.1662229e-06 | D129: ='DF raw data'!AJ134 -> 5.765063e-07 | F129: 3.14233048e-06 | G129: -1.170844436e-06 | H129: 5.77419486e-07 | J129: -3.436144026e-05 | K129: -0.002675039431 | L129: -5.291920544e-07 | M129: -0.0008743341379 | N129: 1.460312554e-07
A130: 61.95184 | B130: ='DF raw data'!AH135 -> 7.5946273e-06 | C130: ='DF raw data'!AI135 -> -6.7959149e-06 | D130: ='DF raw data'!AJ135 -> -2.5713641e-06 | F130: 7.60665719e-06 | G130: -6.822845914e-06 | H130: -2.575437141e-06 | J130: -3.05568946e-05 | K130: -0.002690322767 | L130: -3.941706667e-06 | M130: -0.0008763056219 | N130: 1.465060378e-07
A131: 62.452 | B131: ='DF raw data'!AH136 -> 4.6541218e-06 | C131: ='DF raw data'!AI136 -> -1.3028966e-05 | D131: ='DF raw data'!AJ136 -> -1.7802346e-06 | F131: 4.661493929e-06 | G131: -1.30805975e-05 | H131: -1.783054492e-06 | J131: -2.822540179e-05 | K131: -0.002704439984 | L131: -1.048409831e-05 | M131: -0.0008815493485 | N131: 1.469594776e-07
A132: 62.95216 | B132: ='DF raw data'!AH137 -> 1.4551624e-07 | C132: ='DF raw data'!AI137 -> -5.8367073e-06 | D132: ='DF raw data'!AJ137 -> 2.4215872e-06 | F132: 1.457467377e-07 | G132: -5.859837143e-06 | H132: 2.425422994e-06 | J132: -2.81525051e-05 | K132: -0.002718520741 | L132: -1.341495446e-05 | M132: -0.0008882589722 | N132: 1.474458955e-07
A133: 63.45232 | B133: ='DF raw data'!AH138 -> 9.0117098e-08 | C133: ='DF raw data'!AI138 -> -2.877026e-06 | D133: ='DF raw data'!AJ138 -> 5.0542035e-06 | F133: 9.025984348e-08 | G133: -2.888427148e-06 | H133: 5.062209358e-06 | J133: -2.810736074e-05 | K133: -0.002732578919 | L133: -1.485963018e-05 | M133: -0.0008956911648 | N133: 1.479514734e-07
A134: 63.95248 | B134: ='DF raw data'!AH139 -> 2.9054761e-06 | C134: ='DF raw data'!AI139 -> -4.648005e-06 | D134: ='DF raw data'!AJ139 -> 2.1971675e-06 | F134: 2.910078374e-06 | G134: -4.666424226e-06 | H134: 2.200647813e-06 | J134: -2.665185594e-05 | K134: -0.002745909111 | L134: -1.719358892e-05 | M134: -0.0009042907102 | N134: 1.484546048e-07
A135: 64.45264 | B135: ='DF raw data'!AH140 -> 1.9548286e-06 | C135: ='DF raw data'!AI140 -> -5.6771291e-06 | D135: ='DF raw data'!AJ140 -> -6.6947946e-06 | F135: 1.957925049e-06 | G135: =(1-$G$1*($B$2-$G$2))*C135*$M$2/$M$1 -> -5.699626563e-06 | H135: -6.705399155e-06 | J135: -2.567258015e-05 | K135: -0.002758749509 | L135: -2.004431414e-05 | M135: -0.0009143160744 | N135: 1.489852025e-07
A136: =A135+$B$1 -> 64.9528 | B136: ='DF raw data'!AH141 -> -4.3932405e-06 | C136: ='DF raw data'!AI141 -> -2.1028814e-06 | D136: ='DF raw data'!AJ141 -> -9.5032419e-06 | F136: -4.400199393e-06 | G136: -2.111214749e-06 | H136: -9.518295035e-06 | J136: =F136*$B$1+J135 -> -2.787338388e-05 | K136: =J136*$B$1+K135 -> -0.00277269066 | L136: =G136*$B$1+L135 -> -2.110025931e-05 | M136: =L136*$B$1+M135 -> -0.0009248695801 | N136: =(J136^2+L136^2)*$B$1+N135 -> 1.495964713e-07
A137: 65.45296 | B137: ='DF raw data'!AH142 -> -9.5933528e-06 | C137: ='DF raw data'!AI142 -> -2.1309011e-06 | D137: ='DF raw data'!AJ142 -> -3.2779033e-06 | F137: -9.608548671e-06 | G137: -2.139345486e-06 | H137: -3.283095499e-06 | J137: -3.267919558e-05 | K137: -0.002789035487 | L137: -2.217027435e-05 | M137: -0.0009359582645 | N137: 1.503764462e-07
A138: 65.95312 | B138: ='DF raw data'!AH143 -> -9.7874608e-06 | C138: ='DF raw data'!AI143 -> -4.8526813e-06 | D138: ='DF raw data'!AJ143 -> 1.0546968e-06 | F138: -9.802964138e-06 | G138: -4.871911622e-06 | H138: 1.05636744e-06 | J138: -3.758224612e-05 | K138: -0.002807832623 | L138: -2.460700967e-05 | M138: -0.0009482657065 | N138: 1.513857342e-07
A139: 66.45328 | B139: ='DF raw data'!AH144 -> -4.1218327e-06 | C139: ='DF raw data'!AI144 -> -2.2459158e-06 | D139: ='DF raw data'!AJ144 -> 5.5749874e-06 | F139: -4.128361683e-06 | G139: -2.254815969e-06 | H139: 5.58381818e-06 | J139: -3.96470875e-05 | K139: -0.00282766251 | L139: -2.573477842e-05 | M139: -0.0009611372132 | N139: 1.525031768e-07
A140: 66.95344 | B140: ='DF raw data'!AH145 -> 5.0751087e-06 | C140: ='DF raw data'!AI145 -> 6.2078966e-06 | D140: ='DF raw data'!AJ145 -> 1.0320352e-05 | F140: 5.083147672e-06 | G140: 6.232497401e-06 | H140: 1.033669944e-05 | J140: -3.710470036e-05 | K140: -0.002846220797 | L140: -2.261753252e-05 | M140: -0.0009724495983 | N140: 1.534476347e-07
A141: 67.4536 | B141: ='DF raw data'!AH146 -> 1.1916124e-05 | C141: ='DF raw data'!AI146 -> 6.4950318e-06 | D141: ='DF raw data'!AJ146 -> 6.4581577e-06 | F141: 1.193499914e-05 | G141: 6.520770468e-06 | H141: 6.468387422e-06 | J141: -3.113529119e-05 | K141: -0.002861793424 | L141: -1.935610396e-05 | M141: -0.0009821307473 | N141: 1.541198824e-07
A142: 67.95376 | B142: ='DF raw data'!AH147 -> 1.0471803e-05 | C142: ='DF raw data'!AI147 -> -4.0491846e-06 | D142: ='DF raw data'!AJ147 -> 1.078591e-06 | F142: 1.048839034e-05 | G142: -4.065230806e-06 | H142: 1.080299488e-06 | J142: -2.588941788e-05 | K142: -0.002874742276 | L142: -2.13893698e-05 | M142: -0.0009928288545 | N142: 1.546839463e-07
A143: 68.45392 | B143: ='DF raw data'!AH148 -> 3.2554497e-06 | C143: ='DF raw data'!AI148 -> 1.9982695e-06 | D143: ='DF raw data'!AJ148 -> 2.9644609e-06 | F143: 3.260606332e-06 | G143: 2.00618829e-06 | H143: 2.969156606e-06 | J143: -2.425859302e-05 | K143: -0.002886875454 | L143: -2.038595467e-05 | M143: -0.001003025094 | N143: 1.551861402e-07
A144: 68.95408 | B144: ='DF raw data'!AH149 -> -3.8633907e-06 | C144: ='DF raw data'!AI149 -> 1.1008607e-05 | D144: ='DF raw data'!AJ149 -> 2.4066132e-06 | F144: -3.869510311e-06 | G144: 1.105223217e-05 | H144: 2.410425275e-06 | J144: -2.61939673e-05 | K144: -0.002899976628 | L144: -1.485807023e-05 | M144: -0.001010456506 | N144: 1.556397284e-07
A145: 69.45424 | B145: ='DF raw data'!AH150 -> -9.3957087e-06 | C145: ='DF raw data'!AI150 -> 2.0298917e-06 | D145: ='DF raw data'!AJ150 -> -1.4012154e-06 | F145: -9.410591503e-06 | G145: 2.037935803e-06 | H145: -1.403434925e-06 | J145: -3.090076874e-05 | K145: -0.002915431957 | L145: -1.383877625e-05 | M145: -0.001017378108 | N145: 1.562130965e-07
A146: 69.9544 | B146: ='DF raw data'!AH151 -> -8.2663055e-06 | C146: ='DF raw data'!AI151 -> -9.4296356e-06 | D146: ='DF raw data'!AJ151 -> -3.7247489e-06 | F146: -8.279399328e-06 | G146: -9.467003586e-06 | H146: -3.730648902e-06 | J146: -3.504179311e-05 | K146: -0.00293295846 | L146: -1.857379277e-05 | M146: -0.001026667976 | N146: 1.569998046e-07
A147: 70.45456 | B147: ='DF raw data'!AH152 -> -3.0919648e-06 | C147: ='DF raw data'!AI152 -> -5.6308286e-06 | D147: ='DF raw data'!AJ152 -> -7.613035e-06 | F147: -3.096862472e-06 | G147: -5.653142582e-06 | H147: -7.625094047e-06 | J147: -3.659071985e-05 | K147: -0.002951259674 | L147: -2.140126856e-05 | M147: -0.001037372035 | N147: 1.578985397e-07
A148: 70.95472 | B148: ='DF raw data'!AH153 -> -5.2670947e-07 | C148: ='DF raw data'!AI153 -> 1.1508731e-06 | D148: ='DF raw data'!AJ153 -> -6.0093557e-06 | F148: -5.275437778e-07 | G148: 1.155433807e-06 | H148: -6.018874519e-06 | J148: -3.685457614e-05 | K148: -0.002969692859 | L148: -2.082336679e-05 | M148: -0.00104778705 | N148: 1.587947626e-07
A149: 71.45488 | B149: ='DF raw data'!AH154 -> 1.1012423e-06 | C149: ='DF raw data'!AI154 -> 1.134511e-05 | D149: ='DF raw data'!AJ154 -> -2.393336e-06 | F149: 1.102986668e-06 | G149: 1.139006867e-05 | H149: -2.397127044e-06 | J149: -3.630290633e-05 | K149: -0.002987850121 | L149: -1.512651004e-05 | M149: -0.001055352725 | N149: 1.595683662e-07
A150: 71.95504 | B150: ='DF raw data'!AH155 -> 3.6956596e-06 | C150: ='DF raw data'!AI155 -> 4.8498279e-08 | D150: ='DF raw data'!AJ155 -> 2.0676555e-06 | F150: 3.701513525e-06 | G150: 4.869046914e-08 | H150: 2.070930666e-06 | J150: -3.445155733e-05 | K150: -0.003005081412 | L150: -1.510215702e-05 | M150: -0.00106290622 | N150: 1.602760851e-07
A151: 72.4552 | B151: ='DF raw data'!AH156 -> 4.0079149e-06 | C151: ='DF raw data'!AI156 -> 7.3120063e-06 | D151: ='DF raw data'!AJ156 -> 1.8153399e-06 | F151: =(1-$G$1*($B$2-$G$2))*B151 -> 4.014263437e-06 | G151: 7.340982494e-06 | H151: 1.818215398e-06 | J151: -3.244378332e-05 | K151: -0.003021308494 | L151: -1.143049121e-05 | M151: -0.001068623295 | N151: 1.60867902e-07
A152: 72.95536 | B152: ='DF raw data'!AH157 -> 1.9103755e-08 | C152: ='DF raw data'!AI157 -> 9.2232176e-06 | D152: ='DF raw data'!AJ157 -> 1.6087448e-07 | F152: 1.913401535e-08 | G152: 9.259767588e-06 | H152: 1.611293052e-07 | J152: -3.243421326e-05 | K152: -0.003037530791 | L152: -6.799125854e-06 | M152: -0.001072023945 | N152: 1.614171809e-07
A153: 73.45552 | B153: ='DF raw data'!AH158 -> -5.1044508e-06 | C153: ='DF raw data'!AI158 -> 3.662773e-06 | D153: ='DF raw data'!AJ158 -> 7.2544822e-06 | F153: -5.11253625e-06 | G153: 3.677287925e-06 | H153: 7.2659733e-06 | J153: -3.499129939e-05 | K153: -0.003055032039 | L153: -4.959893526e-06 | M153: -0.001074504686 | N153: 1.620418765e-07
A154: 73.95568 | B154: ='DF raw data'!AH159 -> -5.1208071e-06 | C154: ='DF raw data'!AI159 -> 1.835488e-06 | D154: ='DF raw data'!AJ159 -> 1.1297775e-05 | F154: -5.128918458e-06 | G154: 1.842761716e-06 | H154: 1.131567068e-05 | J154: -3.755657924e-05 | K154: -0.003073816338 | L154: -4.038217826e-06 | M154: -0.001076524441 | N154: 1.627555067e-07
A155: 74.45584 | B155: ='DF raw data'!AH160 -> -9.2407862e-07 | C155: ='DF raw data'!AI160 -> -2.2088229e-06 | D155: ='DF raw data'!AJ160 -> 5.9296467e-06 | F155: -9.255423605e-07 | G155: -2.217576076e-06 | H155: 5.93903926e-06 | J155: -3.801949851e-05 | K155: -0.00309283217 | L155: -5.147360677e-06 | M155: -0.001079098945 | N155: 1.63491731e-07
A156: 74.956 | B156: ='DF raw data'!AH161 -> 1.7366954e-06 | C156: ='DF raw data'!AI161 -> 4.2355764e-06 | D156: ='DF raw data'!AJ161 -> 5.377387e-06 | F156: 1.739446326e-06 | G156: 4.252361244e-06 | H156: 5.385904781e-06 | J156: -3.714949704e-05 | K156: -0.003111412862 | L156: -3.020499677e-06 | M156: -0.001080609678 | N156: 1.641865576e-07
A157: 75.45616 | B157: ='DF raw data'!AH162 -> 2.0124396e-06 | C157: ='DF raw data'!AI162 -> -2.9688231e-06 | D157: ='DF raw data'!AJ162 -> 6.0457273e-06 | F157: 2.015627304e-06 | G157: -2.980588023e-06 | H157: 6.055303732e-06 | J157: -3.614136088e-05 | K157: -0.003129489325 | L157: -4.511270583e-06 | M157: -0.001082866035 | N157: 1.648500446e-07
A158: 75.95632 | B158: ='DF raw data'!AH163 -> 1.78802e-06 | C158: ='DF raw data'!AI163 -> -4.7934404e-06 | D158: ='DF raw data'!AJ163 -> 3.2863202e-06 | F158: 1.790852224e-06 | G158: -4.81243596e-06 | H158: 3.291525731e-06 | J158: -3.524564823e-05 | K158: -0.003147117789 | L158: -6.918258553e-06 | M158: -0.001086326271 | N158: 1.6549531e-07
A159: 76.45648 | B159: ='DF raw data'!AH164 -> 4.0424931e-07 | C159: ='DF raw data'!AI164 -> 3.6165187e-07 | D159: ='DF raw data'!AJ164 -> 4.2956106e-07 | F159: 4.048896409e-07 | G159: 3.630850327e-07 | H159: 4.302414847e-07 | J159: -3.504313863e-05 | K159: -0.003164644965 | L159: -6.736657943e-06 | M159: -0.001089695678 | N159: 1.661322158e-07
A160: 76.95664 | B160: ='DF raw data'!AH165 -> -2.0292384e-06 | C160: ='DF raw data'!AI165 -> 4.8007737e-06 | D160: ='DF raw data'!AJ165 -> 4.0784539e-06 | F160: -2.032452714e-06 | G160: 4.819798321e-06 | H160: 4.084914171e-06 | J160: -3.605969018e-05 | K160: -0.00318268058 | L160: -4.325987615e-06 | M160: -0.001091859364 | N160: 1.667919346e-07
A161: 77.4568 | B161: ='DF raw data'!AH166 -> -3.9352044e-06 | C161: ='DF raw data'!AI166 -> 7.1456229e-06 | D161: ='DF raw data'!AJ166 -> 4.1775525e-06 | F161: -3.941437764e-06 | G161: 7.173939746e-06 | H161: 4.184169743e-06 | J161: -3.803103969e-05 | K161: -0.003201702185 | L161: -7.378699114e-07 | M161: -0.001092228417 | N161: 1.675156183e-07
A162: 77.95696 | B162: ='DF raw data'!AH167 -> -2.8223615e-06 | C162: ='DF raw data'!AI167 -> 2.9342614e-06 | D162: ='DF raw data'!AJ167 -> -1.9327824e-06 | F162: -2.826832121e-06 | G162: 2.945889361e-06 | H162: -1.935843927e-06 | J162: -3.944490805e-05 | K162: -0.00322143095 | L162: 7.355461115e-07 | M162: -0.001091860526 | N162: 1.682940882e-07
A163: 78.45712 | B163: ='DF raw data'!AH168 -> -8.8696837e-08 | C163: ='DF raw data'!AI168 -> -3.5865919e-06 | D163: ='DF raw data'!AJ168 -> -4.3035657e-06 | F163: -8.883733279e-08 | G163: -3.600804932e-06 | H163: -4.310382548e-06 | J163: -3.948934093e-05 | K163: -0.003241181938 | L163: -1.065432483e-06 | M163: -0.001092393413 | N163: 1.690746095e-07
A164: 78.95728 | B164: ='DF raw data'!AH169 -> -7.1581161e-07 | C164: ='DF raw data'!AI169 -> 4.9036457e-06 | D164: ='DF raw data'!AJ169 -> -2.7725589e-06 | F164: -7.169454556e-07 | G164: 4.923077985e-06 | H164: -2.776950633e-06 | J164: -3.984792837e-05 | K164: -0.003261112278 | L164: 1.396894201e-06 | M164: -0.001091694742 | N164: 1.698697682e-07
A165: 79.45744 | B165: ='DF raw data'!AH170 -> -4.0781188e-06 | C165: ='DF raw data'!AI170 -> 6.5848285e-06 | D165: ='DF raw data'!AJ170 -> 3.8648755e-06 | F165: -4.08457854e-06 | G165: 6.610923016e-06 | H165: 3.870997463e-06 | J165: -4.189087117e-05 | K165: -0.003282064416 | L165: 4.703413457e-06 | M165: -0.001089342283 | N165: 1.707585361e-07
A166: 79.9576 | B166: ='DF raw data'!AH171 -> -7.8202311e-06 | C166: ='DF raw data'!AI171 -> 3.546425e-06 | D166: ='DF raw data'!AJ171 -> 6.0469206e-06 | F166: -7.832618346e-06 | G166: 3.560478858e-06 | H166: 6.056498922e-06 | J166: -4.580843356e-05 | K166: -0.003304975963 | L166: 6.484222563e-06 | M166: -0.001086099134 | N166: 1.718291075e-07
A167: 80.45776 | B167: ='DF raw data'!AH172 -> -6.9129628e-06 | C167: ='DF raw data'!AI172 -> -1.1060381e-05 | D167: ='DF raw data'!AJ172 -> 2.7608796e-06 | F167: -6.923912933e-06 | G167: -1.110421134e-05 | H167: 2.765252833e-06 | J167: -4.927149785e-05 | K167: -0.003329619595 | L167: 9.303402175e-07 | M167: -0.001085633815 | N167: 1.730437691e-07
A168: 80.95792 | B168: ='DF raw data'!AH173 -> -2.2297638e-06 | C168: ='DF raw data'!AI173 -> -7.186723e-06 | D168: ='DF raw data'!AJ173 -> 3.4147699e-06 | F168: -2.233295746e-06 | G168: -7.215202718e-06 | H168: 3.420178896e-06 | J168: -5.038850305e-05 | K168: -0.003354821909 | L168: -2.678415574e-06 | M168: -0.001086973452 | N168: 1.74317264e-07
A169: 81.45808 | B169: ='DF raw data'!AH174 -> 4.3908659e-07 | C169: ='DF raw data'!AI174 -> 9.1777605e-07 | D169: ='DF raw data'!AJ174 -> 1.4588762e-06 | F169: 4.397821032e-07 | G169: 9.214130349e-07 | H169: 1.46118706e-06 | J169: -5.016854164e-05 | K169: -0.003379914206 | L169: -2.21756163e-06 | M169: -0.001088082587 | N169: 1.755785676e-07
A170: 81.95824 | B170: ='DF raw data'!AH175 -> 7.7923761e-07 | C170: ='DF raw data'!AI175 -> -6.733871e-06 | D170: ='DF raw data'!AJ175 -> -4.8755287e-06 | F170: 7.804719224e-07 | G170: -6.760556145e-06 | H170: -4.883251537e-06 | J170: -4.97781808e-05 | K170: -0.003404811261 | L170: -5.598921392e-06 | M170: -0.001090882944 | N170: 1.768335767e-07
A171: 82.4584 | B171: ='DF raw data'!AH176 -> 1.4182267e-06 | C171: ='DF raw data'!AI176 -> -4.0181891e-07 | D171: ='DF raw data'!AJ176 -> 2.4811482e-06 | F171: 1.420473171e-06 | G171: -4.034112476e-07 | H171: 2.485078339e-06 | J171: -4.906771694e-05 | K171: -0.003429352971 | L171: -5.800691562e-06 | M171: -0.001093784218 | N171: 1.780546117e-07
A172: 82.95856 | B172: ='DF raw data'!AH177 -> 3.1242787e-06 | C172: ='DF raw data'!AI177 -> 3.5039952e-06 | D172: ='DF raw data'!AJ177 -> 4.1278286e-06 | F172: 3.129227557e-06 | G172: 3.517880916e-06 | H172: 4.134367081e-06 | J172: -4.750260248e-05 | K172: -0.003453111872 | L172: -4.041188243e-06 | M172: -0.001095805458 | N172: 1.791913896e-07
A173: 83.45872 | B173: ='DF raw data'!AH178 -> 3.3343501e-06 | C173: ='DF raw data'!AI178 -> -4.2128991e-06 | D173: ='DF raw data'!AJ178 -> -6.2562726e-06 | F173: 3.339631711e-06 | G173: -4.229594077e-06 | H173: -6.266182536e-06 | J173: -4.583225229e-05 | K173: -0.003476035332 | L173: -6.156662016e-06 | M173: -0.001098884775 | N173: 1.802609817e-07
A174: 83.95888 | B174: ='DF raw data'!AH179 -> 1.6534584e-06 | C174: ='DF raw data'!AI179 -> 5.2469971e-07 | D174: ='DF raw data'!AJ179 -> -7.4811946e-06 | F174: 1.656077478e-06 | G174: 5.267790026e-07 | H174: -7.493044812e-06 | J174: -4.500394858e-05 | K174: -0.003498544507 | L174: -5.89318823e-06 | M174: -0.001101832312 | N174: 1.812913538e-07
A175: 84.45904 | B175: ='DF raw data'!AH180 -> -8.9389795e-07 | C175: ='DF raw data'!AI180 -> -9.6528186e-07 | D175: ='DF raw data'!AJ180 -> 2.7900999e-06 | F175: -8.953138844e-07 | G175: -9.691071021e-07 | H175: 2.794519418e-06 | J175: -4.545174877e-05 | K175: -0.003521277653 | L175: -6.377896839e-06 | M175: -0.00110502228 | N175: 1.823449604e-07
A176: 84.9592 | B176: ='DF raw data'!AH181 -> -2.3161294e-06 | C176: ='DF raw data'!AI181 -> 1.0234502e-06 | D176: ='DF raw data'!AJ181 -> 3.4817233e-06 | F176: -2.319798149e-06 | G176: 1.027505953e-06 | H176: 3.48723835e-06 | J176: -4.661201901e-05 | K176: -0.003544591121 | L176: -5.863979461e-06 | M176: -0.001107955208 | N176: 1.834488468e-07
A177: 85.45936 | B177: ='DF raw data'!AH182 -> 1.9123079e-06 | C177: ='DF raw data'!AI182 -> 4.7041726e-06 | D177: ='DF raw data'!AJ182 -> 3.0253607e-06 | F177: 1.915336996e-06 | G177: 4.722814408e-06 | H177: 3.030152871e-06 | J177: -4.565404406e-05 | K177: -0.003567425447 | L177: -3.501816607e-06 | M177: -0.001109706677 | N177: 1.844974595e-07
A178: 85.95952 | B178: ='DF raw data'!AH183 -> 6.3942689e-06 | C178: ='DF raw data'!AI183 -> -5.7511802e-06 | D178: ='DF raw data'!AJ183 -> 1.0034449e-06 | F178: 6.404397422e-06 | G178: -5.773971115e-06 | H178: 1.005034357e-06 | J178: -4.245082064e-05 | K178: -0.00358865765 | L178: -6.389726e-06 | M178: -0.001112902562 | N178: 1.854192047e-07
A179: 86.45968 | B179: ='DF raw data'!AH184 -> 3.3743243e-06 | C179: ='DF raw data'!AI184 -> -4.654677e-06 | D179: ='DF raw data'!AJ184 -> 1.1975966e-06 | F179: 3.37966923e-06 | G179: -4.673122665e-06 | H179: 1.199493593e-06 | J179: -4.076044528e-05 | K179: -0.003609044394 | L179: -8.727035032e-06 | M179: -0.001117267476 | N179: 1.862882702e-07
A180: 86.95984 | B180: ='DF raw data'!AH185 -> -2.9026589e-06 | C180: ='DF raw data'!AI185 -> -2.8468708e-06 | D180: ='DF raw data'!AJ185 -> 5.5994783e-06 | F180: -2.907256712e-06 | G180: -2.858152448e-06 | H180: 5.608347874e-06 | J180: -4.22145388e-05 | K180: -0.003630158418 | L180: -1.015656856e-05 | M180: -0.001122347386 | N180: 1.872311835e-07
A181: 87.46 | B181: ='DF raw data'!AH186 -> -5.3494905e-06 | C181: ='DF raw data'!AI186 -> 5.0149242e-06 | D181: ='DF raw data'!AJ186 -> 6.7448741e-06 | F181: -5.357964093e-06 | G181: 5.034797462e-06 | H181: 6.755557981e-06 | J181: -4.489437812e-05 | K181: -0.00365261279 | L181: -7.638364262e-06 | M181: -0.00112616779 | N181: 1.882684402e-07
A182: 87.96016 | B182: ='DF raw data'!AH187 -> -4.2656202e-06 | C182: ='DF raw data'!AI187 -> -4.6478722e-06 | D182: ='DF raw data'!AJ187 -> 5.4026054e-06 | F182: -4.272376942e-06 | G182: -4.666290899e-06 | H182: 5.411163127e-06 | J182: -4.703125017e-05 | K182: -0.00367613594 | L182: -9.972256318e-06 | M182: -0.001131155514 | N182: 1.894245022e-07
A183: 88.46032 | B183: ='DF raw data'!AH188 -> -1.4162099e-06 | C183: ='DF raw data'!AI188 -> -1.6203732e-05 | D183: ='DF raw data'!AJ188 -> -1.0640475e-06 | F183: -1.418453176e-06 | G183: -1.626794454e-05 | H183: -1.065732951e-06 | J183: -4.774070371e-05 | K183: -0.00370001393 | L183: -1.810883146e-05 | M183: -0.001140212827 | N183: 1.907284716e-07
A184: 88.96048 | B184: ='DF raw data'!AH189 -> 3.6895187e-06 | C184: ='DF raw data'!AI189 -> -1.5087748e-05 | D184: ='DF raw data'!AJ189 -> -5.5727546e-06 | F184: 3.695362898e-06 | G184: -1.514753809e-05 | H184: -5.581581843e-06 | J184: -4.5892431e-05 | K184: -0.003722967489 | L184: -2.568502411e-05 | M184: -0.001153059448 | N184: 1.92111832e-07
A185: 89.46064 | B185: ='DF raw data'!AH190 -> 4.9382625e-06 | C185: ='DF raw data'!AI190 -> -5.9638637e-06 | D185: ='DF raw data'!AJ190 -> -2.3390282e-06 | F185: 4.946084708e-06 | G185: -5.987497442e-06 | H185: -2.342733221e-06 | J185: -4.341859728e-05 | K185: -0.003744683734 | L185: -2.867973083e-05 | M185: -0.001167403902 | N185: 1.93466116e-07
A186: 89.9608 | B186: ='DF raw data'!AH191 -> 5.8554115e-06 | C186: ='DF raw data'!AI191 -> 5.7661191e-06 | D186: ='DF raw data'!AJ191 -> 7.5959849e-07 | F186: 5.864686472e-06 | G186: 5.788969215e-06 | H186: 7.60801694e-07 | J186: -4.048531569e-05 | K186: -0.00376493287 | L186: -2.578431999e-05 | M186: -0.001180300188 | N186: 1.946184306e-07
A187: 90.46096 | B187: ='DF raw data'!AH192 -> 1.0860674e-05 | C187: ='DF raw data'!AI192 -> -1.0275922e-06 | D187: ='DF raw data'!AJ192 -> 3.208728e-07 | F187: 1.087787731e-05 | G187: -1.031664367e-06 | H187: 3.213810625e-07 | J187: -3.504463658e-05 | K187: -0.003782460795 | L187: -2.630031724e-05 | M187: -0.001193454555 | N187: 1.955786544e-07
A188: 90.96112 | B188: ='DF raw data'!AH193 -> 1.0096931e-05 | C188: ='DF raw data'!AI193 -> -2.7266066e-07 | D188: ='DF raw data'!AJ193 -> 8.9576076e-07 | F188: 1.011292454e-05 | G188: -2.737411662e-07 | H188: 8.97179645e-07 | J188: -2.998655624e-05 | K188: -0.003797458871 | L188: -2.643723162e-05 | M188: -0.0012066774 | N188: 1.963779705e-07
A189: 91.46128 | B189: ='DF raw data'!AH194 -> 2.1602143e-06 | C189: ='DF raw data'!AI194 -> 5.260697e-06 | D189: ='DF raw data'!AJ194 -> 2.7725212e-06 | F189: 2.163636079e-06 | G189: 5.281544216e-06 | H189: 2.776912874e-06 | J189: -2.890439202e-05 | K189: -0.003811915692 | L189: -2.379561446e-05 | M189: -0.001218579015 | N189: 1.970790423e-07
A190: 91.96144 | B190: ='DF raw data'!AH195 -> -5.3769209e-06 | C190: ='DF raw data'!AI195 -> 6.2948911e-06 | D190: ='DF raw data'!AJ195 -> 1.2895647e-06 | F190: -5.385437943e-06 | G190: 6.319836645e-06 | H190: 1.29160737e-06 | J190: -3.159797266e-05 | K190: -0.003827719734 | L190: -2.063468497e-05 | M190: -0.001228899659 | N190: 1.977913812e-07
A191: 92.4616 | B191: ='DF raw data'!AH196 -> -8.0741474e-06 | C191: ='DF raw data'!AI196 -> 5.2596297e-06 | D191: ='DF raw data'!AJ196 -> -4.482074e-06 | F191: -8.086936849e-06 | G191: 5.280472687e-06 | H191: -4.489173605e-06 | J191: -3.564273499e-05 | K191: -0.003845546804 | L191: -1.799360375e-05 | M191: -0.00123789934 | N191: 1.985887235e-07
A192: 92.96176 | B192: ='DF raw data'!AH197 -> -7.7984032e-06 | C192: ='DF raw data'!AI197 -> -4.203293e-06 | D192: ='DF raw data'!AJ197 -> -2.9243645e-06 | F192: -7.810755871e-06 | G192: -4.21994991e-06 | H192: -2.928996693e-06 | J192: -3.954936265e-05 | K192: -0.003865327813 | L192: -2.010425389e-05 | M192: -0.001247954683 | N192: 1.99573205e-07
A193: 93.46192 | B193: ='DF raw data'!AH198 -> -6.6489765e-06 | C193: ='DF raw data'!AI198 -> -2.6051016e-06 | D193: ='DF raw data'!AJ198 -> 1.2441045e-06 | F193: -6.659508479e-06 | G193: -2.615425159e-06 | H193: 1.246075162e-06 | J193: -4.288018241e-05 | K193: -0.003886774765 | L193: -2.141238494e-05 | M193: -0.001258664302 | N193: 2.007221726e-07
A194: 93.96208 | B194: ='DF raw data'!AH199 -> -1.483498e-06 | C194: ='DF raw data'!AI199 -> 5.7150169e-06 | D194: ='DF raw data'!AJ199 -> -3.3909134e-06 | F194: -1.485847861e-06 | G194: 5.737664506e-06 | H194: -3.396284607e-06 | J194: -4.362334408e-05 | K194: -0.003908593417 | L194: -1.854263466e-05 | M194: -0.001267938586 | N194: 2.018459449e-07
A195: 94.46224 | B195: ='DF raw data'!AH200 -> 1.3165088e-06 | C195: ='DF raw data'!AI200 -> 5.3110438e-07 | D195: ='DF raw data'!AJ200 -> -3.9960837e-06 | F195: 1.31859415e-06 | G195: 5.332090532e-07 | H195: -4.002413497e-06 | J195: -4.296383603e-05 | K195: -0.00393008221 | L195: -1.827594482e-05 | M195: -0.001277079483 | N195: 2.029362443e-07
A196: 94.9624 | B196: ='DF raw data'!AH201 -> -3.7977036e-06 | C196: ='DF raw data'!AI201 -> -2.73666e-06 | D196: ='DF raw data'!AJ201 -> 1.1975077e-07 | F196: -3.803719163e-06 | G196: -2.747504902e-06 | H196: 1.199404552e-07 | J196: -4.48663042e-05 | K196: -0.00395252254 | L196: -1.965013687e-05 | M196: -0.001286907695 | N196: 2.041361848e-07
A197: 95.46256 | B197: ='DF raw data'!AH202 -> -7.7531467e-06 | C197: ='DF raw data'!AI202 -> -2.1187593e-06 | D197: ='DF raw data'!AJ202 -> 1.2039121e-06 | F197: -7.765427684e-06 | G197: -2.12715557e-06 | H197: 1.205819097e-06 | J197: -4.875026051e-05 | K197: -0.003976905471 | L197: -2.0714055e-05 | M197: -0.001297268037 | N197: 2.055394636e-07
A198: 95.96272 | B198: ='DF raw data'!AH203 -> -5.5679002e-06 | C198: ='DF raw data'!AI203 -> 8.056972e-07 | D198: ='DF raw data'!AJ203 -> -1.1565557e-07 | F198: -5.576719754e-06 | G198: 8.088900362e-07 | H198: -1.158387684e-07 | J198: -5.153951267e-05 | K198: -0.004002683473 | L198: -2.030948056e-05 | M198: -0.001307426027 | N198: 2.070743528e-07
A199: 96.46288 | B199: ='DF raw data'!AH204 -> -3.5809643e-07 | C199: ='DF raw data'!AI204 -> -4.7223234e-06 | D199: ='DF raw data'!AJ204 -> -7.0701612e-06 | F199: -3.586636547e-07 | G199: =(1-$G$1*($B$2-$G$2))*C199*$M$2/$M$1 -> -4.741037136e-06 | H199: -7.081360335e-06 | J199: -5.171890188e-05 | K199: -0.004028551199 | L199: -2.26807577e-05 | M199: -0.001318770034 | N199: 2.086694939e-07
A200: =A199+$B$1 -> 96.96304 | B200: ='DF raw data'!AH205 -> 4.4905146e-06 | C200: ='DF raw data'!AI205 -> -8.9803467e-07 | D200: ='DF raw data'!AJ205 -> -5.1255743e-06 | F200: 4.497627575e-06 | G200: -9.015934233e-07 | H200: -5.13369321e-06 | J200: =F200*$B$1+J199 -> -4.946936847e-05 | K200: =J200*$B$1+K199 -> -0.004053293798 | L200: =G200*$B$1+L199 -> -2.313169866e-05 | M200: =L200*$B$1+M199 -> -0.001330339585 | N200: =(J200^2+L200^2)*$B$1+N199 -> 2.10161118e-07
A201: 97.4632 | B201: ='DF raw data'!AH206 -> 7.434629e-06 | C201: ='DF raw data'!AI206 -> 2.2165564e-06 | D201: ='DF raw data'!AJ206 -> -3.1877119e-07 | F201: 7.446405452e-06 | G201: 2.225340223e-06 | H201: -3.192761236e-07 | J201: -4.574497432e-05 | K201: -0.004076173605 | L201: -2.20186725e-05 | M201: -0.001341352444 | N201: 2.114502427e-07
... 1002 more rows

Sheet 10 x=0
A1: dz | B1: ='DF raw data'!AL7 -> 0.50016 | C1: mm | F1: T_coeff | G1: -0.0008 | H1: /degC | L1: Hallref | M1: ='PI vs gap'!B44 -> 0.50525 | N1: T | P1: IBy total | Q1: =L1203*1000 -> -2.44944837 | R1: muTm | X1: DF ref | Y1: 19
A2: Tref | B2: ='DF raw data'!AL8 -> 21.97 | C2: degC | F2: Tcorr | G2: 20 | H2: degC | L2: NMRref | M2: ='PI vs gap'!B45 -> 0.50645 | N2: T | P2: JBy total | Q2: =M1203 -> -0.8088726246 | R2: muTm^2
A3: Encoder | B3: ='DF raw data'!AL9 -> 262041702 | P3: PI total | Q3: =N1203 -> 708.982865 | R3: T^2mm^3
A5: z [mm] | B5: Bx | C5: By | D5: Bz | F5: Bx_corr | G5: By_corr | H5: Bz_corr | J5: Ix | K5: Jx | L5: Iy | M5: Jy | N5: PI
A6: ='[1]PI vs x'!B53 -> -0.068 | B6: ='DF raw data'!AK11 -> -1.2356302e-06 | C6: ='DF raw data'!AL11 -> -1.5683003e-05 | D6: ='DF raw data'!AM11 -> 5.8751539e-06 | F6: =(1-$G$1*($B$2-$G$2))*B6 -> -1.237577553e-06 | G6: =(1-$G$1*($B$2-$G$2))*C6*$M$2/$M$1 -> -1.574502622e-05 | H6: =(1-$G$1*($B$2-$G$2))*D6 -> 5.884413143e-06 | J6: =F6*$B$1 -> -6.18986789e-07 | K6: =J6*$B$1 -> -3.095924324e-07 | L6: =G6*$B$1 -> -7.875032313e-06 | M6: =L6*$B$1 -> -3.938776162e-06 | N6: =(J6^2+L6)^2*$B$1 -> 3.101798653e-11
A7: =A6+$B$1 -> 0.43216 | B7: ='DF raw data'!AK12 -> -1.576989e-06 | C7: ='DF raw data'!AL12 -> -6.8330442e-06 | D7: ='DF raw data'!AM12 -> 3.3338508e-06 | F7: =(1-$G$1*($B$2-$G$2))*B7 -> -1.579474335e-06 | G7: =(1-$G$1*($B$2-$G$2))*C7*$M$2/$M$1 -> -6.860067557e-06 | H7: 3.339104949e-06 | J7: =F7*$B$1+J6 -> -1.408976672e-06 | K7: =J7*$B$1+K6 -> -1.014306205e-06 | L7: =G7*$B$1+L6 -> -1.13061637e-05 | M7: =L7*$B$1+M6 -> -9.593666999e-06 | N7: =(J7^2+L7^2)*$B$1+N6 -> 9.594603332e-11
A8: =A7+$B$1 -> 0.93232 | B8: ='DF raw data'!AK13 -> -2.050974e-06 | C8: ='DF raw data'!AL13 -> 5.9826352e-06 | D8: ='DF raw data'!AM13 -> 3.3442991e-06 | F8: -2.054206335e-06 | G8: 6.006295355e-06 | H8: 3.349569715e-06 | J8: =F8*$B$1+J7 -> -2.436408513e-06 | K8: =J8*$B$1+K7 -> -2.232900287e-06 | L8: =G8*$B$1+L7 -> -8.302055018e-06 | M8: =L8*$B$1+M7 -> -1.374602284e-05 | N8: =(J8^2+L8^2)*$B$1+N7 -> 1.333881129e-10
A9: 1.43248 | B9: ='DF raw data'!AK14 -> -2.0921559e-06 | C9: ='DF raw data'!AL14 -> 6.4302835e-06 | D9: ='DF raw data'!AM14 -> 1.9443527e-07 | F9: -2.095453138e-06 | G9: 6.455714017e-06 | H9: 1.947417e-07 | J9: -3.484470354e-06 | K9: -3.975692979e-06 | L9: -5.073165095e-06 | M9: -1.628341709e-05 | N9: 1.523334424e-10
A10: 1.93264 | B10: ='DF raw data'!AK15 -> -1.9929701e-06 | C10: ='DF raw data'!AL15 -> 3.5278422e-06 | D10: ='DF raw data'!AM15 -> -2.8062655e-07 | F10: -1.996111021e-06 | G10: 3.541794128e-06 | H10: -2.810688174e-07 | J10: -4.482845242e-06 | K10: -6.217832855e-06 | L10: -3.301701344e-06 | M10: -1.793479603e-05 | N10: 1.678369685e-10
A11: 2.4328 | B11: ='DF raw data'!AK16 -> -2.0431014e-06 | C11: ='DF raw data'!AL16 -> 5.2393125e-06 | D11: ='DF raw data'!AM16 -> 2.0831719e-06 | F11: -2.046321328e-06 | G11: 5.260032959e-06 | H11: 2.086454979e-06 | J11: -5.506333318e-06 | K11: -8.971880527e-06 | L11: -6.708432591e-07 | M11: -1.8270325e-05 | N11: 1.832267603e-10
A12: 2.93296 | B12: ='DF raw data'!AK17 -> -1.5452076e-06 | C12: ='DF raw data'!AL17 -> -7.7520899e-06 | D12: ='DF raw data'!AM17 -> 5.2701143e-06 | F12: -1.547642847e-06 | G12: -7.782747903e-06 | H12: 5.27842e-06 | J12: -6.280402364e-06 | K12: -1.211308657e-05 | L12: -4.56346245e-06 | M12: -2.055278638e-05 | N12: 2.13370725e-10
A13: 3.43312 | B13: ='DF raw data'!AK18 -> -1.6415268e-06 | C13: ='DF raw data'!AL18 -> -4.9381119e-06 | D13: ='DF raw data'!AM18 -> 5.895381e-06 | F13: -1.644113846e-06 | G13: -4.957641169e-06 | H13: 5.90467212e-06 | J13: -7.102722345e-06 | K13: -1.566558418e-05 | L13: -7.043076258e-06 | M13: -2.40754514e-05 | N13: 2.634135275e-10
A14: 3.93328 | B14: ='DF raw data'!AK19 -> -2.0196583e-06 | C14: ='DF raw data'!AL19 -> 4.9928726e-06 | D14: ='DF raw data'!AM19 -> 3.7633215e-06 | F14: -2.022841281e-06 | G14: 5.012618437e-06 | H14: 3.769252495e-06 | J14: -8.114466641e-06 | K14: -1.972411582e-05 | L14: -4.53596502e-06 | M14: -2.634415966e-05 | N14: 3.066371284e-10
A15: 4.43344 | B15: ='DF raw data'!AK20 -> -1.7435211e-06 | C15: ='DF raw data'!AL20 -> -2.3956568e-06 | D15: ='DF raw data'!AM20 -> 4.9995069e-06 | F15: -1.746268889e-06 | G15: -2.405131155e-06 | H15: 5.007386123e-06 | J15: -8.987880488e-06 | K15: -2.421949412e-05 | L15: -5.738915419e-06 | M15: -2.92145356e-05 | N15: 3.635138961e-10
A16: 4.9336 | B16: ='DF raw data'!AK21 -> -1.4217928e-06 | C16: ='DF raw data'!AL21 -> -1.158225e-05 | D16: ='DF raw data'!AM21 -> 2.4867547e-06 | F16: -1.424033545e-06 | G16: -1.162805554e-05 | H16: 2.490673825e-06 | J16: -9.700125106e-06 | K16: -2.90711087e-05 | L16: -1.155480368e-05 | M16: -3.499378621e-05 | N16: 4.773532706e-10
A17: 5.43376 | B17: ='DF raw data'!AK22 -> -1.9341658e-06 | C17: ='DF raw data'!AL22 -> 1.5972843e-06 | D17: ='DF raw data'!AM22 -> -2.2961542e-06 | F17: -1.937214045e-06 | G17: 1.603601248e-06 | H17: -2.299772939e-06 | J17: -1.066904208e-05 | K17: -3.440733678e-05 | L17: -1.075274648e-05 | M17: -4.037187989e-05 | N17: 5.921149905e-10
A18: 5.93392 | B18: ='DF raw data'!AK23 -> -1.461374e-06 | C18: ='DF raw data'!AL23 -> -1.1490053e-05 | D18: ='DF raw data'!AM23 -> -3.4149928e-06 | F18: -1.463677125e-06 | G18: -1.153549392e-05 | H18: -3.420374829e-06 | J18: -1.140111483e-05 | K18: -4.010971838e-05 | L18: -1.652233912e-05 | M18: -4.863569302e-05 | N18: 7.936660208e-10
A19: 6.43408 | B19: ='DF raw data'!AK24 -> -1.4823288e-06 | C19: ='DF raw data'!AL24 -> -1.18902e-05 | D19: ='DF raw data'!AM24 -> -9.7089433e-06 | F19: -1.48466495e-06 | G19: -1.193722342e-05 | H19: -9.724244595e-06 | J19: -1.214368486e-05 | K19: -4.61835038e-05 | L19: -2.249286078e-05 | M19: -5.988572227e-05 | N19: 1.120469499e-09
A20: 6.93424 | B20: ='DF raw data'!AK25 -> -1.6132233e-06 | C20: ='DF raw data'!AL25 -> -7.89766e-06 | D20: ='DF raw data'!AM25 -> -7.7764198e-06 | F20: -1.61576574e-06 | G20: -7.928893705e-06 | H20: -7.788675438e-06 | J20: -1.295182625e-05 | K20: -5.266148921e-05 | L20: -2.645857626e-05 | M20: -7.311924377e-05 | N20: 1.554511378e-09
A21: 7.4344 | B21: ='DF raw data'!AK26 -> -1.7939144e-06 | C21: ='DF raw data'!AL26 -> -1.8579452e-06 | D21: ='DF raw data'!AM26 -> -9.8330941e-07 | F21: -1.796741609e-06 | G21: -1.865293011e-06 | H21: -9.848591056e-07 | J21: -1.385048453e-05 | K21: -5.958894756e-05 | L21: -2.739152121e-05 | M21: -8.681938702e-05 | N21: 2.025727797e-09
A22: 7.93456 | B22: ='DF raw data'!AK27 -> -3.5561659e-06 | C22: ='DF raw data'!AL27 -> 4.2201959e-06 | D22: ='DF raw data'!AM27 -> 8.0617829e-06 | F22: -3.561770417e-06 | G22: 4.236885952e-06 | H22: 8.07448827e-06 | J22: -1.563193962e-05 | K22: -6.740741848e-05 | L22: -2.527240033e-05 | M22: -9.945963077e-05 | N22: 2.467394963e-09
A23: 8.43472 | B23: ='DF raw data'!AK28 -> -7.2235252e-06 | C23: ='DF raw data'!AL28 -> -5.2481969e-06 | D23: ='DF raw data'!AM28 -> 6.3402331e-06 | F23: =(1-$G$1*($B$2-$G$2))*B23 -> -7.234909476e-06 | G23: -5.268952495e-06 | H23: 6.350225307e-06 | J23: -1.925055195e-05 | K23: -7.703577454e-05 | L23: -2.790771961e-05 | M23: -0.0001134179558 | N23: 3.042291153e-09
A24: 8.93488 | B24: ='DF raw data'!AK29 -> -6.0764269e-06 | C24: ='DF raw data'!AL29 -> -1.5638438e-05 | D24: ='DF raw data'!AM29 -> 5.4243792e-06 | F24: -6.086003349e-06 | G24: -1.570028497e-05 | H24: 5.432928022e-06 | J24: -2.229452738e-05 | K24: -8.818660536e-05 | L24: -3.576037414e-05 | M24: -0.0001313038645 | N24: 3.930500444e-09
A25: 9.43504 | B25: ='DF raw data'!AK30 -> 2.2761253e-06 | C25: ='DF raw data'!AL30 -> -7.1275185e-06 | D25: ='DF raw data'!AM30 -> 1.486404e-07 | F25: 2.279712473e-06 | G25: -7.155706445e-06 | H25: 1.488746573e-07 | J25: -2.115430639e-05 | K25: -9.876714324e-05 | L25: -3.933937228e-05 | M25: -0.000150979845 | N25: 4.928365103e-09
A26: 9.9352 | B26: ='DF raw data'!AK31 -> 7.0323604e-06 | C26: ='DF raw data'!AL31 -> -1.7322567e-06 | D26: ='DF raw data'!AM31 -> -1.4200997e-06 | F26: 7.0434434e-06 | G26: -1.739107437e-06 | H26: -1.422337777e-06 | J26: -1.763145774e-05 | K26: -0.0001075856931 | L26: -4.020920426e-05 | M26: -0.0001710908806 | N26: 5.892497732e-09
A27: 10.43536 | B27: ='DF raw data'!AK32 -> 1.0838578e-06 | C27: ='DF raw data'!AL32 -> 4.3600276e-06 | D27: ='DF raw data'!AM32 -> -3.0169397e-06 | F27: 1.08556596e-06 | G27: 4.377270659e-06 | H27: -3.021694397e-06 | J27: -1.708850107e-05 | K27: -0.0001161326778 | L27: -3.801986856e-05 | M27: -0.000190106898 | N27: 6.761539373e-09
A28: 10.93552 | B28: ='DF raw data'!AK33 -> -5.8883288e-06 | C28: ='DF raw data'!AL33 -> -4.0432155e-06 | D28: ='DF raw data'!AM33 -> -3.5461783e-06 | F28: -5.897608806e-06 | G28: -4.059205629e-06 | H28: -3.551767077e-06 | J28: -2.003824909e-05 | K28: -0.0001261550085 | L28: -4.005012085e-05 | M28: -0.0002101383665 | N28: 7.764632064e-09
A29: 11.43568 | B29: ='DF raw data'!AK34 -> -6.6585471e-06 | C29: ='DF raw data'!AL34 -> -1.763304e-05 | D29: ='DF raw data'!AM34 -> -3.925139e-06 | F29: -6.66904097e-06 | G29: -1.770277523e-05 | H29: -3.931325019e-06 | J29: -2.337383662e-05 | K29: -0.0001378456666 | L29: -4.890434091e-05 | M29: -0.0002345983616 | N29: 9.234087538e-09
A30: 11.93584 | B30: ='DF raw data'!AK35 -> -4.8402999e-06 | C30: ='DF raw data'!AL35 -> -9.23887e-06 | D30: ='DF raw data'!AM35 -> -7.7358782e-06 | F30: -4.847928213e-06 | G30: -9.275407929e-06 | H30: -7.748069944e-06 | J30: -2.57985764e-05 | K30: -0.0001507490826 | L30: -5.354352894e-05 | M30: -0.0002613786931 | N30: 1.100089075e-08
A31: 12.436 | B31: ='DF raw data'!AK36 -> -2.857965e-06 | C31: ='DF raw data'!AL36 -> -1.5682748e-06 | D31: ='DF raw data'!AM36 -> -1.9785587e-06 | F31: -2.862469153e-06 | G31: -1.574477021e-06 | H31: -1.981676909e-06 | J31: -2.723026897e-05 | K31: -0.0001643685739 | L31: -5.433101937e-05 | M31: -0.0002885528957 | N31: 1.284815529e-08
A32: 12.93616 | B32: ='DF raw data'!AK37 -> 5.5479381e-07 | C32: ='DF raw data'!AL37 -> -2.5563036e-06 | D32: ='DF raw data'!AM37 -> 5.0077579e-06 | F32: 5.55668165e-07 | G32: -2.566413282e-06 | H32: 5.015650126e-06 | J32: -2.695234598e-05 | K32: -0.0001778490593 | L32: -5.561463663e-05 | M32: -0.0003163691124 | N32: 1.475847478e-08
A33: 13.43632 | B33: ='DF raw data'!AK38 -> 1.1680843e-06 | C33: ='DF raw data'!AL38 -> -1.069658e-06 | D33: ='DF raw data'!AM38 -> 7.7569057e-06 | F33: 1.169925201e-06 | G33: -1.073888289e-06 | H33: 7.769130583e-06 | J33: -2.636719619e-05 | K33: -0.0001910368761 | L33: -5.61517526e-05 | M33: -0.000344453973 | N33: 1.668321468e-08
A34: 13.93648 | B34: ='DF raw data'!AK39 -> -4.0921714e-06 | C34: ='DF raw data'!AL39 -> -2.7076098e-06 | D34: ='DF raw data'!AM39 -> 4.516849e-06 | F34: -4.098620662e-06 | G34: -2.718317869e-06 | H34: 4.523967554e-06 | J34: -2.84171623e-05 | K34: -0.000205250004 | L34: -5.751134647e-05 | M34: -0.000373218848 | N34: 1.874141814e-08
A35: 14.43664 | B35: ='DF raw data'!AK40 -> -9.0993108e-06 | C35: ='DF raw data'!AL40 -> 1.1301309e-05 | D35: ='DF raw data'!AM40 -> -2.5895208e-06 | F35: -9.113651314e-06 | G35: 1.134600347e-05 | H35: -2.593601885e-06 | J35: -3.297544614e-05 | K35: -0.0002217430032 | L35: -5.183652937e-05 | M35: -0.0003991454065 | N35: 2.062922495e-08
A36: 14.9368 | B36: ='DF raw data'!AK41 -> -9.4950065e-06 | C36: ='DF raw data'!AL41 -> -2.145614e-06 | D36: ='DF raw data'!AM41 -> -5.7255602e-06 | F36: -9.50997063e-06 | G36: -2.154099485e-06 | H36: -5.734583683e-06 | J36: -3.773195305e-05 | K36: -0.0002406150168 | L36: -5.291392377e-05 | M36: -0.0004256108346 | N36: 2.274169253e-08
A37: 15.43696 | B37: ='DF raw data'!AK42 -> -6.7036144e-06 | C37: ='DF raw data'!AL42 -> -4.5777247e-06 | D37: ='DF raw data'!AM42 -> -1.9326328e-06 | F37: -6.714179296e-06 | G37: -4.595828708e-06 | H37: -1.935678629e-06 | J37: -4.109011697e-05 | K37: -0.0002611666497 | L37: -5.521257345e-05 | M37: -0.0004532259554 | N37: 2.511086341e-08
A38: 15.93712 | B38: ='DF raw data'!AK43 -> -1.9730048e-06 | C38: ='DF raw data'!AL43 -> 1.2774595e-06 | D38: ='DF raw data'!AM43 -> 8.3214985e-08 | F38: -1.976114256e-06 | G38: 1.282511603e-06 | H38: 8.334613182e-08 | J38: -4.207849028e-05 | K38: -0.0002822126274 | L38: -5.457111245e-05 | M38: -0.000480520243 | N38: 2.748592602e-08
A39: 16.43728 | B39: ='DF raw data'!AK44 -> -4.3925374e-06 | C39: ='DF raw data'!AL44 -> -5.2876908e-06 | D39: ='DF raw data'!AM44 -> -2.6043638e-06 | F39: -4.399460039e-06 | G39: -5.308602586e-06 | H39: -2.608468277e-06 | J39: -4.427892421e-05 | K39: -0.0003043591741 | L39: -5.722626312e-05 | M39: -0.0005091425308 | N39: 3.010449786e-08
A40: 16.93744 | B40: ='DF raw data'!AK45 -> -1.1411043e-05 | C40: ='DF raw data'!AL45 -> -9.6701051e-06 | D40: ='DF raw data'!AM45 -> 3.1552261e-06 | F40: -1.14290268e-05 | G40: -9.708348479e-06 | H40: 3.160198736e-06 | J40: -4.999526625e-05 | K40: -0.0003293648065 | L40: -6.20819907e-05 | M40: -0.0005401934592 | N40: 3.328236456e-08
A41: 17.4376 | B41: ='DF raw data'!AK46 -> -1.0898946e-05 | C41: ='DF raw data'!AL46 -> -8.647134e-07 | D41: ='DF raw data'!AM46 -> -1.9687798e-06 | F41: -1.091612274e-05 | G41: -8.681331728e-07 | H41: -1.971882597e-06 | J41: -5.54550742e-05 | K41: -0.0003571012164 | L41: -6.251619618e-05 | M41: -0.0005714615599 | N41: 3.677525194e-08
A42: 17.93776 | B42: ='DF raw data'!AK47 -> -3.2182122e-06 | C42: ='DF raw data'!AL47 -> -6.5351202e-08 | D42: ='DF raw data'!AM47 -> -7.8736792e-07 | F42: -3.223284102e-06 | G42: -6.560965326e-08 | H42: -7.886088118e-07 | J42: -5.706723198e-05 | K42: -0.0003856439632 | L42: -6.254901151e-05 | M42: -0.0006027460735 | N42: 4.036092289e-08
A43: 18.43792 | B43: ='DF raw data'!AK48 -> 2.4982021e-06 | C43: ='DF raw data'!AL48 -> 1.0236814e-06 | D43: ='DF raw data'!AM48 -> 6.491704e-06 | F43: 2.502139267e-06 | G43: 1.02772986e-06 | H43: 6.501934926e-06 | J43: -5.5815762e-05 | K43: -0.0004135607747 | L43: -6.203498214e-05 | M43: -0.0006337734902 | N43: 4.384390624e-08
A44: 18.93808 | B44: ='DF raw data'!AK49 -> 2.6166256e-06 | C44: ='DF raw data'!AL49 -> -5.7813718e-06 | D44: ='DF raw data'!AM49 -> 1.1280571e-06 | F44: 2.620749402e-06 | G44: -5.804235998e-06 | H44: 1.129834918e-06 | J44: -5.450496798e-05 | K44: -0.0004408219795 | L44: -6.493802882e-05 | M44: -0.0006662528947 | N44: 4.743892584e-08
A45: 19.43824 | B45: ='DF raw data'!AK50 -> -3.6864055e-06 | C45: ='DF raw data'!AL50 -> 2.2354666e-06 | D45: ='DF raw data'!AM50 -> -5.8157966e-06 | F45: -3.692215275e-06 | G45: 2.244307434e-06 | H45: -5.824962295e-06 | J45: -5.635166638e-05 | K45: -0.0004690068289 | L45: -6.381551601e-05 | M45: -0.0006981708631 | N45: 5.10640507e-08
A46: 19.9384 | B46: ='DF raw data'!AK51 -> -7.3222454e-06 | C46: ='DF raw data'!AL51 -> 8.6076816e-06 | D46: ='DF raw data'!AM51 -> -1.7780272e-07 | F46: -7.333785259e-06 | G46: 8.641723302e-06 | H46: -1.780829371e-07 | J46: -6.001973241e-05 | K46: -0.0004990262983 | L46: -5.949327168e-05 | M46: -0.0007279270179 | N46: 5.463610222e-08
A47: 20.43856 | B47: ='DF raw data'!AK52 -> -7.2607054e-06 | C47: ='DF raw data'!AL52 -> 5.132571e-06 | D47: ='DF raw data'!AM52 -> 2.7405838e-06 | F47: -7.272148272e-06 | G47: 5.152869317e-06 | H47: 2.74490296e-06 | J47: -6.365697009e-05 | K47: -0.0005308649685 | L47: -5.691601257e-05 | M47: -0.0007563941308 | N47: 5.828309005e-08
A48: 20.93872 | B48: ='DF raw data'!AK53 -> -5.0682411e-06 | C48: ='DF raw data'!AL53 -> -7.0229121e-06 | D48: ='DF raw data'!AM53 -> -3.7743814e-06 | F48: -5.076228648e-06 | G48: -7.050686348e-06 | H48: -3.780329825e-06 | J48: -6.619589661e-05 | K48: -0.0005639735081 | L48: -6.044248385e-05 | M48: -0.0007866250435 | N48: 6.230197097e-08
A49: 21.43888 | B49: ='DF raw data'!AK54 -> -8.5489387e-07 | C49: ='DF raw data'!AL54 -> -3.015693e-06 | D49: ='DF raw data'!AM54 -> -1.5534825e-06 | F49: -8.562411827e-07 | G49: -3.027619478e-06 | H49: -1.555930788e-06 | J49: -6.66241542e-05 | K49: -0.0005972962451 | L49: -6.195677801e-05 | M49: -0.0008176133456 | N49: 6.644200549e-08
A50: 21.93904 | B50: ='DF raw data'!AK55 -> -5.5972282e-07 | C50: ='DF raw data'!AL55 -> 1.3708592e-06 | D50: ='DF raw data'!AM55 -> -5.5944984e-08 | F50: -5.606049432e-07 | G50: 1.376280681e-06 | H50: -5.603315329e-08 | J50: -6.690454637e-05 | K50: -0.000630759223 | L50: -6.126841746e-05 | M50: -0.0008482573572 | N50: 7.055834094e-08
A51: 22.4392 | B51: ='DF raw data'!AK56 -> -2.4698945e-06 | C51: ='DF raw data'!AL56 -> -4.6980763e-06 | D51: ='DF raw data'!AM56 -> -4.0578379e-06 | F51: -2.473787054e-06 | G51: -4.716656275e-06 | H51: -4.064233053e-06 | J51: -6.81418357e-05 | K51: -0.0006648410435 | L51: -6.362750027e-05 | M51: -0.0008800812878 | N51: 7.490561591e-08
A52: 22.93936 | B52: ='DF raw data'!AK57 -> -5.5435648e-06 | C52: ='DF raw data'!AL57 -> 2.2753616e-06 | D52: ='DF raw data'!AM57 -> -6.5049026e-06 | F52: -5.552301458e-06 | G52: 2.284360211e-06 | H52: -6.515154326e-06 | J52: -7.09188748e-05 | K52: -0.000700311828 | L52: -6.248495466e-05 | M52: -0.0009113337627 | N52: 7.937397351e-08
A53: 23.43952 | B53: ='DF raw data'!AK58 -> -7.4867839e-06 | C53: ='DF raw data'!AL58 -> 6.6396166e-07 | D53: ='DF raw data'!AM58 -> -6.0956008e-06 | F53: -7.498583071e-06 | G53: 6.665874989e-07 | H53: -6.105207467e-06 | J53: -7.466936611e-05 | K53: -0.0007376584581 | L53: -6.215155426e-05 | M53: -0.0009424194841 | N53: 8.409464861e-08
A54: 23.93968 | B54: ='DF raw data'!AK59 -> -5.1896041e-06 | C54: ='DF raw data'!AL59 -> 5.4218413e-06 | D54: ='DF raw data'!AM59 -> 6.2023884e-07 | F54: -5.197782916e-06 | G54: 5.443283625e-06 | H54: 6.212163364e-07 | J54: -7.726908921e-05 | K54: -0.0007763053658 | L54: -5.942904152e-05 | M54: -0.0009721435135 | N54: 8.884733054e-08
A55: 24.43984 | B55: ='DF raw data'!AK60 -> 2.0709034e-07 | C55: ='DF raw data'!AL60 -> 5.5898258e-06 | D55: ='DF raw data'!AM60 -> 2.1762169e-06 | F55: 2.074167144e-07 | G55: 5.611932471e-06 | H55: 2.179646618e-06 | J55: -7.716534767e-05 | K55: -0.0008149003861 | L55: -5.662217738e-05 | M55: -0.001000463662 | N55: 9.342907715e-08
A56: 24.94 | B56: ='DF raw data'!AK61 -> 4.7610829e-06 | C56: ='DF raw data'!AL61 -> 4.6179425e-06 | D56: ='DF raw data'!AM61 -> -2.7386779e-06 | F56: 4.768586367e-06 | G56: 4.636205562e-06 | H56: -2.742994056e-06 | J56: -7.478029151e-05 | K56: -0.0008523024967 | L56: -5.43033328e-05 | M56: -0.001027624017 | N56: 9.770091568e-08
A57: 25.44016 | B57: ='DF raw data'!AK62 -> 8.349265e-06 | C57: ='DF raw data'!AL62 -> -7.4062649e-07 | D57: ='DF raw data'!AM62 -> -3.76501e-06 | F57: 8.362423442e-06 | G57: -7.435555233e-07 | H57: -3.770943656e-06 | J57: -7.05977418e-05 | K57: -0.0008876126632 | L57: -5.467522953e-05 | M57: -0.001054970379 | N57: 1.016889024e-07
A58: 25.94032 | B58: ='DF raw data'!AK63 -> 3.7717857e-06 | C58: ='DF raw data'!AL63 -> 1.2484142e-05 | D58: ='DF raw data'!AM63 -> 3.7239877e-06 | F58: 3.777730034e-06 | G58: 1.253351435e-05 | H58: 3.729856705e-06 | J58: -6.870827235e-05 | K58: -0.0009219777927 | L58: -4.8406467e-05 | M58: -0.001079181358 | N58: 1.05222039e-07
A59: 26.44048 | B59: ='DF raw data'!AK64 -> -1.8132102e-06 | C59: ='DF raw data'!AL64 -> -4.6277605e-06 | D59: ='DF raw data'!AM64 -> 6.3042899e-06 | F59: -1.816067819e-06 | G59: -4.64606239e-06 | H59: 6.314225461e-06 | J59: -6.961659683e-05 | K59: -0.0009567972298 | L59: -5.073024156e-05 | M59: -0.001104554596 | N59: 1.089332402e-07
A60: 26.94064 | B60: ='DF raw data'!AK65 -> -2.0567802e-06 | C60: ='DF raw data'!AL65 -> -4.5002199e-07 | D60: ='DF raw data'!AM65 -> 3.5748451e-06 | F60: -2.060021686e-06 | G60: -4.518017392e-07 | H60: 3.580479056e-06 | J60: -7.064693727e-05 | K60: -0.0009921320019 | L60: -5.095621472e-05 | M60: -0.001130040856 | N60: 1.127282169e-07
A61: 27.4408 | B61: ='DF raw data'!AK66 -> -1.1597673e-07 | C61: ='DF raw data'!AL66 -> -5.5482737e-06 | D61: ='DF raw data'!AM66 -> 5.3773329e-06 | F61: -1.161595093e-07 | G61: -5.57021604e-06 | H61: 5.385807577e-06 | J61: -7.070503562e-05 | K61: -0.001027495833 | L61: -5.374221398e-05 | M61: -0.001156920562 | N61: 1.166731927e-07
A62: 27.94096 | B62: ='DF raw data'!AK67 -> -1.4490922e-06 | C62: ='DF raw data'!AL67 -> -5.2672763e-06 | D62: ='DF raw data'!AM67 -> 9.5807616e-07 | F62: -1.451375969e-06 | G62: -5.28810735e-06 | H62: 9.59586088e-07 | J62: -7.143095582e-05 | K62: -0.001063222739 | L62: -5.638711375e-05 | M62: -0.001185123141 | N62: 1.208154619e-07
A63: 28.44112 | B63: ='DF raw data'!AK68 -> 1.2221592e-06 | C63: ='DF raw data'!AL68 -> 2.1740902e-06 | D63: ='DF raw data'!AM68 -> -3.2016908e-06 | F63: 1.224085323e-06 | G63: 2.182688303e-06 | H63: -3.206736665e-06 | J63: -7.08187173e-05 | K63: -0.001098643429 | L63: -5.529542037e-05 | M63: -0.001212779698 | N63: 1.248531907e-07
A64: 28.94128 | B64: ='DF raw data'!AK69 -> 3.2881819e-06 | C64: ='DF raw data'!AL69 -> 1.2374998e-05 | D64: ='DF raw data'!AM69 -> -2.3869291e-06 | F64: 3.293364075e-06 | G64: 1.24239387e-05 | H64: -2.3906909e-06 | J64: -6.917150833e-05 | K64: -0.001133240251 | L64: -4.908146318e-05 | M64: -0.001237328283 | N64: 1.284511854e-07
A65: 29.44144 | B65: ='DF raw data'!AK70 -> -1.5248495e-06 | C65: ='DF raw data'!AL70 -> -7.4689746e-07 | D65: ='DF raw data'!AM70 -> 4.230933e-06 | F65: -1.527252663e-06 | G65: -7.498512938e-07 | H65: 4.23760095e-06 | J65: -6.993537902e-05 | K65: -0.00116821913 | L65: -4.945650881e-05 | M65: -0.00126206445 | N65: 1.321208111e-07
A66: 29.9416 | B66: ='DF raw data'!AK71 -> -4.934087e-06 | C66: ='DF raw data'!AL71 -> -8.9435953e-06 | D66: ='DF raw data'!AM71 -> -5.1370461e-07 | F66: -4.941863121e-06 | G66: -8.978965475e-06 | H66: -5.145142085e-07 | J66: -7.240710128e-05 | K66: -0.001204434266 | L66: -5.394742818e-05 | M66: -0.001289046796 | N66: 1.361986723e-07
A67: 30.44176 | B67: ='DF raw data'!AK72 -> 3.5207108e-07 | C67: ='DF raw data'!AL72 -> -6.7092237e-06 | D67: ='DF raw data'!AM72 -> -4.6383866e-06 | F67: 3.52625944e-07 | G67: -6.735757371e-06 | H67: -4.645696697e-06 | J67: -7.223073189e-05 | K67: -0.001240561188 | L67: -5.731638459e-05 | M67: -0.001317714159 | N67: 1.404512559e-07
A68: 30.94192 | B68: ='DF raw data'!AK73 -> 5.7762099e-06 | C68: ='DF raw data'!AL73 -> 4.468753e-07 | D68: ='DF raw data'!AM73 -> -2.9041332e-06 | F68: 5.785313207e-06 | G68: 4.486426046e-07 | H68: -2.908710114e-06 | J68: -6.933714963e-05 | K68: -0.001275240857 | L68: -5.70919915e-05 | M68: -0.001346269289 | N68: 1.444861146e-07
A69: 31.44208 | B69: ='DF raw data'!AK74 -> 4.1640033e-06 | C69: ='DF raw data'!AL74 -> -7.404647e-06 | D69: ='DF raw data'!AM74 -> -3.3716717e-06 | F69: 4.170565769e-06 | G69: -7.433930935e-06 | H69: -3.376985455e-06 | J69: -6.725119946e-05 | K69: -0.001308877217 | L69: -6.08101464e-05 | M69: -0.001376684092 | N69: 1.485977287e-07
A70: 31.94224 | B70: ='DF raw data'!AK75 -> -1.7828404e-06 | C70: ='DF raw data'!AL75 -> -1.1451225e-05 | D70: ='DF raw data'!AM75 -> -1.1132004e-05 | F70: -1.785650156e-06 | G70: -1.149651236e-05 | H70: -1.114954804e-05 | J70: -6.814431024e-05 | K70: -0.001342960275 | L70: -6.656024202e-05 | M70: -0.001409974863 | N70: 1.53136137e-07
A71: 32.4424 | B71: ='DF raw data'!AK76 -> -2.8448828e-06 | C71: ='DF raw data'!AL76 -> -6.4095588e-07 | D71: ='DF raw data'!AM76 -> -5.208225e-06 | F71: -2.849366335e-06 | G71: =(1-$G$1*($B$2-$G$2))*C71*$M$2/$M$1 -> -6.434907355e-07 | H71: -5.216433163e-06 | J71: -6.956944931e-05 | K71: -0.001377756131 | L71: -6.688209035e-05 | M71: -0.001443426609 | N71: 1.577941882e-07
A72: =A71+$B$1 -> 32.94256 | B72: ='DF raw data'!AK77 -> 3.4719435e-06 | C72: ='DF raw data'!AL77 -> 1.0346226e-06 | D72: ='DF raw data'!AM77 -> 7.1955801e-06 | F72: 3.477415283e-06 | G72: 1.038714331e-06 | H72: 7.206920334e-06 | J72: =F72*$B$1+J71 -> -6.783018528e-05 | K72: =J72*$B$1+K71 -> -0.001411682077 | L72: =G72*$B$1+L71 -> -6.636256699e-05 | M72: =L72*$B$1+M71 -> -0.00147661851 | N72: =(J72^2+L72^2)*$B$1+N71 -> 1.622980912e-07
A73: 33.44272 | B73: ='DF raw data'!AK78 -> 5.0776016e-06 | C73: ='DF raw data'!AL78 -> -3.1956865e-06 | D73: ='DF raw data'!AM78 -> 1.2679979e-05 | F73: 5.0856039e-06 | G73: -3.208324817e-06 | H73: 1.269996265e-05 | J73: -6.528656963e-05 | K73: -0.001444335807 | L73: -6.796724273e-05 | M73: -0.001510613007 | N73: 1.667404534e-07
A74: 33.94288 | B74: ='DF raw data'!AK79 -> 2.2365042e-07 | C74: ='DF raw data'!AL79 -> -1.4329916e-05 | D74: ='DF raw data'!AM79 -> 1.2877841e-05 | F74: 2.240028931e-07 | G74: -1.438658802e-05 | H74: 1.289813648e-05 | J74: -6.517453235e-05 | K74: -0.001476933501 | L74: -7.516283859e-05 | M74: -0.001548206452 | N74: 1.716906229e-07
A75: 34.44304 | B75: ='DF raw data'!AK80 -> -4.6632176e-06 | C75: ='DF raw data'!AL80 -> 2.9116759e-06 | D75: ='DF raw data'!AM80 -> 7.8844823e-06 | F75: -4.670566831e-06 | G75: 2.92319101e-06 | H75: 7.896908244e-06 | J75: -6.751056305e-05 | K75: -0.001510699585 | L75: -7.370077538e-05 | M75: -0.001585068632 | N75: 1.766869615e-07
A76: 34.9432 | B76: ='DF raw data'!AK81 -> -4.7132035e-06 | C76: ='DF raw data'!AL81 -> 9.4924371e-06 | D76: ='DF raw data'!AM81 -> 3.3409813e-06 | F76: -4.720631509e-06 | G76: 9.529977837e-06 | H76: 3.346246687e-06 | J76: -6.987163411e-05 | K76: -0.001545646581 | L76: -6.893426166e-05 | M76: -0.001619546792 | N76: 1.815054917e-07
A77: 35.44336 | B77: ='DF raw data'!AK82 -> -2.4118906e-06 | C77: ='DF raw data'!AL82 -> 1.0395072e-05 | D77: ='DF raw data'!AM82 -> 4.6483692e-06 | F77: -2.41569174e-06 | G77: 1.043618248e-05 | H77: 4.65569503e-06 | J77: -7.107986649e-05 | K77: -0.001581197887 | L77: -6.371450063e-05 | M77: -0.001651414237 | N77: 1.860628922e-07
A78: 35.94352 | B78: ='DF raw data'!AK83 -> -2.3278533e-06 | C78: ='DF raw data'!AL83 -> 1.0203454e-06 | D78: ='DF raw data'!AM83 -> 5.0671879e-06 | F78: -2.331521997e-06 | G78: 1.024380667e-06 | H78: 5.075173788e-06 | J78: -7.224600053e-05 | K78: -0.001617332447 | L78: -6.32021464e-05 | M78: -0.001683025422 | N78: 1.906713643e-07
A79: 36.44368 | B79: ='DF raw data'!AK84 -> -2.3193695e-06 | C79: ='DF raw data'!AL84 -> -5.4359293e-06 | D79: ='DF raw data'!AM84 -> 7.252018e-07 | F79: -2.323024826e-06 | G79: -5.45742734e-06 | H79: 7.26344718e-07 | J79: -7.340788463e-05 | K79: -0.001654048134 | L79: -6.593173326e-05 | M79: -0.001716001838 | N79: 1.955407775e-07
A80: 36.94384 | B80: ='DF raw data'!AK85 -> 9.7427112e-08 | C80: ='DF raw data'!AL85 -> 1.0682607e-05 | D80: ='DF raw data'!AM85 -> -2.0308728e-06 | F80: 9.758065713e-08 | G80: 1.072485463e-05 | H80: -2.034073456e-06 | J80: -7.335907869e-05 | K80: -0.001690739411 | L80: -6.056758997e-05 | M80: -0.001746295324 | N80: 2.000672192e-07
A81: 37.444 | B81: ='DF raw data'!AK86 -> 2.1814069e-06 | C81: ='DF raw data'!AL86 -> 6.8916747e-06 | D81: ='DF raw data'!AM86 -> -2.5127886e-06 | F81: 2.184844797e-06 | G81: 6.918929929e-06 | H81: -2.516748755e-06 | J81: -7.226630671e-05 | K81: -0.001726884127 | L81: -5.710701797e-05 | M81: -0.00177485797 | N81: 2.043103919e-07
A82: 37.94416 | B82: ='DF raw data'!AK87 -> 1.472263e-06 | C82: ='DF raw data'!AL87 -> 8.1993818e-07 | D82: ='DF raw data'!AM87 -> -3.4033306e-07 | F82: 1.474583286e-06 | G82: 8.231808756e-07 | H82: -3.408694249e-07 | J82: -7.152877914e-05 | K82: -0.001762659961 | L82: -5.669529583e-05 | M82: -0.001803214689 | N82: 2.084770862e-07
A83: 38.44432 | B83: ='DF raw data'!AK88 -> -4.8977176e-07 | C83: ='DF raw data'!AL88 -> 2.5240697e-06 | D83: ='DF raw data'!AM88 -> 6.9205254e-07 | F83: -4.905436403e-07 | G83: 2.534051903e-06 | H83: 6.931432148e-07 | J83: -7.177412944e-05 | K83: -0.00179855851 | L83: -5.542786443e-05 | M83: -0.00183093749 | N83: 2.125902889e-07
A84: 38.94448 | B84: ='DF raw data'!AK89 -> 3.7976154e-06 | C84: ='DF raw data'!AL89 -> -4.9583928e-06 | D84: ='DF raw data'!AM89 -> 4.3449822e-07 | F84: 3.803600442e-06 | G84: -4.978002276e-06 | H84: 4.351829892e-07 | J84: -6.987172065e-05 | K84: -0.00183350555 | L84: -5.791766204e-05 | M84: -0.001859905587 | N84: 2.167098632e-07
A85: 39.44464 | B85: ='DF raw data'!AK90 -> 1.0612073e-05 | C85: ='DF raw data'!AL90 -> -1.1091519e-06 | D85: ='DF raw data'!AM90 -> 4.0523664e-06 | F85: 1.062879763e-05 | G85: -1.113538379e-06 | H85: 4.058752929e-06 | J85: -6.455562122e-05 | K85: -0.001865793689 | L85: -5.84746094e-05 | M85: -0.001889152248 | N85: 2.205044312e-07
A86: 39.9448 | B86: ='DF raw data'!AK91 -> 1.0160513e-05 | C86: ='DF raw data'!AL91 -> 1.753661e-06 | D86: ='DF raw data'!AM91 -> 6.436072e-06 | F86: 1.017652597e-05 | G86: 1.760596387e-06 | H86: 6.446215249e-06 | J86: -5.946573e-05 | K86: -0.001895536069 | L86: -5.759402951e-05 | M86: -0.001917958478 | N86: 2.239321504e-07
A87: 40.44496 | B87: ='DF raw data'!AK92 -> 4.6053483e-06 | C87: ='DF raw data'!AL92 -> 1.5955499e-06 | D87: ='DF raw data'!AM92 -> 2.9736618e-06 | F87: =(1-$G$1*($B$2-$G$2))*B87 -> 4.612606329e-06 | G87: 1.601859989e-06 | H87: 2.978348291e-06 | J87: -5.715868881e-05 | K87: -0.001924124558 | L87: -5.679284322e-05 | M87: -0.001946363986 | N87: 2.271794605e-07
A88: 40.94512 | B88: ='DF raw data'!AK93 -> 4.8036036e-06 | C88: ='DF raw data'!AL93 -> -8.5358415e-06 | D88: ='DF raw data'!AM93 -> -1.3070895e-06 | F88: 4.811174079e-06 | G88: -8.569599088e-06 | H88: -1.309149473e-06 | J88: -5.475233199e-05 | K88: -0.001951509485 | L88: -6.10790139e-05 | M88: -0.001976913266 | N88: 2.30544769e-07
A89: 41.44528 | B89: ='DF raw data'!AK94 -> 8.0111076e-06 | C89: ='DF raw data'!AL94 -> 3.6188212e-07 | D89: ='DF raw data'!AM94 -> -2.2799143e-06 | F89: 8.023733106e-06 | G89: 3.633132932e-07 | H89: -2.283507445e-06 | J89: -5.073918164e-05 | K89: -0.001976887194 | L89: -6.089729912e-05 | M89: -0.002007371659 | N89: 2.336872471e-07
A90: 41.94544 | B90: ='DF raw data'!AK95 -> 4.1274197e-06 | C90: ='DF raw data'!AL95 -> 1.8139584e-05 | D90: ='DF raw data'!AM95 -> -3.2023686e-07 | F90: 4.133924513e-06 | G90: 1.821132252e-05 | H90: -3.207415533e-07 | J90: -4.867155795e-05 | K90: -0.00200123076 | L90: -5.178872405e-05 | M90: -0.002033274307 | N90: 2.362135515e-07
A91: 42.4456 | B91: ='DF raw data'!AK96 -> -3.179573e-07 | C91: ='DF raw data'!AL96 -> 2.5460722e-07 | D91: ='DF raw data'!AM96 -> 5.177797e-06 | F91: -3.184584007e-07 | G91: 2.556141419e-07 | H91: 5.185957208e-06 | J91: -4.883083811e-05 | K91: -0.002025653992 | L91: -5.166087608e-05 | M91: -0.002059113011 | N91: 2.387410084e-07
A92: 42.94576 | B92: ='DF raw data'!AK97 -> -3.7890072e-07 | C92: ='DF raw data'!AL97 -> -1.6333873e-06 | D92: ='DF raw data'!AM97 -> 4.7108551e-06 | F92: -3.794978675e-07 | G92: -1.639847028e-06 | H92: 4.718279408e-06 | J92: -4.902064776e-05 | K92: -0.002050172159 | L92: -5.248106197e-05 | M92: -0.002085361939 | N92: 2.413204765e-07
A93: 43.44592 | B93: ='DF raw data'!AK98 -> 2.1576436e-06 | C93: ='DF raw data'!AL98 -> -6.536315e-07 | D93: ='DF raw data'!AM98 -> 1.9300276e-06 | F93: 2.161044046e-06 | G93: -6.562164851e-07 | H93: 1.933069323e-06 | J93: -4.793977997e-05 | K93: -0.00207414972 | L93: -5.280927521e-05 | M93: -0.002111775026 | N93: 2.438648114e-07
A94: 43.94608 | B94: ='DF raw data'!AK99 -> -1.6048725e-08 | C94: ='DF raw data'!AL99 -> 3.8656799e-06 | D94: ='DF raw data'!AM99 -> -3.5370627e-07 | F94: -1.607401779e-08 | G94: 3.88096791e-06 | H94: -3.542637111e-07 | J94: -4.794781955e-05 | K94: -0.002098131301 | L94: -5.08681703e-05 | M94: -0.00213721725 | N94: 2.463088754e-07
A95: 44.44624 | B95: ='DF raw data'!AK100 -> -3.2881778e-06 | C95: ='DF raw data'!AL100 -> 4.1163894e-06 | D95: ='DF raw data'!AM100 -> -2.9481237e-06 | F95: -3.293359968e-06 | G95: 4.132668917e-06 | H95: -2.952769943e-06 | J95: -4.959502647e-05 | K95: -0.00212293675 | L95: -4.880117461e-05 | M95: -0.002161625646 | N95: 2.487302606e-07
A96: 44.9464 | B96: ='DF raw data'!AK101 -> -4.6173022e-07 | C96: ='DF raw data'!AL101 -> 6.4007833e-07 | D96: ='DF raw data'!AM101 -> 2.3304817e-06 | F96: -4.624579068e-07 | G96: 6.426097149e-07 | H96: 2.334154539e-06 | J96: -4.982632942e-05 | K96: -0.002147857887 | L96: -4.847976694e-05 | M96: -0.002185873286 | N96: 2.511475093e-07
A97: 45.44656 | B97: ='DF raw data'!AK102 -> 4.6108926e-06 | C97: ='DF raw data'!AL102 -> 1.9523345e-06 | D97: ='DF raw data'!AM102 -> 5.6876088e-06 | F97: 4.618159367e-06 | G97: 1.960055602e-06 | H97: 5.696572471e-06 | J97: -4.751651083e-05 | K97: -0.002171623745 | L97: -4.749942553e-05 | M97: -0.002209630599 | N97: 2.534052387e-07
A98: 45.94672 | B98: ='DF raw data'!AK103 -> 1.169622e-05 | C98: ='DF raw data'!AL103 -> -7.5559524e-06 | D98: ='DF raw data'!AM103 -> -2.4649419e-06 | F98: 1.171465324e-05 | G98: -7.585834718e-06 | H98: -2.468826648e-06 | J98: -4.165730986e-05 | K98: -0.002192459065 | L98: -5.129355662e-05 | M98: -0.002235285584 | N98: 2.555891175e-07
A99: 46.44688 | B99: ='DF raw data'!AK104 -> 1.5071071e-05 | C99: ='DF raw data'!AL104 -> -6.66199e-06 | D99: ='DF raw data'!AM104 -> -2.285444e-06 | F99: 1.509482301e-05 | G99: -6.688336871e-06 | H99: -2.28904586e-06 | J99: -3.410748319e-05 | K99: -0.002209518264 | L99: -5.463879519e-05 | M99: -0.002262613724 | N99: 2.576641405e-07
A100: 46.94704 | B100: ='DF raw data'!AK105 -> 8.4451767e-06 | C100: ='DF raw data'!AL105 -> 3.8413964e-06 | D100: ='DF raw data'!AM105 -> 2.6837586e-06 | F100: 8.458486298e-06 | G100: 3.856588373e-06 | H100: 2.687988204e-06 | J100: -2.987688668e-05 | K100: -0.002224461487 | L100: -5.270988395e-05 | M100: -0.002288977099 | N100: 2.595002079e-07
A101: 47.4472 | B101: ='DF raw data'!AK106 -> 4.5446086e-06 | C101: ='DF raw data'!AL106 -> 7.0585925e-06 | D101: ='DF raw data'!AM106 -> -5.9370577e-06 | F101: 4.551770903e-06 | G101: 7.086507857e-06 | H101: -5.946414503e-06 | J101: -2.760027295e-05 | K101: -0.00223826604 | L101: -4.916549618e-05 | M101: -0.002313567714 | N101: 2.610902271e-07
A102: 47.94736 | B102: ='DF raw data'!AK107 -> 6.7806559e-06 | C102: ='DF raw data'!AL107 -> -5.7186603e-06 | D102: ='DF raw data'!AM107 -> -9.6379299e-06 | F102: 6.791342214e-06 | G102: -5.741276486e-06 | H102: -9.653119278e-06 | J102: -2.420351522e-05 | K102: -0.00225037167 | L102: -5.203705303e-05 | M102: -0.002339594566 | N102: 2.627375866e-07
A103: 48.44752 | B103: ='DF raw data'!AK108 -> 7.3803258e-06 | C103: ='DF raw data'!AL108 -> -4.8963489e-06 | D103: ='DF raw data'!AM108 -> -6.2589897e-06 | F103: 7.391957193e-06 | G103: -4.915713005e-06 | H103: -6.268853868e-06 | J103: -2.050635391e-05 | K103: -0.002260628128 | L103: -5.449569604e-05 | M103: -0.002366851134 | N103: 2.644332748e-07
A104: 48.94768 | B104: ='DF raw data'!AK109 -> 4.7973172e-06 | C104: ='DF raw data'!AL109 -> 1.1532389e-06 | D104: ='DF raw data'!AM109 -> -4.2969696e-06 | F104: 4.804877772e-06 | G104: 1.157799735e-06 | H104: -4.303741624e-06 | J104: -1.810314625e-05 | K104: -0.002269682598 | L104: -5.391661093e-05 | M104: -0.002393818066 | N104: 2.660511548e-07
A105: 49.44784 | B105: ='DF raw data'!AK110 -> 8.6217392e-07 | C105: ='DF raw data'!AL110 -> -1.2512683e-07 | D105: ='DF raw data'!AM110 -> -3.0909507e-06 | F105: 8.635327061e-07 | G105: -1.256216822e-07 | H105: -3.095822038e-06 | J105: -1.767124173e-05 | K105: -0.002278521046 | L105: -5.397944187e-05 | M105: -0.002420816423 | N105: 2.676646974e-07
A106: 49.948 | B106: ='DF raw data'!AK111 -> 7.3935576e-07 | C106: ='DF raw data'!AL111 -> 1.2372863e-05 | D106: ='DF raw data'!AM111 -> 2.7674757e-06 | F106: 7.405209847e-07 | G106: 1.242179526e-05 | H106: 2.771837242e-06 | J106: -1.730086275e-05 | K106: -0.002287174245 | L106: -4.776655675e-05 | M106: -0.002444707344 | N106: 2.689555923e-07
A107: 50.44816 | B107: ='DF raw data'!AK112 -> 4.4542994e-06 | C107: ='DF raw data'!AL112 -> 4.8797079e-07 | D107: ='DF raw data'!AM112 -> 3.7069619e-06 | F107: 4.461319376e-06 | G107: 4.899006193e-07 | H107: 3.712804072e-06 | J107: -1.506948925e-05 | K107: -0.002294711401 | L107: -4.752152806e-05 | M107: -0.002468475712 | N107: 2.701986825e-07
A108: 50.94832 | B108: ='DF raw data'!AK113 -> 3.2392584e-06 | C108: ='DF raw data'!AL113 -> -8.0717809e-06 | D108: ='DF raw data'!AM113 -> -1.2163233e-07 | F108: 3.244363471e-06 | G108: -8.103703219e-06 | H108: -1.218240226e-07 | J108: -1.344678842e-05 | K108: -0.002301436947 | L108: -5.157467626e-05 | M108: -0.002494271302 | N108: 2.716195187e-07
A109: 51.44848 | B109: ='DF raw data'!AK114 -> 1.1907125e-06 | C109: ='DF raw data'!AL114 -> -6.9879529e-06 | D109: ='DF raw data'!AM114 -> -4.3066902e-06 | F109: 1.192589063e-06 | G109: -7.015588891e-06 | H109: -4.313477544e-06 | J109: -1.285030308e-05 | K109: -0.002307864154 | L109: -5.50835932e-05 | M109: -0.002521821912 | N109: 2.732196968e-07
A110: 51.94864 | B110: ='DF raw data'!AK115 -> 4.3681957e-06 | C110: ='DF raw data'!AL115 -> 1.4813176e-07 | D110: ='DF raw data'!AM115 -> -5.0777089e-06 | F110: 4.375079976e-06 | G110: 1.487175922e-07 | H110: -5.085711369e-06 | J110: -1.066206307e-05 | K110: -0.002313196892 | L110: -5.500921061e-05 | M110: -0.002549335319 | N110: 2.747900456e-07
A111: 52.4488 | B111: ='DF raw data'!AK116 -> 7.0330298e-06 | C111: ='DF raw data'!AL116 -> 4.137738e-06 | D111: ='DF raw data'!AM116 -> -3.6344211e-06 | F111: 7.044113855e-06 | G111: 4.154101947e-06 | H111: -3.640148948e-06 | J111: -7.138879089e-06 | K111: -0.002316767474 | L111: -5.293149498e-05 | M111: -0.002575809535 | N111: 2.762168554e-07
A112: 52.94896 | B112: ='DF raw data'!AK117 -> 3.8366579e-06 | C112: ='DF raw data'!AL117 -> -5.1984275e-06 | D112: ='DF raw data'!AM117 -> -4.5833513e-06 | F112: 3.842704473e-06 | G112: -5.218986267e-06 | H112: -4.590574662e-06 | J112: -5.216912019e-06 | K112: -0.002319376764 | L112: -5.554182315e-05 | M112: -0.002603589333 | N112: 2.777734085e-07
A113: 53.44912 | B113: ='DF raw data'!AK118 -> 1.0217066e-06 | C113: ='DF raw data'!AL118 -> 2.4881779e-06 | D113: ='DF raw data'!AM118 -> -1.1972808e-06 | F113: 1.02331681e-06 | G113: 2.498018158e-06 | H113: -1.199167715e-06 | J113: -4.705089884e-06 | K113: -0.002321730062 | L113: -5.429241439e-05 | M113: -0.002630744227 | N113: 2.792587857e-07
A114: 53.94928 | B114: ='DF raw data'!AK119 -> -1.0685596e-06 | C114: ='DF raw data'!AL119 -> 8.1282778e-06 | D114: ='DF raw data'!AM119 -> -1.5243933e-06 | F114: -1.07024365e-06 | G114: 8.160423553e-06 | H114: -1.526795744e-06 | J114: -5.240382948e-06 | K114: -0.002324351092 | L114: -5.021089694e-05 | M114: -0.00265585771 | N114: 2.805334914e-07
A115: 54.44944 | B115: ='DF raw data'!AK120 -> -5.3126114e-06 | C115: ='DF raw data'!AL120 -> 6.1915825e-06 | D115: ='DF raw data'!AM120 -> -3.6839413e-06 | F115: -5.320984076e-06 | G115: 6.216069001e-06 | H115: -3.689747191e-06 | J115: -7.901726343e-06 | K115: -0.002328303219 | L115: -4.710186787e-05 | M115: -0.00267941618 | N115: 2.81674368e-07
A116: 54.9496 | B116: ='DF raw data'!AK121 -> -6.6768389e-06 | C116: ='DF raw data'!AL121 -> 3.5167677e-06 | D116: ='DF raw data'!AM121 -> -7.8876491e-07 | F116: -6.687361598e-06 | G116: 3.53067583e-06 | H116: -7.900080035e-07 | J116: -1.124647712e-05 | K116: -0.002333928257 | L116: -4.533596505e-05 | M116: -0.002702091416 | N116: 2.827656336e-07
A117: 55.44976 | B117: ='DF raw data'!AK122 -> -2.0652494e-06 | C117: ='DF raw data'!AL122 -> 4.1382718e-06 | D117: ='DF raw data'!AM122 -> 6.2947147e-06 | F117: -2.068504233e-06 | G117: 4.154637858e-06 | H117: 6.30463517e-06 | J117: -1.22810602e-05 | K117: -0.002340070752 | L117: -4.325798138e-05 | M117: -0.002723727328 | N117: 2.837769958e-07
A118: 55.94992 | B118: ='DF raw data'!AK123 -> 3.7656448e-06 | C118: ='DF raw data'!AL123 -> 6.7222222e-06 | D118: ='DF raw data'!AM123 -> 2.2197999e-06 | F118: 3.771579456e-06 | G118: 6.748807278e-06 | H118: 2.223298305e-06 | J118: -1.039466702e-05 | K118: -0.002345269749 | L118: -3.988249793e-05 | M118: -0.002743674958 | N118: 2.84626599e-07
A119: 56.45008 | B119: ='DF raw data'!AK124 -> 5.0427643e-06 | C119: ='DF raw data'!AL124 -> 1.7348481e-06 | D119: ='DF raw data'!AM124 -> -6.7368455e-06 | F119: 5.050711697e-06 | G119: 1.741709086e-06 | H119: -6.747462769e-06 | J119: -7.868503054e-06 | K119: -0.00234920526 | L119: -3.901136471e-05 | M119: -0.002763186882 | N119: 2.854187523e-07
A120: 56.95024 | B120: ='DF raw data'!AK125 -> -3.7482619e-07 | C120: ='DF raw data'!AL125 -> -7.3875839e-07 | D120: ='DF raw data'!AM125 -> -8.9938857e-07 | F120: -3.754169161e-07 | G120: -7.416800353e-07 | H120: -9.008060064e-07 | J120: -8.056271579e-06 | K120: -0.002353234684 | L120: -3.93823234e-05 | M120: -0.002782884345 | N120: 2.862269463e-07
A121: 57.4504 | B121: ='DF raw data'!AK126 -> -6.6788471e-06 | C121: ='DF raw data'!AL126 -> -7.2330599e-06 | D121: ='DF raw data'!AM126 -> 3.0264998e-06 | F121: -6.689372963e-06 | G121: -7.261665241e-06 | H121: 3.031269564e-06 | J121: -1.140202836e-05 | K121: -0.002358937523 | L121: -4.301431789e-05 | M121: -0.002804398387 | N121: 2.872173821e-07
A122: 57.95056 | B122: ='DF raw data'!AK127 -> -6.8336358e-06 | C122: ='DF raw data'!AL127 -> -1.1700334e-05 | D122: ='DF raw data'!AM127 -> 9.0496161e-07 | F122: -6.84440561e-06 | G122: -1.174660654e-05 | H122: 9.063878295e-07 | J122: -1.482532627e-05 | K122: -0.002366352558 | L122: -4.888950061e-05 | M122: -0.002828850959 | N122: 2.885227864e-07
A123: 58.45072 | B123: ='DF raw data'!AK128 -> -4.3302698e-06 | C123: ='DF raw data'!AL128 -> 9.707388e-06 | D123: ='DF raw data'!AM128 -> 2.5408588e-06 | F123: -4.337094305e-06 | G123: 9.745778826e-06 | H123: 2.544863193e-06 | J123: -1.699456736e-05 | K123: -0.002374852561 | L123: -4.401505188e-05 | M123: -0.002850865528 | N123: 2.896362127e-07
A124: 58.95088 | B124: ='DF raw data'!AK129 -> -3.2860969e-06 | C124: ='DF raw data'!AL129 -> 5.0986805e-06 | D124: ='DF raw data'!AM129 -> 5.2350297e-06 | F124: -3.291275789e-06 | G124: 5.118844787e-06 | H124: 5.243280107e-06 | J124: -1.864073186e-05 | K124: -0.002384175909 | L124: -4.145481047e-05 | M124: -0.002871599566 | N124: 2.906695323e-07
A125: 59.45104 | B125: ='DF raw data'!AK130 -> -5.0176441e-06 | C125: ='DF raw data'!AL130 -> 4.2128572e-06 | D125: ='DF raw data'!AM130 -> 7.6756478e-06 | F125: -5.025551907e-06 | G125: 4.229518228e-06 | H125: 7.687744621e-06 | J125: -2.11543119e-05 | K125: -0.00239475645 | L125: -3.933937463e-05 | M125: -0.002891275547 | N125: 2.916673972e-07
A126: 59.9512 | B126: ='DF raw data'!AK131 -> -7.8419525e-06 | C126: ='DF raw data'!AL131 -> 6.4916603e-06 | D126: ='DF raw data'!AM131 -> -6.0497332e-06 | F126: -7.854311417e-06 | G126: 6.51733355e-06 | H126: -6.05926758e-06 | J126: -2.50827243e-05 | K126: -0.002407301825 | L126: -3.607966508e-05 | M126: -0.002909321152 | N126: 2.926331488e-07
A127: 60.45136 | B127: ='DF raw data'!AK132 -> -7.4850523e-06 | C127: ='DF raw data'!AL132 -> -5.2145729e-06 | D127: ='DF raw data'!AM132 -> -1.5712991e-05 | F127: -7.496848742e-06 | G127: -5.235195519e-06 | H127: -1.573775467e-05 | J127: -2.883234816e-05 | K127: -0.002421722613 | L127: -3.869810047e-05 | M127: -0.002928676394 | N127: 2.93797945e-07
A128: 60.95152 | B128: ='DF raw data'!AK133 -> -4.1631847e-06 | C128: ='DF raw data'!AL133 -> 2.9534385e-06 | D128: ='DF raw data'!AM133 -> -5.6664503e-06 | F128: -4.169745879e-06 | G128: 2.965118773e-06 | H128: -5.675380626e-06 | J128: -3.091788826e-05 | K128: -0.002437186504 | L128: -3.721506667e-05 | M128: -0.002947289882 | N128: 2.949687581e-07
A129: 61.45168 | B129: ='DF raw data'!AK134 -> -1.8175467e-06 | C129: ='DF raw data'!AL134 -> 1.1012306e-05 | D129: ='DF raw data'!AM134 -> 1.0889852e-06 | F129: -1.820411154e-06 | G129: 1.105585752e-05 | H129: 1.090701441e-06 | J129: -3.18283851e-05 | K129: -0.002453105789 | L129: -3.168536897e-05 | M129: -0.002963137636 | N129: 2.959775852e-07
A130: 61.95184 | B130: ='DF raw data'!AK135 -> -1.7012042e-06 | C130: ='DF raw data'!AL135 -> -7.9519799e-07 | D130: ='DF raw data'!AM135 -> -3.1529128e-06 | F130: -1.703885298e-06 | G130: -7.983428429e-07 | H130: -3.157881791e-06 | J130: -3.268060038e-05 | K130: -0.002469451318 | L130: -3.208466813e-05 | M130: -0.002979185104 | N130: 2.970266445e-07
A131: 62.452 | B131: ='DF raw data'!AK136 -> -2.2427391e-06 | C131: ='DF raw data'!AL136 -> -2.0371385e-06 | D131: ='DF raw data'!AM136 -> -8.867697e-06 | F131: -2.246273657e-06 | G131: -2.045194985e-06 | H131: -8.88167249e-06 | J131: -3.380409661e-05 | K131: -0.002486358775 | L131: -3.310759285e-05 | M131: -0.002995744198 | N131: 2.981464176e-07
A132: 62.95216 | B132: ='DF raw data'!AK137 -> 2.0359605e-06 | C132: ='DF raw data'!AL137 -> 2.2522786e-06 | D132: ='DF raw data'!AM137 -> -6.763592e-06 | F132: 2.039169174e-06 | G132: 2.261185923e-06 | H132: -6.774251421e-06 | J132: -3.278418575e-05 | K132: -0.002502756113 | L132: -3.19766381e-05 | M132: -0.003011737633 | N132: 2.991954072e-07
A133: 63.45232 | B133: ='DF raw data'!AK138 -> 6.5457589e-06 | C133: ='DF raw data'!AL138 -> -6.8613313e-06 | D133: ='DF raw data'!AM138 -> -1.0038131e-06 | F133: 6.556075016e-06 | G133: -6.888466527e-06 | H133: -1.005395109e-06 | J133: -2.950509927e-05 | K133: -0.002517513384 | L133: -3.542197352e-05 | M133: -0.003029454287 | N133: 3.002583808e-07
A134: 63.95248 | B134: ='DF raw data'!AK139 -> 3.7166485e-06 | C134: ='DF raw data'!AL139 -> -4.669389e-06 | D134: ='DF raw data'!AM139 -> -1.999397e-06 | F134: 3.722505938e-06 | G134: -4.687855523e-06 | H134: -2.00254805e-06 | J134: -2.76432507e-05 | K134: -0.002531339432 | L134: -3.776665133e-05 | M134: -0.003048343655 | N134: 3.013539659e-07
A135: 64.45264 | B135: ='DF raw data'!AK140 -> -8.6276646e-07 | C135: ='DF raw data'!AL140 -> 7.1038239e-06 | D135: ='DF raw data'!AM140 -> -1.3046302e-06 | F135: -8.641261799e-07 | G135: =(1-$G$1*($B$2-$G$2))*C135*$M$2/$M$1 -> 7.131918138e-06 | H135: -1.306686297e-06 | J135: -2.807545205e-05 | K135: -0.00254538165 | L135: -3.419955116e-05 | M135: -0.003065448903 | N135: 3.023331994e-07
A136: =A135+$B$1 -> 64.9528 | B136: ='DF raw data'!AK141 -> 8.4941568e-08 | C136: ='DF raw data'!AL141 -> 6.0819052e-06 | D136: ='DF raw data'!AM141 -> -2.0405935e-06 | F136: 8.507543591e-08 | G136: 6.105957949e-06 | H136: -2.043809475e-06 | J136: =F136*$B$1+J135 -> -2.803290072e-05 | K136: =J136*$B$1+K135 -> -0.002559402586 | L136: =G136*$B$1+L135 -> -3.114559523e-05 | M136: =L136*$B$1+M135 -> -0.003081026684 | N136: =(J136^2+L136^2)*$B$1+N135 -> 3.032114261e-07
A137: 65.45296 | B137: ='DF raw data'!AK142 -> 4.9325376e-07 | C137: ='DF raw data'!AL142 -> 4.8400984e-06 | D137: ='DF raw data'!AM142 -> -4.73603e-06 | F137: 4.940311279e-07 | G137: 4.859240045e-06 | H137: -4.743493983e-06 | J137: -2.778580612e-05 | K137: -0.002573299934 | L137: -2.871519773e-05 | M137: -0.003095388877 | N137: 3.040099884e-07
A138: 65.95312 | B138: ='DF raw data'!AK143 -> -4.7289632e-06 | C138: ='DF raw data'!AL143 -> 5.5094876e-07 | D138: ='DF raw data'!AM143 -> -2.8257857e-06 | F138: -4.736416046e-06 | G138: 5.531276549e-07 | H138: -2.830239138e-06 | J138: -3.015477196e-05 | K138: -0.002588382145 | L138: -2.84385454e-05 | M138: -0.0031096127 | N138: 3.048692938e-07
A139: 66.45328 | B139: ='DF raw data'!AK144 -> -7.1818631e-06 | C139: ='DF raw data'!AL144 -> 8.3408082e-07 | D139: ='DF raw data'!AM144 -> -8.4055517e-07 | F139: -7.193181716e-06 | G139: 8.37379447e-07 | H139: -8.418798849e-07 | J139: -3.375251373e-05 | K139: -0.002605263802 | L139: -2.80197217e-05 | M139: -0.003123627044 | N139: 3.058317702e-07
A140: 66.95344 | B140: ='DF raw data'!AK145 -> -1.7703549e-06 | C140: ='DF raw data'!AL145 -> 3.6767469e-06 | D140: ='DF raw data'!AM145 -> 3.9263236e-07 | F140: -1.773144979e-06 | G140: 3.691287717e-06 | H140: 3.932511486e-07 | J140: -3.463936992e-05 | K140: -0.00262258903 | L140: -2.617348723e-05 | M140: -0.003136717975 | N140: 3.067745405e-07
A141: 67.4536 | B141: ='DF raw data'!AK146 -> 5.9466856e-06 | C141: ='DF raw data'!AL146 -> 4.0818318e-06 | D141: ='DF raw data'!AM146 -> 1.3398893e-06 | F141: 5.956057577e-06 | G141: 4.097974649e-06 | H141: 1.342000966e-06 | J141: -3.166038817e-05 | K141: -0.002638424289 | L141: -2.412384423e-05 | M141: -0.003148783757 | N141: 3.07566964e-07
A142: 67.95376 | B142: ='DF raw data'!AK147 -> 7.874145e-06 | C142: ='DF raw data'!AL147 -> -1.2437798e-06 | D142: ='DF raw data'!AM147 -> 1.4761971e-06 | F142: 7.886554653e-06 | G142: -1.248698707e-06 | H142: 1.478523587e-06 | J142: -2.771584899e-05 | K142: -0.002652286648 | L142: -2.474839338e-05 | M142: -0.003161161914 | N142: 3.082575105e-07
A143: 68.45392 | B143: ='DF raw data'!AK148 -> 4.7761005e-06 | C143: ='DF raw data'!AL148 -> 5.8582814e-06 | D143: ='DF raw data'!AM148 -> -3.4439304e-07 | F143: 4.783627634e-06 | G143: 5.88144976e-06 | H143: -3.449358034e-07 | J143: -2.532326979e-05 | K143: -0.002664952335 | L143: -2.180672747e-05 | M143: -0.003172068767 | N143: 3.088160899e-07
A144: 68.95408 | B144: ='DF raw data'!AK149 -> -2.3496084e-06 | C144: ='DF raw data'!AL149 -> 8.6824011e-06 | D144: ='DF raw data'!AM149 -> 1.3954049e-06 | F144: -2.353311383e-06 | G144: 8.716738303e-06 | H144: 1.397604058e-06 | J144: -2.650030202e-05 | K144: -0.002678206726 | L144: -1.744696364e-05 | M144: -0.00318079504 | N144: 3.093195822e-07
A145: 69.45424 | B145: ='DF raw data'!AK150 -> -8.4590556e-06 | C145: ='DF raw data'!AL150 -> 9.184354e-06 | D145: ='DF raw data'!AM150 -> 1.6825869e-06 | F145: -8.472387072e-06 | G145: 9.220676329e-06 | H145: 1.685238657e-06 | J145: -3.073785113e-05 | K145: -0.00269358057 | L145: -1.283515016e-05 | M145: -0.003187214669 | N145: 3.098745381e-07
A146: 69.9544 | B146: ='DF raw data'!AK151 -> -8.3611358e-06 | C146: ='DF raw data'!AL151 -> -1.6461967e-06 | D146: ='DF raw data'!AM151 -> -3.4555344e-06 | F146: -8.37431295e-06 | G146: -1.652707087e-06 | H146: -3.460980322e-06 | J146: -3.49263475e-05 | K146: -0.002711049332 | L146: -1.366176814e-05 | M146: -0.003194047739 | N146: 3.105780099e-07
A147: 70.45456 | B147: ='DF raw data'!AK152 -> -7.1390223e-06 | C147: ='DF raw data'!AL152 -> 7.4703485e-06 | D147: ='DF raw data'!AM152 -> -8.4001585e-06 | F147: -7.150273399e-06 | G147: 7.499892271e-06 | H147: -8.41339715e-06 | J147: -3.850262824e-05 | K147: -0.002730306806 | L147: -9.910622022e-06 | M147: -0.003199004635 | N147: 3.113685992e-07
A148: 70.95472 | B148: ='DF raw data'!AK153 -> -4.6224286e-06 | C148: ='DF raw data'!AL153 -> 1.3521791e-06 | D148: ='DF raw data'!AM153 -> -6.8901791e-06 | F148: -4.629713547e-06 | G148: 1.357526705e-06 | H148: -6.901038022e-06 | J148: -4.081822577e-05 | K148: -0.00275072245 | L148: -9.231641466e-06 | M148: -0.003203621933 | N148: 3.122445548e-07
A149: 71.45488 | B149: ='DF raw data'!AK154 -> -5.1880284e-07 | C149: ='DF raw data'!AL154 -> 5.3065601e-06 | D149: ='DF raw data'!AM154 -> -9.2819533e-08 | F149: -5.196204733e-07 | G149: 5.32754651e-06 | H149: -9.296581658e-08 | J149: -4.107811915e-05 | K149: -0.002771268082 | L149: -6.567015803e-06 | M149: -0.003206906492 | N149: 3.131101005e-07
A150: 71.95504 | B150: ='DF raw data'!AK155 -> 4.0592731e-06 | C150: ='DF raw data'!AL155 -> 3.9630818e-06 | D150: ='DF raw data'!AM155 -> 6.6451179e-08 | F150: 4.065670514e-06 | G150: 3.978755016e-06 | H150: 6.655590606e-08 | J150: -3.904463338e-05 | K150: -0.002790796646 | L150: -4.577001695e-06 | M150: -0.003209195725 | N150: 3.138830639e-07
A151: 72.4552 | B151: ='DF raw data'!AK156 -> 4.1362964e-06 | C151: ='DF raw data'!AL156 -> -2.0942448e-06 | D151: ='DF raw data'!AM156 -> -1.837405e-06 | F151: =(1-$G$1*($B$2-$G$2))*B151 -> 4.142815203e-06 | G151: -2.10252713e-06 | H151: -1.84030075e-06 | J151: -3.697256293e-05 | K151: -0.002809288843 | L151: -5.628601664e-06 | M151: -0.003212010926 | N151: 3.145826135e-07
A152: 72.95536 | B152: ='DF raw data'!AK157 -> -7.308679e-07 | C152: ='DF raw data'!AL157 -> 1.8450588e-06 | D152: ='DF raw data'!AM157 -> -1.867542e-06 | F152: -7.320197478e-07 | G152: 1.852355648e-06 | H152: -1.870485246e-06 | J152: -3.733868993e-05 | K152: -0.002827964162 | L152: -4.702127463e-06 | M152: -0.003214362742 | N152: 3.15290984e-07
A153: 73.45552 | B153: ='DF raw data'!AK158 -> -3.8723647e-06 | C153: ='DF raw data'!AL158 -> -6.1101359e-06 | D153: ='DF raw data'!AM158 -> -4.9100709e-06 | F153: -3.878467547e-06 | G153: -6.134300296e-06 | H153: -4.917809172e-06 | J153: -3.927854425e-05 | K153: -0.002847609719 | L153: -7.770259099e-06 | M153: -0.003218249115 | N153: 3.16092831e-07
A154: 73.95568 | B154: ='DF raw data'!AK159 -> -2.2241127e-06 | C154: ='DF raw data'!AL159 -> -2.3280282e-07 | D154: ='DF raw data'!AM159 -> -6.6441353e-06 | F154: -2.227617902e-06 | G154: -2.337235097e-07 | H154: -6.654606457e-06 | J154: -4.039270962e-05 | K154: -0.002867812536 | L154: -7.88715825e-06 | M154: -0.003222193956 | N154: 3.169399911e-07
A155: 74.45584 | B155: ='DF raw data'!AK160 -> 1.4327545e-06 | C155: ='DF raw data'!AL160 -> 5.5650085e-06 | D155: ='DF raw data'!AM160 -> -5.588714e-06 | F155: 1.435012521e-06 | G155: 5.587017023e-06 | H155: -5.597521813e-06 | J155: -3.967497376e-05 | K155: -0.002887656371 | L155: -5.092755815e-06 | M155: -0.003224741149 | N155: 3.17740267e-07
A156: 74.956 | B156: ='DF raw data'!AK161 -> 4.1074441e-07 | C156: ='DF raw data'!AL161 -> -1.8071099e-06 | D156: ='DF raw data'!AM161 -> -4.134381e-06 | F156: 4.113917432e-07 | G156: -1.814256667e-06 | H156: -4.140896784e-06 | J156: -3.946921207e-05 | K156: -0.002907397292 | L156: -6.00017443e-06 | M156: -0.003227742196 | N156: 3.185374324e-07
A157: 75.45616 | B157: ='DF raw data'!AK162 -> 4.8850984e-07 | C157: ='DF raw data'!AL162 -> -1.4153866e-07 | D157: ='DF raw data'!AM162 -> 5.5561378e-07 | F157: 4.892797315e-07 | G157: -1.420984178e-07 | H157: 5.564894273e-07 | J157: -3.922449392e-05 | K157: -0.002927015815 | L157: -6.071246375e-06 | M157: -0.003230778791 | N157: 3.193253949e-07
A158: 75.95632 | B158: ='DF raw data'!AK163 -> 6.1296469e-06 | C158: ='DF raw data'!AL163 -> 4.6947962e-06 | D158: ='DF raw data'!AM163 -> 2.7637504e-06 | F158: 6.139307224e-06 | G158: 4.713363203e-06 | H158: 2.768106071e-06 | J158: -3.615385802e-05 | K158: -0.002945098529 | L158: -3.713810635e-06 | M158: -0.00323263629 | N158: 3.199860532e-07
A159: 76.45648 | B159: ='DF raw data'!AK164 -> 7.9342153e-06 | C159: ='DF raw data'!AL164 -> -8.7151684e-06 | D159: ='DF raw data'!AM164 -> -2.4154217e-06 | F159: 7.946719623e-06 | G159: -8.749635191e-06 | H159: -2.419228405e-06 | J159: -3.217922673e-05 | K159: -0.002961193291 | L159: -8.090028172e-06 | M159: -0.003236682599 | N159: 3.20536705e-07
A160: 76.95664 | B160: ='DF raw data'!AK165 -> 2.1172038e-06 | C160: ='DF raw data'!AL165 -> -6.5904746e-06 | D160: ='DF raw data'!AM165 -> -6.1921673e-06 | F160: 2.120540513e-06 | G160: -6.616538642e-06 | H160: -6.201926156e-06 | J160: -3.111861719e-05 | K160: -0.002976757579 | L160: -1.139935614e-05 | M160: -0.003242384101 | N160: 3.210860375e-07
A161: 77.4568 | B161: ='DF raw data'!AK166 -> -3.0392673e-06 | C161: ='DF raw data'!AL166 -> -7.3729046e-07 | D161: ='DF raw data'!AM166 -> -4.0067316e-06 | F161: -3.044057185e-06 | G161: -7.402063e-07 | H161: -4.013046209e-06 | J161: -3.264113283e-05 | K161: -0.002993083368 | L161: -1.176957772e-05 | M161: -0.003248270773 | N161: 3.216882134e-07
A162: 77.95696 | B162: ='DF raw data'!AK167 -> -1.8216213e-06 | C162: ='DF raw data'!AL167 -> -1.7341248e-06 | D162: ='DF raw data'!AM167 -> -6.0408856e-06 | F162: -1.824492175e-06 | G162: -1.740982925e-06 | H162: -6.050406036e-06 | J162: -3.355367083e-05 | K162: -0.003009865572 | L162: -1.264034774e-05 | M162: -0.003254592969 | N162: 3.223312327e-07
A163: 78.45712 | B163: ='DF raw data'!AK168 -> -1.2498437e-07 | C163: ='DF raw data'!AL168 -> -7.6692313e-06 | D163: ='DF raw data'!AM168 -> -7.448376e-06 | F163: -1.251813454e-07 | G163: -7.699561614e-06 | H163: -7.460114641e-06 | J163: -3.361628154e-05 | K163: -0.003026679091 | L163: -1.649136048e-05 | M163: -0.003262841288 | N163: 3.230324667e-07
A164: 78.95728 | B164: ='DF raw data'!AK169 -> -3.7593543e-06 | C164: ='DF raw data'!AL169 -> -1.1104715e-05 | D164: ='DF raw data'!AM169 -> -3.1324091e-06 | F164: -3.765279042e-06 | G164: -1.114863198e-05 | H164: -3.137345777e-06 | J164: -3.54995235e-05 | K164: -0.003044434533 | L164: -2.206746025e-05 | M164: -0.003273878549 | N164: 3.239063407e-07
A165: 79.45744 | B165: ='DF raw data'!AK170 -> -8.0773152e-06 | C165: ='DF raw data'!AL170 -> -4.011727e-06 | D165: ='DF raw data'!AM170 -> 1.9231009e-06 | F165: -8.090045049e-06 | G165: -4.027592598e-06 | H165: 1.926131707e-06 | J165: -3.954584043e-05 | K165: -0.00306421378 | L165: -2.408190096e-05 | M165: -0.003285923352 | N165: 3.249785895e-07
A166: 79.9576 | B166: ='DF raw data'!AK171 -> -6.9571233e-06 | C166: ='DF raw data'!AL171 -> 1.5600435e-07 | D166: ='DF raw data'!AM171 -> 5.9295926e-06 | F166: -6.968087726e-06 | G166: 1.566213168e-07 | H166: 5.938937638e-06 | J166: -4.303099919e-05 | K166: -0.003085736165 | L166: -2.400356525e-05 | M166: -0.003297928976 | N166: 3.26192897e-07
A167: 80.45776 | B167: ='DF raw data'!AK172 -> -1.1009959e-06 | C167: ='DF raw data'!AL172 -> 5.536855e-06 | D167: ='DF raw data'!AM172 -> 3.7962088e-06 | F167: -1.10273107e-06 | G167: 5.558752182e-06 | H167: 3.802191625e-06 | J167: -4.358254116e-05 | K167: -0.003107534409 | L167: -2.122329976e-05 | M167: -0.003308544021 | N167: 3.273682061e-07
A168: 80.95792 | B168: ='DF raw data'!AK173 -> 5.9624308e-06 | C168: ='DF raw data'!AL173 -> -2.4072647e-06 | D168: ='DF raw data'!AM173 -> -4.0674859e-06 | F168: 5.971827591e-06 | G168: -2.416784962e-06 | H168: -4.073896258e-06 | J168: -4.059567187e-05 | K168: -0.00312783874 | L168: -2.243207892e-05 | M168: -0.00331976365 | N168: 3.284441537e-07
A169: 81.45808 | B169: ='DF raw data'!AK174 -> 1.0771868e-05 | C169: ='DF raw data'!AL174 -> 1.004189e-05 | D169: ='DF raw data'!AM174 -> -9.8883829e-06 | F169: 1.078884446e-05 | G169: 1.008160372e-05 | H169: -9.903966991e-06 | J169: -3.519952343e-05 | K169: -0.003145444133 | L169: -1.738966401e-05 | M169: -0.003328461264 | N169: 3.292151037e-07
A170: 81.95824 | B170: ='DF raw data'!AK175 -> 1.1156271e-05 | C170: ='DF raw data'!AL175 -> 1.6164196e-05 | D170: ='DF raw data'!AM175 -> -2.0920345e-06 | F170: 1.117385328e-05 | G170: 1.622812224e-05 | H170: -2.095331546e-06 | J170: -2.961080897e-05 | K170: -0.003160254276 | L170: -9.273006387e-06 | M170: -0.003333099251 | N170: 3.296966521e-07
A171: 82.4584 | B171: ='DF raw data'!AK176 -> 4.7488011e-06 | C171: ='DF raw data'!AL176 -> 1.0475128e-05 | D171: ='DF raw data'!AM176 -> 7.8416269e-06 | F171: 4.756285211e-06 | G171: 1.051655509e-05 | H171: 7.853985304e-06 | J171: -2.723190536e-05 | K171: -0.003173874585 | L171: -4.013046194e-06 | M171: -0.003335106416 | N171: 3.300756139e-07
A172: 82.95856 | B172: ='DF raw data'!AK177 -> -4.8760103e-06 | C172: ='DF raw data'!AL177 -> 5.8657533e-06 | D172: ='DF raw data'!AM177 -> 5.9996746e-06 | F172: -4.883694892e-06 | G172: 5.88895121e-06 | H172: 6.009130087e-06 | J172: -2.96745342e-05 | K172: -0.0031887166 | L172: -1.067628357e-06 | M172: -0.003335640401 | N172: 3.305166139e-07
A173: 83.45872 | B173: ='DF raw data'!AK178 -> -1.181154e-05 | C173: ='DF raw data'!AL178 -> 1.2275583e-06 | D173: ='DF raw data'!AM178 -> 1.1544106e-06 | F173: -1.183015499e-05 | G173: 1.232413054e-06 | H173: 1.156229951e-06 | J173: -3.559150451e-05 | K173: -0.003206518047 | L173: -4.51224644e-07 | M173: -0.003335866086 | N173: 3.31150296e-07
A174: 83.95888 | B174: ='DF raw data'!AK179 -> -1.3186245e-05 | C174: ='DF raw data'!AL179 -> -3.7205887e-06 | D174: ='DF raw data'!AM179 -> -2.2474344e-06 | F174: -1.320702652e-05 | G174: -3.735302903e-06 | H174: -2.250976357e-06 | J174: -4.21971309e-05 | K174: -0.003227623364 | L174: -2.319473744e-06 | M174: -0.003337026194 | N174: 3.320435707e-07
A175: 84.45904 | B175: ='DF raw data'!AK180 -> -8.8593497e-06 | C175: ='DF raw data'!AL180 -> -9.6921221e-06 | D175: ='DF raw data'!AM180 -> -3.077432e-06 | F175: -8.873312035e-06 | G175: -9.730452552e-06 | H175: -3.082282033e-06 | J175: -4.663520665e-05 | K175: -0.003250948429 | L175: -7.186256892e-06 | M175: -0.003340620472 | N175: 3.331571693e-07
A176: 84.9592 | B176: ='DF raw data'!AK181 -> -3.92123e-06 | C176: ='DF raw data'!AL181 -> -3.9722322e-06 | D176: ='DF raw data'!AM181 -> -9.2553836e-07 | F176: -3.927409858e-06 | G176: -3.987941604e-06 | H176: -9.269970085e-07 | J176: -4.859953996e-05 | K176: -0.003275255975 | L176: -9.180865765e-06 | M176: -0.003345212374 | N176: 3.343806625e-07
A177: 85.45936 | B177: ='DF raw data'!AK182 -> -6.5931613e-07 | C177: ='DF raw data'!AL182 -> -2.7617812e-06 | D177: ='DF raw data'!AM182 -> 1.1104784e-06 | F177: -6.603552122e-07 | G177: -2.772703506e-06 | H177: 1.112228514e-06 | J177: -4.892982322e-05 | K177: -0.003299728716 | L177: -1.056766115e-05 | M177: -0.003350497895 | N177: 3.35633965e-07
A178: 85.95952 | B178: ='DF raw data'!AK183 -> -2.3745612e-07 | C178: ='DF raw data'!AL183 -> -4.6401688e-06 | D178: ='DF raw data'!AM183 -> 5.090331e-07 | F178: -2.378303508e-07 | G178: -4.658519763e-06 | H178: 5.098353362e-07 | J178: -4.904877645e-05 | K178: -0.003324260952 | L178: -1.289766639e-05 | M178: -0.003356948792 | N178: 3.369204426e-07
A179: 86.45968 | B179: ='DF raw data'!AK184 -> -2.8968186e-06 | C179: ='DF raw data'!AL184 -> -6.1625738e-06 | D179: ='DF raw data'!AM184 -> -4.9883311e-06 | F179: -2.901383986e-06 | G179: -6.186945577e-06 | H179: -4.99619271e-06 | J179: -5.049993267e-05 | K179: -0.003349518998 | L179: -1.599212909e-05 | M179: -0.003364947415 | N179: 3.383238873e-07
A180: 86.95984 | B180: ='DF raw data'!AK185 -> -3.4759412e-06 | C180: ='DF raw data'!AL185 -> -3.6119786e-06 | D180: ='DF raw data'!AM185 -> -6.0032107e-06 | F180: -3.481419283e-06 | G180: -3.626263271e-06 | H180: -6.01267176e-06 | J180: -5.224119934e-05 | K180: -0.003375647956 | L180: -1.780584093e-05 | M180: -0.003373853185 | N180: 3.398474701e-07
A181: 87.46 | B181: ='DF raw data'!AK186 -> -7.6817901e-07 | C181: ='DF raw data'!AL186 -> 2.5322088e-06 | D181: ='DF raw data'!AM186 -> -3.1586317e-06 | F181: -7.693896601e-07 | G181: 2.542223192e-06 | H181: -3.163609704e-06 | J181: -5.262601727e-05 | K181: -0.003401969385 | L181: -1.653432258e-05 | M181: -0.003382122992 | N181: 3.413693977e-07
A182: 87.96016 | B182: ='DF raw data'!AK187 -> -8.2218116e-07 | C182: ='DF raw data'!AL187 -> 5.6365252e-06 | D182: ='DF raw data'!AM187 -> -4.0874161e-07 | F182: -8.234769175e-07 | G182: 5.658816558e-06 | H182: -4.093857868e-07 | J182: -5.303788748e-05 | K182: -0.003428496815 | L182: -1.370400889e-05 | M182: -0.003388977189 | N182: 3.428702866e-07
A183: 88.46032 | B183: ='DF raw data'!AK188 -> -4.523301e-06 | C183: ='DF raw data'!AL188 -> 5.3979575e-06 | D183: ='DF raw data'!AM188 -> 4.240319e-06 | F183: -4.530429722e-06 | G183: 5.419305369e-06 | H183: 4.247001743e-06 | J183: -5.530382721e-05 | K183: -0.003456157577 | L183: -1.099348912e-05 | M183: -0.003394475692 | N183: 3.444604803e-07
A184: 88.96048 | B184: ='DF raw data'!AK189 -> -6.5954791e-06 | C184: ='DF raw data'!AL189 -> -4.3510322e-06 | D184: ='DF raw data'!AM189 -> 5.425718e-06 | F184: -6.605873575e-06 | G184: -4.368239684e-06 | H184: 5.434268932e-06 | J184: -5.860782094e-05 | K184: -0.003485470865 | L184: -1.317830788e-05 | M184: -0.003401066955 | N184: 3.462653299e-07
A185: 89.46064 | B185: ='DF raw data'!AK190 -> -6.7240308e-06 | C185: ='DF raw data'!AL190 -> 2.5599616e-06 | D185: ='DF raw data'!AM190 -> 1.4989563e-06 | F185: -6.734627873e-06 | G185: 2.570085749e-06 | H185: 1.501318655e-06 | J185: -6.197621242e-05 | K185: -0.003516468887 | L185: -1.189285379e-05 | M185: -0.003407015284 | N185: 3.482572126e-07
A186: 89.9608 | B186: ='DF raw data'!AK191 -> -5.0683866e-06 | C186: ='DF raw data'!AL191 -> 1.1362941e-06 | D186: ='DF raw data'!AM191 -> -5.0611488e-06 | F186: -5.076374377e-06 | G186: 1.140787922e-06 | H186: -5.069125171e-06 | J186: -6.451521183e-05 | K186: -0.003548736815 | L186: -1.13222773e-05 | M186: -0.003412678235 | N186: 3.504031023e-07
A187: 90.46096 | B187: ='DF raw data'!AK192 -> -4.6753539e-06 | C187: ='DF raw data'!AL192 -> -8.4896914e-07 | D187: ='DF raw data'!AM192 -> -3.1035963e-06 | F187: -4.682722258e-06 | G187: -8.523266474e-07 | H187: -3.108487568e-06 | J187: -6.685732219e-05 | K187: -0.003582176174 | L187: -1.1748577e-05 | M187: -0.003418554403 | N187: 3.527078048e-07
A188: 90.96112 | B188: ='DF raw data'!AK193 -> -6.5209151e-06 | C188: ='DF raw data'!AL193 -> 4.1827029e-06 | D188: ='DF raw data'!AM193 -> -2.4528201e-06 | F188: -6.531192062e-06 | G188: 4.199244674e-06 | H188: -2.456685744e-06 | J188: -7.012396321e-05 | K188: -0.003617249375 | L188: -9.648282783e-06 | M188: -0.003423380088 | N188: 3.552138363e-07
A189: 91.46128 | B189: ='DF raw data'!AK194 -> -6.075903e-06 | C189: ='DF raw data'!AL194 -> 1.0333162e-05 | D189: ='DF raw data'!AM194 -> 2.9946893e-06 | F189: -6.085478623e-06 | G189: 1.037402764e-05 | H189: 2.99940893e-06 | J189: -7.31676762e-05 | K189: -0.00365384492 | L189: -4.459609118e-06 | M189: -0.003425610606 | N189: 3.579013945e-07
A190: 91.96144 | B190: ='DF raw data'!AK195 -> -3.038467e-06 | C190: ='DF raw data'!AL195 -> 8.2759816e-06 | D190: ='DF raw data'!AM195 -> 1.107189e-05 | F190: -3.043255624e-06 | G190: 8.308711493e-06 | H190: 1.10893393e-05 | J190: -7.468979093e-05 | K190: -0.003691201766 | L190: -3.039239778e-07 | M190: -0.003425762617 | N190: 3.606916157e-07
A191: 92.4616 | B191: ='DF raw data'!AK196 -> 6.7513815e-07 | C191: ='DF raw data'!AL196 -> 7.2767457e-06 | D191: ='DF raw data'!AM196 -> 1.0828378e-05 | F191: 6.762021677e-07 | G191: 7.30552381e-06 | H191: 1.084544352e-05 | J191: -7.435158166e-05 | K191: -0.003728389453 | L191: 3.350006811e-06 | M191: -0.003424087077 | N191: 3.634621921e-07
A192: 92.96176 | B192: ='DF raw data'!AK197 -> 2.3394698e-06 | C192: ='DF raw data'!AL197 -> 2.751563e-06 | D192: ='DF raw data'!AM197 -> 6.4621636e-06 | F192: 2.343156804e-06 | G192: 2.762444895e-06 | H192: 6.47234797e-06 | J192: -7.317962835e-05 | K192: -0.003764990976 | L192: 4.73167125e-06 | M192: -0.003421720485 | N192: 3.661518759e-07
A193: 93.46192 | B193: ='DF raw data'!AK198 -> -1.4559607e-06 | C193: ='DF raw data'!AL198 -> -5.3167918e-07 | D193: ='DF raw data'!AM198 -> 3.665358e-06 | F193: -1.458255294e-06 | G193: -5.337818675e-07 | H193: 3.671134604e-06 | J193: -7.390898932e-05 | K193: -0.003801957296 | L193: 4.464694911e-06 | M193: -0.003419487423 | N193: 3.688939892e-07
A194: 93.96208 | B194: ='DF raw data'!AK199 -> -6.5883924e-06 | C194: ='DF raw data'!AL199 -> 3.906242e-06 | D194: ='DF raw data'!AM199 -> 1.8564592e-07 | F194: -6.598775706e-06 | G194: 3.921690425e-06 | H194: 1.85938498e-07 | J194: -7.720943297e-05 | K194: -0.003840574366 | L194: 6.426167594e-06 | M194: -0.003416273311 | N194: 3.718962457e-07
A195: 94.46224 | B195: ='DF raw data'!AK200 -> -1.0069181e-05 | C195: ='DF raw data'!AL200 -> -8.2201717e-07 | D195: ='DF raw data'!AM200 -> -6.534312e-06 | F195: -1.008505003e-05 | G195: -8.252680876e-07 | H195: -6.544610076e-06 | J195: -8.22535716e-05 | K195: -0.003881714312 | L195: 6.013401507e-06 | M195: -0.003413265648 | N195: 3.752982395e-07
A196: 94.9624 | B196: ='DF raw data'!AK201 -> -1.1249109e-05 | C196: ='DF raw data'!AL201 -> 2.5977215e-06 | D196: ='DF raw data'!AM201 -> -3.3681356e-06 | F196: -1.12668376e-05 | G196: 2.607994982e-06 | H196: -3.373443782e-06 | J196: -8.788879309e-05 | K196: -0.003925672771 | L196: 7.317816277e-06 | M196: -0.003409605569 | N196: 3.791884792e-07
A197: 95.46256 | B197: ='DF raw data'!AK202 -> -6.5281183e-06 | C197: ='DF raw data'!AL202 -> 3.6013607e-06 | D197: ='DF raw data'!AM202 -> -4.124087e-07 | F197: -6.538406614e-06 | G197: 3.615603379e-06 | H197: -4.130586561e-07 | J197: -9.115904254e-05 | K197: -0.003971266878 | L197: 9.126196463e-06 | M197: -0.00340504101 | N197: 3.833864514e-07
A198: 95.96272 | B198: ='DF raw data'!AK203 -> -2.6145988e-06 | C198: ='DF raw data'!AL203 -> 5.3569956e-06 | D198: ='DF raw data'!AM203 -> -3.7947541e-06 | F198: -2.618719408e-06 | G198: 5.378181473e-06 | H198: -3.800734632e-06 | J198: -9.246882124e-05 | K198: -0.004017516083 | L198: 1.181614771e-05 | M198: -0.003399131046 | N198: 3.877328939e-07
A199: 96.46288 | B199: ='DF raw data'!AK204 -> -4.9724022e-06 | C199: ='DF raw data'!AL204 -> 5.5328524e-06 | D199: ='DF raw data'!AM204 -> -5.1889874e-06 | F199: -4.980238706e-06 | G199: =(1-$G$1*($B$2-$G$2))*C199*$M$2/$M$1 -> 5.554733752e-06 | H199: -5.197165244e-06 | J199: -9.495973743e-05 | K199: -0.004065011146 | L199: 1.459440334e-05 | M199: -0.003391831509 | N199: 3.923495449e-07
A200: =A199+$B$1 -> 96.96304 | B200: ='DF raw data'!AK205 -> -7.1880768e-06 | C200: ='DF raw data'!AL205 -> 2.360608e-07 | D200: ='DF raw data'!AM205 -> -1.2538586e-06 | F200: -7.199405209e-06 | G200: 2.369943744e-07 | H200: -1.255834681e-06 | J200: =F200*$B$1+J199 -> -9.856059194e-05 | K200: =J200*$B$1+K199 -> -0.004114307211 | L200: =G200*$B$1+L199 -> 1.471293845e-05 | M200: =L200*$B$1+M199 -> -0.003384472686 | N200: =(J200^2+L200^2)*$B$1+N199 -> 3.973164643e-07
A201: 97.4632 | B201: ='DF raw data'!AK206 -> -5.9665599e-06 | C201: ='DF raw data'!AL206 -> 4.3913828e-06 | D201: ='DF raw data'!AM206 -> 2.5274128e-06 | F201: -5.975963198e-06 | G201: 4.408749862e-06 | H201: 2.531396003e-06 | J201: -0.0001015495297 | K201: -0.004165098224 | L201: 1.691801878e-05 | M201: -0.00337601097 | N201: 4.026174232e-07
... 1002 more rows

Sheet 10 x=1
A1: dz | B1: ='DF raw data'!AO7 -> 0.50015 | C1: mm | F1: T_coeff | G1: -0.0008 | H1: /degC | L1: Hallref | M1: ='PI vs gap'!B44 -> 0.50525 | N1: T | P1: IBy total | Q1: =L1203*1000 -> -2.870227919 | R1: muTm | X1: DF ref | Y1: 20
A2: Tref | B2: ='DF raw data'!AO8 -> 21.94 | C2: degC | F2: Tcorr | G2: 20 | H2: degC | L2: NMRref | M2: ='PI vs gap'!B45 -> 0.50645 | N2: T | P2: JBy total | Q2: =M1203 -> -0.851333068 | R2: muTm^2
A3: Encoder | B3: ='DF raw data'!AO9 -> 262041716 | P3: PI total | Q3: =N1203 -> 708.8300432 | R3: T^2mm^3
A5: z [mm] | B5: Bx | C5: By | D5: Bz | F5: Bx_corr | G5: By_corr | H5: Bz_corr | J5: Ix | K5: Jx | L5: Iy | M5: Jy | N5: PI
A6: ='[1]PI vs x'!B53 -> -0.068 | B6: ='DF raw data'!AN11 -> -1.0786306e-05 | C6: ='DF raw data'!AO11 -> -6.8196878e-06 | D6: ='DF raw data'!AP11 -> 5.0576919e-06 | F6: =(1-$G$1*($B$2-$G$2))*B6 -> -1.080304635e-05 | G6: =(1-$G$1*($B$2-$G$2))*C6*$M$2/$M$1 -> -6.846494274e-06 | H6: =(1-$G$1*($B$2-$G$2))*D6 -> 5.065541438e-06 | J6: =F6*$B$1 -> -5.40314363e-06 | K6: =J6*$B$1 -> -2.702382287e-06 | L6: =G6*$B$1 -> -3.424274111e-06 | M6: =L6*$B$1 -> -1.712650697e-06 | N6: =(J6^2+L6)^2*$B$1 -> 5.864485444e-12
A7: =A6+$B$1 -> 0.43215 | B7: ='DF raw data'!AN12 -> -1.1385248e-05 | C7: ='DF raw data'!AO12 -> 8.4562562e-06 | D7: ='DF raw data'!AP12 -> -8.9070903e-07 | F7: =(1-$G$1*($B$2-$G$2))*B7 -> -1.14029179e-05 | G7: =(1-$G$1*($B$2-$G$2))*C7*$M$2/$M$1 -> 8.489495612e-06 | H7: -8.920914104e-07 | J7: =F7*$B$1+J6 -> -1.110631302e-05 | K7: =J7*$B$1+K6 -> -8.257204744e-06 | L7: =G7*$B$1+L6 -> 8.217471191e-07 | M7: =L7*$B$1+M6 -> -1.301653875e-06 | N7: =(J7^2+L7^2)*$B$1+N6 -> 6.789581788e-11
A8: =A7+$B$1 -> 0.9323 | B8: ='DF raw data'!AN13 -> -1.0965731e-05 | C8: ='DF raw data'!AO13 -> -3.3124197e-06 | D8: ='DF raw data'!AP13 -> -2.2210597e-06 | F8: -1.098274981e-05 | G8: -3.325439987e-06 | H8: -2.224506785e-06 | J8: =F8*$B$1+J7 -> -1.659933534e-05 | K8: =J8*$B$1+K7 -> -1.655936231e-05 | L8: =G8*$B$1+L7 -> -8.414716903e-07 | M8: =L8*$B$1+M7 -> -1.722515941e-06 | N8: =(J8^2+L8^2)*$B$1+N7 -> 2.06060259e-10
A9: 1.43245 | B9: ='DF raw data'!AN14 -> -1.1382105e-05 | C9: ='DF raw data'!AO14 -> 7.5317398e-06 | D9: ='DF raw data'!AP14 -> -4.9781966e-06 | F9: -1.139977003e-05 | G9: 7.561345171e-06 | H9: -4.985922761e-06 | J9: -2.230093032e-05 | K9: -2.771317261e-05 | L9: 2.940335097e-06 | M9: -2.519073422e-07 | N9: 4.591246873e-10
A10: 1.9326 | B10: ='DF raw data'!AN15 -> -1.1232861e-05 | C10: ='DF raw data'!AO15 -> 3.263538e-06 | D10: ='DF raw data'!AP15 -> -5.7258012e-06 | F10: -1.12502944e-05 | G10: 3.276366145e-06 | H10: -5.734687643e-06 | J10: -2.792776506e-05 | K10: -4.168124431e-05 | L10: 4.579009624e-06 | M10: 2.038284321e-06 | N10: 8.597085217e-10
A11: 2.43275 | B11: ='DF raw data'!AN16 -> -1.1294328e-05 | C11: ='DF raw data'!AO16 -> 4.7693966e-06 | D11: ='DF raw data'!AP16 -> -6.3919442e-06 | F11: -1.13118568e-05 | G11: 4.788143896e-06 | H11: -6.401864497e-06 | J11: -3.358539024e-05 | K11: -5.847897724e-05 | L11: 6.973799794e-06 | M11: 5.526230288e-06 | N11: 1.448191174e-09
A12: 2.9329 | B12: ='DF raw data'!AN17 -> -1.0790046e-05 | C12: ='DF raw data'!AO17 -> -8.3364866e-06 | D12: ='DF raw data'!AP17 -> -2.7721262e-06 | F12: -1.080679215e-05 | G12: -8.369255228e-06 | H12: -2.77642854e-06 | J12: -3.899040734e-05 | K12: -7.798002947e-05 | L12: 2.787916792e-06 | M12: 6.920606872e-06 | N12: 2.21243255e-09
A13: 3.43305 | B13: ='DF raw data'!AN18 -> -1.0998633e-05 | C13: ='DF raw data'!AO18 -> -2.9294843e-06 | D13: ='DF raw data'!AP18 -> -5.0761601e-06 | F13: -1.101570288e-05 | G13: -2.940999364e-06 | H13: -5.0840383e-06 | J13: -4.449991113e-05 | K13: -0.00010023666 | L13: 1.31697596e-06 | M13: 7.579292398e-06 | N13: 3.203718104e-09
A14: 3.9332 | B14: ='DF raw data'!AN19 -> -1.1086745e-05 | C14: ='DF raw data'!AO19 -> -1.7438506e-06 | D14: ='DF raw data'!AP19 -> -1.2422272e-05 | F14: -1.110395163e-05 | G14: -1.750705237e-06 | H14: -1.244155137e-05 | J14: -5.005355254e-05 | K14: -0.0001252709443 | L14: 4.413607354e-07 | M14: 7.80003897e-06 | N14: 4.456870398e-09
A15: 4.43335 | B15: ='DF raw data'!AN20 -> -1.1393994e-05 | C15: ='DF raw data'!AO20 -> 7.2060438e-06 | D15: ='DF raw data'!AP20 -> -8.5683869e-06 | F15: -1.141167748e-05 | G15: 7.234368942e-06 | H15: -8.581685036e-06 | J15: -5.576110303e-05 | K15: -0.00015315986 | L15: 4.059630362e-06 | M15: 9.830463095e-06 | N15: 6.02022987e-09
A16: 4.9335 | B16: ='DF raw data'!AN21 -> -1.0721754e-05 | C16: ='DF raw data'!AO21 -> -9.1067614e-06 | D16: ='DF raw data'!AP21 -> 3.5302792e-06 | F16: -1.073839416e-05 | G16: -9.142557784e-06 | H16: 3.535758193e-06 | J16: -6.113191087e-05 | K16: -0.0001837349852 | L16: -5.130199139e-07 | M16: 9.573876185e-06 | N16: 7.889477334e-09
A17: 5.43365 | B17: ='DF raw data'!AN22 -> -1.0962515e-05 | C17: ='DF raw data'!AO22 -> -2.4105857e-06 | D17: ='DF raw data'!AP22 -> 3.6060073e-06 | F17: -1.097952882e-05 | G17: -2.420061105e-06 | H17: 3.611603823e-06 | J17: -6.662332221e-05 | K17: -0.0002170566398 | L17: -1.723413475e-06 | M17: 8.711910936e-06 | N17: 1.011096219e-08
A18: 5.9338 | B18: ='DF raw data'!AN23 -> -1.1112502e-05 | C18: ='DF raw data'!AO23 -> 1.1580569e-06 | D18: ='DF raw data'!AP23 -> -8.3616179e-08 | F18: -1.11297486e-05 | G18: 1.16260893e-06 | H18: -8.374595131e-08 | J18: -7.218986597e-05 | K18: -0.0002531624013 | L18: -1.141934619e-06 | M18: 8.140772336e-06 | N18: 1.271808447e-08
A19: 6.43395 | B19: ='DF raw data'!AN24 -> -1.1399262e-05 | C19: ='DF raw data'!AO24 -> 8.7419239e-06 | D19: ='DF raw data'!AP24 -> -1.2967512e-06 | F19: -1.141695365e-05 | G19: 8.776286199e-06 | H19: -1.298763758e-06 | J19: -7.790005534e-05 | K19: -0.000292124114 | L19: 3.247524923e-06 | M19: 9.765021926e-06 | N19: 1.575847884e-08
A20: 6.9341 | B20: ='DF raw data'!AN25 -> -1.1661589e-05 | C20: ='DF raw data'!AO25 -> 1.5658121e-05 | D20: ='DF raw data'!AP25 -> -1.7749417e-06 | F20: -1.167968779e-05 | G20: 1.571966913e-05 | H20: -1.77769641e-06 | J20: -8.374165119e-05 | K20: -0.0003340075008 | L20: 1.110971744e-05 | M20: 1.53215471e-05 | N20: 1.932759423e-08
A21: 7.43425 | B21: ='DF raw data'!AN26 -> -1.1417757e-05 | C21: ='DF raw data'!AO26 -> 9.39038e-06 | D21: ='DF raw data'!AP26 -> 1.3325325e-06 | F21: -1.143547736e-05 | G21: 9.427291217e-06 | H21: 1.33460059e-06 | J21: -8.946110519e-05 | K21: -0.0003787514726 | L21: 1.582477714e-05 | M21: 2.323630939e-05 | N21: 2.345568875e-08
A22: 7.9344 | B22: ='DF raw data'!AN27 -> -7.1745499e-06 | C22: ='DF raw data'!AO27 -> -3.3984816e-06 | D22: ='DF raw data'!AP27 -> -7.5953807e-07 | F22: -7.185684801e-06 | G22: -3.411840175e-06 | H22: -7.607168731e-07 | J22: -9.305502544e-05 | K22: -0.0004252929435 | L22: 1.411834528e-05 | M22: 3.029759978e-05 | N22: 2.788630025e-08
A23: 8.43455 | B23: ='DF raw data'!AN28 -> 1.7679366e-06 | C23: ='DF raw data'!AO28 -> -3.9063164e-07 | D23: ='DF raw data'!AP28 -> -1.0045625e-05 | F23: =(1-$G$1*($B$2-$G$2))*B23 -> 1.770680438e-06 | G23: -3.921671145e-07 | H23: -1.006121581e-05 | J23: -9.216941962e-05 | K23: -0.0004713914788 | L23: 1.392220289e-05 | M23: 3.726078956e-05 | N23: 3.223211843e-08
A24: 8.9347 | B24: ='DF raw data'!AN29 -> 7.0440828e-06 | C24: ='DF raw data'!AO29 -> 1.7647508e-06 | D24: ='DF raw data'!AP29 -> -7.6951264e-06 | F24: 7.055015217e-06 | G24: 1.771687591e-06 | H24: -7.707069236e-06 | J24: -8.864085376e-05 | K24: -0.0005157252018 | L24: 1.480831244e-05 | M24: 4.466716702e-05 | N24: 3.627157344e-08
A25: 9.43485 | B25: ='DF raw data'!AN30 -> 7.6368842e-06 | C25: ='DF raw data'!AO30 -> 2.0270681e-06 | D25: ='DF raw data'!AP30 -> 4.2581078e-06 | F25: 7.648736644e-06 | G25: 2.035035994e-06 | H25: 4.264716383e-06 | J25: -8.481533813e-05 | K25: -0.0005581455931 | L25: 1.582613569e-05 | M25: 5.258260879e-05 | N25: 3.999474413e-08
A26: 9.935 | B26: ='DF raw data'!AN31 -> 4.4236904e-06 | C26: ='DF raw data'!AO31 -> -8.4775365e-07 | D26: ='DF raw data'!AP31 -> 3.3117822e-06 | F26: 4.430555968e-06 | G26: -8.510859559e-07 | H26: 3.316922086e-06 | J26: -8.259939556e-05 | K26: -0.0005994576808 | L26: 1.540046505e-05 | M26: 6.028515139e-05 | N26: 4.352572034e-08
A27: 10.43515 | B27: ='DF raw data'!AN32 -> 5.4288364e-07 | C27: ='DF raw data'!AO32 -> 9.0080994e-07 | D27: ='DF raw data'!AP32 -> 6.7717252e-07 | F27: 5.437261954e-07 | G27: 9.043507968e-07 | H27: 6.782234918e-07 | J27: -8.232745091e-05 | K27: -0.0006406337554 | L27: 1.58527761e-05 | M27: 6.821391736e-05 | N27: 4.704133455e-08
A28: 10.9353 | B28: ='DF raw data'!AN33 -> -1.3077416e-06 | C28: ='DF raw data'!AO33 -> -9.6327312e-06 | D28: ='DF raw data'!AP33 -> 3.4199823e-07 | F28: -1.309771215e-06 | G28: -9.670595038e-06 | H28: 3.425290113e-07 | J28: -8.298253298e-05 | K28: -0.0006821374693 | L28: 1.1016028e-05 | M28: 7.372358376e-05 | N28: 5.054611249e-08
A29: 11.43545 | B29: ='DF raw data'!AN34 -> 4.647416e-08 | C29: ='DF raw data'!AO34 -> -1.0273048e-05 | D29: ='DF raw data'!AP34 -> -8.7087477e-07 | F29: 4.65462879e-08 | G29: -1.031342876e-05 | H29: -8.722263676e-07 | J29: -8.295925285e-05 | K29: -0.0007236295396 | L29: 5.857766601e-06 | M29: 7.665334572e-05 | N29: 5.400542551e-08
A30: 11.9356 | B30: ='DF raw data'!AN35 -> 5.5755909e-06 | C30: ='DF raw data'!AO35 -> -9.8961173e-06 | D30: ='DF raw data'!AP35 -> -7.434291e-07 | F30: 5.584244217e-06 | G30: -9.935016443e-06 | H30: -7.44582902e-07 | J30: -8.016629311e-05 | K30: -0.0007637247111 | L30: 8.887681269e-07 | M30: 7.70978631e-05 | N30: 5.722010185e-08
A31: 12.43575 | B31: ='DF raw data'!AN36 -> 9.6991089e-06 | C31: ='DF raw data'!AO36 -> 5.1818201e-06 | D31: ='DF raw data'!AP36 -> -2.1693422e-06 | F31: 9.714161917e-06 | G31: 5.202188529e-06 | H31: -2.172709019e-06 | J31: -7.530775503e-05 | K31: -0.0008013898848 | L31: 3.49064272e-06 | M31: 7.884370806e-05 | N31: 6.006267564e-08
A32: 12.9359 | B32: ='DF raw data'!AN37 -> 7.5009111e-06 | C32: ='DF raw data'!AO37 -> 1.2118832e-05 | D32: ='DF raw data'!AP37 -> -4.9178934e-06 | F32: 7.512552514e-06 | G32: 1.216646807e-05 | H32: -4.925525971e-06 | J32: -7.155035189e-05 | K32: -0.0008371757933 | L32: 9.575701727e-06 | M32: 8.363299528e-05 | N32: 6.266903077e-08
A33: 13.43605 | B33: ='DF raw data'!AN38 -> 1.3584312e-06 | C33: ='DF raw data'!AO38 -> 1.1927486e-06 | D33: ='DF raw data'!AP38 -> 3.3315437e-06 | F33: 1.360539485e-06 | G33: 1.197436994e-06 | H33: 3.336714256e-06 | J33: -7.086987806e-05 | K33: -0.0008726213628 | L33: 1.017459984e-05 | M33: 8.872182139e-05 | N33: 6.523283073e-08
A34: 13.9362 | B34: ='DF raw data'!AN39 -> -2.9212142e-06 | C34: ='DF raw data'!AO39 -> 3.9685526e-07 | D34: ='DF raw data'!AP39 -> 9.1437823e-06 | F34: -2.925747924e-06 | G34: 3.98415198e-07 | H34: 9.15797345e-06 | J34: -7.233319089e-05 | K34: -0.0009087988082 | L34: 1.03738672e-05 | M34: 9.391031107e-05 | N34: 6.79034855e-08
A35: 14.43635 | B35: ='DF raw data'!AN40 -> -3.606202e-06 | C35: ='DF raw data'!AO40 -> 5.8932542e-06 | D35: ='DF raw data'!AP40 -> 6.1354067e-06 | F35: -3.611798826e-06 | G35: 5.916419097e-06 | H35: 6.144928851e-06 | J35: -7.413963207e-05 | K35: -0.0009458797452 | L35: 1.333296421e-05 | M35: 0.0001005787931 | N35: 7.074156316e-08
A36: 14.9365 | B36: ='DF raw data'!AN41 -> -6.1552319e-06 | C36: ='DF raw data'!AO41 -> -1.2620449e-06 | D36: ='DF raw data'!AP41 -> -1.4244733e-06 | F36: -6.16478482e-06 | G36: -1.26700568e-06 | H36: -1.426684083e-06 | J36: -7.72229492e-05 | K36: -0.0009845028032 | L36: 1.269927132e-05 | M36: 0.0001069303337 | N36: 7.380480954e-08
A37: 15.43665 | B37: ='DF raw data'!AN42 -> -1.0799185e-05 | C37: ='DF raw data'!AO42 -> -7.4245127e-06 | D37: ='DF raw data'!AP42 -> 5.7779389e-06 | F37: -1.081594534e-05 | G37: -7.453696588e-06 | H37: 5.786906261e-06 | J37: -8.263254426e-05 | K37: -0.00102583147 | L37: 8.971304972e-06 | M37: 0.0001114173319 | N37: 7.726015668e-08
A38: 15.9368 | B38: ='DF raw data'!AN43 -> -1.120316e-05 | C38: ='DF raw data'!AO43 -> -6.3031912e-06 | D38: ='DF raw data'!AP43 -> 5.5816696e-07 | F38: -1.12205473e-05 | G38: -6.327967456e-06 | H38: 5.590332351e-07 | J38: -8.824450099e-05 | K38: -0.001069966957 | L38: 5.806372049e-06 | M38: 0.0001143213888 | N38: 8.117173276e-08
A39: 16.43695 | B39: ='DF raw data'!AN44 -> -9.0940639e-06 | C39: ='DF raw data'!AO44 -> 6.7909518e-06 | D39: ='DF raw data'!AP44 -> -3.4919804e-06 | F39: -9.108177887e-06 | G39: 6.81764532e-06 | H39: -3.497399954e-06 | J39: -9.279995616e-05 | K39: -0.001116380855 | L39: 9.216217356e-06 | M39: 0.0001189308799 | N39: 8.552142253e-08
A40: 16.9371 | B40: ='DF raw data'!AN45 -> -7.8315688e-06 | C40: ='DF raw data'!AO45 -> -6.1183928e-06 | D40: ='DF raw data'!AP45 -> -1.9711451e-06 | F40: -7.843723395e-06 | G40: -6.14244266e-06 | H40: -1.974204317e-06 | J40: -9.672299442e-05 | K40: -0.001164756861 | L40: 6.14407466e-06 | M40: 0.0001220038389 | N40: 9.021937515e-08
A41: 17.43725 | B41: ='DF raw data'!AN46 -> -8.4564863e-06 | C41: ='DF raw data'!AO46 -> 7.1993727e-06 | D41: ='DF raw data'!AP46 -> -9.7010434e-07 | F41: -8.469610767e-06 | G41: 7.227671619e-06 | H41: -9.716099419e-07 | J41: -0.0001009590702 | K41: -0.00121525154 | L41: 9.75899462e-06 | M41: 0.0001268848 | N41: 9.536490426e-08
A42: 17.9374 | B42: ='DF raw data'!AN47 -> -6.6984258e-06 | C42: ='DF raw data'!AO47 -> -8.6884684e-06 | D42: ='DF raw data'!AP47 -> 1.0229544e-05 | F42: -6.708821757e-06 | G42: -8.722620579e-06 | H42: 1.024542025e-05 | J42: -0.0001043144874 | K42: -0.001267424431 | L42: 5.396375937e-06 | M42: 0.0001295837975 | N42: 1.008218574e-07
A43: 18.43755 | B43: ='DF raw data'!AN48 -> -3.527025e-06 | C43: ='DF raw data'!AO48 -> -6.399925e-06 | D43: ='DF raw data'!AP48 -> 5.243709e-06 | F43: -3.532498943e-06 | G43: -6.425081492e-06 | H43: 5.251847236e-06 | J43: -0.0001060812668 | K43: -0.001320480977 | L43: 2.182871429e-06 | M43: 0.0001306755606 | N43: 1.064525462e-07
A44: 18.9377 | B44: ='DF raw data'!AN49 -> 1.7123338e-06 | C44: ='DF raw data'!AO49 -> 8.4027524e-06 | D44: ='DF raw data'!AP49 -> 2.0367434e-06 | F44: 1.714991342e-06 | G44: 8.435781502e-06 | H44: 2.039904426e-06 | J44: -0.0001052235139 | K44: -0.001373108517 | L44: 6.402027547e-06 | M44: 0.0001338775347 | N44: 1.120107e-07
A45: 19.43785 | B45: ='DF raw data'!AN50 -> 6.7058672e-06 | C45: ='DF raw data'!AO50 -> 1.4189072e-06 | D45: ='DF raw data'!AP50 -> -2.6112693e-06 | F45: 6.716274706e-06 | G45: 1.424484567e-06 | H45: -2.61532199e-06 | J45: -0.0001018643691 | K45: -0.001424055981 | L45: 7.114483503e-06 | M45: 0.0001374358436 | N45: 1.172257469e-07
A46: 19.938 | B46: ='DF raw data'!AN51 -> 6.3155703e-06 | C46: ='DF raw data'!AO51 -> -3.0534375e-06 | D46: ='DF raw data'!AP51 -> 4.5556799e-06 | F46: 6.325372065e-06 | G46: -3.065439793e-06 | H46: 4.562750315e-06 | J46: -9.870073424e-05 | K46: -0.001473421153 | L46: 5.581303791e-06 | M46: 0.0001402273327 | N46: 1.221137058e-07
A47: 20.43815 | B47: ='DF raw data'!AN52 -> 2.7267188e-06 | C47: ='DF raw data'!AO52 -> 2.5502229e-07 | D47: ='DF raw data'!AP52 -> 1.1565562e-06 | F47: 2.730950668e-06 | G47: 2.560247183e-07 | H47: 1.158351175e-06 | J47: -9.733484926e-05 | K47: -0.001522103178 | L47: 5.709354554e-06 | M47: 0.0001430828664 | N47: 1.268684666e-07
A48: 20.9383 | B48: ='DF raw data'!AN53 -> 1.3933994e-06 | C48: ='DF raw data'!AO53 -> 7.5871121e-06 | D48: ='DF raw data'!AP53 -> 1.2964583e-06 | F48: 1.395561956e-06 | G48: 7.616935125e-06 | H48: 1.298470403e-06 | J48: -9.663685895e-05 | K48: -0.001570436103 | L48: 9.518964656e-06 | M48: 0.0001478437766 | N48: 1.315845276e-07
A49: 21.43845 | B49: ='DF raw data'!AN54 -> 1.1204055e-06 | C49: ='DF raw data'!AO54 -> 3.1107638e-06 | D49: ='DF raw data'!AP54 -> -2.9412419e-07 | F49: 1.122144369e-06 | G49: 3.122991428e-06 | H49: -2.945806707e-07 | J49: -9.607561844e-05 | K49: -0.001618488324 | L49: 1.108092882e-05 | M49: 0.0001533859031 | N49: 1.362625863e-07
A50: 21.9386 | B50: ='DF raw data'!AN55 -> 2.2502616e-07 | C50: ='DF raw data'!AO55 -> 2.8005452e-06 | D50: ='DF raw data'!AP55 -> -3.9354209e-06 | F50: 2.253754006e-07 | G50: 2.811553437e-06 | H50: -3.941528673e-06 | J50: -9.596289694e-05 | K50: -0.001666484167 | L50: 1.248712727e-05 | M50: 0.0001596313398 | N50: 1.40946394e-07
A51: 22.43875 | B51: ='DF raw data'!AN56 -> 2.8809109e-06 | C51: ='DF raw data'!AO56 -> 1.3597739e-05 | D51: ='DF raw data'!AP56 -> 9.3878685e-07 | F51: 2.885382074e-06 | G51: 1.365118828e-05 | H51: 9.402438472e-07 | J51: -9.451977309e-05 | K51: -0.001713758231 | L51: 1.931476909e-05 | M51: 0.0001692916216 | N51: 1.456013139e-07
A52: 22.9389 | B52: ='DF raw data'!AN57 -> 9.231454e-06 | C52: ='DF raw data'!AO57 -> -4.589052e-06 | D52: ='DF raw data'!AP57 -> -5.2053741e-07 | F52: 9.245781217e-06 | G52: -4.607090407e-06 | H52: -5.213452841e-07 | J52: -8.989549562e-05 | K52: -0.001758719463 | L52: 1.701053282e-05 | M52: 0.0001777994396 | N52: 1.497878487e-07
A53: 23.43905 | B53: ='DF raw data'!AN58 -> 1.1669016e-05 | C53: ='DF raw data'!AO58 -> -9.941883e-06 | D53: ='DF raw data'!AP58 -> 1.8298151e-06 | F53: 1.168712631e-05 | G53: -9.980962036e-06 | H53: 1.832654973e-06 | J53: -8.405017939e-05 | K53: -0.001800757161 | L53: 1.201855466e-05 | M53: 0.0001838105197 | N53: 1.533933692e-07
A54: 23.9392 | B54: ='DF raw data'!AN59 -> 1.0464729e-05 | C54: ='DF raw data'!AO59 -> -6.261027e-06 | D54: ='DF raw data'!AP59 -> 1.3187519e-06 | F54: 1.048097026e-05 | G54: -6.285637519e-06 | H54: 1.320798603e-06 | J54: -7.880812212e-05 | K54: -0.001840173043 | L54: 8.874793057e-06 | M54: 0.0001882492474 | N54: 1.565390536e-07
A55: 24.43935 | B55: ='DF raw data'!AN60 -> 8.1411081e-06 | C55: ='DF raw data'!AO60 -> 2.4225465e-06 | D55: ='DF raw data'!AP60 -> 3.8661083e-06 | F55: 8.1537431e-06 | G55: 2.43206892e-06 | H55: 3.8721085e-06 | J55: -7.47300275e-05 | K55: -0.001877549266 | L55: 1.009119233e-05 | M55: 0.0001932963573 | N55: 1.593831112e-07
A56: 24.9395 | B56: ='DF raw data'!AN61 -> 5.6097006e-06 | C56: ='DF raw data'!AO61 -> -4.478974e-06 | D56: ='DF raw data'!AP61 -> 1.5399701e-06 | F56: 5.618406855e-06 | G56: -4.496579718e-06 | H56: 1.542360134e-06 | J56: -7.191998132e-05 | K56: -0.001913520045 | L56: 7.842227981e-06 | M56: 0.0001972186476 | N56: 1.620008884e-07
A57: 25.43965 | B57: ='DF raw data'!AN62 -> 3.6461961e-06 | C57: ='DF raw data'!AO62 -> 2.774661e-06 | D57: ='DF raw data'!AP62 -> 1.4131938e-06 | F57: 3.651854996e-06 | G57: 2.785567493e-06 | H57: 1.415387077e-06 | J57: -7.009350604e-05 | K57: -0.001948577312 | L57: 9.235429563e-06 | M57: 0.0002018377477 | N57: 1.645008345e-07
A58: 25.9398 | B58: ='DF raw data'!AN63 -> 2.5565778e-06 | C58: ='DF raw data'!AO63 -> 7.0393935e-06 | D58: ='DF raw data'!AP63 -> 6.8477957e-06 | F58: 2.560545609e-06 | G58: 7.067063582e-06 | H58: 6.858423479e-06 | J58: -6.881284915e-05 | K58: -0.001982994058 | L58: 1.277002141e-05 | M58: 0.0002082246739 | N58: 1.669507101e-07
A59: 26.43995 | B59: ='DF raw data'!AN64 -> 4.3281295e-07 | C59: ='DF raw data'!AO64 -> -7.0926781e-06 | D59: ='DF raw data'!AP64 -> 7.149355e-06 | F59: 4.334846757e-07 | G59: -7.12055763e-06 | H59: 7.160450799e-06 | J59: -6.859604179e-05 | K59: -0.002017302369 | L59: 9.208674515e-06 | M59: 0.0002128303925 | N59: 1.69346537e-07
A60: 26.9401 | B60: ='DF raw data'!AN65 -> -1.2899883e-06 | C60: ='DF raw data'!AO65 -> -8.3356863e-06 | D60: ='DF raw data'!AP65 -> -4.7284857e-06 | F60: -1.291990362e-06 | G60: -8.368451782e-06 | H60: -4.73582431e-06 | J60: -6.924223077e-05 | K60: -0.00205193387 | L60: 5.023193356e-06 | M60: 0.0002153427426 | N60: 1.717571194e-07
A61: 27.44025 | B61: ='DF raw data'!AN66 -> -1.3470609e-06 | C61: ='DF raw data'!AO66 -> 1.1879447e-06 | D61: ='DF raw data'!AP66 -> -3.5741696e-06 | F61: -1.349151539e-06 | G61: 1.192614211e-06 | H61: -3.579716711e-06 | J61: -6.991700891e-05 | K61: -0.002086902862 | L61: 5.619679354e-06 | M61: 0.0002181534252 | N61: 1.742178419e-07
A62: 27.9404 | B62: ='DF raw data'!AN67 -> -2.3790099e-06 | C62: ='DF raw data'!AO67 -> 3.2173721e-06 | D62: ='DF raw data'!AP67 -> 8.9298692e-06 | F62: -2.382702123e-06 | G62: 3.230018779e-06 | H62: 8.943728357e-06 | J62: -7.110871738e-05 | K62: -0.002122467887 | L62: 7.235173246e-06 | M62: 0.0002217720971 | N62: 1.767730069e-07
A63: 28.44055 | B63: ='DF raw data'!AN68 -> -4.147606e-06 | C63: ='DF raw data'!AO68 -> -2.8202251e-07 | D63: ='DF raw data'!AP68 -> 8.1776807e-06 | F63: -4.154043085e-06 | G63: -2.831310694e-07 | H63: 8.19037246e-06 | J63: -7.318636203e-05 | K63: -0.002159072046 | L63: 7.093565242e-06 | M63: 0.0002253199438 | N63: 1.79477099e-07
A64: 28.9407 | B64: ='DF raw data'!AN69 -> -6.231513e-06 | C64: ='DF raw data'!AO69 -> 5.0550648e-06 | D64: ='DF raw data'!AP69 -> 3.0260553e-06 | F64: -6.241184308e-06 | G64: 5.074934986e-06 | H64: 3.030751738e-06 | J64: -7.630789036e-05 | K64: -0.002197237438 | L64: 9.631793975e-06 | M64: 0.0002301372856 | N64: 1.824358192e-07
A65: 29.44085 | B65: ='DF raw data'!AN70 -> -9.0578878e-06 | C65: ='DF raw data'!AO70 -> -5.6827539e-06 | D65: ='DF raw data'!AP70 -> -4.0865716e-06 | F65: -9.071945642e-06 | G65: -5.705091373e-06 | H65: -4.092913959e-06 | J65: -8.084522397e-05 | K65: -0.002237672177 | L65: 6.778392524e-06 | M65: 0.0002335274986 | N65: 1.857277549e-07
A66: 29.941 | B66: ='DF raw data'!AN71 -> -1.084658e-05 | C66: ='DF raw data'!AO71 -> -1.1988004e-06 | D66: ='DF raw data'!AP71 -> -6.3179332e-06 | F66: -1.086341389e-05 | G66: -1.203512582e-06 | H66: -6.327738632e-06 | J66: -8.627856043e-05 | K66: -0.002280824399 | L66: 6.176455706e-06 | M66: 0.0002366166529 | N66: 1.894699465e-07
A67: 30.44115 | B67: ='DF raw data'!AN72 -> -7.7949271e-06 | C67: ='DF raw data'!AO72 -> -5.2926316e-07 | D67: ='DF raw data'!AP72 -> -2.2861504e-06 | F67: -7.807024827e-06 | G67: -5.313435601e-07 | H67: -2.289698505e-06 | J67: -9.01832439e-05 | K67: -0.002325929548 | L67: 5.910704225e-06 | M67: 0.0002395728916 | N67: 1.935551486e-07
A68: 30.9413 | B68: ='DF raw data'!AN73 -> -1.0263757e-08 | C68: ='DF raw data'!AO73 -> 3.920667e-06 | D68: ='DF raw data'!AP73 -> 8.9629457e-06 | F68: -1.027968635e-08 | G68: 3.936078154e-06 | H68: 8.976856192e-06 | J68: -9.018838528e-05 | K68: -0.002371037269 | L68: 7.879333713e-06 | M68: 0.0002435137404 | N68: 1.976543924e-07
A69: 31.44145 | B69: ='DF raw data'!AN74 -> 7.5003145e-06 | C69: ='DF raw data'!AO74 -> 9.1610191e-06 | D69: ='DF raw data'!AP74 -> 9.493916e-06 | F69: 7.511954988e-06 | G69: 9.197028757e-06 | H69: 9.508650558e-06 | J69: -8.6431281e-05 | K69: -0.002414265874 | L69: 1.247922765e-05 | M69: 0.0002497552261 | N69: 2.01468585e-07
A70: 31.9416 | B70: ='DF raw data'!AN75 -> 8.8859624e-06 | C70: ='DF raw data'!AO75 -> 2.1650321e-06 | D70: ='DF raw data'!AP75 -> 6.4020851e-06 | F70: 8.899753414e-06 | G70: 2.173542295e-06 | H70: 6.412021136e-06 | J70: -8.198006933e-05 | K70: -0.002455268206 | L70: 1.356632483e-05 | M70: 0.0002565404234 | N70: 2.049220092e-07
A71: 32.44175 | B71: ='DF raw data'!AN76 -> 5.7134266e-06 | C71: ='DF raw data'!AO76 -> 2.1311416e-06 | D71: ='DF raw data'!AP76 -> 5.463603e-06 | F71: 5.722293838e-06 | G71: =(1-$G$1*($B$2-$G$2))*C71*$M$2/$M$1 -> 2.13951858e-06 | H71: 5.472082512e-06 | J71: -7.911806406e-05 | K71: -0.002494839105 | L71: 1.463640504e-05 | M71: 0.0002638608214 | N71: 2.081599265e-07
A72: =A71+$B$1 -> 32.9419 | B72: ='DF raw data'!AN77 -> 3.6134252e-06 | C72: ='DF raw data'!AO77 -> 5.2976352e-06 | D72: ='DF raw data'!AP77 -> 7.5608541e-06 | F72: 3.619033236e-06 | G72: 5.318458869e-06 | H72: 7.572588546e-06 | J72: =F72*$B$1+J71 -> -7.730800459e-05 | K72: =J72*$B$1+K71 -> -0.002533504704 | L72: =G72*$B$1+L71 -> 1.729643225e-05 | M72: =L72*$B$1+M71 -> 0.000272511632 | N72: =(J72^2+L72^2)*$B$1+N71 -> 2.11298715e-07
A73: 33.44205 | B73: ='DF raw data'!AN78 -> 2.9001339e-06 | C73: ='DF raw data'!AO78 -> 1.0747734e-05 | D73: ='DF raw data'!AP78 -> 4.9428405e-07 | F73: 2.904634908e-06 | G73: 1.078998063e-05 | H73: 4.950511788e-07 | J73: -7.585525144e-05 | K73: -0.002571443708 | L73: 2.269304106e-05 | M73: 0.0002838615565 | N73: 2.144341519e-07
A74: 33.9422 | B74: ='DF raw data'!AN79 -> 1.9433601e-06 | C74: ='DF raw data'!AO79 -> 5.289096e-06 | D74: ='DF raw data'!AP79 -> -1.4851112e-06 | F74: 1.946376195e-06 | G74: 5.309886103e-06 | H74: -1.487416093e-06 | J74: -7.488177139e-05 | K74: -0.002608895826 | L74: 2.534878059e-05 | M74: 0.0002965397491 | N74: 2.175600096e-07
A75: 34.44235 | B75: ='DF raw data'!AN80 -> 1.4992372e-07 | C75: ='DF raw data'!AO80 -> 3.2065124e-08 | D75: ='DF raw data'!AP80 -> 1.3308008e-06 | F75: 1.501564016e-07 | G75: 3.219116392e-08 | H75: 1.332866203e-06 | J75: -7.480667066e-05 | K75: -0.002646310382 | L75: 2.536488101e-05 | M75: 0.0003092259943 | N75: 2.206806531e-07
A76: 34.9425 | B76: ='DF raw data'!AN81 -> 5.3720839e-07 | C76: ='DF raw data'!AO81 -> -1.3118517e-05 | D76: ='DF raw data'!AP81 -> 8.2907491e-06 | F76: 5.380421374e-07 | G76: -1.317008258e-05 | H76: 8.303616343e-06 | J76: -7.453756889e-05 | K76: -0.002683590347 | L76: 1.87778642e-05 | M76: 0.0003186177431 | N76: 2.23635768e-07
A77: 35.44265 | B77: ='DF raw data'!AN82 -> 2.8590248e-06 | C77: ='DF raw data'!AO82 -> -5.5539967e-06 | D77: ='DF raw data'!AP82 -> 3.6414849e-06 | F77: 2.863462006e-06 | G77: -5.575828061e-06 | H77: 3.647136485e-06 | J77: -7.310540837e-05 | K77: -0.002720154017 | L77: 1.59891138e-05 | M77: 0.0003266146984 | N77: 2.264366343e-07
A78: 35.9428 | B78: ='DF raw data'!AN83 -> 5.0510816e-06 | C78: ='DF raw data'!AO83 -> -1.215345e-06 | D78: ='DF raw data'!AP83 -> 4.5575055e-07 | F78: 5.058920879e-06 | G78: -1.220122215e-06 | H78: 4.564578749e-07 | J78: -7.057518909e-05 | K78: -0.002755452198 | L78: 1.537886967e-05 | M78: 0.0003343064401 | N78: 2.290461004e-07
A79: 36.44295 | B79: ='DF raw data'!AN84 -> 5.8342512e-06 | C79: ='DF raw data'!AO84 -> 4.5843335e-06 | D79: ='DF raw data'!AP84 -> 2.0104839e-07 | F79: 5.843305958e-06 | G79: 4.602353359e-06 | H79: 2.013604171e-07 | J79: -6.765265961e-05 | K79: -0.002789288676 | L79: 1.76807367e-05 | M79: 0.0003431494605 | N79: 2.314915792e-07
A80: 36.9431 | B80: ='DF raw data'!AN85 -> 4.1434787e-06 | C80: ='DF raw data'!AO85 -> 4.7305693e-06 | D80: ='DF raw data'!AP85 -> 1.0273789e-06 | F80: 4.149909379e-06 | G80: 4.749163976e-06 | H80: 1.028973392e-06 | J80: -6.557708244e-05 | K80: -0.002822087054 | L80: 2.005603107e-05 | M80: 0.0003531804845 | N80: 2.338435837e-07
A81: 37.44325 | B81: ='DF raw data'!AN86 -> -1.0773994e-06 | C81: ='DF raw data'!AO86 -> 8.8774859e-06 | D81: ='DF raw data'!AP86 -> 2.4750616e-06 | F81: -1.079071524e-06 | G81: 8.912381059e-06 | H81: 2.478902896e-06 | J81: -6.611678006e-05 | K81: -0.002855155361 | L81: 2.451355845e-05 | M81: 0.0003654409407 | N81: 2.363305011e-07
A82: 37.9434 | B82: ='DF raw data'!AN87 -> -4.6142422e-06 | C82: ='DF raw data'!AO87 -> 1.5229807e-06 | D82: ='DF raw data'!AP87 -> 1.0321664e-06 | F82: -4.621403504e-06 | G82: 1.528967153e-06 | H82: 1.033768322e-06 | J82: -6.842817502e-05 | K82: -0.002889379713 | L82: 2.527827137e-05 | M82: 0.0003780838681 | N82: 2.389920024e-07
A83: 38.44355 | B83: ='DF raw data'!AN88 -> -4.3947121e-06 | C83: ='DF raw data'!AO88 -> 3.3772176e-06 | D83: ='DF raw data'!AP88 -> -2.9368539e-06 | F83: -4.401532693e-06 | G83: 3.390492591e-06 | H83: -2.941411897e-06 | J83: -7.06296016e-05 | K83: -0.002924705108 | L83: 2.697402624e-05 | M83: 0.0003915749274 | N83: 2.418509291e-07
A84: 38.9437 | B84: ='DF raw data'!AN89 -> -2.1479254e-06 | C84: ='DF raw data'!AO89 -> 1.0280873e-05 | D84: ='DF raw data'!AP89 -> -3.1550744e-06 | F84: -2.15125898e-06 | G84: 1.032128452e-05 | H84: -3.159971075e-06 | J84: -7.170555378e-05 | K84: -0.002960568641 | L84: 3.21362167e-05 | M84: 0.0004076478562 | N84: 2.449390667e-07
A85: 39.44385 | B85: ='DF raw data'!AN90 -> -1.9819172e-06 | C85: ='DF raw data'!AO90 -> 7.9825895e-06 | D85: ='DF raw data'!AP90 -> 6.2805192e-08 | F85: -1.984993135e-06 | G85: 8.013967047e-06 | H85: 6.290266566e-08 | J85: -7.26983481e-05 | K85: -0.00299692872 | L85: 3.614440232e-05 | M85: 0.000425725479 | N85: 2.482357893e-07
A86: 39.944 | B86: ='DF raw data'!AN91 -> -5.0556018e-06 | C86: ='DF raw data'!AO91 -> 1.2573819e-05 | D86: ='DF raw data'!AP91 -> -2.9793746e-06 | F86: -5.063448094e-06 | G86: 1.262324351e-05 | H86: -2.983998589e-06 | J86: -7.523083166e-05 | K86: -0.00303455542 | L86: 4.245791756e-05 | M86: 0.0004469608064 | N86: 2.51968085e-07
A87: 40.44415 | B87: ='DF raw data'!AN92 -> -5.9713248e-06 | C87: ='DF raw data'!AO92 -> -8.4208132e-06 | D87: ='DF raw data'!AP92 -> -3.9617162e-06 | F87: =(1-$G$1*($B$2-$G$2))*B87 -> -5.980592296e-06 | G87: -8.453913294e-06 | H87: -3.967864784e-06 | J87: -7.82220249e-05 | K87: -0.003073678166 | L87: 3.822969282e-05 | M87: 0.0004660813873 | N87: 2.557593193e-07
A88: 40.9443 | B88: ='DF raw data'!AN93 -> -5.8551859e-06 | C88: ='DF raw data'!AO93 -> 2.0872265e-07 | D88: ='DF raw data'!AP93 -> 1.5430405e-06 | F88: -5.864273149e-06 | G88: 2.095430861e-07 | H88: 1.545435299e-06 | J88: -8.115504111e-05 | K88: -0.00311426786 | L88: 3.83344958e-05 | M88: 0.0004852543854 | N88: 2.597883648e-07
A89: 41.44445 | B89: ='DF raw data'!AN94 -> -4.4571834e-06 | C89: ='DF raw data'!AO94 -> 3.5163821e-06 | D89: ='DF raw data'!AP94 -> 1.6982367e-06 | F89: -4.464100949e-06 | G89: 3.530204112e-06 | H89: 1.700872363e-06 | J89: -8.33877612e-05 | K89: -0.003155974248 | L89: 4.010012739e-05 | M89: 0.0005053104641 | N89: 2.640704185e-07
A90: 41.9446 | B90: ='DF raw data'!AN95 -> -2.1556671e-06 | C90: ='DF raw data'!AO95 -> 9.3003018e-07 | D90: ='DF raw data'!AP95 -> 3.6240517e-06 | F90: -2.159012695e-06 | G90: 9.336858942e-07 | H90: 3.629676228e-06 | J90: -8.44675914e-05 | K90: -0.003198220714 | L90: 4.056711039e-05 | M90: 0.0005256001044 | N90: 2.684619678e-07
A91: 42.44475 | B91: ='DF raw data'!AN96 -> -1.2512074e-06 | C91: ='DF raw data'!AO96 -> 8.015013e-06 | D91: ='DF raw data'!AP96 -> 5.6247363e-06 | F91: -1.253149274e-06 | G91: 8.046517996e-06 | H91: 5.633465891e-06 | J91: -8.509435401e-05 | K91: -0.003240780655 | L91: 4.459157636e-05 | M91: 0.0005479025813 | N91: 2.730780811e-07
A92: 42.9449 | B92: ='DF raw data'!AN97 -> -6.3471555e-07 | C92: ='DF raw data'!AO97 -> 2.6378975e-06 | D92: ='DF raw data'!AP97 -> 6.3035104e-06 | F92: -6.357006285e-07 | G92: 2.64826641e-06 | H92: 6.313293448e-06 | J92: -8.541229968e-05 | K92: -0.003283499617 | L92: 4.591610681e-05 | M92: 0.0005708675221 | N92: 2.777812666e-07
A93: 43.44505 | B93: ='DF raw data'!AN98 -> 1.550662e-06 | C93: ='DF raw data'!AO98 -> 1.5618079e-06 | D93: ='DF raw data'!AP98 -> 8.6014907e-06 | F93: 1.553068627e-06 | G93: 1.567946973e-06 | H93: 8.614840214e-06 | J93: -8.463553241e-05 | K93: -0.003325830079 | L93: 4.670031548e-05 | M93: 0.0005942246849 | N93: 2.824547146e-07
A94: 43.9452 | B94: ='DF raw data'!AN99 -> 4.2436686e-06 | C94: ='DF raw data'!AO99 -> -1.4341658e-06 | D94: ='DF raw data'!AP99 -> 3.1154477e-06 | F94: 4.250254774e-06 | G94: -1.439803144e-06 | H94: 3.120282875e-06 | J94: -8.250976748e-05 | K94: -0.003367097339 | L94: 4.598019794e-05 | M94: 0.0006172216809 | N94: 2.86917073e-07
A95: 44.44535 | B95: ='DF raw data'!AN100 -> 7.3526562e-06 | C95: ='DF raw data'!AO100 -> 3.7225273e-06 | D95: ='DF raw data'!AP100 -> 1.2400114e-06 | F95: 7.364067522e-06 | G95: 3.737159617e-06 | H95: 1.241935898e-06 | J95: -7.882662911e-05 | K95: -0.003406522477 | L95: 4.784933832e-05 | M95: 0.0006411535274 | N95: 2.911699468e-07
A96: 44.9455 | B96: ='DF raw data'!AN101 -> 9.3798399e-06 | C96: ='DF raw data'!AO101 -> -1.4376346e-06 | D96: ='DF raw data'!AP101 -> -1.9527079e-06 | F96: 9.394397412e-06 | G96: -1.443285579e-06 | H96: -1.955738503e-06 | J96: -7.412802124e-05 | K96: -0.003443597607 | L96: 4.712747904e-05 | M96: 0.0006647243361 | N96: 2.950290856e-07
A97: 45.44565 | B97: ='DF raw data'!AN102 -> 4.825265e-06 | C97: ='DF raw data'!AO102 -> -6.8565132e-06 | D97: ='DF raw data'!AP102 -> -1.1386816e-05 | F97: 4.832753811e-06 | G97: -6.883464425e-06 | H97: -1.140448834e-05 | J97: -7.171091942e-05 | K97: -0.003479463824 | L97: 4.368471431e-05 | M97: 0.0006865732459 | N97: 2.985555484e-07
A98: 45.9458 | B98: ='DF raw data'!AN103 -> -4.7100957e-06 | C98: ='DF raw data'!AO103 -> 3.7680256e-06 | D98: ='DF raw data'!AP103 -> -1.0155841e-05 | F98: -4.717405769e-06 | G98: 3.782836759e-06 | H98: -1.017160287e-05 | J98: -7.407032992e-05 | K98: -0.003516510099 | L98: 4.557670011e-05 | M98: 0.0007093684325 | N98: 3.023385076e-07
A99: 46.44595 | B99: ='DF raw data'!AN104 -> -8.833541e-06 | C99: ='DF raw data'!AO104 -> -1.6253671e-06 | D99: ='DF raw data'!AP104 -> 3.4220196e-07 | F99: -8.847250656e-06 | G99: -1.631756008e-06 | H99: 3.427330574e-07 | J99: -7.849528234e-05 | K99: -0.003555769515 | L99: 4.476057735e-05 | M99: 0.0007317554353 | N99: 3.064222417e-07
A100: 46.9461 | B100: ='DF raw data'!AN105 -> -5.6373146e-06 | C100: ='DF raw data'!AO105 -> -4.3000473e-06 | D100: ='DF raw data'!AP105 -> -6.0501779e-06 | F100: -5.646063712e-06 | G100: -4.316949702e-06 | H100: -6.059567776e-06 | J100: -8.13191611e-05 | K100: -0.003596441293 | L100: 4.260145495e-05 | M100: 0.000753062553 | N100: 3.106373508e-07
A101: 47.44625 | B101: ='DF raw data'!AN106 -> -2.3489019e-06 | C101: ='DF raw data'!AO106 -> -2.0213793e-06 | D101: ='DF raw data'!AP106 -> -7.9110332e-06 | F101: -2.352547396e-06 | G101: -2.029324833e-06 | H101: -7.923311124e-06 | J101: -8.249578768e-05 | K101: -0.003637701561 | L101: 4.158648814e-05 | M101: 0.000773862035 | N101: 3.149061265e-07
A102: 47.9464 | B102: ='DF raw data'!AN107 -> -3.5429157e-06 | C102: ='DF raw data'!AO107 -> -8.8475135e-06 | D102: ='DF raw data'!AP107 -> 8.2712212e-08 | F102: -3.548414305e-06 | G102: -8.882290846e-06 | H102: 8.284058135e-08 | J102: -8.42705271e-05 | K102: -0.003679849465 | L102: 3.714401037e-05 | M102: 0.0007924396118 | N102: 3.191479983e-07
A103: 48.44655 | B103: ='DF raw data'!AN108 -> -4.8470001e-06 | C103: ='DF raw data'!AO108 -> 3.6406027e-06 | D103: ='DF raw data'!AP108 -> 1.2317023e-06 | F103: -4.854522644e-06 | G103: 3.654912992e-06 | H103: 1.233613902e-06 | J103: -8.66985166e-05 | K103: -0.003723211728 | L103: 3.89720151e-05 | M103: 0.0008119314651 | N103: 3.23667079e-07
A104: 48.9467 | B104: ='DF raw data'!AN109 -> -1.7577742e-06 | C104: ='DF raw data'!AO109 -> -1.6800723e-06 | D104: ='DF raw data'!AP109 -> -2.456728e-06 | F104: -1.760502266e-06 | G104: -1.686676241e-06 | H104: -2.460540842e-06 | J104: -8.75790318e-05 | K104: -0.003767014381 | L104: 3.812842398e-05 | M104: 0.0008310013964 | N104: 3.282303794e-07
A105: 49.44685 | B105: ='DF raw data'!AN110 -> 3.0213514e-06 | C105: ='DF raw data'!AO110 -> -2.7684382e-06 | D105: ='DF raw data'!AP110 -> -3.2813996e-06 | F105: 3.026040537e-06 | G105: -2.779320233e-06 | H105: -3.286492332e-06 | J105: -8.606555763e-05 | K105: -0.00381006007 | L105: 3.673834697e-05 | M105: 0.0008493760806 | N105: 3.326101861e-07
A106: 49.947 | B106: ='DF raw data'!AN111 -> 7.5003727e-06 | C106: ='DF raw data'!AO111 -> 1.3188384e-05 | D106: ='DF raw data'!AP111 -> -7.7911691e-06 | F106: 7.512013278e-06 | G106: 1.324022421e-05 | H106: -7.803260994e-06 | J106: -8.230842419e-05 | K106: -0.003851226628 | L106: 4.336044511e-05 | M106: 0.0008710628073 | N106: 3.369388868e-07
A107: 50.44715 | B107: ='DF raw data'!AN112 -> 1.0658167e-05 | C107: ='DF raw data'!AO112 -> 5.4889697e-06 | D107: ='DF raw data'!AP112 -> -9.2958953e-06 | F107: 1.067470848e-05 | G107: 5.510545456e-06 | H107: -9.31032253e-06 | J107: -7.696946874e-05 | K107: -0.003889722908 | L107: 4.611654442e-05 | M107: 0.000894127997 | N107: 3.409656118e-07
A108: 50.9473 | B108: ='DF raw data'!AN113 -> 1.0535684e-05 | C108: ='DF raw data'!AO113 -> -6.2468844e-06 | D108: ='DF raw data'!AP113 -> 1.0111389e-06 | F108: 1.055203538e-05 | G108: -6.271439328e-06 | H108: 1.012708188e-06 | J108: -7.169186825e-05 | K108: -0.003925579596 | L108: 4.297988404e-05 | M108: 0.000915624386 | N108: 3.444601571e-07
A109: 51.44745 | B109: ='DF raw data'!AN114 -> 5.9400436e-06 | C109: ='DF raw data'!AO114 -> -4.8656457e-06 | D109: ='DF raw data'!AP114 -> 8.7368825e-08 | F109: 5.949262548e-06 | G109: -4.884771327e-06 | H109: 8.750442142e-08 | J109: -6.871634459e-05 | K109: -0.003959948076 | L109: 4.053676566e-05 | M109: 0.0009358988493 | N109: 3.476436945e-07
A110: 51.9476 | B110: ='DF raw data'!AN115 -> -8.4389933e-07 | C110: ='DF raw data'!AO115 -> 1.931935e-06 | D110: ='DF raw data'!AP115 -> 2.7846681e-06 | F110: -8.452090618e-07 | G110: 1.93952895e-06 | H110: 2.788989905e-06 | J110: -6.91390759e-05 | K110: -0.003994527984 | L110: 4.150682106e-05 | M110: 0.0009566584859 | N110: 3.50896184e-07
A111: 52.44775 | B111: ='DF raw data'!AN116 -> -5.7287589e-06 | C111: ='DF raw data'!AO116 -> 1.1569513e-05 | D111: ='DF raw data'!AP116 -> 1.4549869e-06 | F111: -5.737649934e-06 | G111: 1.161498984e-05 | H111: 1.45724504e-06 | J111: -7.200876151e-05 | K111: -0.004030543167 | L111: 4.731605823e-05 | M111: 0.0009803236124 | N111: 3.546093331e-07
A112: 52.9479 | B112: ='DF raw data'!AN117 -> -5.227882e-06 | C112: ='DF raw data'!AO117 -> 2.4783194e-06 | D112: ='DF raw data'!AP117 -> 3.1971713e-06 | F112: -5.235995673e-06 | G112: 2.488061049e-06 | H112: 3.20213331e-06 | J112: -7.462754475e-05 | K112: -0.004067868133 | L112: 4.856046197e-05 | M112: 0.001004611127 | N112: 3.585742167e-07
A113: 53.44805 | B113: ='DF raw data'!AN118 -> -1.7703907e-06 | C113: ='DF raw data'!AO118 -> -6.5212098e-06 | D113: ='DF raw data'!AP118 -> -2.5598362e-07 | F113: -1.773138346e-06 | G113: -6.546843032e-06 | H113: -2.563809066e-07 | J113: -7.551437989e-05 | K113: -0.00410563665 | L113: 4.528605842e-05 | M113: 0.00102726095 | N113: 3.62452004e-07
A114: 53.9482 | B114: ='DF raw data'!AN119 -> -6.8377005e-07 | C114: ='DF raw data'!AO119 -> -6.8674544e-06 | D114: ='DF raw data'!AP119 -> -2.8045333e-06 | F114: -6.848312611e-07 | G114: -6.894448632e-06 | H114: -2.808885936e-06 | J114: -7.585689825e-05 | K114: -0.004143576478 | L114: 4.183779994e-05 | M114: 0.001048186125 | N114: 3.66205465e-07
A115: 54.44835 | B115: ='DF raw data'!AN120 -> -2.2836221e-06 | C115: ='DF raw data'!AO120 -> -1.0523625e-05 | D115: ='DF raw data'!AP120 -> -3.585491e-06 | F115: -2.287166281e-06 | G115: -1.056499072e-05 | H115: -3.591055682e-06 | J115: -7.700082446e-05 | K115: -0.00418208844 | L115: 3.655371983e-05 | M115: 0.001066468468 | N115: 3.698392055e-07
A116: 54.9485 | B116: ='DF raw data'!AN121 -> -4.074177e-06 | C116: ='DF raw data'!AO121 -> -1.7678676e-06 | D116: ='DF raw data'!AP121 -> -6.4545029e-06 | F116: -4.080500123e-06 | G116: -1.774816642e-06 | H116: -6.464520289e-06 | J116: -7.90416866e-05 | K116: -0.00422162114 | L116: 3.566604529e-05 | M116: 0.001084306841 | N116: 3.736001609e-07
A117: 55.44865 | B117: ='DF raw data'!AN122 -> -3.5760941e-06 | C117: ='DF raw data'!AO122 -> -7.750341e-06 | D117: ='DF raw data'!AP122 -> -9.4396537e-06 | F117: -3.581644198e-06 | G117: -7.780805637e-06 | H117: -9.454304043e-06 | J117: -8.083304594e-05 | K117: -0.004262049788 | L117: 3.177447535e-05 | M117: 0.001100198845 | N117: 3.773730918e-07
A118: 55.9488 | B118: ='DF raw data'!AN123 -> -2.7206727e-07 | C118: ='DF raw data'!AO123 -> -1.0901358e-05 | D118: ='DF raw data'!AP123 -> -1.2571211e-05 | F118: -2.724895184e-07 | G118: -1.094420849e-05 | H118: -1.259072152e-05 | J118: -8.096933158e-05 | K118: -0.004302546599 | L118: 2.630072947e-05 | M118: 0.001113353154 | N118: 3.809980594e-07
A119: 56.44895 | B119: ='DF raw data'!AN124 -> 3.378339e-06 | C119: ='DF raw data'!AO124 -> -8.7140852e-06 | D119: ='DF raw data'!AP124 -> -1.1999045e-05 | F119: 3.383582182e-06 | G119: -8.748338073e-06 | H119: -1.201766752e-05 | J119: -7.927703295e-05 | K119: -0.004342197007 | L119: 2.192524819e-05 | M119: 0.001124319067 | N119: 3.843818565e-07
A120: 56.9491 | B120: ='DF raw data'!AN125 -> 5.1150228e-06 | C120: ='DF raw data'!AO125 -> -8.695024e-07 | D120: ='DF raw data'!AP125 -> -1.2764228e-05 | F120: 5.122961315e-06 | G120: -8.729201948e-07 | H120: -1.278403808e-05 | J120: -7.671478385e-05 | K120: -0.004380565906 | L120: 2.148865715e-05 | M120: 0.001135066619 | N120: 3.875562688e-07
A121: 57.44925 | B121: ='DF raw data'!AN126 -> 3.945107e-06 | C121: ='DF raw data'!AO126 -> 4.3688487e-06 | D121: ='DF raw data'!AP126 -> -8.4143112e-06 | F121: 3.951229806e-06 | G121: 4.386021543e-06 | H121: -8.427370211e-06 | J121: -7.473857626e-05 | K121: -0.004417946405 | L121: 2.368232583e-05 | M121: 0.001146911334 | N121: 3.906305444e-07
A122: 57.9494 | B122: ='DF raw data'!AN127 -> -4.5508671e-07 | C122: ='DF raw data'!AO127 -> -9.8238161e-07 | D122: ='DF raw data'!AP127 -> -2.7516226e-06 | F122: -4.557930046e-07 | G122: -9.862431045e-07 | H122: -2.755893118e-06 | J122: -7.496654113e-05 | K122: -0.00445544092 | L122: 2.318905634e-05 | M122: 0.001158509341 | N122: 3.937103254e-07
A123: 58.44955 | B123: ='DF raw data'!AN128 -> -4.8992706e-06 | C123: ='DF raw data'!AO128 -> -1.7211678e-06 | D123: ='DF raw data'!AP128 -> -4.5154457e-06 | F123: -4.906874268e-06 | G123: -1.727933277e-06 | H123: -4.522453672e-06 | J123: -7.74207143e-05 | K123: -0.004494162891 | L123: 2.232483051e-05 | M123: 0.001169675105 | N123: 3.969574818e-07
A124: 58.9497 | B124: ='DF raw data'!AN129 -> -6.0524371e-06 | C124: ='DF raw data'!AO129 -> -1.0908563e-05 | D124: ='DF raw data'!AP129 -> -5.6327563e-06 | F124: -6.061830482e-06 | G124: -1.095144181e-05 | H124: -5.641498338e-06 | J124: -8.045253881e-05 | K124: -0.004534401228 | L124: 1.684746689e-05 | M124: 0.001178101365 | N124: 4.003367193e-07
A125: 59.44985 | B125: ='DF raw data'!AN130 -> -8.7094568e-06 | C125: ='DF raw data'!AO130 -> -2.0340549e-06 | D125: ='DF raw data'!AP130 -> 3.2313101e-06 | F125: -8.722973877e-06 | G125: -2.042050257e-06 | H125: 3.236325093e-06 | J125: -8.48153342e-05 | K125: -0.004576821617 | L125: 1.582613545e-05 | M125: 0.001186016807 | N125: 4.040598897e-07
A126: 59.95 | B126: ='DF raw data'!AN131 -> -1.3550995e-05 | C126: ='DF raw data'!AO131 -> 2.9851887e-07 | D126: ='DF raw data'!AP131 -> 8.2405955e-07 | F126: -1.357202614e-05 | G126: 2.996922724e-07 | H126: 8.253384904e-07 | J126: -9.160338307e-05 | K126: -0.004622637049 | L126: 1.597602654e-05 | M126: 0.001194007217 | N126: 4.083843933e-07
A127: 60.45015 | B127: ='DF raw data'!AN132 -> -1.5477059e-05 | C127: ='DF raw data'!AO132 -> 1.0254307e-06 | D127: ='DF raw data'!AP132 -> 4.2619786e-06 | F127: -1.55010794e-05 | G127: 1.02946141e-06 | H127: 4.268593191e-06 | J127: -9.935624793e-05 | K127: -0.004672330077 | L127: 1.649091166e-05 | M127: 0.001202255146 | N127: 4.134577219e-07
A128: 60.9503 | B128: ='DF raw data'!AN133 -> -1.4359936e-05 | C128: ='DF raw data'!AO133 -> 1.0462334e-05 | D128: ='DF raw data'!AP133 -> 3.9325232e-06 | F128: -1.438222262e-05 | G128: 1.05034588e-05 | H128: 3.938626476e-06 | J128: -0.0001065495166 | K128: -0.004725620818 | L128: 2.174421658e-05 | M128: 0.001213130516 | N128: 4.19372301e-07
A129: 61.45045 | B129: ='DF raw data'!AN134 -> -1.3105576e-05 | C129: ='DF raw data'!AO134 -> 2.5034033e-06 | D129: ='DF raw data'!AP134 -> 6.4495458e-07 | F129: -1.312591585e-05 | G129: 2.513243547e-06 | H129: 6.459555495e-07 | J129: -0.0001131144434 | K129: -0.004782195006 | L129: 2.300121534e-05 | M129: 0.001224634574 | N129: 4.260362661e-07
A130: 61.9506 | B130: ='DF raw data'!AN135 -> -1.2492955e-05 | C130: ='DF raw data'!AO135 -> 3.3628075e-06 | D130: ='DF raw data'!AP135 -> 2.7579799e-06 | F130: -1.251234407e-05 | G130: 3.376025849e-06 | H130: 2.762260285e-06 | J130: -0.0001193724923 | K130: -0.004841899158 | L130: 2.468973467e-05 | M130: 0.001236983145 | N130: 4.334681825e-07
A131: 62.45075 | B131: ='DF raw data'!AN136 -> -9.391505e-06 | C131: ='DF raw data'!AO136 -> 1.7951716e-06 | D131: ='DF raw data'!AP136 -> 2.1199949e-06 | F131: -9.406080616e-06 | G131: 1.802227967e-06 | H131: 2.123285132e-06 | J131: -0.0001240769435 | K131: -0.004903956242 | L131: 2.559111899e-05 | M131: 0.001249782543 | N131: 4.414955866e-07
A132: 62.9509 | B132: ='DF raw data'!AN137 -> -5.7830957e-06 | C132: ='DF raw data'!AO137 -> 6.005333e-06 | D132: ='DF raw data'!AP137 -> -6.3308192e-07 | F132: -5.792071065e-06 | G132: 6.02893845e-06 | H132: -6.340644631e-07 | J132: -0.0001269738478 | K132: -0.004967462212 | L132: 2.860649255e-05 | M132: 0.00126409008 | N132: 4.499684725e-07
A133: 63.45105 | B133: ='DF raw data'!AN138 -> -4.867431e-06 | C133: ='DF raw data'!AO138 -> 1.4195092e-05 | D133: ='DF raw data'!AP138 -> -6.1105033e-07 | F133: -4.874985253e-06 | G133: 1.425088933e-05 | H133: -6.119986801e-07 | J133: -0.0001294120717 | K133: -0.005032187659 | L133: 3.573407485e-05 | M133: 0.001281962478 | N133: 4.589833803e-07
A134: 63.9512 | B134: ='DF raw data'!AN139 -> -4.9896526e-06 | C134: ='DF raw data'!AO139 -> 5.3123122e-06 | D134: ='DF raw data'!AP139 -> 1.224179e-06 | F134: -4.997396541e-06 | G134: 5.33319356e-06 | H134: 1.226078926e-06 | J134: -0.0001319115196 | K134: -0.005098163206 | L134: 3.840147161e-05 | M134: 0.001301168974 | N134: 4.684238727e-07
A135: 64.45135 | B135: ='DF raw data'!AN140 -> -4.7779804e-06 | C135: ='DF raw data'!AO140 -> 2.4995343e-06 | D135: ='DF raw data'!AP140 -> 5.3726244e-06 | F135: -4.785395826e-06 | G135: =(1-$G$1*($B$2-$G$2))*C135*$M$2/$M$1 -> 2.509359339e-06 | H135: 5.380962713e-06 | J135: -0.0001343049353 | K135: -0.005165335819 | L135: 3.965652768e-05 | M135: 0.001321003186 | N135: 4.782320421e-07
A136: =A135+$B$1 -> 64.9515 | B136: ='DF raw data'!AN141 -> -3.3584847e-06 | C136: ='DF raw data'!AO141 -> 3.6136313e-07 | D136: ='DF raw data'!AP141 -> 1.3893577e-06 | F136: -3.363697068e-06 | G136: 3.627835574e-07 | H136: 1.391513983e-06 | J136: =F136*$B$1+J135 -> -0.0001359872884 | K136: =J136*$B$1+K135 -> -0.005233349862 | L136: =G136*$B$1+L135 -> 3.983797388e-05 | M136: =L136*$B$1+M135 -> 0.001340928149 | N136: =(J136^2+L136^2)*$B$1+N135 -> 4.882748575e-07
A137: 65.45165 | B137: ='DF raw data'!AN142 -> -2.0464549e-06 | C137: ='DF raw data'!AO142 -> -2.2275235e-06 | D137: ='DF raw data'!AP142 -> -2.5602794e-06 | F137: -2.049630998e-06 | G137: -2.236279333e-06 | H137: -2.564252954e-06 | J137: -0.0001370124113 | K137: -0.005301876619 | L137: 3.871949877e-05 | M137: 0.001360293706 | N137: 4.984136984e-07
A138: 65.9518 | B138: ='DF raw data'!AN143 -> -3.4562736e-06 | C138: ='DF raw data'!AO143 -> -8.1039434e-07 | D138: ='DF raw data'!AP143 -> -1.0053782e-06 | F138: -3.461637737e-06 | G138: -8.135797959e-07 | H138: -1.006938547e-06 | J138: -0.0001387437495 | K138: -0.005371269305 | L138: 3.831258684e-05 | M138: 0.001379455746 | N138: 5.087756472e-07
A139: 66.45195 | B139: ='DF raw data'!AN144 -> -5.9319473e-06 | C139: ='DF raw data'!AO144 -> 3.1962909e-06 | D139: ='DF raw data'!AP144 -> -5.385039e-06 | F139: -5.941153682e-06 | G139: 3.208854714e-06 | H139: -5.393396581e-06 | J139: -0.0001417152175 | K139: -0.005442148171 | L139: 3.991749552e-05 | M139: 0.001399420482 | N139: 5.196172034e-07
A140: 66.9521 | B140: ='DF raw data'!AN145 -> -5.8341584e-06 | C140: ='DF raw data'!AO145 -> 1.1508803e-05 | D140: ='DF raw data'!AP145 -> -2.9967496e-06 | F140: -5.843213014e-06 | G140: 1.15540412e-05 | H140: -3.001400555e-06 | J140: -0.0001446377005 | K140: -0.005514488717 | L140: 4.569624923e-05 | M140: 0.001422275461 | N140: 5.311247604e-07
A141: 67.45225 | B141: ='DF raw data'!AN146 -> -3.9441557e-06 | C141: ='DF raw data'!AO146 -> 6.5123563e-06 | D141: ='DF raw data'!AP146 -> -1.0328085e-06 | F141: -3.95027703e-06 | G141: 6.537954731e-06 | H141: -1.034411419e-06 | J141: -0.0001466134315 | K141: -0.005587817425 | L141: 4.896620729e-05 | M141: 0.001446765909 | N141: 5.430749383e-07
A142: 67.9524 | B142: ='DF raw data'!AN147 -> -2.4309456e-06 | C142: ='DF raw data'!AO147 -> -2.9226794e-06 | D142: ='DF raw data'!AP147 -> -1.9130034e-07 | F142: -2.434718428e-06 | G142: -2.934167716e-06 | H142: -1.915972381e-07 | J142: -0.0001478311559 | K142: -0.005661755178 | L142: 4.749868331e-05 | M142: 0.001470522376 | N142: 5.551336426e-07
A143: 68.45255 | B143: ='DF raw data'!AN148 -> -9.9787137e-08 | C143: ='DF raw data'!AO148 -> -1.7637312e-06 | D143: ='DF raw data'!AP148 -> -2.1985043e-06 | F143: -9.994200664e-08 | G143: -1.770663983e-06 | H143: -2.201916379e-06 | J143: -0.0001478811419 | K143: -0.005735717931 | L143: 4.661308572e-05 | M143: 0.001493835911 | N143: 5.671580548e-07
A144: 68.9527 | B144: ='DF raw data'!AN149 -> 2.5251456e-06 | C144: ='DF raw data'!AO149 -> 5.4135835e-06 | D144: ='DF raw data'!AP149 -> -6.5020149e-06 | F144: 2.529064626e-06 | G144: 5.434862932e-06 | H144: -6.512106027e-06 | J144: -0.0001466162303 | K144: -0.005809048038 | L144: 4.933133241e-05 | M144: 0.001518508977 | N144: 5.791265939e-07
A145: 69.45285 | B145: ='DF raw data'!AN150 -> 2.1343249e-06 | C145: ='DF raw data'!AO150 -> 3.7366708e-06 | D145: ='DF raw data'!AP150 -> 3.4486496e-07 | F145: 2.137637372e-06 | G145: 3.751358711e-06 | H145: 3.454001904e-07 | J145: -0.0001455470909 | K145: -0.005881843416 | L145: 5.120757447e-05 | M145: 0.001544120445 | N145: 5.910332505e-07
A146: 69.953 | B146: ='DF raw data'!AN151 -> -3.6550512e-07 | C146: ='DF raw data'!AO151 -> -3.7728935e-07 | D146: ='DF raw data'!AP151 -> 4.9038781e-06 | F146: -3.660723839e-07 | G146: -3.787723793e-07 | H146: 4.911488919e-06 | J146: -0.000145730182 | K146: -0.005954730367 | L146: 5.101813146e-05 | M146: 0.001569637163 | N146: 6.029568944e-07
A147: 70.45315 | B147: ='DF raw data'!AN152 -> -7.1101124e-07 | C147: ='DF raw data'!AO152 -> 9.9718554e-06 | D147: ='DF raw data'!AP152 -> 2.7482592e-06 | F147: -7.121147294e-07 | G147: 1.001105225e-05 | H147: 2.752524498e-06 | J147: -0.0001460863462 | K147: -0.006027795453 | L147: 5.602515925e-05 | M147: 0.001597658147 | N147: 6.152005859e-07
A148: 70.9533 | B148: ='DF raw data'!AN153 -> 1.8262753e-06 | C148: ='DF raw data'!AO153 -> 1.6041058e-05 | D148: ='DF raw data'!AP153 -> -6.9583193e-06 | F148: 1.829109679e-06 | G148: 1.610411136e-05 | H148: -6.969118612e-06 | J148: -0.000145171517 | K148: -0.006100402987 | L148: 6.407963054e-05 | M148: 0.001629707574 | N148: 6.277948473e-07
A149: 71.45345 | B149: ='DF raw data'!AN154 -> 3.240023e-06 | C149: ='DF raw data'!AO154 -> 1.579554e-06 | D149: ='DF raw data'!AP154 -> -3.8718727e-06 | F149: 3.245051516e-06 | G149: 1.585762829e-06 | H149: -3.877881846e-06 | J149: -0.0001435485045 | K149: -0.006172198771 | L149: 6.487274982e-05 | M149: 0.00166215368 | N149: 6.402058929e-07
A150: 71.9536 | B150: ='DF raw data'!AN155 -> 1.8978142e-07 | C150: ='DF raw data'!AO155 -> 1.0530782e-05 | D150: ='DF raw data'!AP155 -> -1.5931882e-06 | F150: 1.900759608e-07 | G150: 1.057217585e-05 | H150: -1.595660828e-06 | J150: -0.000143453438 | K150: -0.006243947008 | L150: 7.016042357e-05 | M150: 0.001697244416 | N150: 6.52960405e-07
A151: 72.45375 | B151: ='DF raw data'!AN156 -> -1.8326583e-06 | C151: ='DF raw data'!AO156 -> 8.8030338e-06 | D151: ='DF raw data'!AP156 -> 2.7764966e-07 | F151: =(1-$G$1*($B$2-$G$2))*B151 -> -1.835502586e-06 | G151: 8.837636307e-06 | H151: 2.780805723e-07 | J151: -0.0001443714646 | K151: -0.006316154396 | L151: 7.458056737e-05 | M151: 0.001734545886 | N151: 6.661670563e-07
A152: 72.9539 | B152: ='DF raw data'!AN157 -> -2.3001094e-06 | C152: ='DF raw data'!AO157 -> 1.07931e-05 | D152: ='DF raw data'!AP157 -> -1.9963782e-06 | F152: -2.30367917e-06 | G152: 1.083552496e-05 | H152: -1.999476579e-06 | J152: -0.0001455236498 | K152: -0.00638893805 | L152: 7.999995518e-05 | M152: 0.001774557864 | N152: 6.799597556e-07
A153: 73.45405 | B153: ='DF raw data'!AN158 -> -3.2561557e-06 | C153: ='DF raw data'!AO158 -> 1.1018325e-05 | D153: ='DF raw data'!AP158 -> -1.3174126e-05 | F153: -3.261209254e-06 | G153: 1.106163526e-05 | H153: -1.319457224e-05 | J153: -0.0001471547436 | K153: -0.006462537495 | L153: 8.553243205e-05 | M153: 0.00181733691 | N153: 6.944492588e-07
A154: 73.9542 | B154: ='DF raw data'!AN159 -> -2.2864306e-06 | C154: ='DF raw data'!AO159 -> 5.8859041e-07 | D154: ='DF raw data'!AP159 -> -7.3117126e-06 | F154: -2.28997914e-06 | G154: 5.909040105e-07 | H154: -7.323060378e-06 | J154: -0.0001483000766 | K154: -0.006536709778 | L154: 8.582797269e-05 | M154: 0.001860263771 | N154: 7.091333396e-07
A155: 74.45435 | B155: ='DF raw data'!AN160 -> 7.7497214e-07 | C155: ='DF raw data'!AO160 -> 2.8053491e-06 | D155: ='DF raw data'!AP160 -> 3.3690148e-06 | F155: 7.761748968e-07 | G155: 2.81637622e-06 | H155: 3.374243511e-06 | J155: -0.0001479118728 | K155: -0.006610687901 | L155: 8.723658326e-05 | M155: 0.001903895148 | N155: 7.238818346e-07
A156: 74.9545 | B156: ='DF raw data'!AN161 -> 2.2898557e-06 | C156: ='DF raw data'!AO161 -> -1.692214e-06 | D156: ='DF raw data'!AP161 -> -3.837923e-06 | F156: 2.293409556e-06 | G156: -1.698865667e-06 | H156: -3.843879456e-06 | J156: -0.000146764824 | K156: -0.006684092328 | L156: 8.63868956e-05 | M156: 0.001947101553 | N156: 7.383874896e-07
A157: 75.45465 | B157: ='DF raw data'!AN162 -> 1.5523354e-06 | C157: ='DF raw data'!AO162 -> -1.3757244e-06 | D157: ='DF raw data'!AP162 -> -6.7499359e-06 | F157: 1.554744625e-06 | G157: -1.381132026e-06 | H157: -6.760411801e-06 | J157: -0.0001459872184 | K157: -0.006757107835 | L157: 8.569612241e-05 | M157: 0.001989962469 | N157: 7.527198347e-07
A158: 75.9548 | B158: ='DF raw data'!AN163 -> 3.0992478e-06 | C158: ='DF raw data'!AO163 -> 1.2350447e-06 | D158: ='DF raw data'!AP163 -> 2.8255299e-06 | F158: 3.104057833e-06 | G158: 1.239899349e-06 | H158: 2.829915122e-06 | J158: -0.0001444347239 | K158: -0.006829346862 | L158: 8.631625807e-05 | M158: 0.002033133546 | N158: 7.668800244e-07
A159: 76.45495 | B159: ='DF raw data'!AN164 -> 5.6580275e-06 | C159: ='DF raw data'!AO164 -> -5.9018421e-06 | D159: ='DF raw data'!AP164 -> 6.0371667e-06 | F159: 5.666808759e-06 | G159: -5.925040754e-06 | H159: 6.046536383e-06 | J159: -0.0001416004695 | K159: -0.006900168337 | L159: 8.335284894e-05 | M159: 0.002074822473 | N159: 7.803832694e-07
A160: 76.9551 | B160: ='DF raw data'!AN165 -> 4.9801847e-06 | C160: ='DF raw data'!AO165 -> -8.6884684e-06 | D160: ='DF raw data'!AP165 -> 5.4881666e-06 | F160: 4.987913947e-06 | G160: -8.722620579e-06 | H160: 5.496684235e-06 | J160: -0.0001391057644 | K160: -0.006969742085 | L160: 7.899023026e-05 | M160: 0.002114329437 | N160: 7.931820429e-07
A161: 77.45525 | B161: ='DF raw data'!AN166 -> 3.4372015e-06 | C161: ='DF raw data'!AO166 -> 2.6368307e-06 | D161: ='DF raw data'!AP166 -> -1.0453814e-06 | F161: 3.442536037e-06 | G161: 2.647195417e-06 | H161: -1.047003832e-06 | J161: -0.00013738398 | K161: -0.007038454683 | L161: 8.031422505e-05 | M161: 0.002154498596 | N161: 8.05848208e-07
A162: 77.9554 | B162: ='DF raw data'!AN167 -> 4.1813282e-06 | C162: ='DF raw data'!AO167 -> 1.1107054e-05 | D162: ='DF raw data'!AP167 -> -8.2742927e-06 | F162: 4.187817621e-06 | G162: 1.115071303e-05 | H162: -8.287134402e-06 | J162: -0.000135289443 | K162: -0.007106119698 | L162: 8.589125417e-05 | M162: 0.002197457107 | N162: 8.186923305e-07
A163: 78.45555 | B163: ='DF raw data'!AN168 -> 5.0794433e-06 | C163: ='DF raw data'!AO168 -> 1.0538521e-05 | D163: ='DF raw data'!AP168 -> -1.2825194e-06 | F163: 5.087326596e-06 | G163: 1.057994527e-05 | H163: -1.28450987e-06 | J163: -0.0001327450166 | K163: -0.007172512118 | L163: 9.118281379e-05 | M163: 0.002243062191 | N163: 8.316639933e-07
A164: 78.9557 | B164: ='DF raw data'!AN169 -> 3.822478e-06 | C164: ='DF raw data'!AO169 -> 1.4749883e-05 | D164: ='DF raw data'!AP169 -> 3.2238013e-06 | F164: 3.828410486e-06 | G164: 1.480786107e-05 | H164: 3.22880464e-06 | J164: -0.0001308302371 | K164: -0.007237946861 | L164: 9.858896551e-05 | M164: 0.002292371462 | N164: 8.450861863e-07
A165: 79.45585 | B165: ='DF raw data'!AN170 -> 3.0182227e-06 | C165: ='DF raw data'!AO170 -> 1.1033136e-05 | D165: ='DF raw data'!AP170 -> -3.1721875e-06 | F165: 3.022906982e-06 | G165: 1.107650448e-05 | H165: -3.177110735e-06 | J165: -0.0001293183301 | K165: -0.007302625424 | L165: 0.0001041288792 | M165: 0.002344451521 | N165: 8.588733482e-07
A166: 79.956 | B166: ='DF raw data'!AN171 -> 4.241675e-06 | C166: ='DF raw data'!AO171 -> 1.4896519e-05 | D166: ='DF raw data'!AP171 -> 3.1763832e-07 | F166: 4.24825808e-06 | G166: 1.495507346e-05 | H166: 3.181312947e-07 | J166: -0.0001271935639 | K166: -0.007366241285 | L166: 0.0001116086592 | M166: 0.002400272592 | N166: 8.731949912e-07
A167: 80.45615 | B167: ='DF raw data'!AN172 -> 6.556681e-06 | C167: ='DF raw data'!AO172 -> 1.4115837e-05 | D167: ='DF raw data'!AP172 -> 4.4463222e-06 | F167: 6.566856969e-06 | G167: 1.41713228e-05 | H167: 4.453222892e-06 | J167: -0.0001239091504 | K167: -0.007428214446 | L167: 0.0001186964463 | M167: 0.00245963862 | N167: 8.879205695e-07
A168: 80.9563 | B168: ='DF raw data'!AN173 -> 7.32022e-06 | C168: ='DF raw data'!AO173 -> 6.1882615e-06 | D168: ='DF raw data'!AP173 -> 3.3488459e-06 | F168: 7.331580981e-06 | G168: 6.212585996e-06 | H168: 3.354043309e-06 | J168: -0.0001202422601 | K168: -0.007488353613 | L168: 0.0001218036712 | M168: 0.002520558726 | N168: 9.025721313e-07
A169: 81.45645 | B169: ='DF raw data'!AN174 -> 4.8514876e-06 | C169: ='DF raw data'!AO174 -> 4.2705124e-06 | D169: ='DF raw data'!AP174 -> 7.3261532e-07 | F169: 4.859017109e-06 | G169: 4.287298708e-06 | H169: 7.33752339e-07 | J169: -0.0001178120227 | K169: -0.007547277296 | L169: 0.0001239479636 | M169: 0.0025825513 | N169: 9.17197903e-07
A170: 81.9566 | B170: ='DF raw data'!AN175 -> 3.5873918e-06 | C170: ='DF raw data'!AO175 -> 3.858223e-06 | D170: ='DF raw data'!AP175 -> -5.0921963e-06 | F170: 3.592959432e-06 | G170: 3.873388702e-06 | H170: -5.100099389e-06 | J170: -0.0001160150041 | K170: -0.0076053022 | L170: 0.000125885239 | M170: 0.002645512802 | N170: 9.318555862e-07
A171: 82.45675 | B171: ='DF raw data'!AN176 -> 6.8950276e-06 | C171: ='DF raw data'!AO176 -> 7.9056026e-06 | D171: ='DF raw data'!AP176 -> -6.0091852e-06 | F171: 6.905728683e-06 | G171: 7.936677531e-06 | H171: -6.018511455e-06 | J171: -0.0001125611039 | K171: -0.007661599636 | L171: 0.0001298547683 | M171: 0.002710459665 | N171: 9.466261475e-07
A172: 82.9569 | B172: ='DF raw data'!AN177 -> 9.2104992e-06 | C172: ='DF raw data'!AO177 -> 1.8219122e-05 | D172: ='DF raw data'!AP177 -> -4.6496368e-07 | F172: 9.224793895e-06 | G172: 1.829073678e-05 | H172: -4.656853036e-07 | J172: -0.0001079473232 | K172: -0.00771558949 | L172: 0.0001390028803 | M172: 0.002779981955 | N172: 9.621180064e-07
A173: 83.45705 | B173: ='DF raw data'!AN178 -> 7.4869704e-06 | C173: ='DF raw data'!AO178 -> 7.2732914e-06 | D173: ='DF raw data'!AP178 -> -1.11606e-06 | F173: 7.498590178e-06 | G173: 7.301880875e-06 | H173: -1.117792125e-06 | J173: -0.0001041969033 | K173: -0.007767703571 | L173: 0.000142654916 | M173: 0.002851330812 | N173: 9.777263973e-07
A174: 83.9572 | B174: ='DF raw data'!AN179 -> 5.3390349e-06 | C174: ='DF raw data'!AO179 -> 8.6337141e-06 | D174: ='DF raw data'!AP179 -> -3.9344313e-06 | F174: 5.347321082e-06 | G174: 8.667651054e-06 | H174: -3.940537537e-06 | J174: -0.0001015224407 | K174: -0.00781848002 | L174: 0.0001469900417 | M174: 0.002924847881 | N174: 9.936876234e-07
A175: 84.45735 | B175: ='DF raw data'!AN180 -> 4.3225691e-06 | C175: ='DF raw data'!AO180 -> 1.4321181e-05 | D175: ='DF raw data'!AP180 -> -5.1598918e-06 | F175: 4.329277727e-06 | G175: 1.437747395e-05 | H175: -5.167899952e-06 | J175: -9.935715242e-05 | K175: -0.0078681735 | L175: 0.0001541809353 | M175: 0.003001961476 | N175: 1.010514472e-06
A176: 84.9575 | B176: ='DF raw data'!AN181 -> 9.9317811e-07 | C176: ='DF raw data'!AO181 -> 1.4346666e-05 | D176: ='DF raw data'!AP181 -> -7.1968398e-06 | F176: 9.947195224e-07 | G176: 1.440305913e-05 | H176: -7.208009295e-06 | J176: -9.885964345e-05 | K176: -0.00791761815 | L176: 0.0001613846253 | M176: 0.003082677996 | N176: 1.028428958e-06
A177: 85.45765 | B177: ='DF raw data'!AN182 -> -3.541053e-06 | C177: ='DF raw data'!AO182 -> 1.8193105e-05 | D177: ='DF raw data'!AP182 -> -5.0943936e-06 | F177: -3.546548714e-06 | G177: 1.826461751e-05 | H177: -5.102300099e-06 | J177: -0.0001006334498 | K177: -0.00796794997 | L177: 0.0001705196737 | M177: 0.003167963411 | N177: 1.048036864e-06
A178: 85.9578 | B178: ='DF raw data'!AN183 -> -3.3478036e-06 | C178: ='DF raw data'!AO183 -> 8.2190227e-06 | D178: ='DF raw data'!AP183 -> 4.4953767e-06 | F178: -3.352999391e-06 | G178: 8.251329607e-06 | H178: 4.502353525e-06 | J178: -0.0001023104524 | K178: -0.008019120543 | L178: 0.0001746465762 | M178: 0.003255312896 | N178: 1.068527437e-06
A179: 86.45795 | B179: ='DF raw data'!AN184 -> 5.053688e-07 | C179: ='DF raw data'!AO184 -> 5.8693704e-06 | D179: ='DF raw data'!AP184 -> 1.6266267e-06 | F179: 5.061531324e-07 | G179: 5.892441416e-06 | H179: 1.629151225e-06 | J179: -0.0001020572999 | K179: -0.008070164502 | L179: 0.0001775936808 | M179: 0.003344136375 | N179: 1.089511334e-06
A180: 86.9581 | B180: ='DF raw data'!AN185 -> 4.2759739e-06 | C180: ='DF raw data'!AO185 -> -5.2800715e-06 | D180: ='DF raw data'!AP185 -> -9.8448954e-06 | F180: 4.282610211e-06 | G180: -5.30082613e-06 | H180: -9.860174678e-06 | J180: -9.991535245e-05 | K180: -0.008120137165 | L180: 0.0001749424726 | M180: 0.003431633853 | N180: 1.109811396e-06
A181: 87.45825 | B181: ='DF raw data'!AN186 -> 5.8901887e-06 | C181: ='DF raw data'!AO186 -> -6.2628951e-06 | D181: ='DF raw data'!AP186 -> -7.9607426e-06 | F181: 5.899330273e-06 | G181: -6.287512962e-06 | H181: -7.973097673e-06 | J181: -9.696480242e-05 | K181: -0.008168634111 | L181: 0.000171797773 | M181: 0.003517558509 | N181: 1.129275557e-06
A182: 87.9584 | B182: ='DF raw data'!AN187 -> 4.4896397e-06 | C182: ='DF raw data'!AO187 -> 4.4838625e-06 | D182: ='DF raw data'!AP187 -> -7.232783e-06 | F182: 4.496607621e-06 | G182: 4.501487433e-06 | H182: -7.244008279e-06 | J182: -9.471582411e-05 | K182: -0.00821600623 | L182: 0.000174049192 | M182: 0.003604609213 | N182: 1.148913551e-06
A183: 88.45855 | B183: ='DF raw data'!AN188 -> 1.7380324e-06 | C183: ='DF raw data'!AO188 -> -1.8500587e-06 | D183: ='DF raw data'!AP188 -> -1.0691337e-05 | F183: 1.740729826e-06 | G183: -1.857330814e-06 | H183: -1.070792996e-05 | J183: -9.384519809e-05 | K183: -0.008262942906 | L183: 0.0001731202479 | M183: 0.003691195305 | N183: 1.168308138e-06
A184: 88.9587 | B184: ='DF raw data'!AN189 -> -3.4529251e-07 | C184: ='DF raw data'!AO189 -> -4.223195e-06 | D184: ='DF raw data'!AP189 -> -8.1450426e-06 | F184: -3.45828404e-07 | G184: -4.239795315e-06 | H184: -8.157683706e-06 | J184: -9.401816417e-05 | K184: -0.008309966091 | L184: 0.0001709997143 | M184: 0.003776720812 | N184: 1.187354009e-06
A185: 89.45885 | B185: ='DF raw data'!AN190 -> 1.3223034e-08 | C185: ='DF raw data'!AO190 -> 1.5663445e-06 | D185: ='DF raw data'!AP190 -> -4.0120367e-06 | F185: 1.324355615e-08 | G185: 1.572501405e-06 | H185: -4.018263381e-06 | J185: -9.40115404e-05 | K185: -0.008356985963 | L185: 0.0001717862009 | M185: 0.00386263968 | N185: 1.206534096e-06
A186: 89.959 | B186: ='DF raw data'!AN191 -> -5.8512262e-07 | C186: ='DF raw data'!AO191 -> 9.2593546e-06 | D186: ='DF raw data'!AP191 -> -3.8238804e-06 | F186: -5.860307303e-07 | G186: 9.295750789e-06 | H186: -3.829815062e-06 | J186: -9.430464367e-05 | K186: -0.008404152431 | L186: 0.0001764354707 | M186: 0.003950883881 | N186: 1.22655152e-06
A187: 90.45915 | B187: ='DF raw data'!AN192 -> -3.6338943e-06 | C187: ='DF raw data'!AO192 -> 1.2265736e-05 | D187: ='DF raw data'!AP192 -> -1.3985127e-06 | F187: -3.639534104e-06 | G187: 1.231394952e-05 | H187: -1.400683192e-06 | J187: -9.612495666e-05 | K187: -0.008452229328 | L187: 0.0001825942925 | M187: 0.004042208416 | N187: 1.247848248e-06
A188: 90.9593 | B188: ='DF raw data'!AN193 -> -6.1426736e-06 | C188: ='DF raw data'!AO193 -> -1.8782112e-06 | D188: ='DF raw data'!AP193 -> 1.741907e-06 | F188: -6.152207029e-06 | G188: -1.885593975e-06 | H188: 1.74461044e-06 | J188: -9.9201983e-05 | K188: -0.008501845199 | L188: 0.0001816512127 | M188: 0.00413306127 | N188: 1.269273772e-06
A189: 91.45945 | B189: ='DF raw data'!AN194 -> -7.0109572e-06 | C189: ='DF raw data'!AO194 -> 6.6631287e-06 | D189: ='DF raw data'!AP194 -> 1.846186e-06 | F189: -7.021838206e-06 | G189: 6.689319779e-06 | H189: 1.849051281e-06 | J189: -0.0001027139554 | K189: -0.008553217584 | L189: 0.000184996876 | M189: 0.004225587458 | N189: 1.291667489e-06
A190: 91.9596 | B190: ='DF raw data'!AN195 -> -5.7178886e-06 | C190: ='DF raw data'!AO195 -> 5.843619e-06 | D190: ='DF raw data'!AP195 -> 5.079192e-07 | F190: -5.726762763e-06 | G190: 5.866588793e-06 | H190: 5.087074906e-07 | J190: -0.0001055781958 | K190: -0.008606022519 | L190: 0.0001879310504 | M190: 0.004319581173 | N190: 1.314906876e-06
A191: 92.45975 | B191: ='DF raw data'!AN196 -> -3.7477048e-06 | C191: ='DF raw data'!AO196 -> 9.5077958e-06 | D191: ='DF raw data'!AP196 -> 2.5128675e-06 | F191: -3.753521238e-06 | G191: 9.545168549e-06 | H191: 2.51676747e-06 | J191: -0.0001074555194 | K191: -0.008659766397 | L191: 0.0001927050664 | M191: 0.004415962611 | N191: 1.339255144e-06
A192: 92.9599 | B192: ='DF raw data'!AN197 -> -1.051497e-06 | C192: ='DF raw data'!AO197 -> 2.5195477e-06 | D192: ='DF raw data'!AP197 -> 8.3236946e-06 | F192: -1.053128923e-06 | G192: 2.529451407e-06 | H192: 8.336612974e-06 | J192: -0.0001079822419 | K192: -0.008713773715 | L192: 0.0001939701715 | M192: 0.004512976793 | N192: 1.363904832e-06
A193: 93.46005 | B193: ='DF raw data'!AN198 -> 5.3127121e-07 | C193: ='DF raw data'!AO198 -> -2.125852e-06 | D193: ='DF raw data'!AP198 -> 6.8780055e-06 | F193: 5.320957429e-07 | G193: -2.134208188e-06 | H193: 6.888680165e-06 | J193: -0.0001077161142 | K193: -0.00876764793 | L193: 0.0001929027473 | M193: 0.004609457102 | N193: 1.38831927e-06
A194: 93.9602 | B194: ='DF raw data'!AN199 -> 1.4604838e-06 | C194: ='DF raw data'!AO199 -> -1.8305782e-06 | D194: ='DF raw data'!AP199 -> 1.3677336e-06 | F194: 1.462750471e-06 | G194: -1.837773742e-06 | H194: 1.369856323e-06 | J194: -0.0001069845195 | K194: -0.008821156237 | L194: 0.0001919835848 | M194: 0.004705477692 | N194: 1.412478208e-06
A195: 94.46035 | B195: ='DF raw data'!AN200 -> 1.6387738e-06 | C195: ='DF raw data'!AO200 -> 2.3536977e-06 | D195: ='DF raw data'!AP200 -> -2.8348159e-06 | F195: 1.641317177e-06 | G195: 2.362949492e-06 | H195: -2.839215534e-06 | J195: -0.0001061636147 | K195: -0.008874253969 | L195: 0.0001931654139 | M195: 0.004802089374 | N195: 1.43677729e-06
A196: 94.9605 | B196: ='DF raw data'!AN201 -> 9.0966466e-07 | C196: ='DF raw data'!AO201 -> 4.625429e-06 | D196: ='DF raw data'!AP201 -> -8.8829265e-06 | F196: 9.110764596e-07 | G196: 4.643610396e-06 | H196: -8.896712802e-06 | J196: -0.0001057079398 | K196: -0.008927123795 | L196: 0.0001954879157 | M196: 0.004899862655 | N196: 1.461479546e-06
A197: 95.46065 | B197: ='DF raw data'!AN202 -> 5.0216738e-07 | C197: ='DF raw data'!AO202 -> -2.1549395e-06 | D197: ='DF raw data'!AP202 -> -6.5828799e-06 | F197: 5.029467438e-07 | G197: -2.163410024e-06 | H197: -6.59309653e-06 | J197: -0.000105456391 | K197: -0.008979867809 | L197: 0.0001944058862 | M197: 0.004997094759 | N197: 1.485944232e-06
A198: 95.9608 | B198: ='DF raw data'!AN203 -> -1.0120467e-06 | C198: ='DF raw data'!AO203 -> 6.0891252e-06 | D198: ='DF raw data'!AP203 -> -3.3257975e-06 | F198: -1.013617396e-06 | G198: 6.113060016e-06 | H198: -3.330959138e-06 | J198: -0.0001059633518 | K198: -0.009032865379 | L198: 0.0001974633331 | M198: 0.005095856045 | N198: 1.511061765e-06
A199: 96.46095 | B199: ='DF raw data'!AN204 -> -3.196682e-06 | C199: ='DF raw data'!AO204 -> 1.0767882e-05 | D199: ='DF raw data'!AP204 -> 7.5664053e-07 | F199: -3.20164325e-06 | G199: =(1-$G$1*($B$2-$G$2))*C199*$M$2/$M$1 -> 1.081020783e-05 | H199: 7.578148361e-07 | J199: -0.0001075646536 | K199: -0.009086663841 | L199: 0.0002028700586 | M199: 0.005197321504 | N199: 1.537432882e-06
A200: =A199+$B$1 -> 96.9611 | B200: ='DF raw data'!AN205 -> -1.9582121e-06 | C200: ='DF raw data'!AO205 -> -2.1357393e-07 | D200: ='DF raw data'!AP205 -> 1.1595169e-05 | F200: -1.961251245e-06 | G200: -2.144134353e-07 | H200: 1.16131647e-05 | J200: =F200*$B$1+J199 -> -0.0001085455735 | K200: =J200*$B$1+K199 -> -0.009140952909 | L200: =G200*$B$1+L199 -> 0.0002027628197 | M200: =L200*$B$1+M199 -> 0.005298733329 | N200: =(J200^2+L200^2)*$B$1+N199 -> 1.563888268e-06
A201: 97.46125 | B201: ='DF raw data'!AN206 -> 1.8219388e-06 | C201: ='DF raw data'!AO206 -> -6.3945881e-06 | D201: ='DF raw data'!AP206 -> 1.3513053e-05 | F201: 1.824766449e-06 | G201: -6.419723614e-06 | H201: 1.353402526e-05 | J201: -0.0001076329165 | K201: -0.009194785513 | L201: 0.0001995519949 | M201: 0.005398539259 | N201: 1.5895989e-06
... 1002 more rows

Sheet 10 x=2
A1: dz | B1: ='DF raw data'!AR7 -> 0.50017 | C1: mm | F1: T_coeff | G1: -0.0008 | H1: /degC | L1: Hallref | M1: ='PI vs gap'!B44 -> 0.50525 | N1: T | P1: IBy total | Q1: =L1203*1000 -> -2.604765657 | R1: muTm | X1: DF ref | Y1: 21
A2: Tref | B2: ='DF raw data'!AR8 -> 21.99 | C2: degC | F2: Tcorr | G2: 20 | H2: degC | L2: NMRref | M2: ='PI vs gap'!B45 -> 0.50645 | N2: T | P2: JBy total | Q2: =M1203 -> -0.9347563068 | R2: muTm^2
A3: Encoder | B3: ='DF raw data'!AR9 -> 262041713 | P3: PI total | Q3: =N1203 -> 708.5144557 | R3: T^2mm^3
A5: z [mm] | B5: Bx | C5: By | D5: Bz | F5: Bx_corr | G5: By_corr | H5: Bz_corr | J5: Ix | K5: Jx | L5: Iy | M5: Jy | N5: PI
A6: ='[1]PI vs x'!B53 -> -0.068 | B6: ='DF raw data'!AQ11 -> -5.8363293e-07 | C6: ='DF raw data'!AR11 -> 2.9182709e-06 | D6: ='DF raw data'!AS11 -> 2.1068838e-06 | F6: =(1-$G$1*($B$2-$G$2))*B6 -> -5.845620736e-07 | G6: =(1-$G$1*($B$2-$G$2))*C6*$M$2/$M$1 -> 2.929858895e-06 | H6: =(1-$G$1*($B$2-$G$2))*D6 -> 2.110237959e-06 | J6: =F6*$B$1 -> -2.923804124e-07 | K6: =J6*$B$1 -> -1.462399109e-07 | L6: =G6*$B$1 -> 1.465427524e-06 | M6: =L6*$B$1 -> 7.329628845e-07 | N6: =(J6^2+L6)^2*$B$1 -> 1.07410411e-12
A7: =A6+$B$1 -> 0.43217 | B7: ='DF raw data'!AQ12 -> -3.3645409e-07 | C7: ='DF raw data'!AR12 -> -3.8926532e-06 | D7: ='DF raw data'!AS12 -> 1.3777747e-06 | F7: =(1-$G$1*($B$2-$G$2))*B7 -> -3.369897249e-07 | G7: =(1-$G$1*($B$2-$G$2))*C7*$M$2/$M$1 -> -3.908110315e-06 | H7: 1.379968117e-06 | J7: =F7*$B$1+J6 -> -4.609325631e-07 | K7: =J7*$B$1+K6 -> -3.767845509e-07 | L7: =G7*$B$1+L6 -> -4.892920123e-07 | M7: =L7*$B$1+M6 -> 4.882336988e-07 | N7: =(J7^2+L7^2)*$B$1+N6 -> 1.300113678e-12
A8: =A7+$B$1 -> 0.93234 | B8: ='DF raw data'!AQ13 -> -7.8514785e-07 | C8: ='DF raw data'!AR13 -> 8.2284059e-06 | D8: ='DF raw data'!AS13 -> 4.8555302e-07 | F8: -7.863978054e-07 | G8: 8.261079608e-06 | H8: 4.863260204e-07 | J8: =F8*$B$1+J7 -> -8.542651534e-07 | K8: =J8*$B$1+K7 -> -8.040623527e-07 | L8: =G8*$B$1+L7 -> 3.642652175e-06 | M8: =L8*$B$1+M7 -> 2.310179037e-06 | N8: =(J8^2+L8^2)*$B$1+N7 -> 8.301835364e-12
A9: 1.43251 | B9: ='DF raw data'!AQ14 -> -9.2064073e-07 | C9: ='DF raw data'!AR14 -> 1.1544871e-05 | D9: ='DF raw data'!AS14 -> -1.1915406e-06 | F9: -9.2210639e-07 | G9: 1.159071387e-05 | H9: -1.193437533e-06 | J9: -1.315475106e-06 | K9: -1.462023537e-06 | L9: 9.439979531e-06 | M9: 7.031773599e-06 | N9: 5.373912294e-11
A10: 1.93268 | B10: ='DF raw data'!AQ15 -> -5.7715732e-07 | C10: ='DF raw data'!AR15 -> 2.5764309e-06 | D10: ='DF raw data'!AS15 -> 1.7024279e-06 | F10: -5.780761545e-07 | G10: 2.586661502e-06 | H10: 1.705138165e-06 | J10: -1.604611457e-06 | K10: -2.264602049e-06 | L10: 1.073375001e-05 | M10: 1.240047334e-05 | N10: 1.126532306e-10
A11: 2.43285 | B11: ='DF raw data'!AQ16 -> -4.1708626e-07 | C11: ='DF raw data'!AR16 -> -1.5750222e-06 | D11: ='DF raw data'!AS16 -> 2.9234354e-06 | F11: -4.177502613e-07 | G11: -1.581276366e-06 | H11: 2.928089509e-06 | J11: -1.813557605e-06 | K11: -3.171689156e-06 | L11: 9.942843015e-06 | M11: 1.737358514e-05 | N11: 1.637451551e-10
A12: 2.93302 | B12: ='DF raw data'!AQ17 -> -5.1634487e-07 | C12: ='DF raw data'!AR17 -> 8.4334511e-07 | D12: ='DF raw data'!AS17 -> 1.1580844e-06 | F12: -5.17166891e-07 | G12: 8.46693901e-07 | H12: 1.15992807e-06 | J12: -2.072228969e-06 | K12: -4.20815592e-06 | L12: 1.03663339e-05 | M12: 2.255851436e-05 | N12: 2.196416592e-10
A13: 3.43319 | B13: ='DF raw data'!AQ18 -> -4.3070685e-07 | C13: ='DF raw data'!AR18 -> -2.7276994e-06 | D13: ='DF raw data'!AS18 -> -6.0132452e-06 | F13: -4.313925353e-07 | G13: -2.738530666e-06 | H13: -6.022818286e-06 | J13: -2.287998573e-06 | K13: -5.352544166e-06 | L13: 8.99660302e-06 | M13: 2.70583453e-05 | N13: 2.627432105e-10
A14: 3.93336 | B14: ='DF raw data'!AQ19 -> -1.7372004e-07 | C14: ='DF raw data'!AR19 -> -9.8082792e-06 | D14: ='DF raw data'!AS19 -> -6.6274088e-06 | F14: -1.739966023e-07 | G14: -9.847226336e-06 | H14: -6.637959635e-06 | J14: -2.375026454e-06 | K14: -6.540461147e-06 | L14: 4.071315824e-06 | M14: 2.909469533e-05 | N14: 2.738551689e-10
A15: 4.43353 | B15: ='DF raw data'!AQ20 -> -3.9012956e-08 | C15: ='DF raw data'!AR20 -> -1.3214943e-05 | D15: ='DF raw data'!AS20 -> -5.7248699e-06 | F15: -3.907506463e-08 | G15: -1.326741746e-05 | H15: -5.733983893e-06 | J15: -2.394570629e-06 | K15: -7.738153539e-06 | L15: -2.564648369e-06 | M15: 2.781193516e-05 | N15: 2.800129567e-10
A16: 4.9337 | B16: ='DF raw data'!AQ21 -> -2.235749e-07 | C16: ='DF raw data'!AR21 -> -6.719441e-06 | D16: ='DF raw data'!AS21 -> 2.6253394e-06 | F16: -2.239308312e-07 | G16: -6.746122845e-06 | H16: 2.62951894e-06 | J16: -2.506574113e-06 | K16: -8.991866713e-06 | L16: -5.938856632e-06 | M16: 2.484149724e-05 | N16: 3.007964866e-10
A17: 5.43387 | B17: ='DF raw data'!AQ22 -> -5.2062313e-07 | C17: ='DF raw data'!AR22 -> 2.6226982e-07 | D17: ='DF raw data'!AS22 -> -3.7302386e-06 | F17: -5.21451962e-07 | G17: 2.633112523e-07 | H17: -3.73617714e-06 | J17: -2.767388741e-06 | K17: -1.037603154e-05 | L17: -5.807156243e-06 | M17: 2.19369319e-05 | N17: 3.214942735e-10
A18: 5.93404 | B18: ='DF raw data'!AQ23 -> -3.1616872e-07 | C18: ='DF raw data'!AR23 -> -5.2107803e-06 | D18: ='DF raw data'!AS23 -> -2.9830414e-06 | F18: -3.166720606e-07 | G18: -5.23147149e-06 | H18: -2.987790402e-06 | J18: -2.925778605e-06 | K18: -1.183941822e-05 | L18: -8.423781338e-06 | M18: 1.772360918e-05 | N18: 3.612679282e-10
A19: 6.43421 | B19: ='DF raw data'!AQ24 -> -2.6672932e-08 | C19: ='DF raw data'!AR24 -> -1.2258936e-05 | D19: ='DF raw data'!AS24 -> 1.3850943e-06 | F19: -2.671539531e-08 | G19: -1.230761431e-05 | H19: 1.38729937e-06 | J19: -2.939140844e-06 | K19: -1.33094883e-05 | L19: -1.457968079e-05 | M19: 1.043129025e-05 | N19: 4.719083535e-10
A20: 6.93438 | B20: ='DF raw data'!AQ25 -> -6.5998682e-07 | C20: ='DF raw data'!AR25 -> 4.5969177e-06 | D20: ='DF raw data'!AS25 -> -1.6015117e-06 | F20: -6.61037519e-07 | G20: 4.615171338e-06 | H20: -1.604061307e-06 | J20: -3.26977198e-06 | K20: -1.494493015e-05 | L20: -1.227131054e-05 | M20: 4.293548853e-06 | N20: 5.525740061e-10
A21: 7.43455 | B21: ='DF raw data'!AQ26 -> -9.1137116e-07 | C21: ='DF raw data'!AR26 -> 1.1794647e-05 | D21: ='DF raw data'!AS26 -> 1.0394135e-06 | F21: -9.128220629e-07 | G21: 1.184148169e-05 | H21: 1.041068246e-06 | J21: -3.726338191e-06 | K21: -1.680873272e-05 | L21: -6.348556642e-06 | M21: 1.118191277e-06 | N21: 5.796781022e-10
A22: 7.93472 | B22: ='DF raw data'!AQ27 -> -2.1678563e-06 | C22: ='DF raw data'!AR27 -> 9.4223115e-06 | D22: ='DF raw data'!AS27 -> 1.3278034e-06 | F22: -2.171307527e-06 | G22: 9.459726019e-06 | H22: 1.329917263e-06 | J22: -4.812361077e-06 | K22: -1.921573136e-05 | L22: -1.617085479e-06 | M22: 3.09373633e-07 | N22: 5.925693761e-10
A23: 8.43489 | B23: ='DF raw data'!AQ28 -> -3.0265212e-06 | C23: ='DF raw data'!AR28 -> 1.308739e-06 | D23: ='DF raw data'!AS28 -> -2.8353541e-06 | F23: =(1-$G$1*($B$2-$G$2))*B23 -> -3.031339422e-06 | G23: 1.313935797e-06 | H23: -2.839867984e-06 | J23: -6.328546116e-06 | K23: -2.238108028e-05 | L23: -9.598942115e-07 | M23: -1.707366548e-07 | N23: 6.130622877e-10
A24: 8.93506 | B24: ='DF raw data'!AQ29 -> 2.0662562e-06 | C24: ='DF raw data'!AR29 -> 6.9648499e-06 | D24: ='DF raw data'!AS29 -> -2.5615598e-06 | F24: 2.06954568e-06 | G24: 6.992506225e-06 | H24: -2.565637803e-06 | J24: -5.293421453e-06 | K24: -2.502869088e-05 | L24: 2.537547627e-06 | M24: 1.098468542e-06 | N24: 6.302978752e-10
A25: 9.43523 | B25: ='DF raw data'!AQ30 -> 8.1497428e-06 | C25: ='DF raw data'!AR30 -> 6.0671523e-06 | D25: ='DF raw data'!AS30 -> -6.9128591e-06 | F25: 8.162717191e-06 | G25: 6.091244009e-06 | H25: -6.923864372e-06 | J25: -1.210675196e-06 | K25: -2.56342343e-05 | L25: 5.584205143e-06 | M25: 3.891520428e-06 | N25: 6.466279663e-10
A26: 9.9354 | B26: ='DF raw data'!AQ31 -> 7.8721941e-06 | C26: ='DF raw data'!AR31 -> 3.5259993e-07 | D26: ='DF raw data'!AS31 -> -7.4271966e-06 | F26: 7.884726633e-06 | G26: 3.540000489e-07 | H26: -7.439020697e-06 | J26: 2.733028524e-06 | K26: -2.426725542e-05 | L26: 5.761265348e-06 | M26: 6.773132517e-06 | N26: 6.669656904e-10
A27: 10.43557 | B27: ='DF raw data'!AQ32 -> 2.4827029e-06 | C27: ='DF raw data'!AR32 -> 3.9050979e-06 | D27: ='DF raw data'!AS32 -> -4.0266759e-06 | F27: 2.486655363e-06 | G27: 3.92060443e-06 | H27: -4.033086368e-06 | J27: 3.976778937e-06 | K27: -2.22781899e-05 | L27: 7.722234065e-06 | M27: 1.063556233e-05 | N27: 7.047023513e-10
A28: 10.93574 | B28: ='DF raw data'!AQ33 -> -3.5430996e-06 | C28: ='DF raw data'!AR33 -> -1.3215743e-05 | D28: ='DF raw data'!AS33 -> -6.4044589e-06 | F28: -3.548740215e-06 | G28: -1.326822064e-05 | H28: -6.414654799e-06 | J28: 2.201805544e-06 | K28: -2.117691282e-05 | L28: 1.085868148e-06 | M28: 1.1178681e-05 | N28: 7.077169046e-10
A29: 11.43591 | B29: ='DF raw data'!AQ34 -> -4.7484637e-06 | C29: ='DF raw data'!AR34 -> 3.1417287e-07 | D29: ='DF raw data'!AS34 -> -5.3150297e-06 | F29: -4.756023254e-06 | G29: 3.154204011e-07 | H29: -5.323491227e-06 | J29: -1.770146072e-07 | K29: -2.126545022e-05 | L29: 1.24363197e-06 | M29: 1.18007084e-05 | N29: 7.085061501e-10
A30: 11.93608 | B30: ='DF raw data'!AQ35 -> -1.9007639e-07 | C30: ='DF raw data'!AR35 -> 1.1088648e-06 | D30: ='DF raw data'!AS35 -> -6.4252827e-06 | F30: -1.903789916e-07 | G30: 1.113267928e-06 | H30: -6.43551175e-06 | J30: -2.722364674e-07 | K30: -2.140161473e-05 | L30: 1.80045519e-06 | M30: 1.270124208e-05 | N30: 7.101645896e-10
A31: 12.43625 | B31: ='DF raw data'!AQ36 -> 2.7107315e-06 | C31: ='DF raw data'!AR36 -> -8.0326308e-06 | D31: ='DF raw data'!AS36 -> -3.0084054e-06 | F31: 2.715046985e-06 | G31: -8.064527115e-06 | H31: -3.013194781e-06 | J31: 1.085748583e-06 | K31: -2.085855586e-05 | L31: -2.233179338e-06 | M31: 1.158427277e-05 | N31: 7.132486078e-10
A32: 12.93642 | B32: ='DF raw data'!AQ37 -> 1.2011885e-06 | C32: ='DF raw data'!AR37 -> -1.1467212e-06 | D32: ='DF raw data'!AS37 -> 4.2531165e-06 | F32: 1.203100792e-06 | G32: -1.15127465e-06 | H32: 4.259887461e-06 | J32: 1.687503506e-06 | K32: -2.001451723e-05 | L32: -2.809012379e-06 | M32: 1.017928904e-05 | N32: 7.186195426e-10
A33: 13.43659 | B33: ='DF raw data'!AQ38 -> 3.008289e-06 | C33: ='DF raw data'!AR38 -> 1.7331711e-06 | D33: ='DF raw data'!AS38 -> -4.2210168e-06 | F33: 3.013078196e-06 | G33: 1.74005325e-06 | H33: -4.227736659e-06 | J33: 3.194554827e-06 | K33: -1.841669674e-05 | L33: -1.938689945e-06 | M33: 9.209614495e-06 | N33: 7.256037661e-10
A34: 13.93676 | B34: ='DF raw data'!AQ39 -> 5.6641156e-06 | C34: ='DF raw data'!AR39 -> 3.3591148e-06 | D34: ='DF raw data'!AS39 -> -2.4311746e-06 | F34: 5.673132872e-06 | G34: 3.372453317e-06 | H34: -2.43504503e-06 | J34: 6.032085696e-06 | K34: -1.539962844e-05 | L34: -2.518899694e-07 | M34: 9.083626689e-06 | N34: 7.438347157e-10
A35: 14.43693 | B35: ='DF raw data'!AQ40 -> 6.4713249e-06 | C35: ='DF raw data'!AR40 -> 1.6687261e-06 | D35: ='DF raw data'!AS40 -> 4.1647281e-06 | F35: 6.481627249e-06 | G35: 1.675352349e-06 | H35: 4.171358347e-06 | J35: 9.274001197e-06 | K35: -1.076105126e-05 | L35: 5.860710151e-07 | M35: 9.376761829e-06 | N35: 7.87024684e-10
A36: 14.9371 | B36: ='DF raw data'!AQ41 -> 8.501579e-06 | C36: ='DF raw data'!AR41 -> -4.3875687e-07 | D36: ='DF raw data'!AS41 -> 1.2406083e-06 | F36: 8.515113514e-06 | G36: -4.404991046e-07 | H36: 1.242583348e-06 | J36: 1.353300552e-05 | K36: -3.99224789e-06 | L36: 3.65746578e-07 | M36: 9.559697295e-06 | N36: 8.786938454e-10
A37: 15.43727 | B37: ='DF raw data'!AQ42 -> 1.3717175e-05 | C37: ='DF raw data'!AR42 -> -2.5798629e-06 | D37: ='DF raw data'!AS42 -> -4.0612804e-06 | F37: 1.373901274e-05 | G37: -2.59010713e-06 | H37: -4.067745958e-06 | J37: 2.040484753e-05 | K37: 6.213644697e-06 | L37: -9.297473054e-07 | M37: 9.094665585e-06 | N37: 1.08737589e-09
A38: 15.93744 | B38: ='DF raw data'!AQ43 -> 1.3859827e-05 | C38: ='DF raw data'!AR43 -> -3.5616188e-06 | D38: ='DF raw data'!AS43 -> -4.3208429e-06 | F38: 1.388189184e-05 | G38: -3.575761429e-06 | H38: -4.327721682e-06 | J38: 2.734815337e-05 | K38: 1.989237057e-05 | L38: -2.718235899e-06 | M38: 7.735085535e-06 | N38: 1.465159442e-09
A39: 16.43761 | B39: ='DF raw data'!AQ44 -> 4.6196228e-06 | C39: ='DF raw data'!AR44 -> -1.7632876e-06 | D39: ='DF raw data'!AS44 -> -5.7264771e-07 | F39: 4.626977239e-06 | G39: -1.770289338e-06 | H39: -5.735593652e-07 | J39: 2.966242858e-05 | K39: 3.472862747e-05 | L39: -3.603681518e-06 | M39: 5.93263215e-06 | N39: 1.911734321e-09
A40: 16.93778 | B40: ='DF raw data'!AQ45 -> -3.6430276e-06 | C40: ='DF raw data'!AR45 -> 3.0438257e-06 | D40: ='DF raw data'!AS45 -> 1.0133219e-06 | F40: -3.6488273e-06 | G40: 3.055912254e-06 | H40: 1.014935108e-06 | J40: 2.783739463e-05 | K40: 4.865205714e-05 | L40: -2.075205886e-06 | M40: 4.894676423e-06 | N40: 2.301480299e-09
A41: 17.43795 | B41: ='DF raw data'!AQ46 -> -1.7042178e-06 | C41: ='DF raw data'!AR46 -> -6.8720815e-06 | D41: ='DF raw data'!AS46 -> -8.2332272e-06 | F41: -1.706930915e-06 | G41: -6.899369456e-06 | H41: -8.246334498e-06 | J41: 2.698363899e-05 | K41: 6.214846385e-05 | L41: -5.526063507e-06 | M41: 2.130705239e-06 | N41: 2.680936345e-09
A42: 17.93812 | B42: ='DF raw data'!AQ47 -> 2.2564352e-06 | C42: ='DF raw data'!AR47 -> -6.0885973e-06 | D42: ='DF raw data'!AS47 -> -6.7239753e-06 | F42: 2.260027445e-06 | G42: -6.112774164e-06 | H42: -6.734679869e-06 | J42: 2.811403692e-05 | K42: 7.62102617e-05 | L42: -8.58348976e-06 | M42: -2.162498835e-06 | N42: 3.113120922e-09
A43: 18.43829 | B43: ='DF raw data'!AQ48 -> 4.2071197e-06 | C43: ='DF raw data'!AR48 -> 6.205516e-06 | D43: ='DF raw data'!AS48 -> -1.6966812e-06 | F43: 4.213817435e-06 | G43: 6.230157129e-06 | H43: -1.699382316e-06 | J43: 3.022166198e-05 | K43: 9.132623037e-05 | L43: -5.467352069e-06 | M43: -4.897104319e-06 | N43: 3.584901669e-09
A44: 18.93846 | B44: ='DF raw data'!AQ49 -> 4.2122565e-06 | C44: ='DF raw data'!AR49 -> 6.3388097e-06 | D44: ='DF raw data'!AS49 -> 1.8282146e-06 | F44: 4.218962412e-06 | G44: 6.363980118e-06 | H44: 1.831125118e-06 | J44: 3.233186041e-05 | K44: 0.000107497657 | L44: -2.284280133e-06 | M44: -6.039632713e-06 | N44: 4.110363832e-09
A45: 19.43863 | B45: ='DF raw data'!AQ50 -> -1.7581472e-06 | C45: ='DF raw data'!AR50 -> -7.7373561e-06 | D45: ='DF raw data'!AS50 -> 2.6121554e-06 | F45: -1.76094617e-06 | G45: -7.768079926e-06 | H45: 2.616313951e-06 | J45: 3.145108797e-05 | K45: 0.0001232285477 | L45: -6.16964067e-06 | M45: -9.125501887e-06 | N45: 4.624156162e-09
A46: 19.9388 | B46: ='DF raw data'!AQ51 -> -5.2640962e-06 | C46: ='DF raw data'!AR51 -> -1.5013807e-05 | D46: ='DF raw data'!AS51 -> 1.6296246e-06 | F46: -5.272476641e-06 | G46: -1.507342447e-05 | H46: 1.632218962e-06 | J46: 2.881395333e-05 | K46: 0.0001376404227 | L46: -1.370891539e-05 | M46: -1.59822901e-05 | N46: 5.133418386e-09
A47: 20.43897 | B47: ='DF raw data'!AQ52 -> -4.6211053e-06 | C47: ='DF raw data'!AR52 -> 4.0282516e-06 | D47: ='DF raw data'!AS52 -> 4.035347e-06 | F47: -4.6284621e-06 | G47: 4.044247154e-06 | H47: 4.041771272e-06 | J47: 2.649893544e-05 | K47: 0.0001508943952 | L47: -1.168610429e-05 | M47: -2.182732888e-05 | N47: 5.552940282e-09
A48: 20.93914 | B48: ='DF raw data'!AQ53 -> -6.4110491e-06 | C48: ='DF raw data'!AR53 -> 3.1520356e-06 | D48: ='DF raw data'!AS53 -> 3.9965516e-06 | F48: -6.42125549e-06 | G48: 3.164551838e-06 | H48: 4.00291411e-06 | J48: 2.328721608e-05 | K48: 0.0001625419621 | L48: -1.010329039e-05 | M48: -2.688069163e-05 | N48: 5.87523528e-09
A49: 21.43931 | B49: ='DF raw data'!AQ54 -> -9.1473767e-06 | C49: ='DF raw data'!AR54 -> 1.2325524e-06 | D49: ='DF raw data'!AS54 -> 5.2798414e-06 | F49: -9.161939324e-06 | G49: 1.237446672e-06 | H49: 5.288246908e-06 | J49: 1.870468889e-05 | K49: 0.0001718974863 | L49: -9.484356692e-06 | M49: -3.162448232e-05 | N49: 6.095219253e-09
A50: 21.93948 | B50: ='DF raw data'!AQ55 -> -6.3154721e-06 | C50: ='DF raw data'!AR55 -> -6.1563783e-06 | D50: ='DF raw data'!AS55 -> 5.0995432e-06 | F50: -6.325526332e-06 | G50: -6.180824311e-06 | H50: 5.107661673e-06 | J50: 1.554085038e-05 | K50: 0.0001796705535 | L50: -1.257581959e-05 | M50: -3.791453e-05 | N50: 6.295121831e-09
A51: 22.43965 | B51: ='DF raw data'!AQ56 -> 7.4374913e-07 | C51: ='DF raw data'!AR56 -> 4.3124514e-06 | D51: ='DF raw data'!AS56 -> -4.6377028e-07 | F51: 7.449331786e-07 | G51: 4.329575467e-06 | H51: -4.645086023e-07 | J51: 1.591344361e-05 | K51: 0.0001876299806 | L51: -1.041029583e-05 | M51: -4.312144767e-05 | N51: 6.475989278e-09
A52: 22.93982 | B52: ='DF raw data'!AQ57 -> 4.3643822e-06 | C52: ='DF raw data'!AR57 -> 5.5387804e-06 | D52: ='DF raw data'!AS57 -> 5.1656315e-07 | F52: 4.371330296e-06 | G52: 5.560774027e-06 | H52: 5.173855185e-07 | J52: 1.809985188e-05 | K52: 0.0001966829835 | L52: -7.628963482e-06 | M52: -4.693722633e-05 | N52: 6.668957726e-09
A53: 23.43999 | B53: ='DF raw data'!AQ58 -> 8.3186097e-07 | C53: ='DF raw data'!AR58 -> 5.2525788e-06 | D53: ='DF raw data'!AS58 -> 2.0642176e-06 | F53: 8.331852927e-07 | G53: 5.273435965e-06 | H53: 2.067503834e-06 | J53: 1.851658617e-05 | K53: 0.0002059444244 | L53: -4.991349015e-06 | M53: -4.943374937e-05 | N53: 6.852909013e-09
A54: 23.94016 | B54: ='DF raw data'!AQ59 -> 1.0900555e-06 | C54: ='DF raw data'!AR59 -> 6.3636271e-06 | D54: ='DF raw data'!AS59 -> 8.7271465e-06 | F54: 1.091790868e-06 | G54: 6.388896064e-06 | H54: 8.741040117e-06 | J54: 1.906266721e-05 | K54: 0.0002154789987 | L54: -1.795814871e-06 | M54: -5.033196209e-05 | N54: 7.036276453e-09
A55: 24.44033 | B55: ='DF raw data'!AQ60 -> 2.1593739e-06 | C55: ='DF raw data'!AR60 -> 5.0640469e-06 | D55: ='DF raw data'!AS60 -> 2.6089685e-06 | F55: 2.162811623e-06 | G55: 5.084155435e-06 | H55: 2.613121978e-06 | J55: 2.01444407e-05 | K55: 0.0002255546436 | L55: 7.471271533e-07 | M55: -4.99582715e-05 | N55: 7.239523878e-09
A56: 24.9405 | B56: ='DF raw data'!AQ61 -> -4.0329751e-06 | C56: ='DF raw data'!AR61 -> 4.0234486e-06 | D56: ='DF raw data'!AS61 -> -3.2147807e-06 | F56: -4.039395596e-06 | G56: 4.039425083e-06 | H56: -3.219898631e-06 | J56: 1.812405621e-05 | K56: 0.0002346197527 | L56: 2.767526397e-06 | M56: -4.857403783e-05 | N56: 7.40765133e-09
A57: 25.44067 | B57: ='DF raw data'!AQ62 -> -1.014622e-05 | C57: ='DF raw data'!AR62 -> -5.7064622e-06 | D57: ='DF raw data'!AS62 -> 4.997054e-06 | F57: -1.016237278e-05 | G57: -5.729121665e-06 | H57: 5.00500931e-06 | J57: 1.304114221e-05 | K57: 0.0002411425408 | L57: -9.800838644e-08 | M57: -4.862305868e-05 | N57: 7.492720742e-09
A58: 25.94084 | B58: ='DF raw data'!AQ63 -> -1.006505e-05 | C58: ='DF raw data'!AR63 -> -1.1680128e-05 | D58: ='DF raw data'!AS63 -> 6.1561577e-06 | F58: -1.008107356e-05 | G58: -1.172650795e-05 | H58: 6.165958303e-06 | J58: 7.998891648e-06 | K58: 0.0002451433465 | L58: -5.96325587e-06 | M58: -5.160570037e-05 | N58: 7.542509008e-09
A59: 26.44101 | B59: ='DF raw data'!AQ64 -> -7.7359718e-06 | C59: ='DF raw data'!AR64 -> -4.281726e-06 | D59: ='DF raw data'!AS64 -> 4.9305663e-06 | F59: -7.748287467e-06 | G59: -4.298728061e-06 | H59: 4.938415762e-06 | J59: 4.123430706e-06 | K59: 0.0002472057628 | L59: -8.113350684e-06 | M59: -5.566375498e-05 | N59: 7.583937659e-09
A60: 26.94118 | B60: ='DF raw data'!AQ65 -> -4.1333687e-06 | C60: ='DF raw data'!AR65 -> -2.7937469e-06 | D60: ='DF raw data'!AS65 -> 2.952321e-06 | F60: -4.139949023e-06 | G60: -2.80484043e-06 | H60: 2.957021095e-06 | J60: 2.052752403e-06 | K60: 0.000248232488 | L60: -9.516247722e-06 | M60: -6.04234966e-05 | N60: 7.631340152e-09
A61: 27.44135 | B61: ='DF raw data'!AQ66 -> -2.3402092e-06 | C61: ='DF raw data'!AR66 -> -4.6289038e-06 | D61: ='DF raw data'!AS66 -> -4.7726217e-06 | F61: -2.343934813e-06 | G61: -4.64728445e-06 | H61: -4.780219714e-06 | J61: 8.803865277e-07 | K61: 0.0002486728309 | L61: -1.184067999e-05 | M61: -6.634584951e-05 | N61: 7.70185251e-09
A62: 27.94152 | B62: ='DF raw data'!AQ67 -> -4.5705083e-06 | C62: ='DF raw data'!AR67 -> -4.7998233e-06 | D62: ='DF raw data'!AS67 -> -1.3855054e-05 | F62: -4.577784549e-06 | G62: -4.818882645e-06 | H62: -1.387711125e-05 | J62: -1.40928397e-06 | K62: 0.0002479679494 | L62: -1.425094052e-05 | M62: -7.347374243e-05 | N62: 7.804425066e-09
A63: 28.44169 | B63: ='DF raw data'!AQ68 -> -3.073844e-06 | C63: ='DF raw data'!AR68 -> 7.3500546e-06 | D63: ='DF raw data'!AS68 -> -8.1268672e-06 | F63: -3.07873756e-06 | G63: 7.379240512e-06 | H63: -8.139805173e-06 | J63: -2.949176136e-06 | K63: 0.0002464928599 | L63: -1.056006579e-05 | M63: -7.875557054e-05 | N63: 7.864551817e-09
A64: 28.94186 | B64: ='DF raw data'!AQ69 -> -1.7952691e-06 | C64: ='DF raw data'!AR69 -> -3.2647433e-06 | D64: ='DF raw data'!AS69 -> 1.027358e-07 | F64: -1.798127168e-06 | G64: -3.277707083e-06 | H64: 1.028993554e-07 | J64: -3.848545401e-06 | K64: 0.000244567933 | L64: -1.219947654e-05 | M64: -8.485738272e-05 | N64: 7.9463989e-09
A65: 29.44203 | B65: ='DF raw data'!AQ70 -> -2.8623901e-06 | C65: ='DF raw data'!AR70 -> -3.1817519e-06 | D65: ='DF raw data'!AS70 -> -2.8002839e-06 | F65: -2.866947025e-06 | G65: -3.194386137e-06 | H65: -2.804741952e-06 | J65: -5.282506295e-06 | K65: 0.0002419257818 | L65: -1.379721266e-05 | M65: -9.175833458e-05 | N65: 8.055569981e-09
A66: 29.9422 | B66: ='DF raw data'!AQ71 -> 4.8322619e-07 | C66: ='DF raw data'!AR71 -> -1.0349994e-05 | D66: ='DF raw data'!AS71 -> -3.9644519e-06 | F66: 4.839954861e-07 | G66: -1.03910922e-05 | H66: -3.970763307e-06 | J66: -5.040426273e-06 | K66: 0.0002394047118 | L66: -1.899452524e-05 | M66: -0.0001012588263 | N66: 8.248734577e-09
A67: 30.44237 | B67: ='DF raw data'!AQ72 -> 6.6628281e-06 | C67: ='DF raw data'!AR72 -> -3.119708e-06 | D67: ='DF raw data'!AS72 -> -1.6060374e-06 | F67: 6.673435322e-06 | G67: -3.132095871e-06 | H67: -1.608594212e-06 | J67: -1.702574127e-06 | K67: 0.0002385531353 | L67: -2.056110563e-05 | M67: -0.0001115428745 | N67: 8.461635851e-09
A68: 30.94254 | B68: ='DF raw data'!AQ73 -> 8.0419422e-06 | C68: ='DF raw data'!AR73 -> -8.4646681e-06 | D68: ='DF raw data'!AS73 -> 5.2632668e-06 | F68: 8.054744972e-06 | G68: -8.498279968e-06 | H68: 5.271645921e-06 | J68: 2.326167665e-06 | K68: 0.0002397166146 | L68: -2.481169033e-05 | M68: -0.0001239529376 | N68: 8.772256943e-09
A69: 31.44271 | B69: ='DF raw data'!AQ74 -> 3.4573902e-06 | C69: ='DF raw data'!AR74 -> -6.7166379e-06 | D69: ='DF raw data'!AS74 -> 7.2346729e-06 | F69: 3.462894365e-06 | G69: -6.743308614e-06 | H69: 7.246190499e-06 | J69: 4.05820354e-06 | K69: 0.0002417464062 | L69: -2.8184491e-05 | M69: -0.0001380499745 | N69: 9.177812059e-09
A70: 31.94288 | B70: ='DF raw data'!AQ75 -> -1.1343793e-06 | C70: ='DF raw data'!AR75 -> -1.0729326e-05 | D70: ='DF raw data'!AS75 -> -2.7884387e-06 | F70: -1.136185232e-06 | G70: -1.077193047e-05 | H70: -2.792877894e-06 | J70: 3.489917772e-06 | K70: 0.0002434919584 | L70: -3.357228746e-05 | M70: -0.0001548418255 | N70: 9.747644742e-09
A71: 32.44305 | B71: ='DF raw data'!AQ76 -> -1.7202976e-06 | C71: ='DF raw data'!AR76 -> 5.0397625e-06 | D71: ='DF raw data'!AS76 -> 3.258101e-08 | F71: -1.723036314e-06 | G71: =(1-$G$1*($B$2-$G$2))*C71*$M$2/$M$1 -> 5.059774605e-06 | H71: 3.263287897e-08 | J71: 2.628106699e-06 | K71: 0.0002448064585 | L71: -3.104153999e-05 | M71: -0.0001703678726 | N71: 1.02330518e-08
A72: =A71+$B$1 -> 32.94322 | B72: ='DF raw data'!AQ77 -> -1.2956436e-06 | C72: ='DF raw data'!AR77 -> 6.8122094e-06 | D72: ='DF raw data'!AS77 -> 6.3845064e-06 | F72: -1.297706265e-06 | G72: 6.839259614e-06 | H72: 6.394670534e-06 | J72: =F72*$B$1+J71 -> 1.979032957e-06 | K72: =J72*$B$1+K71 -> 0.0002457963115 | L72: =G72*$B$1+L71 -> -2.762074751e-05 | M72: =L72*$B$1+M71 -> -0.0001841829418 | N72: =(J72^2+L72^2)*$B$1+N71 -> 1.061659329e-08
A73: 33.44339 | B73: ='DF raw data'!AQ78 -> -7.6525538e-07 | C73: ='DF raw data'!AR78 -> -5.7742432e-06 | D73: ='DF raw data'!AS78 -> -2.7203503e-06 | F73: -7.664736666e-07 | G73: -5.797171813e-06 | H73: -2.724681098e-06 | J73: 1.595665823e-06 | K73: 0.0002465944156 | L73: -3.052031894e-05 | M73: -0.0001994482898 | N73: 1.108377009e-08
